{"text_format":"1","workbook":"xlsx","n_sheets":10,"sheets":["Home","Report","Forms","COMPARISON","LM","Strain Index","TLV","QEC","Vibration","Data"],"not_rendered":{"charts":0,"images":15,"macros":1,"external_links":0,"defined_names":10,"comments":2,"pivot_tables":0},"unopened":[],"bounds":{"document_bytes":16777216,"sheet_cells":100000,"rows_first":2000,"rows_last":500,"rows_between":2000,"halvings":0,"cell_chars":16384,"cell_head_chars":4096},"cells_cut":0,"cells_raw":0,"read":"whole","date_system":"1900"}

{"sheet":"Home","index":0,"n_rows":142,"n_cols":49,"rows_kept":142,"cut":false,"hidden":false,"merged":[[107,46,107,47],[106,46,106,47],[105,46,105,47],[85,32,85,33],[28,30,28,37],[2,7,2,27],[19,8,19,37],[18,8,18,37],[17,8,17,37],[16,8,16,37],[15,8,15,37],[14,8,14,37],[13,8,13,37],[12,8,12,37],[6,7,9,37]]}
[null,null,null,null,null,null,null,null,null,null,null,null,null,null,null,null,null,null,null,null,null,null,null,null,null,null,null,null,null,null,null,null,null,null,null,null,null,null,null,0,{"$f":"COUNT(AN2:AN131)","v":127},"Results",1,"Risk Level",null,null,"Begun",null,"industry"]
[null,null,null,null,null,null,null,"HOME PAGE",null,null,null,null,null,null,null,null,null,null,null,null,null,null,null,null,null,null,null,null,null,null,null,null,null,null,null,null,null,null,null,0,"X",null,0,null,null,null,false,null,0]
[null,null,null,null,null,null,null,null,null,null,null,null,null,null,null,null,null,null,null,null,null,null,null,null,null,null,null,null,null,null,null,null,null,null,null,null,null,null,null,0,"Back A entered = 1",null,null,null,null,null,{"$f":"COUNTIF(AN1:AN28,\">0\")+COUNTIF(AN30:AN105,\">0\")+COUNTIF(AN119:AN122,\">0\")+COUNTIF(AN124:AN131,\">0\")","v":0}]
[null,null,null,null,null,null,null,null,null,null,null,null,null,null,null,null,null,null,null,null,null,null,null,null,null,null,null,null,null,null,null,null,null,null,null,null,null,null,null,0,"Back B entered = 1",null,null,null,null,null,0]
[null,null,null,null,null,null,null,"Welcome to the Physical Job Evaluation Checklist!",null,null,null,null,null,null,null,null,null,null,null,null,null,null,null,null,null,null,null,null,null,null,null,null,null,null,null,null,null,null,null,0,"Back A (posture)","QEC Back",{"$f":"QEC!I2","v":0},{"$f":"IF(AQ5=0,0,IF(AQ5<QEC!J3,1,IF(AQ5<QEC!J4,2,IF(AQ5<QEC!J5,3,IF(AQ5>QEC!J5,4,0)))))","v":0},null,null,null,null,{"$f":"QEC!J3","v":15}]
[null,null,null,null,null,null,null,null,null,null,null,null,null,null,null,null,null,null,null,null,null,null,null,null,null,null,null,null,null,null,null,null,null,null,null,null,null,null,null,0,null,null,null,null,null,null,null,null,{"$f":"QEC!J4","v":23}]
[null,null,null,null,null,null,null,"This checklist is intended to help the user determine the level of risk of developing work-related musculoskeletal disorders and injuries (WMSDs) through the observation and measurement of the work performed. Users of the checklist will be able to identify high risk jobs and be able to prioritize injury prevention efforts. This checklist can also be used to evaluate injury prevention solutions by comparing pre- and post-solution results. This tool cannot, however, predict injury or provide specific suggestions or solutions for reducing risk.",null,null,null,null,null,null,null,null,null,null,null,null,null,null,null,null,null,null,null,null,null,null,null,null,null,null,null,null,null,null,null,0,{"$f":"IF(OR(AW2=1,AW2=4),AN44,IF(OR(AW2=2,AW2=3),AN8,0))","v":0},"WA Neck",null,{"$f":"IF(AN8=3,3,IF(AN8=2,2,IF(AN8=1,1,0)))","v":0},{"$f":"IF(Home!AO7=0,\"\",)","v":""},{"$f":"IF(Home!AO7=1,Forms!E149,IF(Home!AO7=2,Forms!L150,IF(Home!AO7=3,Forms!L151,\"\")))","v":""},{"$f":"IF(Home!AO7=1,Forms!L132,IF(Home!AO7=2,\"Flexed more than 30 degrees more than 2 hours/day\",IF(Home!AO7=3,\"Flexed more than 45 degrees more than 4 hours/day\",\"\")))","v":""},{"$f":"IF(OR(AW2=1,AW2=2),AT7,AU7)","v":""},{"$f":"QEC!J5","v":29}]
[null,null,null,null,null,null,null,null,null,null,null,null,null,null,null,null,null,null,null,null,null,null,null,null,null,null,null,null,null,null,null,null,null,null,null,null,null,null,null,0,"WA Neck",null,null,null,null,{"$f":"AT9&AO6","v":""}]
[null,null,null,null,null,null,null,null,null,null,null,null,null,null,null,null,null,null,null,null,null,null,null,null,null,null,null,null,null,null,null,null,null,null,null,null,null,null,null,0,"Back B (movements)","WA Squatting",null,{"$f":"IF(AN10=3,3,IF(AN10=2,2,IF(AN10=1,1,0)))","v":0},null,{"$f":"IF(OR(AN9=1,AN9=2),\"When seated or standing: \",IF(OR(AN9=3,AN9=4,AN9=5),\"When lifting, carrying, or pushing/pulling: \",\"\"))","v":""}]
[null,null,null,null,null,null,null,null,null,null,null,null,null,null,null,null,null,null,null,null,null,null,null,null,null,null,null,null,null,null,null,null,null,null,null,null,null,null,null,0,"Squatting"]
[null,null,null,null,null,null,null,null,null,null,null,null,null,null,null,null,null,null,null,null,null,null,null,null,null,null,null,null,null,null,null,null,null,null,null,null,null,null,null,0,"Kneeling","WA Kneeling",null,{"$f":"IF(AN11=3,3,IF(AN11=2,2,IF(AN11=1,1,0)))","v":0},null,"Other FC factors:"]
[null,null,null,null,null,null,null,"INSTRUCTIONS",null,null,null,null,null,null,null,null,null,null,null,null,null,null,null,null,null,null,null,null,null,null,null,null,null,null,null,null,null,null,null,0,"WA Foot Control",{"$f":"COUNTA(AT12:AT14)","v":0}]
[null,null,null,null,null,null,null,1,"Select the industry sector you are working with by clicking SELECT INDUSTRY.",null,null,null,null,null,null,null,null,null,null,null,null,null,null,null,null,null,null,null,null,null,null,null,null,null,null,null,null,null,null,0,"squat entered = 1","WA Repetitive Foot",null,{"$f":"(AN12+AP12)-AS14","v":0}]
[null,null,null,null,null,null,null,{"$f":"H13+1","v":2},"To collect observational data, begin by clicking PRINT PAPER FORM.",null,null,null,null,null,null,null,null,null,null,null,null,null,null,null,null,null,null,null,null,null,null,null,null,null,null,null,null,null,null,0,"sitting entered = 1",null,null,null,{"$f":"COUNTA(AT12:AT14)","v":0}]
[null,null,null,null,null,null,null,3,"Print a copy of the form for each job/task you plan to assess.",null,null,null,null,null,null,null,null,null,null,null,null,null,null,null,null,null,null,null,null,null,null,null,null,null,null,null,null,null,null,0,"Sitting"]
[null,null,null,null,null,null,null,4,"Observe the work performed by the worker as you fill out each page of the form.",null,null,null,null,null,null,null,null,null,null,null,null,null,null,null,null,null,null,null,null,null,null,null,null,null,null,null,null,null,null,0,"kneel entered = 1","WA Risk Sit",null,{"$f":"IF(AN15=3,3,IF(AN15=2,2,IF(AN15=1,1,0)))","v":0}]
[null,null,null,null,null,null,null,5,"After completing the form, return to this screen, select your industry, and click LAUNCH CHECKLIST.",null,null,null,null,null,null,null,null,null,null,null,null,null,null,null,null,null,null,null,null,null,null,null,null,null,null,null,null,null,null,0,"stand entered = 1"]
[null,null,null,null,null,null,null,6,"Transfer your information from the paper form to the fields in the electronic checklist.",null,null,null,null,null,null,null,null,null,null,null,null,null,null,null,null,null,null,null,null,null,null,null,null,null,null,null,null,null,null,0,"Standing"]
[null,null,null,null,null,null,null,7,"For some sections of the checklist, certain fields are required to calculate risk. However, you are not required to complete all sections.",null,null,null,null,null,null,null,null,null,null,null,null,null,null,null,null,null,null,null,null,null,null,null,null,null,null,null,null,null,null,0,null,"WA Risk Stand",null,{"$f":"IF(AN18=3,3,IF(AN18=2,2,IF(AN18=1,1,0)))","v":0}]
[null,null,null,null,null,null,null,8,"Based on the results of the job report, consider ways you can change work practices and improve processes at your organization in order to minimize worker risk.",null,null,null,null,null,null,null,null,null,null,null,null,null,null,null,null,null,null,null,null,null,null,null,null,null,null,null,null,null,null,0,"Max Wt Handled QEC H",null,"Yes","No",null,null,{"$f":"SQRT(1440)","v":37.947331922020552}]
[null,null,null,null,null,null,null,null,null,null,null,null,null,null,null,null,null,null,null,null,null,null,null,null,null,null,null,null,null,null,null,null,null,null,null,null,null,null,null,0,"Work Duration",null,{"$f":"IF(MAX(AQ22:AQ25)=1,2,0)","v":0},{"$f":"IF(SUM(AR22:AR25)=4,1,0)","v":0},{"$f":"IF(AN29=\"\",0,MAX(MAX(AQ21:AR21),BE21))","v":0},null,{"$f":"SQRT(AU22)","v":0.50348783500696415}]
[null,null,null,null,null,null,null,null,null,null,null,null,null,null,null,null,null,null,null,null,null,null,null,null,null,null,null,null,null,null,null,null,null,null,null,null,null,null,null,0,"Lifting Duration","heavy 1",0,0,{"$f":"SUM(AQ22:AR22)","v":0},null,{"$f":"AU24*AU23","v":0.2535}]
[null,null,null,null,null,null,null,null,null,null,null,null,null,null,null,null,null,null,null,null,null,null,null,null,null,null,null,null,null,null,null,null,null,null,null,null,null,null,null,0,"Lifting Dur entered = 1","frequent",0,0,{"$f":"SUM(AQ23:AR23)","v":0},null,{"$f":"AU25*AU26","v":1.56}]
[null,null,null,null,null,null,null,null,null,null,null,null,null,null,null,null,null,null,null,null,null,null,null,null,null,null,null,null,null,null,null,null,null,null,null,null,null,null,null,0,"Lifting Frequency","awkward",0,0,{"$f":"SUM(AQ24:AR24)","v":0},null,{"$f":"AU26/8","v":0.16250000000000001}]
[null,null,null,null,null,null,null,null,null,null,null,null,null,null,null,null,null,null,null,null,null,null,null,null,null,null,null,null,null,null,null,null,null,null,null,null,null,null,null,0,"Lifting Frw entered = 1","heavy2",0,0,{"$f":"SUM(AQ25:AR25)","v":0},"hr",1.2]
[null,null,null,null,null,null,null,null,null,null,null,null,null,null,null,null,null,null,null,null,null,null,null,null,null,null,null,null,null,null,null,null,null,null,null,null,null,null,null,0,"Frequency:",null,{"$f":"SUM(AQ22:AQ25)","v":0},{"$f":"SUM(AR22:AR25)","v":0},{"$f":"SUM(AQ26:AR26)","v":0},"vb",1.3]
[null,null,null,null,null,null,null,null,null,null," ",null,null,null,null,null,null,null,null,null,null,null,null,null,null,null,null,null,null,null,null,null,null,null,null,null,null,null,null,0,"TLV","TLV Limit",{"$f":"IF(OR(AN22=0,AN24=0,AN29=0,AN32=0),1000,IF(AW2<=3,TLV!H7,IF(AN28=1,1,0.1)))","v":1000},{"$f":"IF($AN$29/AQ27>2,3,IF($AN$29/AQ27>1,2,IF(AQ27=0.1,3,IF(AQ27=1000,0,IF(AN25=1,1)))))","v":0},null,null,{"$f":"SQRT(AU25*AU26/8)","v":0.44158804331639234}]
[null,null,null,null,null,null,null,null,null,null,null,null,null,null,null,null,null,null,null,null,null,null,null,null,null,null,null,null,null,null,null,null,null,null,null,null,null,null,null,0,null,null,{"$f":"AQ27*2","v":2000},"TLV"]
[null,null,null,null,null,null,null,"Developed in Excel 2010 for Windows. Other versions may cause errors. ",null,null,null,null,null,null,null,null,null,null,null,null,null,null,null,null,null,null,null,null,null,null,"Ver. 1.0, September 2016",null,null,null,null,null,null,null,null,0,"Lifting Weight",null,{"$f":"AQ27*3","v":3000},null,null,"Frq","Prx"]
[null,null,null,null,null,null,null,"Recommended screen resolution is 1920x1080.",null,null,null,null,null,null,null,null,null,null,null,null,null,null,null,null,null,null,null,null,null,null,null,null,null,null,null,null,null,null,null,0,null,"Calc Lift Limit:",{"$f":"IF(AW2<4,AQ27,AQ33)","v":1000},{"$f":"IF(AW2<4,AR27,AR33)","v":0},{"$f":"IF(AW2<=3,AR28,AR32)","v":"TLV"},{"$f":"IF(AS30=\"TLV\",AN24,AN24+4)","v":0},{"$f":"IF(AS30=\"TLV\",AN35,AN35+3)","v":0}]
[null,null,null,null,null,null,null,null,null,null,null,null,null,null,null,null,null,null,null,null,null,null,null,null,null,null,null,null,null,null,null,null,null,null,null,null,null,null,null,0,"Lifting vert entered = 1"]
[null,null,null,null,null,null,null,null,null,null,null,null,null,null,null,null,null,null,null,null,null,null,null,null,null,null,null,null,null,null,null,null,null,null,null,null,null,null,null,0,"Lifting Vertical",null,null,"WA",null,"Lifting"]
[null,null,null,null,null,null,null,null,null,null,null,null,null,null,null,null,null,null,null,null,null,null,null,null,null,null,null,null,null,null,null,null,null,null,null,null,null,null,null,0,null,"WA Lifting Limit",{"$f":"TLV!H45*TLV!H51*AN36","v":0},{"$f":"IF(AN29>AQ33,3,IF(AND(AQ26=0,AR26>0),1,IF(AQ26>0,2,IF(AN28=1,1,IF(AN28=0,IF(AN29<AQ33,1,AQ21))))))","v":0},null,"Duration"]
[null,null,null,null,null,null,null,null,null,null,null,null,null,null,null,null,null,null,null,null,null,null,null,null,null,null,null,null,null,null,null,null,null,null,null,null,null,null,null,0,"Lifting hor entered = 1",null,null,null,null,"Frequency"]
[null,null,null,null,null,null,null,null,null,null,null,null,null,null,null,null,null,null,null,null,null,null,null,null,null,null,null,null,null,null,null,null,null,null,null,null,null,null,null,0,"Lifting Horizontal",null,null,null,null,"Proximity"]
[null,null,null,null,null,null,null,null,null,null,null,null,null,null,null,null,null,null,null,null,null,null,null,null,null,null,null,null,null,null,null,null,null,null,null,null,null,null,null,0,"WA Lifting Twisting",null,null,null,null,"Hand height"]
[null,null,null,null,null,null,null,null,null,null,null,null,null,null,null,null,null,null,null,null,null,null,null,null,null,null,null,null,null,null,null,null,null,null,null,null,null,null,null,0,null,"QEC Shoulder",{"$f":"QEC!I8","v":0},{"$f":"IF(AQ37>41,4,IF(AQ37>31,3,IF(AQ37>21,2,IF(AQ37>0,1,0))))","v":0}]
[null,null,null,null,null,null,null,null,null,null,null,null,null,null,null,null,null,null,null,null,null,null,null,null,null,null,null,null,null,null,null,null,null,null,null,null,null,null,null,0,"QEC Shdr Ht"]
[null,null,null,null,null,null,null,null,null,null,null,null,null,null,null,null,null,null,null,null,null,null,null,null,null,null,null,null,null,null,null,null,null,null,null,null,null,null,null,0]
[null,null,null,null,null,null,null,null,null,null,null,null,null,null,null,null,null,null,null,null,null,null,null,null,null,null,null,null,null,null,null,null,null,null,null,null,null,null,null,0,"Shdr Frq entered = 1"]
[null,null,null,null,null,null,null,null,null,null,null,null,null,null,null,null,null,null,null,null,null,null,null,null,null,null,null,null,null,null,null,null,null,null,null,null,null,null,null,0,"QEC SHdr Frqcy"]
[null,null,null,null,null,null,null,null,null,null,null,null,null,null,null,null,null,null,null,null,null,null,null,null,null,null,null,null,null,null,null,null,null,null,null,null,null,null,null,0]
[null,null,null,null,null,null,null,null,null,null,null,null,null,null,null,null,null,null,null,null,null,null,null,null,null,null,null,null,null,null,null,null,null,null,null,null,null,null,null,0,null,"QEC Neck",{"$f":"QEC!I18","v":0},{"$f":"IF(AQ43=0,0,IF(AQ43>=12,3,IF(AQ43>7,2,1)))","v":0}]
[null,null,null,null,null,null,null,null,null,null,null,null,null,null,null,null,null,null,null,null,null,null,null,null,null,null,null,null,null,null,null,null,null,null,null,null,null,null,null,0,"QEC Neck"]
[null,null,null,null,null,null,null,null,null,null,null,null,null,null,null,null,null,null,null,null,null,null,null,null,null,null,null,null,null,null,null,null,null,null,null,null,null,null,null,0,"QECNeck entered = 1",null,null,null,null,"N/A"]
[null,null,null,null,null,null,null,null,null,null,null,null,null,null,null,null,null,null,null,null,null,null,null,null,null,null,null,null,null,null,null,null,null,null,null,null,null,null,null,0,null,null,null,null,null,"N/A"]
[null,null,null,null,null,null,null,null,null,null,null,null,null,null,null,null,null,null,null,null,null,null,null,null,null,null,null,null,null,null,null,null,null,null,null,null,null,null,null,0,"QEC Visual Demand",null,null,null,null,{"$f":"\"Moderate vibration tools: \"&AT45","v":"Moderate vibration tools: N/A"}]
[null,null,null,null,null,null,null,null,null,null,null,null,null,null,null,null,null,null,null,null,null,null,null,null,null,null,null,null,null,null,null,null,null,null,null,null,null,null,null,0,null,null,null,null,null,{"$f":"IF(AT47<>\"\",\"; \",\"\")","v":"; "}]
[null,null,null,null,null,null,null,null,null,null,null,null,null,null,null,null,null,null,null,null,null,null,null,null,null,null,null,null,null,null,null,null,null,null,null,null,null,null,null,0,"Mod/HI Vib Tools",{"$f":"SUM(AN49:AN50)","v":0},"WA Vib",{"$f":"SUM(AN49:AN50)/2","v":0},null,{"$f":"\"High vibration tools: \"&AT46","v":"High vibration tools: N/A"}]
[null,null,null,null,null,null,null,null,null,null,null,null,null,null,null,null,null,null,null,null,null,null,null,null,null,null,null,null,null,null,null,null,null,null,null,null,null,null,null,0,null,null,null,null,null,{"$f":"AT47&AT48&AT49","v":"Moderate vibration tools: N/A; High vibration tools: N/A"}]
[null,null,null,null,null,null,null,null,null,null,null,null,null,null,null,null,null,null,null,null,null,null,null,null,null,null,null,null,null,null,null,null,null,null,null,null,null,null,null,0,null,"WA Risk Shoulder",null,{"$f":"AN51","v":0},null,{"$f":"IF(AR51=1,Forms!E120,IF(AR51=2,Forms!E121,IF(AR51=3,Forms!E122,\"\")))","v":""}]
[null,null,null,null,null,null,null,null,null,null,null,null,null,null,null,null,null,null,null,null,null,null,null,null,null,null,null,null,null,null,null,null,null,null,null,null,null,null,null,0,null,{"$f":"COUNTA(AO50:AO53)","v":0}]
[null,null,null,null,null,null,null,null,null,null,null,null,null,null,null,null,null,null,null,null,null,null,null,null,null,null,null,null,null,null,null,null,null,null,null,null,null,null,null,0,null,"WA Risk Grip",null,{"$f":"AN54","v":0}]
[null,null,null,null,null,null,null,null,null,null,null,null,null,null,null,null,null,null,null,null,null,null,null,null,null,null,null,null,null,null,null,null,null,null,null,null,null,null,null,0,null,"hours grip"]
[null,null,null,null,null,null,null,null,null,null,null,null,null,null,null,null,null,null,null,null,null,null,null,null,null,null,null,null,null,null,null,null,null,null,null,null,null,null,null,0,"Pinch Grip","WA Risk Pinch",null,{"$f":"AN56","v":0}]
[null,null,null,null,null,null,null,null,null,null,null,null,null,null,null,null,null,null,null,null,null,null,null,null,null,null,null,null,null,null,null,null,null,null,null,null,null,null,null,0,null,"hours pinch"]
[null,null,null,null,null,null,null,null,null,null,null,null,null,null,null,null,null,null,null,null,null,null,null,null,null,null,null,null,null,null,null,null,null,null,null,null,null,null,null,0,"Impact Hand","WA Impact",null,null,{"$f":"IF(AND(AN57=0,AN62=1),\"No\",IF(AN57=1,\"2 hours or less per day\",IF(Home!AN57=2,\">10 times per hour for more than 2 hours total per day\",IF(AN57=3,\"More than once per minute for more than 2 hours total per day\",\"\"))))","v":""}]
[null,null,null,null,null,null,null,null,null,null,null,null,null,null,null,null,null,null,null,null,null,null,null,null,null,null,null,null,null,null,null,null,null,null,null,null,null,null,null,0]
[null,null,null,null,null,null,null,null,null,null,null,null,null,null,null,null,null,null,null,null,null,null,null,null,null,null,null,null,null,null,null,null,null,null,null,null,null,null,null,0]
[null,null,null,null,null,null,null,null,null,null,null,null,null,null,null,null,null,null,null,null,null,null,null,null,null,null,null,null,null,null,null,null,null,null,null,null,null,null,null,0,null,{"$f":"COUNTA(AO58:AO61)","v":0}]
[null,null,null,null,null,null,null,null,null,null,null,null,null,null,null,null,null,null,null,null,null,null,null,null,null,null,null,null,null,null,null,null,null,null,null,null,null,null,null,0]
[null,null,null,null,null,null,null,null,null,null,null,null,null,null,null,null,null,null,null,null,null,null,null,null,null,null,null,null,null,null,null,null,null,null,null,null,null,null,null,0,"Impact entered = 1","WA Risk Repetition",2,{"$f":"IF(AN63=1,1,IF(AND(AN63=2,AN64=1),2,3))","v":3}]
[null,null,null,null,null,null,null,null,null,null,null,null,null,null,null,null,null,null,null,null,null,null,null,null,null,null,null,null,null,null,null,null,null,null,null,null,null,null,null,0,"WA REP 1"]
[null,null,null,null,null,null,null,null,null,null,null,null,null,null,null,null,null,null,null,null,null,null,null,null,null,null,null,null,null,null,null,null,null,null,null,null,null,null,null,0,"WA REP 2"]
[null,null,null,null,null,null,null,null,null,null,null,null,null,null,null,null,null,null,null,null,null,null,null,null,null,null,null,null,null,null,null,null,null,null,null,null,null,null,null,0]
[null,null,null,null,null,null,null,null,null,null,null,null,null,null,null,null,null,null,null,null,null,null,null,null,null,null,null,null,null,null,null,null,null,null,null,null,null,null,null,0,"key,dur entered = 1"]
[null,null,null,null,null,null,null,null,null,null,null,null,null,null,null,null,null,null,null,null,null,null,null,null,null,null,null,null,null,null,null,null,null,null,null,null,null,null,null,null,null,"WA Risk Keying",0,{"$f":"SUM(AN68:AN69)","v":0}]
[null,null,null,null,null,null,null,null,null,null,null,null,null,null,null,null,null,null,null,null,null,null,null,null,null,null,null,null,null,null,null,null,null,null,null,null,null,null,null,null,"Keying, duration"]
[null,null,null,null,null,null,null,null,null,null,null,null,null,null,null,null,null,null,null,null,null,null,null,null,null,null,null,null,null,null,null,null,null,null,null,null,null,null,null,null,"N/A"]
[null,null,null,null,null,null,null,null,null,null,null,null,null,null,null,null,null,null,null,null,null,null,null,null,null,null,null,null,null,null,null,null,null,null,null,null,null,null,null,0,"key, post entered = 1"]
[null,null,null,null,null,null,null,null,null,null,null,null,null,null,null,null,null,null,null,null,null,null,null,null,null,null,null,null,null,null,null,null,null,null,null,null,null,null,null,0]
[null,null,null,null,null,null,null,null,null,null,null,null,null,null,null,null,null,null,null,null,null,null,null,null,null,null,null,null,null,null,null,null,null,null,null,null,null,null,null,0,"SI force entered = 1"]
[null,null,null,null,null,null,null,null,null,null,null,null,null,null,null,null,null,null,null,null,null,null,null,null,null,null,null,null,null,null,null,null,null,null,null,null,null,null,null,0,"SI Force"]
[null,null,null,null,null,null,null,null,null,null,null,null,null,null,null,null,null,null,null,null,null,null,null,null,null,null,null,null,null,null,null,null,null,null,null,null,null,null,null,0,"Dur of Exert"]
[null,null,null,null,null,null,null,null,null,null,null,null,null,null,null,null,null,null,null,null,null,null,null,null,null,null,null,null,null,null,null,null,null,null,null,null,null,null,null,0,"Dur of exert ent = 1"]
[null,null,null,null,null,null,null,null,null,null,null,null,null,null,null,null,null,null,null,null,null,null,null,null,null,null,null,null,null,null,null,null,null,null,null,null,null,null,null,0,"DutyCycle","Exertion time"]
[null,null,null,null,null,null,null,null,null,null,null,null,null,null,null,null,null,null,null,null,null,null,null,null,null,null,null,null,null,null,null,null,null,null,null,null,null,null,null,0,{"$f":"IF(AQ77=0,0,AQ76/(AQ76+AQ77))","v":0},"Recovery Time"]
[null,null,null,null,null,null,null,null,null,null,null,null,null,null,null,null,null,null,null,null,null,null,null,null,null,null,null,null,null,null,null,null,null,null,null,null,null,null,null,0,"SI Frq entered = 1"]
[null,null,null,null,null,null,null,null,null,null,null,null,null,null,null,null,null,null,null,null,null,null,null,null,null,null,null,null,null,null,null,null,null,null,null,null,null,null,null,0,"SI Frequency"]
[null,null,null,null,null,null,null,null,null,null,null,null,null,null,null,null,null,null,null,null,null,null,null,null,null,null,null,null,null,null,null,null,null,null,null,null,null,null,null,0]
[null,null,null,null,null,null,null,null,null,null,null,null,null,null,null,null,null,null,null,null,null,null,null,null,null,null,null,null,null,null,null,null,null,null,null,null,null,null,null,0,"SI post entered = 1"]
[null,null,null,null,null,null,null,null,null,null,null,null,null,null,null,null,null,null,null,null,null,null,null,null,null,null,null,null,null,null,null,null,null,null,null,null,null,null,null,0,"SI Posture"]
[null,null,null,null,null,null,null,null,null,null,null,null,null,null,null,null,null,null,null,null,null,null,null,null,null,null,null,null,null,null,null,null,null,null,null,null,null,null,null,0]
[null,null,null,null,null,null,null,null,null,null,null,null,null,null,null,null,null,null,null,null,null,null,null,null,null,null,null,null,null,null,null,null,null,null,null,null,null,null,null,0,"SI speed entered = 1"]
[null,null,null,null,null,null,null,null,null,null,null,null,null,null,null,null,null,null,null,null,null,null,null,null,null,null,null,null,null,null,null,null,null,null,null,null,null,null,null,0,"SI Speed"]
[null,null,null,null,null,null,null,null,null,null,null,null,null,null,null,null,null,null,null,null,null,null,null,null,null,null,null,null,null,null,null,null,null,null,null,null,null,null,null,0]
[null,null,null,null,null,null,null,null,null,null,null,null,null,null,null,null,null,null,null,null,null,null,null,null,null,null,null,null,null,null,null,null,null,null,null,null,null,null,null,0,"SI Dur entered = 1"]
[null,null,null,null,null,null,null,null,null,null,null,null,null,null,null,null,null,null,null,null,null,null,null,null,null,null,null,null,null,null,null,null,null,null,null,null,null,null,null,0,"SI Duration","SI Score",{"$f":"'Strain Index'!F36","v":0},{"$f":"IF(AQ88=0,\"\",IF(AQ88<3,1,IF(AQ88>7,3,2)))","v":""}]
[null,null,null,null,null,null,null,null,null,null,null,null,null,null,null,null,null,null,null,null,null,null,null,null,null,null,null,null,null,null,null,null,null,null,null,null,null,null,null,0]
[null,null,null,null,null,null,null,null,null,null,null,null,null,null,null,null,null,null,null,null,null,null,null,null,null,null,null,null,null,null,null,null,null,null,null,null,null,null,null,0,"EU WBV","EU Vibration","TCT",{"$f":"Vibration!$G$3","v":0}]
[null,null,null,null,null,null,null,null,null,null,null,null,null,null,null,null,null,null,null,null,null,null,null,null,null,null,null,null,null,null,null,null,null,null,null,null,null,null,null,0,"EU HAV",null,"VCT",{"$f":"Vibration!$G$14","v":0}]
[null,null,null,null,null,null,null,null,null,null,null,null,null,null,null,null,null,null,null,null,null,null,null,null,null,null,null,null,null,null,null,null,null,null,null,null,null,null,null,0,"QEC Vibration","QEC Vibration",{"$f":"QEC!I21","v":0},{"$f":"AN92","v":0}]
[null,null,null,null,null,null,null,null,null,null,null,null,null,null,null,null,null,null,null,null,null,null,null,null,null,null,null,null,null,null,null,null,null,null,null,null,null,null,null,0,"QECvib entered = 1",{"$f":"IF(AN92=1,Forms!#REF!,IF(AN92=2,Forms!#REF!,IF(AN92=3,Forms!#REF!,\"\")))","v":""}]
[null,null,null,null,null,null,null,null,null,null,null,null,null,null,null,null,null,null,null,null,null,null,null,null,null,null,null,null,null,null,null,null,null,null,null,null,null,null,null,0,"Pace entered = 1"]
[null,null,null,null,null,null,null,null,null,null,null,null,null,null,null,null,null,null,null,null,null,null,null,null,null,null,null,null,null,null,null,null,null,null,null,null,null,null,null,0,"QEC Pace","QEC Pace",{"$f":"QEC!I22","v":0},{"$f":"AN95","v":0}]
[null,null,null,null,null,null,null,null,null,null,null,null,null,null,null,null,null,null,null,null,null,null,null,null,null,null,null,null,null,null,null,null,null,null,null,null,null,null,null,0]
[null,null,null,null,null,null,null,null,null,null,null,null,null,null,null,null,null,null,null,null,null,null,null,null,null,null,null,null,null,null,null,null,null,null,null,null,null,null,null,0,"Stress entered = 1"]
[null,null,null,null,null,null,null,null,null,null,null,null,null,null,null,null,null,null,null,null,null,null,null,null,null,null,null,null,null,null,null,null,null,null,null,null,null,null,null,0,"QEC Stress","QEC Stress",{"$f":"QEC!I23","v":0},{"$f":"AN98","v":0}]
[null,null,null,null,null,null,null,null,null,null,null,null,null,null,null,null,null,null,null,null,null,null,null,null,null,null,null,null,null,null,null,null,null,null,null,null,null,null,null,0,"EU WBV Screen ent = 1",null,null,null,null,null,null,null,{"$f":"IF(OR(SQRT(SUMSQ(BA91:BA94))<0,AW95>24),\" \",SQRT(SUMSQ(BA91:BA94)))","v":0}]
[null,null,null,null,null,null,null,null,null,null,null,null,null,null,null,null,null,null,null,null,null,null,null,null,null,null,null,null,null,null,null,null,null,null,null,null,null,null,null,0,"EU WBV Screen",null,null,null,"WBV",{"$f":"IF(AN102=1,1,IF(AN102=2,2,IF(AN102=3,3,IF(AN100=1,4,IF(AN100=2,5,IF(AN100=3,6,0))))))","v":0}]
[null,null,null,null,null,null,null,null,null,null,null,null,null,null,null,null,null,null,null,null,null,null,null,null,null,null,null,null,null,null,null,null,null,null,null,null,null,null,null,0,"Carry ht entered = 1"]
[null,null,null,null,null,null,null,null,null,null,null,null,null,null,null,null,null,null,null,null,null,null,null,null,null,null,null,null,null,null,null,null,null,null,null,null,null,null,null,0,"QEC Driving","QEC Driving Score",{"$f":"QEC!I20","v":0},{"$f":"AN102","v":0}]
[null,null,null,null,null,null,null,null,null,null,null,null,null,null,null,null,null,null,null,null,null,null,null,null,null,null,null,null,null,null,null,null,null,null,null,null,null,null,null,0,"Carry dist entered = 1"]
[null,null,null,null,null,null,null,null,null,null,null,null,null,null,null,null,null,null,null,null,null,null,null,null,null,null,null,null,null,null,null,null,null,null,null,null,null,null,null,0]
[null,null,null,null,null,null,null,null,null,null,null,null,null,null,null,null,null,null,null,null,null,null,null,null,null,null,null,null,null,null,null,null,null,null,null,null,null,null,null,0,"LM","LM Carry Limit",{"$f":"LM!C7","v":0},{"$f":"IF($AQ$105<=0,0,IF($AN$107/$AQ$105>3,4,IF($AN$107/$AQ$105>2,3,IF($AN$107/$AQ$105>1,2,1))))","v":0},null,null,"Carrying"]
[null,null,null,null,null,null,null,null,null,null,null,null,null,null,null,null,null,null,null,null,null,null,null,null,null,null,null,null,null,null,null,null,null,null,null,null,null,null,null,0,"Carry Height",null,null,null,null,null,"Distance"]
[null,null,null,null,null,null,null,null,null,null,null,null,null,null,null,null,null,null,null,null,null,null,null,null,null,null,null,null,null,null,null,null,null,null,null,null,null,null,null,0,"Carry Weight","LM Carry L1",null,{"$f":"IF($AQ$110<=10,3,IF(AND(75>$AQ$110,10<$AQ$110),2,1))","v":3},null,null,"Height"]
[null,null,null,null,null,null,null,null,null,null,null,null,null,null,null,null,null,null,null,null,null,null,null,null,null,null,null,null,null,null,null,null,null,null,null,null,null,null,null,0,"Carry Frqncy","LM Carry L2",null,{"$f":"IF(25>=$AQ$110,4,IF(AND(25<$AQ$110,50>=$AQ$110),3,IF(AND(50<$AQ$110,75>$AQ$110),2,1)))","v":4},null,null,"Frequency"]
[null,null,null,null,null,null,null,null,null,null,null,null,null,null,null,null,null,null,null,null,null,null,null,null,null,null,null,null,null,null,null,null,null,null,null,null,null,null,null,0,"Carry Distance",null,33]
[null,null,null,null,null,null,null,null,null,null,null,null,null,null,null,null,null,null,null,null,null,null,null,null,null,null,null,null,null,null,null,null,null,null,null,null,null,null,null,0,null,"LM Carry %",{"$f":"LM!C12","v":0}]
[null,null,null,null,null,null,null,null,null,null,null,null,null,null,null,null,null,null,null,null,null,null,null,null,null,null,null,null,null,null,null,null,null,null,null,null,null,null,null,0]
[null,null,null,null,null,null,null,null,null,null,null,null,null,null,null,null,null,null,null,null,null,null,null,null,null,null,null,null,null,null,null,null,null,null,null,null,null,null,null,0]
[null,null,null,null,null,null,null,null,null,null,null,null,null,null,null,null,null,null,null,null,null,null,null,null,null,null,null,null,null,null,null,null,null,null,null,null,null,null,null,0]
[null,null,null,null,null,null,null,null,null,null,null,null,null,null,null,null,null,null,null,null,null,null,null,null,null,null,null,null,null,null,null,null,null,null,null,null,null,null,null,0,"maintenance"]
[null,null,null,null,null,null,null,null,null,null,null,null,null,null,null,null,null,null,null,null,null,null,null,null,null,null,null,null,null,null,null,null,null,null,null,null,null,null,null,0,"food carts"]
[null,null,null,null,null,null,null,null,null,null,null,null,null,null,null,null,null,null,null,null,null,null,null,null,null,null,null,null,null,null,null,null,null,null,null,null,null,null,null,0,"moving patients",null,{"$f":"MIN(AQ118:AQ119)","v":0}]
[null,null,null,null,null,null,null,null,null,null,null,null,null,null,null,null,null,null,null,null,null,null,null,null,null,null,null,null,null,null,null,null,null,null,null,null,null,null,null,0,"INIT Force","Initial Force"]
[null,null,null,null,null,null,null,null,null,null,null,null,null,null,null,null,null,null,null,null,null,null,null,null,null,null,null,null,null,null,null,null,null,null,null,null,null,null,null,0,"Push Frqncy","LM Push Limit",{"$f":"LM!C20","v":0},{"$f":"IF($AQ$118<=0,0,IF($AN$117/AQ118>3,4,IF($AN$117/AQ118>2,3,IF($AN$117/AQ118>1,2,1))))","v":0}]
[null,null,null,null,null,null,null,null,null,null,null,null,null,null,null,null,null,null,null,null,null,null,null,null,null,null,null,null,null,null,null,null,null,null,null,null,null,null,null,0,null,"LM Pull Limit",{"$f":"LM!C36","v":0},{"$f":"IF($AQ$119<=0,0,IF($AN$117/AQ119>3,4,IF($AN$117/AQ119>2,3,IF($AN$117/AQ119>1,2,1))))","v":0}]
[null,null,null,null,null,null,null,null,null,null,null,null,null,null,null,null,null,null,null,null,null,null,null,null,null,null,null,null,null,null,null,null,null,null,null,null,null,null,null,0,"Push Height",null,null,0]
[null,null,null,null,null,null,null,null,null,null,null,null,null,null,null,null,null,null,null,null,null,null,null,null,null,null,null,null,null,null,null,null,null,null,null,null,null,null,null,0,"Push ht entered = 1","Push 1",null,{"$f":"IF($AQ$124<=10,3,IF(AND(75>$AQ$124,10<$AQ$124),2,1))","v":3}]
[null,null,null,null,null,null,null,null,null,null,null,null,null,null,null,null,null,null,null,null,null,null,null,null,null,null,null,null,null,null,null,null,null,null,null,null,null,null,null,0,null,"Pull 1",null,{"$f":"IF($AQ$125<=10,3,IF(AND(75>$AQ$125,10<$AQ$125),2,1))","v":3}]
[null,null,null,null,null,null,null,null,null,null,null,null,null,null,null,null,null,null,null,null,null,null,null,null,null,null,null,null,null,null,null,null,null,null,null,null,null,null,null,0,"Push Distance",null,37.4,0]
[null,null,null,null,null,null,null,null,null,null,null,null,null,null,null,null,null,null,null,null,null,null,null,null,null,null,null,null,null,null,null,null,null,null,null,null,null,null,null,0,null,"LM Push %",{"$f":"LM!C25","v":0}]
[null,null,null,null,null,null,null,null,null,null,null,null,null,null,null,null,null,null,null,null,null,null,null,null,null,null,null,null,null,null,null,null,null,null,null,null,null,null,null,0,null,"LM Pull %",{"$f":"LM!C41","v":0}]
[null,null,null,null,null,null,null,null,null,null,null,null,null,null,null,null,null,null,null,null,null,null,null,null,null,null,null,null,null,null,null,null,null,null,null,null,null,null,null,0]
[null,null,null,null,null,null,null,null,null,null,null,null,null,null,null,null,null,null,null,null,null,null,null,null,null,null,null,null,null,null,null,null,null,null,null,null,null,null,null,0]
[null,null,null,null,null,null,null,null,null,null,null,null,null,null,null,null,null,null,null,null,null,null,null,null,null,null,null,null,null,null,null,null,null,null,null,null,null,null,null,0]
[null,null,null,null,null,null,null,null,null,null,null,null,null,null,null,null,null,null,null,null,null,null,null,null,null,null,null,null,null,null,null,null,null,null,null,null,null,null,null,0]
[null,null,null,null,null,null,null,null,null,null,null,null,null,null,null,null,null,null,null,null,null,null,null,null,null,null,null,null,null,null,null,null,null,null,null,null,null,null,null,0]
[null,null,null,null,null,null,null,null,null,null,null,null,null,null,null,null,null,null,null,null,null,null,null,null,null,null,null,null,null,null,null,null,null,null,null,null,null,null,null,0]
[null,null,null,null,null,null,null,null,null,null,null,null,null,null,null,null,null,null,null,null,null,null,null,null,null,null,null,null,null,null,null,null,null,null,null,null,null,null,null,null,null,"Push 2",null,{"$f":"IF(25>=$AQ$124,4,IF(AND(25<$AQ$124,50>=$AQ$124),3,IF(AND(50<$AQ$124,75>$AQ$124),2,1)))","v":4}]
[null,null,null,null,null,null,null,null,null,null,null,null,null,null,null,null,null,null,null,null,null,null,null,null,null,null,null,null,null,null,null,null,null,null,null,null,null,null,null,null,null,"Pull 2",null,{"$f":"IF(25>=$AQ$125,4,IF(AND(25<$AQ$125,50>=$AQ$125),3,IF(AND(50<$AQ$125,75>$AQ$125),2,1)))","v":4}]
[null,null,null,null,null,null,null,null,null,null,null,null,null,null,null,null,null,null,null,null,null,null,null,null,null,null,null,null,null,null,null,null,null,null,null,null,null,null,null,null,null,null,null,0]
[]
[]
[]
[]
[null,null,null,null,null,null,null,null,null,null,null,null,null,null,null,null,null,null,null,null,null,null,null,null,null,null,null,null,null,null,null,null,null,null,null,null,null,null,null,"MMH Sort"]
[null,null,null,null,null,null,null,null,null,null,null,null,null,null,null,null,null,null,null,null,null,null,null,null,null,null,null,null,null,null,null,null,null,null,null,null,null,null,null,49.999899999999997,"lifting"]
[null,null,null,null,null,null,null,null,null,null,null,null,null,null,null,null,null,null,null,null,null,null,null,null,null,null,null,null,null,null,null,null,null,null,null,null,null,null,null,0.39999999999999858,"carrying"]
[null,null,null,null,null,null,null,null,null,null,null,null,null,null,null,null,null,null,null,null,null,null,null,null,null,null,null,null,null,null,null,null,null,null,null,null,null,null,null,31.4,"pushing/pulling"]

{"sheet":"Report","index":1,"n_rows":1262,"n_cols":53,"rows_kept":1262,"cut":false,"hidden":true,"merged":[[56,14,60,15],[103,16,103,22],[116,16,116,22],[115,16,115,22],[114,16,114,22],[113,16,113,22],[111,16,111,22],[92,14,96,15],[75,16,75,22],[92,16,92,22],[93,16,93,22],[94,16,94,22],[95,16,95,22],[96,16,96,22],[104,16,104,22],[61,14,62,15],[113,42,113,44],[114,42,114,44],[115,42,115,44],[103,14,116,15],[70,14,76,15],[116,42,116,44],[113,40,113,41],[114,40,114,41],[115,40,115,41],[116,40,116,41],[106,42,106,44],[105,42,105,44],[110,42,110,44],[105,40,105,41],[106,40,106,41],[74,16,74,22],[18,53,18,84],[85,14,91,15],[81,14,84,15],[91,16,91,22],[80,16,80,22],[59,16,59,22],[58,16,58,22],[69,16,69,22],[67,16,67,22],[66,16,66,22],[64,16,64,22],[62,16,62,22],[56,16,56,22],[53,16,53,22],[54,16,54,22],[63,16,63,22],[1,15,1,41],[97,14,102,15],[97,16,97,22],[98,16,98,22],[99,16,99,22],[100,16,100,22],[101,16,101,22],[102,16,102,22],[53,14,55,15],[48,16,48,22],[49,16,49,22],[51,16,51,22],[52,16,52,22],[63,14,69,15],[70,16,70,22],[77,14,80,15],[4,44,4,46],[4,21,5,38],[4,15,5,20],[48,14,52,15],[47,14,47,22],[47,36,47,38],[47,39,47,46],[4,40,4,43],[61,16,61,22],[71,16,71,22],[55,16,55,22],[68,16,68,22],[65,16,65,22],[57,16,57,22],[89,16,89,22],[76,16,76,22],[77,16,77,22],[88,16,88,22],[90,16,90,22],[87,16,87,22],[86,16,86,22],[78,16,78,22],[79,16,79,22],[85,16,85,22],[107,40,107,41],[108,40,108,41],[109,40,109,41],[110,40,110,41],[5,40,5,43],[107,42,107,44],[108,42,108,44],[109,42,109,44],[5,44,5,46]]}
[null,null,null,null,null,null,null,null,null,null,null,{"$f":"Home!AW2","v":0},".",null,null,"REPORT"]
[null,null,null,"Assessment",null,null,null,null,null,null,null,null,"Assessment","For list"]
[null,null,null,"Prolonged sitting",null,null,null,null,null,null,null,{"$f":"IF(Home!AN14=1,0,Home!AN15)","v":0},{"$f":"IF(L3=1,$N$3,IF(L3=2,$N$5,IF(L3=3,$N$6,IF(L3=4,$N$7,\"N/A\"))))","v":"N/A"},"Low Risk"]
[null,null,null,null,null,null,null,null,null,null,null,null,"."]
["Back",{"$f":"COUNTIF(L5:L11,\"=0\")","v":5},null,"Back posture",null,null,null,null,null,null,null,{"$f":"Home!$AR$5","v":0},{"$f":"IF(L5=1,$N$3,IF(L5=2,$N$5,IF(L5=3,$N$6,IF(L5=4,$N$7,\"N/A\"))))","v":"N/A"},"Moderate Risk",null,"Work evaluated:",null,null,null,null,null,null,null,null,null,null,null,null,null,null,null,null,null,null,null,null,null,null,null,null,"Completed by:"]
[null,{"$f":"COUNTA(D5:D11)","v":7},null,"Lifting",null,null,null,null,null,null,null,{"$f":"Home!AR30","v":0},"N/A","High Risk",null,null,null,null,null,null,null,null,null,null,null,null,null,null,null,null,null,null,null,null,null,null,null,null,null,null,"Analyzed on:"]
[null,null,null,"Pushing/Pulling",null,null,null,null,null,null,null,{"$f":"IF(OR(Home!AN120=0,Home!AN118=0,Home!AN123=0),0,Home!$AR$134)","v":0},"N/A","Very High Risk"]
[null,null,null,"Whole body vibration",null,null,null,null,null,"EU",null,{"$f":"Vibration!F20","v":0},"N/A",null,null,"Manual Material Handling Limits"]
[null,null,null,"Carrying",null,null,null,null,null,null,null,{"$f":"IF(OR(Home!$AN$106=0,Home!$AN$107=0,Home!$AN$108=0,Home!$AN$109=0),0,IF(Home!$AW$2=1,Home!$AR$107,Home!$AR$108))","v":0},"N/A",null,null,null,null,null,null,null,null,null,null,null,null,null,null,null,null,null,null,null,null,null,null,null,null,null,null,null,null,null,null,null,null,null,null,null,0]
[null,null,null,"Driving",null,null,null,null,null,null,null,-1,"N/A",null,null,null,null,null,null,null,null,null,null,null,null,null,null,null,null,null,null,null,null,null,null,null,null,null,null,null,null,null,null,null,null,null,null,null,0]
[null,null,null,"Standing",null,null,null,null,null,null,null,-1,"N/A",null,null,null,null,null,null,null,null,null,null,null,null,null,null,null,null,null,null,null,null,null,null,null,null,null,null,null,null,null,null,null,null,null,null,null,0]
[null,null,null,null,null,null,null,null,null,null,null,null,"."]
["Shoulder",{"$f":"COUNTIF(L13:L18,\"=0\")","v":5},null,"Shoulder posture",null,null,null,null,null,null,null,{"$f":"IF(OR(Home!AN38=0,Home!AN41=0),0,Home!AR37)","v":0},{"$f":"IF(L13=1,$N$3,IF(L13=2,$N$5,IF(L13=3,$N$6,IF(L13=4,$N$7,\"N/A\"))))","v":"N/A"}]
[null,{"$f":"COUNTA(D13:D18)","v":6},null,"Neck posture",null,null,null,null,null,null,null,{"$f":"IF($L$1=0,-1,IF(OR($L$1=1,$L$1=4,$L$1=6,$L$1=5),Home!AR43,IF(OR($L$1=2,$L$1=3),Home!AN8)))","v":-1},"N/A"]
[null,null,null,"Lifting",null,null,null,null,null,null,null,{"$f":"Home!AR30","v":0},"N/A"]
[null,null,null,"Pushing/Pulling",null,null,null,null,null,null,null,{"$f":"IF(OR(Home!AN120=0,Home!AN117=0,Home!AN118=0,Home!AN123=0),0,Home!$AR$134)","v":0},"N/A"]
[null,null,null,"Carrying",null,null,null,null,null,null,null,{"$f":"IF(OR(Home!AN106=0,Home!AN108=0,Home!AN109=0),0,IF(Home!AW2=1,Home!$AR$107,Home!$AR$108))","v":0},"N/A"]
[null,null,null,"I.V. management",null,null,null,null,null,null,null,{"$f":"IF($L$1=0,0,IF($L$1>1,-1,Home!AN51))","v":0},"N/A",null,null,null,null,null,null,null,null,null,null,null,null,null,null,null,null,null,null,null,null,null,null,null,null,null,null,null,null,null,null,null,null,null,null,null,null,null,null,null,"JOB BASICS:"]
[null,null,null,null,null,null,null,null,null,null,null,null,"."]
["Hand/wrist",{"$f":"COUNTIF(L21:L28,\"=0\")","v":7},null,"Pinch gripping",null,null,null,null,null,null,null,{"$f":"Home!AN56","v":0},{"$f":"IF(L20=1,$N$3,IF(L20=2,$N$5,IF(L20=3,$N$6,IF(L20=4,$N$7,\"N/A\"))))","v":"N/A"}]
[null,{"$f":"COUNTA(D20:D25)","v":6},null,"Power gripping",null,null,null,null,null,null,null,{"$f":"IF($L$1=1,-1,Home!AN54)","v":0},"N/A"]
[null,null,null,"Typing/keying",null,null,null,null,null,null,null,{"$f":"IF(Home!AO67=\"No, does not involve intensive typing or keying.\",1,IF(AND(Home!AN67=1,Home!AN68=0,Home!AN66=1),1,IF(AND(Home!AN68=2,Home!AN69=0),2,Home!$AR$67)))","v":0},"N/A"]
[null,null,null,"Hand-arm vibration",null,null,null,null,null,null,null,{"$f":"Vibration!F11","v":0},"N/A"]
[null,null,null,{"$f":"IF($L$1<6,\"Hand exertion\",\"Highly repetitive motion\")","v":"Hand exertion"},null,null,null,null,null,null,null,{"$f":"IF($L$1=6,Home!AN63,IF(OR(Home!AN73=0,Home!AN74=0,Home!AN79=0,Home!AN82=0,Home!AN85=0,Home!AN88=0),0,Home!$AR$88))","v":0},"N/A"]
[null,null,null,"Hand impact",null,null,null,null,null,null,null,{"$f":"IF($L$1=0,0,IF($L$1<>2,-1,IF(AND(Home!AN57=0,Home!AN62=1),1,Home!AN57)))","v":0},"N/A"]
[null,null,null,null,null,null,null,null,null,null,null,null,"."]
["Knee",{"$f":"COUNTIF(L27:L30,\"=0\")","v":3},null,"Kneeling",null,null,null,null,null,null,null,{"$f":"IF($L$1=0,0,IF($L$1=1,-1,IF(Home!AN16=0,0,Home!AN11)))","v":0},{"$f":"IF(L27=1,$N$3,IF(L27=2,$N$5,IF(L27=3,$N$6,IF(L27=4,$N$7,\"N/A\"))))","v":"N/A"}]
[null,{"$f":"COUNTA(D27:D30)","v":4},null,"Squatting",null,null,null,null,null,null,null,{"$f":"IF($L$1=0,0,IF($L$1=1,-1,IF(Home!AN13=0,0,Home!AN10)))","v":0},{"$f":"IF(L28=1,$N$3,IF(L28=2,$N$5,IF(L28=3,$N$6,IF(L28=4,$N$7,\"N/A\"))))","v":"N/A"}]
[null,null,null,"Foot control(s)",null,null,null,null,null,null,null,{"$f":"IF(OR($L$1=1,$L$1=5),-1,Home!AR13)","v":0},{"$f":"IF(L29=1,$N$3,IF(L29=2,$N$5,IF(L29=3,$N$6,IF(L29=4,$N$7,\"N/A\"))))","v":"N/A"}]
[null,null,null,"Standing",null,null,null,null,null,null,null,-1,{"$f":"IF(L30=1,$N$3,IF(L30=2,$N$5,IF(L30=3,$N$6,IF(L30=4,$N$7,\"N/A\"))))","v":"N/A"}]
[null,null,null,null,null,null,null,null,null,null,null,null,"."]
["OWE",{"$f":"COUNTIF(L32:L34,\"=0\")","v":2},null,"Work-related stress",null,null,null,null,null,null,null,{"$f":"IF(Home!AN97=0,0,Home!AN98)","v":0},{"$f":"IF(L32=1,$N$3,IF(L32=2,$N$5,IF(L32=3,$N$6,IF(L32=4,$N$7,\"N/A\"))))","v":"N/A"}]
[null,{"$f":"COUNTA(D32:D33)","v":2},null,"Pace of Work",null,null,null,null,null,null,null,{"$f":"IF(Home!AN94=0,0,Home!AN95)","v":0},{"$f":"IF(L33=1,$N$3,IF(L33=2,$N$5,IF(L33=3,$N$6,IF(L33=4,$N$7,\"N/A\"))))","v":"N/A"}]
[null,null,null,null,null,null,null,null,null,null,null,null,"."]
[null,null,null,null,null,null,null,null,null,null,null,null,"."]
[{"$f":"SUM(B6,B14,B21,B28,B33)","v":25},"risk level items",null,null,null,null,null,null,null,null,null,null,"."]
[3,"risk levels",null,null,null,null,null,null,null,null,null,null,"."]
[{"$f":"(A36)^A37","v":15625},{"$f":"\"risk reports in \"&P2","v":"risk reports in "},null,null,null,null,null,null,null,null,null,null,"."]
[null,null,null,null,null,null,null,null,null,null,null,null,"."]
[{"$f":"Home!AQ88","v":0},"SI",null,null,null,null,null,null,null,null,null,null,{"$f":"IF(P39=\"\",\"o\",1)","v":"o"}]
[null,null,null,null,null,null,null,null,null,null,null,null,{"$f":"IF(P40=\"\",\"o\",1)","v":"o"}]
[null,null,null,null,null,null,null,null,null,null,null,null,{"$f":"IF(P41=\"\",\"o\",1)","v":"o"}]
[null,null,null,null,null,null,null,null,null,null,null,null,{"$f":"IF(P42=\"\",\"o\",1)","v":"o"}]
[null,null,null,null,null,null,null,null,null,null,null,null,1]
[null,null,null,null,null,null,null,null,null,null,null,null,1]
[null,null,null,null,null,null,null,null,null,null,null,1,{"$f":"IF(N46=1,1,\"o\")","v":1},1,"Physical Job Evaluation DATA"]
[null,null,null,null,null,null,null,null,null,null,null,null,{"$f":"IF(N47=1,1,\"o\")","v":1},1,"This page contains all the data used in the calculations which generated the above report."]
[null,null,null,null,null,null,null,null,null,null,null,null,{"$f":"IF(N48=1,1,\"o\")","v":1},1,"Observations Made By:",null,null,null,null,null,null,null,null,{"$f":"IF(AS5=\"\",\"\",AS5)","v":""},null,null,null,null,null,null,null,null,null,null,null,null,"Date:",null,null,{"$f":"IF(AS6=\"\",\"\",AS6)","v":""}]
[null,null,null,null,null,null,null,null,null,null,null,null,{"$f":"IF(N49=1,1,\"o\")","v":1},1,"Job Basics",null,"Work Description",null,null,null,null,null,null,{"$f":"IF(V5=\"\",\"\",V5)","v":""}]
[null,null,null,null,null,null,null,null,null,null,null,null,{"$f":"IF(N50=1,1,\"o\")","v":1},1,null,null,"Work Duration",null,null,null,null,null,null,{"$f":"IF(Home!AN21=0,\"\",IF(Home!AN21=1,Forms!E12& \" per day\", IF(Home!AN21=2,Forms!E13& \" per day\", IF(Home!AN21=3,Forms!E14& \" per day\",\"\"))))","v":""}]
[null,null,null,null,null,null,null,null,null,null,null,null,1,{"$f":"COMPARISON!$AJ$3","v":1},null,null,"Max Weight Handled",null,null,null,null,null,null,{"$f":"IF(Home!AN20=0,\"\",IF(Home!AN20=1,\"Light (11 lbs. or less)\",IF(Home!AN20=2,\"Moderate (12 to 22 lbs.)\",IF(Home!AN20=3,\"Heavy (23 to 44 lbs.)\",IF(Home!AN20=4,\"Very heavy (more than 44 lbs.)\",\"\")))))","v":""}]
[null,null,null,null,null,null,null,null,null,null,null,null,1,{"$f":"COMPARISON!$AJ$4","v":1},null,null,"Pace of Work",null,null,null,null,null,null,{"$f":"IF(Home!AN95=0,\"\",IF(Home!AN95=1,Forms!E27&\" difficult to keep up\",IF(Home!AN95=2,Forms!E28&\" difficult to keep up\",IF(Home!AN95=3,Forms!E29&\" difficult to keep up\",\"\"))))","v":""}]
[null,null,null,null,null,null,null,null,null,null,null,null,1,{"$f":"COMPARISON!$AJ$5","v":1},null,null,"Stress",null,null,null,null,null,null,{"$f":"IF(Home!AN98=0,\"\",IF(Home!AN98=1,Forms!E34,IF(Home!AN98=2,Forms!E35,IF(Home!AN98=3,Forms!E36,IF(Home!AN98=4,Forms!E37,\"\")))))","v":""}]
[null,null,null,null,null,null,null,null,null,null,null,null,1,{"$f":"COMPARISON!$AJ$7","v":1},"Back",null,"Back Position",null,null,null,null,null,null,{"$f":"IF(Home!AT8=\"\",\"\",Home!AT8)","v":""}]
[null,null,null,null,null,null,null,null,null,null,null,null,1,{"$f":"COMPARISON!$AJ$8","v":1},null,null,"Back Activity",null,null,null,null,null,null,{"$f":"IF(Home!AN4=1,\"\",IF(Home!AN5=1,Forms!E44,IF(Home!AN5=2,Forms!E45,IF(Home!AN5=3,Forms!E46,\"\"))))","v":""}]
[null,null,null,null,null,null,null,null,null,null,null,null,"o",{"$f":"\"o\"","v":"o"},null,null,{"$f":"IF(Home!AP6=\"\",\"Moving/Stationary\",Home!AP6)","v":"Moving/Stationary"},null,null,null,null,null,null,{"$f":"IF(Home!AN4=1,\"\",IF(Home!AN9=1,\"Not static most of the time\",IF(Home!AN9=2,\"Static back posture most of the time\",IF(Home!AN9=3,Forms!F61,IF(Home!AN9=4,Forms!F62,IF(Home!AN9=5,Forms!F63,\"\"))))))","v":""}]
[null,null,null,null,null,null,null,null,null,null,null,null,1,{"$f":"COMPARISON!$AJ$17","v":1},"Shdr/Neck",null,"Hand Position",null,null,null,null,null,null,{"$f":"IF(Home!AN37=1,\"\",IF(Home!AN38=1,Forms!E102,IF(Home!AN38=2,Forms!E103,IF(Home!AN38=3,Forms!E104,\"\"))))","v":""}]
[null,null,null,null,null,null,null,null,null,null,null,null,1,{"$f":"COMPARISON!$AJ$17","v":1},null,null,"Shoulder Movements",null,null,null,null,null,null,{"$f":"IF(Home!AN40=1,\"\",IF(Home!AN41=1,Forms!E108,IF(Home!AN41=2,Forms!E109,IF(Home!AN41=3,Forms!E110,\"\"))))","v":""}]
[null,null,null,null,null,null,null,null,null,null,null,null,1,1,null,null,"Neck Bending",null,null,null,null,null,null,{"$f":"IF(Home!AN8=1,\"In neutral posture\",IF(Home!AN8=2,\"Flexed more than 30 degrees, more than 2 hours/day\",IF(Home!AN8=3,\"Flexed more than 45 degrees, more than 4 hours/day\",IF(Home!AN44=1,Forms!E149,IF(Home!AN44=2,Forms!E150,IF(Home!AN44=3,Forms!E151,\"\"))))))","v":""}]
[null,null,null,null,null,null,null,null,null,null,null,null,1,{"$f":"COMPARISON!$AJ$23","v":1},null,null,"Visual Demands",null,null,null,null,null,null,{"$f":"IF(Home!AN47=0,\"\",IF(Home!AN47=1,Forms!E155,IF(Home!AN47=2,Forms!E156,\"\")))","v":""}]
[null,null,null,null,null,null,null,null,null,null,null,null,{"$f":"IF(N61=1,1,\"o\")","v":1},{"$f":"COMPARISON!$AJ$18","v":1},null,null,"I.V. Management",null,null,null,null,null,null,{"$f":"IF(Home!AT51=\"\",\"\",Home!AT51)","v":""}]
[null,null,null,null,null,null,null,null,null,null,null,null,1,{"$f":"COMPARISON!$AJ$14","v":1},"Work Pos- tures",null,"Squatting",null,null,null,null,null,null,{"$f":"IF(Home!AN13=0,\"\",IF(Home!AN10=1,Forms!E84,IF(Home!AN10=2,Forms!E85,IF(Home!AN10=3,Forms!E86,\"\"))))","v":""}]
[null,null,null,null,null,null,null,null,null,null,null,null,1,{"$f":"COMPARISON!$AJ$14","v":1},null,null,"Kneeling",null,null,null,null,null,null,{"$f":"IF(Home!AN16=0,\"\",IF(Home!AN11=1,Forms!E91,IF(Home!AN11=2,Forms!E92,IF(Home!AN11=3,Forms!E93,\"\"))))","v":""}]
[null,null,null,null,null,null,null,null,null,null,null,null,1,{"$f":"COMPARISON!$AJ$25","v":1},"Hand Activity",null,"Hand Exertions",null,null,null,null,null,null,{"$f":"IF(Home!AO71=\"\",\"\",Home!AO71)","v":""}]
[null,null,null,null,null,null,null,null,null,null,null,null,1,{"$f":"COMPARISON!$AJ$25","v":1},null,null,"Daily Duration",null,null,null,null,null,null,{"$f":"IF(Home!AN87=0,\"\",IF(Home!AN88=1,Forms!F166,IF(Home!AN88=2,Forms!F167,IF(Home!AN88=3,Forms!F168,IF(Home!AN88=4,Forms!F169,IF(Home!AN88=5,Forms!F170,\"\"))))))","v":""}]
[null,null,null,null,null,null,null,null,null,null,null,null,1,{"$f":"COMPARISON!$AJ$25","v":1},null,null,"Speed",null,null,null,null,null,null,{"$f":"IF(Home!AN84=0,\"\",IF(Home!AN85=1,Forms!F174,IF(Home!AN85=2,Forms!F175,IF(Home!AN85=3,Forms!F176,IF(Home!AN85=4,Forms!F177,IF(Home!AN85=5,Forms!F178,\"\"))))))","v":""}]
[null,null,null,null,null,null,null,null,null,null,null,null,1,{"$f":"COMPARISON!$AJ$25","v":1},null,null,"Frequency",null,null,null,null,null,null,{"$f":"IF(Home!AN78=0,\"\",IF(Home!AN79=1,Forms!F182,IF(Home!AN79=2,Forms!F183,IF(Home!AN79=3,Forms!F184,IF(Home!AN79=4,Forms!F185,IF(Home!AN79=5,Forms!F186,\"\"))))))","v":""}]
[null,null,null,null,null,null,null,null,null,null,null,null,1,{"$f":"COMPARISON!$AJ$25","v":1},null,null,"Exertion Duration",null,null,null,null,null,null,{"$f":"IF(Home!AN74=0,\"\",IF(Home!AN74=1,Forms!F195,IF(Home!AN74=2,Forms!F196,IF(Home!AN74=3,Forms!F197,IF(Home!AN74=4,Forms!F198,IF(Home!AN74=5,Forms!F199))))))","v":""}]
[null,null,null,null,null,null,null,null,null,null,null,null,1,{"$f":"COMPARISON!$AJ$25","v":1},null,null,"Force",null,null,null,null,null,null,{"$f":"IF(Home!AN72=0,\"\",IF(Home!AN73=1,Forms!F203,IF(Home!AN73=2,Forms!F204,IF(Home!AN73=3,Forms!F205,IF(Home!AN73=4,Forms!F206,IF(Home!AN73=5,Forms!F207,\"\"))))))","v":""}]
[null,null,null,null,null,null,null,null,null,null,null,null,1,{"$f":"COMPARISON!$AJ$25","v":1},null,null,"Posture",null,null,null,null,null,null,{"$f":"IF(Home!AN81=0,\"\",IF(Home!AN82=1,Forms!F211,IF(Home!AN82=2,Forms!F212,IF(Home!AN82=3,Forms!F213,IF(Home!AN82=4,Forms!F214,IF(Home!AN82=5,Forms!F215,\"\"))))))","v":""}]
[null,null,null,null,null,null,null,null,null,null,null,null,{"$f":"IF(N71=1,1,\"o\")","v":1},{"$f":"COMPARISON!$AJ$32","v":1},"Repetition",null,"Forceful Hand Impacts",null,null,null,null,null,null,{"$f":"Home!AS57","v":""}]
[null,null,null,null,null,null,null,null,null,null,null,null,{"$f":"IF(N72=1,1,\"o\")","v":1},{"$f":"COMPARISON!$AJ$35","v":1},null,null,"Foot Controls",null,null,null,null,null,null,{"$f":"IF(Home!AR13=0,\"\",IF(Home!AR13=1,\"≤2 hours a day, or none\",IF(AND(Home!AN12>=2,Home!AP12>0),Forms!E290&Home!AT12&Home!AT13&Home!AT14,IF(Home!AN12=3,Forms!E294,\"\"))))","v":""}]
[null,null,null,null,null,null,null,null,null,null,null,null,1,{"$f":"COMPARISON!AJ31","v":1},null,null,"Rep. Hand Motions",null,null,null,null,null,null,{"$f":"(IF(Home!AN63=1,Forms!E264,IF(Home!AN63=2,Forms!E265,IF(Home!AN63=3,Forms!E266,\"\"))))","v":""}]
[null,null,null,null,null,null,null,null,null,null,null,null,1,{"$f":"COMPARISON!AJ31","v":1},null,null,null,"involving:",null,null,null,null,null,{"$f":"(Home!AP63&Home!AP64&Home!AP65&Home!AP66)","v":""}]
[null,null,null,null,null,null,null,null,null,null,null,null,{"$f":"IF(N75=1,1,\"o\")","v":1},{"$f":"COMPARISON!$AJ$30","v":1},null,null,"Intensive Keying",null,null,null,null,null,null,{"$f":"IF(Home!AN67=0,\"\",IF(Home!AN67>0,Home!AO67,\"\"))","v":""}]
[null,null,null,null,null,null,null,null,null,null,null,null,1,{"$f":"COMPARISON!$AJ$30","v":1},null,null,"Typing Duration",null,null,null,null,null,null,{"$f":"IF(Home!$AN$66=0,IF(X75<>\"\",\"N/A\",\"\"),IF(Home!$AN$68=0,\"4 hours/day or less\",IF(Home!$AN$68=1,\">4 to 7 hours/day\",IF(Home!$AN$68=2,\">7 hours/day\",\"N/A\"))))","v":""}]
[null,null,null,null,null,null,null,null,null,null,null,null,1,{"$f":"COMPARISON!$AJ$30","v":1},null,null,"Typing Wrist Posture",null,null,null,null,null,null,{"$f":"IF(X75=\"\",\"\",IF(Home!AN68=0,\"N/A\",IF(Home!AN67=2,Home!$AP$69&Home!$AP$70&Home!$AP$71&Home!$AP$72)))","v":""}]
[null,null,null,null,null,null,null,null,null,null,null,null,1,{"$f":"COMPARISON!$AJ$36","v":1},"Gripping",null,"Pinch Grip Duration",null,null,null,null,null,null,{"$f":"IF(Home!AO56=0,\"\",Home!AO56&\" hours total per day\")","v":""}]
[null,null,null,null,null,null,null,null,null,null,null,null,1,{"$f":"COMPARISON!$AJ$36","v":1},null,null,"Additional Risk Factors",null,null,null,null,null,null,{"$f":"IF(Home!AP60=0,IF(X78<>\"\",\"NA\",\"\"),IF(OR(Home!AN56=0,Home!AN56=1),\"NA\",Home!AO58&Home!AO59&Home!AO60&Home!AO61))","v":""}]
[null,null,null,null,null,null,null,null,null,null,null,null,1,{"$f":"COMPARISON!$AJ$36","v":1},null,null,"Power Grip Duration",null,null,null,null,null,null,{"$f":"IF(Home!AO54=0,\"\",IF(Home!AO54>0,Home!AO54&\" hours total per day\"))","v":""}]
[null,null,null,null,null,null,null,null,null,null,null,null,1,{"$f":"COMPARISON!$AJ$36","v":1},null,null,"Additional Risk Factors",null,null,null,null,null,null,{"$f":"IF(Home!AP52=0,IF(X80<>\"\",\"N/A\",\"\"),IF(OR(Home!AN54=0,Home!AN54=1),\"NA\",Home!AO50&Home!AO51&Home!AO52&Home!AO53))","v":""}]
[null,null,null,null,null,null,null,null,null,null,null,null,1,1,"Moderate Risk Lifting",null,"Lifting > 75 lbs.",null,null,null,null,null,null,{"$f":"IF(Home!AQ22=1,\"75+ pounds once per day\",IF(Home!AR22=1,\"No\",IF(Home!AS26>0,\"N/A\",\"\")))","v":""}]
[null,null,null,null,null,null,null,null,null,null,null,null,1,1,null,null,"Lifting > 55 lbs.",null,null,null,null,null,null,{"$f":"IF(Home!AQ25=1,\"55+ pounds more than 10 times a day\",IF(Home!AR25=1,\"No\",IF(Home!AS26>0,\"N/A\",\"\")))","v":""}]
[null,null,null,null,null,null,null,null,null,null,null,null,1,1,null,null,"Frequent Lifting",null,null,null,null,null,null,{"$f":"IF(Home!AQ23=1,\"10+ pounds, more than twice per minute, more than 2 hours total per day\",IF(Home!AR23=1,\"No\",IF(Home!AS26>0,\"N/A\",\"\")))","v":""}]
[null,null,null,null,null,null,null,null,null,null,null,null,1,1,null,null,"Awkward Lifting",null,null,null,null,null,null,{"$f":"IF(Home!AQ24=1,\"25+ pounds above the shoulders, below the knees, or at arms length more than 25 times per day\",IF(Home!AR24=1,\"No\",IF(Home!AS26>0,\"N/A\",\"\")))","v":""}]
[null,null,null,null,null,null,null,null,null,null,null,null,1,{"$f":"COMPARISON!$AJ$41","v":1},{"$f":"IF($L$1>3,\"High Risk Lifting\",\"Lifting\")","v":"Lifting"},null,"Lifting Activity",null,null,null,null,null,null,{"$f":"IF(Home!AO28=\"\",\"\",Home!AO28)","v":""}]
[null,null,null,null,null,null,null,null,null,null,null,null,1,{"$f":"COMPARISON!$AJ$41","v":1},null,null,"Weight Lifted",null,null,null,null,null,null,{"$f":"IF(Home!$AN$29=0,\"\",Home!$AN$29 & \" lbs.\")","v":""}]
[null,null,null,null,null,null,null,null,null,null,null,null,{"$f":"IF(N88=1,1,\"o\")","v":1},{"$f":"COMPARISON!$AJ$41","v":1},null,null,"Duration",null,null,null,null,null,null,{"$f":"IF(Home!AN22=0,\"\",Home!AV33)","v":""}]
[null,null,null,null,null,null,null,null,null,null,null,null,{"$f":"IF(N89=1,1,\"o\")","v":1},{"$f":"COMPARISON!AJ43","v":1},null,null,"Twisting"]
[null,null,null,null,null,null,null,null,null,null,null,null,1,{"$f":"COMPARISON!$AJ$41","v":1},null,null,"Frequency",null,null,null,null,null,null,{"$f":"IF(Home!AV34=0,\"\",Home!AV34)","v":""}]
[null,null,null,null,null,null,null,null,null,null,null,null,1,{"$f":"COMPARISON!$AJ$41","v":1},null,null,"Proximity",null,null,null,null,null,null,{"$f":"IF(Home!AV35=0,\"\",Home!AV35)","v":""}]
[null,null,null,null,null,null,null,null,null,null,null,null,1,{"$f":"COMPARISON!$AJ$41","v":1},null,null,"Hand Height",null,null,null,null,null,null,{"$f":"IF(Home!AV36=0,\"\",Home!AV36)","v":""},null,null,null,null,null,null,null,null,null,null,null,null,null,null,null,null,{"$f":"IF(AP92=\"\",\"\",\"Twisting while lifting:\")","v":""}]
[null,null,null,null,null,null,null,null,null,null,null,null,1,{"$f":"COMPARISON!$AJ$45","v":1},"Carrying",null,"Carrying Activity",null,null,null,null,null,null,{"$f":"IF(Home!AO104=\"\",\"\",Home!AO104)","v":""}]
[null,null,null,null,null,null,null,null,null,null,null,null,1,{"$f":"COMPARISON!$AJ$45","v":1},null,null,"Maximum Weight",null,null,null,null,null,null,{"$f":"IF(OR(Home!AN101=0,Home!AN103=0),\"\",Home!AN107&\" lbs.\")","v":""}]
[null,null,null,null,null,null,null,null,null,null,null,null,1,{"$f":"COMPARISON!$AJ$45","v":1},null,null,"Distance",null,null,null,null,null,null,{"$f":"IF(Home!AN103=0,\"\",Home!AW106)","v":""}]
[null,null,null,null,null,null,null,null,null,null,null,null,1,{"$f":"COMPARISON!$AJ$45","v":1},null,null,"Elbow Posture",null,null,null,null,null,null,{"$f":"IF(Home!AN101=0,\"\",Home!AW107)","v":""}]
[null,null,null,null,null,null,null,null,null,null,null,null,1,{"$f":"COMPARISON!$AJ$45","v":1},null,null,"Frequency",null,null,null,null,null,null,{"$f":"IF(Home!AT108=\"\",\"\",\"Once every \"&Home!AT108)","v":""}]
[null,null,null,null,null,null,null,null,null,null,null,null,1,{"$f":"COMPARISON!$AJ$50","v":1},"Pushing/Pulling",null,"Push/Pull Activity",null,null,null,null,null,null,{"$f":"IF(Home!AO119=0,\"\",Home!AO119)","v":""}]
[null,null,null,null,null,null,null,null,null,null,null,null,1,{"$f":"COMPARISON!$AJ$50","v":1},null,null,"Effort Type",null,null,null,null,null,null,{"$f":"IF(Home!AT117=\"\",\"\",Home!AT117)","v":""}]
[null,null,null,null,null,null,null,null,null,null,null,null,1,{"$f":"COMPARISON!$AJ$50","v":1},null,null,"Maximum Force(s)",null,null,null,null,null,null,{"$f":"IF(OR(Home!AN117=0,Home!AN117=\"\"),\"\",Home!AN117&\" lbs.\")","v":""}]
[null,null,null,null,null,null,null,null,null,null,null,null,1,{"$f":"COMPARISON!$AJ$50","v":1},null,null,"Distance",null,null,null,null,null,null,{"$f":"IF(Home!AT123=\"\",\"\",Home!AT123)","v":""}]
[null,null,null,null,null,null,null,null,null,null,null,null,1,{"$f":"COMPARISON!$AJ$50","v":1},null,null,"Hand Height",null,null,null,null,null,null,{"$f":"IF(Home!AN120=0,\"\",IF(Home!AN120=1,Forms!$F$509,IF(Home!AN120=2,Forms!$F$510,IF(Home!AN120=3,Forms!$F$511,\"\"))))","v":""}]
[null,null,null,null,null,null,null,null,null,null,null,null,1,{"$f":"COMPARISON!$AJ$50","v":1},null,null,"Frequency",null,null,null,null,null,null,{"$f":"IF(OR(Home!AN118=\"\",Home!AN118=0),\"\",Home!AT118)","v":""}]
[null,null,null,null,null,null,null,null,null,null,null,null,1,{"$f":"COMPARISON!$AJ$54","v":1},"Vibration",null,"Vibrating Hand Tools",null,null,null,null,null,null,{"$f":"IF(COMPARISON!AJ55=1,IF(Home!AN93=0,\"\",IF(Home!AN92=1,Forms!E531,IF(Home!AN92=2,Forms!$E$532,IF(Home!AN92=3,Forms!$E$533,\"\")))),IF(COMPARISON!AJ55=\"o\",IF(Home!AP49=0,\"\",Home!AT47)))","v":""},null,null,null,null,null,null,null,null,null,null,null,null,null,null,null,null,null,null,null,null,null,null,{"$f":"IF(AU106&AU107&AU108&AU109&AU110&AU111<>\"\",\"Total Vibration\",\"\")","v":""}]
[null,null,null,null,null,null,null,null,null,null,null,null,{"$f":"IF(N105=1,1,\"o\")","v":"o"},{"$f":"IF(AND(X105=\"\",AT105=\"\"),0,1)","v":0},null,null,null,null,null,null,null,null,null,{"$f":"IF(Home!AN50=0,\"\",Home!AT49)","v":""},null,null,null,null,null,null,null,null,null,null,null,null,null,null,null,null,null,null,null,null,null,{"$f":"IF(AU107&AU108&AU109&AU110&AU111&AU112<>\"\",Vibration!F10,\"\")","v":""},{"$f":"IF(AT105=\"\",\"\",\"m/s2\")","v":""}]
[null,null,null,null,null,null,null,null,null,null,null,null,{"$f":"IF(N106=1,1,\"o\")","v":"o"},{"$f":"Vibration!G4","v":0},null,null,"Tool 1",null,null,null,null,null,null,{"$f":"Vibration!B4&\" \"&Vibration!C4","v":" "},null,null,null,null,null,null,null,null,null,null,null,null,null,null,null,null,null,null,null,null,null,{"$f":"IF(Vibration!F4=\"\",\"\",Vibration!F4)","v":""},{"$f":"IF(AT106=\"\",\"\",\"m/s2\")","v":""}]
[null,null,null,null,null,null,null,null,null,null,null,null,"o",{"$f":"Vibration!G5","v":0},null,null,"Tool 2",null,null,null,null,null,null,{"$f":"Vibration!B5&\" \"&Vibration!C5","v":" "},null,null,null,null,null,null,null,null,null,null,null,null,null,null,null,null,null,null,null,null,null,{"$f":"IF(Vibration!F5=\"\",\"\",Vibration!F5)","v":""},""]
[null,null,null,null,null,null,null,null,null,null,null,null,"o",{"$f":"Vibration!G6","v":0},null,null,"Tool 3",null,null,null,null,null,null,{"$f":"Vibration!B6&\" \"&Vibration!C6","v":" "},null,null,null,null,null,null,null,null,null,null,null,null,null,null,null,null,null,null,null,null,null,{"$f":"IF(Vibration!F6=\"\",\"\",Vibration!F6)","v":""},""]
[null,null,null,null,null,null,null,null,null,null,null,null,{"$f":"IF(N109=1,1,\"o\")","v":"o"},{"$f":"Vibration!G7","v":0},null,null,"Tool 4",null,null,null,null,null,null,{"$f":"Vibration!B7&\" \"&Vibration!C7","v":" "},null,null,null,null,null,null,null,null,null,null,null,null,null,null,null,null,null,null,null,null,null,{"$f":"IF(Vibration!F7=\"\",\"\",Vibration!F7)","v":""},""]
[null,null,null,null,null,null,null,null,null,null,null,null,"o",{"$f":"Vibration!G8","v":0},null,null,"Tool 5",null,null,null,null,null,null,{"$f":"Vibration!B8&\" \"&Vibration!C8","v":" "},null,null,null,null,null,null,null,null,null,null,null,null,null,null,null,{"$f":"IF(Vibration!D8=\"\",\"\",\"Vibration:\")","v":""},{"$f":"IF(Vibration!E8=\"\",\"\",Vibration!E8&\" m/s2\")","v":""},null,{"$f":"IF(Vibration!D8=\"\",\"\",Vibration!D8&\" hrs/day\")","v":""},null,null,{"$f":"IF(Vibration!F8=\"\",\"\",Vibration!F8)","v":""},""]
[null,null,null,null,null,null,null,null,null,null,null,null,"o",{"$f":"Vibration!G9","v":0},null,null,"Tool 6",null,null,null,null,null,null,{"$f":"Vibration!B9&\" \"&Vibration!C9","v":" "},null,null,null,null,null,null,null,null,null,null,null,null,null,null,null,{"$f":"IF(Vibration!D9=\"\",\"\",\"Vibration:\")","v":""},{"$f":"IF(Vibration!E9=\"\",\"\",Vibration!E9&\" m/s2\")","v":""},null,{"$f":"IF(Vibration!D9=\"\",\"\",Vibration!D9&\" hrs/day\")","v":""},null,null,{"$f":"IF(Vibration!F9=\"\",\"\",Vibration!F9)","v":""},""]
[null,null,null,null,null,null,null,null,null,null,null,null,{"$f":"IF(N112=1,1,\"o\")","v":1},{"$f":"COMPARISON!$AJ$61","v":1},null,null,"Driving",null,null,null,null,null,null,{"$f":"IF(Home!AT100=1,Forms!E574,IF(Home!AT100=2,Forms!E575,IF(Home!AT100=3,Forms!E576,\"\")))","v":""}]
[null,null,null,null,null,null,null,null,null,null,null,null,1,{"$f":"COMPARISON!$AJ$62","v":1},null,null,"Whole Body Vibration",null,null,null,null,null,null,{"$f":"IF(Vibration!F20=0,\"\",IF(Vibration!F20=1,\"Less than 2 hours per day\",IF(Vibration!F20>=2,\"2 hours or more per day\",\"\")))","v":""},null,null,null,null,null,null,null,null,null,null,null,null,null,null,null,{"$f":"IF(Vibration!D19=\"\",\"\",\"Total Vibration:\")","v":"Total Vibration:"},null,null,null,null,null,{"$f":"IF(AU114&AU115&AU116&AU117<>\"\",Vibration!F19,\"\")","v":""},{"$f":"IF(AT113=\"\",\"\",\"m/s2\")","v":""}]
[null,null,null,null,null,null,null,null,null,null,null,null,"o",{"$f":"Vibration!G15","v":0},null,null,"Vehicle 1",null,null,null,null,null,null,{"$f":"IF(AND(Vibration!B15=\"\",Vibration!C15=\"\"),\"\",Vibration!B15&\", \"&Vibration!C15)","v":""},null,null,null,null,null,null,null,null,null,null,null,null,null,null,null,{"$f":"IF(Vibration!D15=\"\",\"\",\"Vibration:\")","v":""},{"$f":"IF(Vibration!E15=\"\",\"\",Vibration!E15&\" m/s2\")","v":""},null,{"$f":"IF(Vibration!D15=\"\",\"\",Vibration!D15&\" hrs/day\")","v":""},null,null,{"$f":"IF(Vibration!F15=\"\",\"\",Vibration!F15)","v":""},{"$f":"IF(AT114=\"\",\"\",\"m/s2\")","v":""}]
[null,null,null,null,null,null,null,null,null,null,null,null,"o",{"$f":"Vibration!G16","v":0},null,null,"Vehicle 2",null,null,null,null,null,null,{"$f":"IF(AND(Vibration!B16=\"\",Vibration!C16=\"\"),\"\",Vibration!B16&\", \"&Vibration!C16)","v":""},null,null,null,null,null,null,null,null,null,null,null,null,null,null,null,{"$f":"IF(Vibration!D16=\"\",\"\",\"Vibration:\")","v":""},{"$f":"IF(Vibration!E16=\"\",\"\",Vibration!E16&\" m/s2\")","v":""},null,{"$f":"IF(Vibration!D16=\"\",\"\",Vibration!D16&\" hrs/day\")","v":""},null,null,{"$f":"IF(Vibration!F16=\"\",\"\",Vibration!F16)","v":""},{"$f":"IF(AT115=\"\",\"\",\"m/s2\")","v":""}]
[null,null,null,null,null,null,null,null,null,null,null,null,"o",{"$f":"Vibration!G17","v":0},null,null,"Vehicle 3",null,null,null,null,null,null,{"$f":"IF(AND(Vibration!B17=\"\",Vibration!C17=\"\"),\"\",Vibration!B17&\", \"&Vibration!C17)","v":""},null,null,null,null,null,null,null,null,null,null,null,null,null,null,null,{"$f":"IF(Vibration!D17=\"\",\"\",\"Vibration:\")","v":""},{"$f":"IF(Vibration!E17=\"\",\"\",Vibration!E17&\" m/s2\")","v":""},null,{"$f":"IF(Vibration!D17=\"\",\"\",Vibration!D17&\" hrs/day\")","v":""},null,null,{"$f":"IF(Vibration!F17=\"\",\"\",Vibration!F17)","v":""},{"$f":"IF(AT116=\"\",\"\",\"m/s2\")","v":""}]
[null,null,null,null,null,null,null,null,null,null,null,null,"o",null,null,null,"Vehicle 4",null,null,null,null,null,null,{"$f":"IF(AND(Vibration!B18=\"\",Vibration!C18=\"\"),\"\",Vibration!B18&\", \"&Vibration!C18)","v":""},null,null,null,null,{"$f":"IF(Home!AU94=\"\",\"\",\"a(x):\")","v":""},null,null,null,null,null,null,null,null,null,null,{"$f":"IF(Vibration!D18=\"\",\"\",\"Vibration:\")","v":""},{"$f":"IF(Vibration!E18=\"\",\"\",Vibration!E18&\" m/s2\")","v":""},null,{"$f":"IF(Vibration!D18=\"\",\"\",Vibration!D18&\" hrs/day\")","v":""},null,null,{"$f":"IF(Vibration!F18=\"\",\"\",Vibration!F18)","v":""},{"$f":"IF(AT117=\"\",\"\",\"m/s2\")","v":""}]
[null,null,null,null,null,null,null,null,null,null,null,{"$f":"IF(M118=1,1,\"\")","v":""},{"$f":"IF(M119=1,1,\"o\")","v":"o"}]
[null,null,null,null,null,null,null,null,null,null,null,null,{"$f":"IF(Q118&R118&Q119&R119<>\"\",1,\"o\")","v":"o"}]
[null,null,null,null,null,null,null,null,null,null,null,null,{"$f":"IF(Q119&R119&Q120&R120<>\"\",1,\"o\")","v":"o"}]
[null,null,null,null,null,null,null,null,null,null,null,null,{"$f":"IF(Q120&R120&Q121&R121<>\"\",1,\"o\")","v":"o"}]
[null,null,null,null,null,null,null,null,null,null,null,null,{"$f":"IF(Q121&R121&Q122&R122<>\"\",1,\"o\")","v":"o"}]
[null,null,null,null,null,null,null,null,null,null,null,null,"o"]
[null,null,null,null,null,null,null,null,null,null,null,null,"o"]
[null,null,null,null,null,null,null,null,null,null,null,null,"o"]
[null,null,null,null,null,null,null,null,null,null,null,null,"o"]
[null,null,null,null,null,null,null,null,null,null,null,null,"o"]
[null,null,null,null,null,null,null,null,null,null,null,null,"o"]
[null,null,null,null,null,null,null,null,null,null,null,null,"o"]
[null,null,null,null,null,null,null,null,null,null,null,null,"o"]
[null,null,null,null,null,null,null,null,null,null,null,null,"o"]
[null,null,null,null,null,null,null,null,null,null,null,null,"o"]
[null,null,null,null,null,null,null,null,null,null,null,null,"o"]
[null,null,null,null,null,null,null,null,null,null,null,null,"o"]
[null,null,null,null,null,null,null,null,null,null,null,null,"o"]
[null,null,null,null,null,null,null,null,null,null,null,null,"o"]
[null,null,null,null,null,null,null,null,null,null,null,null,"o"]
[null,null,null,null,null,null,null,null,null,null,null,null,"o"]
[null,null,null,null,null,null,null,null,null,null,null,null,"o"]
[null,null,null,null,null,null,null,null,null,null,null,null,"o"]
[null,null,null,null,null,null,null,null,null,null,null,null,"o"]
[null,null,null,null,null,null,null,null,null,null,null,null,"o"]
[null,null,null,null,null,null,null,null,null,null,null,null,"o"]
[null,null,null,null,null,null,null,null,null,null,null,null,"o"]
[null,null,null,null,null,null,null,null,null,null,null,null,"o"]
[null,null,null,null,null,null,null,null,null,null,null,null,"o"]
[null,null,null,null,null,null,null,null,null,null,null,null,"o"]
[null,null,null,null,null,null,null,null,null,null,null,null,"o"]
[null,null,null,null,null,null,null,null,null,null,null,null,"o"]
[null,null,null,null,null,null,null,null,null,null,null,null,"o"]
[null,null,null,null,null,null,null,null,null,null,null,null,"o"]
[null,null,null,null,null,null,null,null,null,null,null,null,"o"]
[null,null,null,null,null,null,null,null,null,null,null,null,"o"]
[null,null,null,null,null,null,null,null,null,null,null,null,"o"]
[null,null,null,null,null,null,null,null,null,null,null,null,"o"]
[null,null,null,null,null,null,null,null,null,null,null,null,"o"]
[null,null,null,null,null,null,null,null,null,null,null,null,"o"]
[null,null,null,null,null,null,null,null,null,null,null,null,"o"]
[null,null,null,null,null,null,null,null,null,null,null,null,"o"]
[null,null,null,null,null,null,null,null,null,null,null,null,"o"]
[null,null,null,null,null,null,null,null,null,null,null,null,"o"]
[null,null,null,null,null,null,null,null,null,null,null,null,"o"]
[null,null,null,null,null,null,null,null,null,null,null,null,"o"]
[null,null,null,null,null,null,null,null,null,null,null,null,"o"]
[null,null,null,null,null,null,null,null,null,null,null,null,"o"]
[null,null,null,null,null,null,null,null,null,null,null,null,"o"]
[null,null,null,null,null,null,null,null,null,null,null,null,"o"]
[null,null,null,null,null,null,null,null,null,null,null,null,"o"]
[null,null,null,null,null,null,null,null,null,null,null,null,"o"]
[null,null,null,null,null,null,null,null,null,null,null,null,"o"]
[null,null,null,null,null,null,null,null,null,null,null,null,"o"]
[null,null,null,null,null,null,null,null,null,null,null,null,"o"]
[null,null,null,null,null,null,null,null,null,null,null,null,"o"]
[null,null,null,null,null,null,null,null,null,null,null,null,"o"]
[null,null,null,null,null,null,null,null,null,null,null,null,"o"]
[null,null,null,null,null,null,null,null,null,null,null,null,"o"]
[null,null,null,null,null,null,null,null,null,null,null,null,"o"]
[null,null,null,null,null,null,null,null,null,null,null,null,"o"]
[null,null,null,null,null,null,null,null,null,null,null,null,"o"]
[null,null,null,null,null,null,null,null,null,null,null,null,"o"]
[null,null,null,null,null,null,null,null,null,null,null,null,"o"]
[null,null,null,null,null,null,null,null,null,null,null,null,"o"]
[null,null,null,null,null,null,null,null,null,null,null,null,"o"]
[null,null,null,null,null,null,null,null,null,null,null,null,"o"]
[null,null,null,null,null,null,null,null,null,null,null,null,"o"]
[null,null,null,null,null,null,null,null,null,null,null,null,{"$f":"IF(Q185&R185&Q186&R186<>\"\",1,\"o\")","v":"o"}]
[null,null,null,null,null,null,null,null,null,null,null,null,"o"]
[null,null,null,null,null,null,null,null,null,null,null,null,"o"]
[null,null,null,null,null,null,null,null,null,null,null,null,"o"]
[null,null,null,null,null,null,null,null,null,null,null,null,"o"]
[null,null,null,null,null,null,null,null,null,null,null,null,"o"]
[null,null,null,null,null,null,null,null,null,null,null,null,"o"]
[null,null,null,null,null,null,null,null,null,null,null,null,"o"]
[null,null,null,null,null,null,null,null,null,null,null,null,"o"]
[null,null,null,null,null,null,null,null,null,null,null,null,"o"]
[null,null,null,null,null,null,null,null,null,null,null,null,"o"]
[null,null,null,null,null,null,null,null,null,null,null,null,"o"]
[null,null,null,null,null,null,null,null,null,null,null,null,"o"]
[null,null,null,null,null,null,null,null,null,null,null,null,"o"]
[null,null,null,null,null,null,null,null,null,null,null,null,"o"]
[null,null,null,null,null,null,null,null,null,null,null,null,"o"]
[null,null,null,null,null,null,null,null,null,null,null,null,"o"]
[null,null,null,null,null,null,null,null,null,null,null,null,"o"]
[null,null,null,null,null,null,null,null,null,null,null,null,"o"]
[null,null,null,null,null,null,null,null,null,null,null,null,"o"]
[null,null,null,null,null,null,null,null,null,null,null,null,"o"]
[null,null,null,null,null,null,null,null,null,null,null,null,"o"]
[null,null,null,null,null,null,null,null,null,null,null,null,"o"]
[null,null,null,null,null,null,null,null,null,null,null,null,"o"]
[null,null,null,null,null,null,null,null,null,null,null,null,"o"]
[null,null,null,null,null,null,null,null,null,null,null,null,"o"]
[null,null,null,null,null,null,null,null,null,null,null,null,"o"]
[null,null,null,null,null,null,null,null,null,null,null,null,"o"]
[null,null,null,null,null,null,null,null,null,null,null,null,"o"]
[null,null,null,null,null,null,null,null,null,null,null,null,"o"]
[null,null,null,null,null,null,null,null,null,null,null,null,"o"]
[null,null,null,null,null,null,null,null,null,null,null,null,"o"]
[null,null,null,null,null,null,null,null,null,null,null,null,"o"]
[null,null,null,null,null,null,null,null,null,null,null,null,"o"]
[null,null,null,null,null,null,null,null,null,null,null,null,"o"]
[null,null,null,null,null,null,null,null,null,null,null,null,"o"]
[null,null,null,null,null,null,null,null,null,null,null,null,"o"]
[null,null,null,null,null,null,null,null,null,null,null,null,"o"]
[null,null,null,null,null,null,null,null,null,null,null,null,"o"]
[null,null,null,null,null,null,null,null,null,null,null,null,"o"]
[null,null,null,null,null,null,null,null,null,null,null,null,"o"]
[null,null,null,null,null,null,null,null,null,null,null,null,"o"]
[null,null,null,null,null,null,null,null,null,null,null,null,"o"]
[null,null,null,null,null,null,null,null,null,null,null,null,"o"]
[null,null,null,null,null,null,null,null,null,null,null,null,"o"]
[null,null,null,null,null,null,null,null,null,null,null,null,"o"]
[null,null,null,null,null,null,null,null,null,null,null,null,"o"]
[null,null,null,null,null,null,null,null,null,null,null,null,"o"]
[null,null,null,null,null,null,null,null,null,null,null,null,"o"]
[null,null,null,null,null,null,null,null,null,null,null,null,"o"]
[null,null,null,null,null,null,null,null,null,null,null,null,"o"]
[null,null,null,null,null,null,null,null,null,null,null,null,"o"]
[null,null,null,null,null,null,null,null,null,null,null,null,"o"]
[null,null,null,null,null,null,null,null,null,null,null,null,"o"]
[null,null,null,null,null,null,null,null,null,null,null,null,"o"]
[null,null,null,null,null,null,null,null,null,null,null,null,"o"]
[null,null,null,null,null,null,null,null,null,null,null,null,"o"]
[null,null,null,null,null,null,null,null,null,null,null,null,"o"]
[null,null,null,null,null,null,null,null,null,null,null,null,"o"]
[null,null,null,null,null,null,null,null,null,null,null,null,"o"]
[null,null,null,null,null,null,null,null,null,null,null,null,"o"]
[null,null,null,null,null,null,null,null,null,null,null,null,"o"]
[null,null,null,null,null,null,null,null,null,null,null,null,"o"]
[null,null,null,null,null,null,null,null,null,null,null,null,"o"]
[null,null,null,null,null,null,null,null,null,null,null,null,{"$f":"IF(Q249&R249&Q250&R250<>\"\",1,\"o\")","v":"o"}]
[null,null,null,null,null,null,null,null,null,null,null,null,"o"]
[null,null,null,null,null,null,null,null,null,null,null,null,"o"]
[null,null,null,null,null,null,null,null,null,null,null,null,"o"]
[null,null,null,null,null,null,null,null,null,null,null,null,"o"]
[null,null,null,null,null,null,null,null,null,null,null,null,"o"]
[null,null,null,null,null,null,null,null,null,null,null,null,"o"]
[null,null,null,null,null,null,null,null,null,null,null,null,"o"]
[null,null,null,null,null,null,null,null,null,null,null,null,"o"]
[null,null,null,null,null,null,null,null,null,null,null,null,"o"]
[null,null,null,null,null,null,null,null,null,null,null,null,"o"]
[null,null,null,null,null,null,null,null,null,null,null,null,"o"]
[null,null,null,null,null,null,null,null,null,null,null,null,"o"]
[null,null,null,null,null,null,null,null,null,null,null,null,"o"]
[null,null,null,null,null,null,null,null,null,null,null,null,"o"]
[null,null,null,null,null,null,null,null,null,null,null,null,"o"]
[null,null,null,null,null,null,null,null,null,null,null,null,"o"]
[null,null,null,null,null,null,null,null,null,null,null,null,"o"]
[null,null,null,null,null,null,null,null,null,null,null,null,"o"]
[null,null,null,null,null,null,null,null,null,null,null,null,"o"]
[null,null,null,null,null,null,null,null,null,null,null,null,"o"]
[null,null,null,null,null,null,null,null,null,null,null,null,"o"]
[null,null,null,null,null,null,null,null,null,null,null,null,"o"]
[null,null,null,null,null,null,null,null,null,null,null,null,"o"]
[null,null,null,null,null,null,null,null,null,null,null,null,"o"]
[null,null,null,null,null,null,null,null,null,null,null,null,"o"]
[null,null,null,null,null,null,null,null,null,null,null,null,"o"]
[null,null,null,null,null,null,null,null,null,null,null,null,"o"]
[null,null,null,null,null,null,null,null,null,null,null,null,"o"]
[null,null,null,null,null,null,null,null,null,null,null,null,"o"]
[null,null,null,null,null,null,null,null,null,null,null,null,"o"]
[null,null,null,null,null,null,null,null,null,null,null,null,"o"]
[null,null,null,null,null,null,null,null,null,null,null,null,"o"]
[null,null,null,null,null,null,null,null,null,null,null,null,"o"]
[null,null,null,null,null,null,null,null,null,null,null,null,"o"]
[null,null,null,null,null,null,null,null,null,null,null,null,"o"]
[null,null,null,null,null,null,null,null,null,null,null,null,"o"]
[null,null,null,null,null,null,null,null,null,null,null,null,"o"]
[null,null,null,null,null,null,null,null,null,null,null,null,"o"]
[null,null,null,null,null,null,null,null,null,null,null,null,"o"]
[null,null,null,null,null,null,null,null,null,null,null,null,"o"]
[null,null,null,null,null,null,null,null,null,null,null,null,"o"]
[null,null,null,null,null,null,null,null,null,null,null,null,"o"]
[null,null,null,null,null,null,null,null,null,null,null,null,"o"]
[null,null,null,null,null,null,null,null,null,null,null,null,"o"]
[null,null,null,null,null,null,null,null,null,null,null,null,"o"]
[null,null,null,null,null,null,null,null,null,null,null,null,"o"]
[null,null,null,null,null,null,null,null,null,null,null,null,"o"]
[null,null,null,null,null,null,null,null,null,null,null,null,"o"]
[null,null,null,null,null,null,null,null,null,null,null,null,"o"]
[null,null,null,null,null,null,null,null,null,null,null,null,"o"]
[null,null,null,null,null,null,null,null,null,null,null,null,"o"]
[null,null,null,null,null,null,null,null,null,null,null,null,"o"]
[null,null,null,null,null,null,null,null,null,null,null,null,"o"]
[null,null,null,null,null,null,null,null,null,null,null,null,"o"]
[null,null,null,null,null,null,null,null,null,null,null,null,"o"]
[null,null,null,null,null,null,null,null,null,null,null,null,"o"]
[null,null,null,null,null,null,null,null,null,null,null,null,"o"]
[null,null,null,null,null,null,null,null,null,null,null,null,"o"]
[null,null,null,null,null,null,null,null,null,null,null,null,"o"]
[null,null,null,null,null,null,null,null,null,null,null,null,"o"]
[null,null,null,null,null,null,null,null,null,null,null,null,"o"]
[null,null,null,null,null,null,null,null,null,null,null,null,"o"]
[null,null,null,null,null,null,null,null,null,null,null,null,"o"]
[null,null,null,null,null,null,null,null,null,null,null,null,{"$f":"IF(Q313&R313&Q314&R314<>\"\",1,\"o\")","v":"o"}]
[null,null,null,null,null,null,null,null,null,null,null,null,"o"]
[null,null,null,null,null,null,null,null,null,null,null,null,"o"]
[null,null,null,null,null,null,null,null,null,null,null,null,"o"]
[null,null,null,null,null,null,null,null,null,null,null,null,"o"]
[null,null,null,null,null,null,null,null,null,null,null,null,"o"]
[null,null,null,null,null,null,null,null,null,null,null,null,"o"]
[null,null,null,null,null,null,null,null,null,null,null,null,"o"]
[null,null,null,null,null,null,null,null,null,null,null,null,"o"]
[null,null,null,null,null,null,null,null,null,null,null,null,"o"]
[null,null,null,null,null,null,null,null,null,null,null,null,"o"]
[null,null,null,null,null,null,null,null,null,null,null,null,"o"]
[null,null,null,null,null,null,null,null,null,null,null,null,"o"]
[null,null,null,null,null,null,null,null,null,null,null,null,"o"]
[null,null,null,null,null,null,null,null,null,null,null,null,"o"]
[null,null,null,null,null,null,null,null,null,null,null,null,"o"]
[null,null,null,null,null,null,null,null,null,null,null,null,"o"]
[null,null,null,null,null,null,null,null,null,null,null,null,"o"]
[null,null,null,null,null,null,null,null,null,null,null,null,"o"]
[null,null,null,null,null,null,null,null,null,null,null,null,"o"]
[null,null,null,null,null,null,null,null,null,null,null,null,"o"]
[null,null,null,null,null,null,null,null,null,null,null,null,"o"]
[null,null,null,null,null,null,null,null,null,null,null,null,"o"]
[null,null,null,null,null,null,null,null,null,null,null,null,"o"]
[null,null,null,null,null,null,null,null,null,null,null,null,"o"]
[null,null,null,null,null,null,null,null,null,null,null,null,"o"]
[null,null,null,null,null,null,null,null,null,null,null,null,"o"]
[null,null,null,null,null,null,null,null,null,null,null,null,"o"]
[null,null,null,null,null,null,null,null,null,null,null,null,"o"]
[null,null,null,null,null,null,null,null,null,null,null,null,"o"]
[null,null,null,null,null,null,null,null,null,null,null,null,"o"]
[null,null,null,null,null,null,null,null,null,null,null,null,"o"]
[null,null,null,null,null,null,null,null,null,null,null,null,"o"]
[null,null,null,null,null,null,null,null,null,null,null,null,"o"]
[null,null,null,null,null,null,null,null,null,null,null,null,"o"]
[null,null,null,null,null,null,null,null,null,null,null,null,"o"]
[null,null,null,null,null,null,null,null,null,null,null,null,"o"]
[null,null,null,null,null,null,null,null,null,null,null,null,"o"]
[null,null,null,null,null,null,null,null,null,null,null,null,"o"]
[null,null,null,null,null,null,null,null,null,null,null,null,"o"]
[null,null,null,null,null,null,null,null,null,null,null,null,"o"]
[null,null,null,null,null,null,null,null,null,null,null,null,"o"]
[null,null,null,null,null,null,null,null,null,null,null,null,"o"]
[null,null,null,null,null,null,null,null,null,null,null,null,"o"]
[null,null,null,null,null,null,null,null,null,null,null,null,"o"]
[null,null,null,null,null,null,null,null,null,null,null,null,"o"]
[null,null,null,null,null,null,null,null,null,null,null,null,"o"]
[null,null,null,null,null,null,null,null,null,null,null,null,"o"]
[null,null,null,null,null,null,null,null,null,null,null,null,"o"]
[null,null,null,null,null,null,null,null,null,null,null,null,"o"]
[null,null,null,null,null,null,null,null,null,null,null,null,"o"]
[null,null,null,null,null,null,null,null,null,null,null,null,"o"]
[null,null,null,null,null,null,null,null,null,null,null,null,"o"]
[null,null,null,null,null,null,null,null,null,null,null,null,"o"]
[null,null,null,null,null,null,null,null,null,null,null,null,"o"]
[null,null,null,null,null,null,null,null,null,null,null,null,"o"]
[null,null,null,null,null,null,null,null,null,null,null,null,"o"]
[null,null,null,null,null,null,null,null,null,null,null,null,"o"]
[null,null,null,null,null,null,null,null,null,null,null,null,"o"]
[null,null,null,null,null,null,null,null,null,null,null,null,"o"]
[null,null,null,null,null,null,null,null,null,null,null,null,"o"]
[null,null,null,null,null,null,null,null,null,null,null,null,"o"]
[null,null,null,null,null,null,null,null,null,null,null,null,"o"]
[null,null,null,null,null,null,null,null,null,null,null,null,"o"]
[null,null,null,null,null,null,null,null,null,null,null,null,{"$f":"IF(Q377&R377&Q378&R378<>\"\",1,\"o\")","v":"o"}]
[null,null,null,null,null,null,null,null,null,null,null,null,"o"]
[null,null,null,null,null,null,null,null,null,null,null,null,"o"]
[null,null,null,null,null,null,null,null,null,null,null,null,"o"]
[null,null,null,null,null,null,null,null,null,null,null,null,"o"]
[null,null,null,null,null,null,null,null,null,null,null,null,"o"]
[null,null,null,null,null,null,null,null,null,null,null,null,"o"]
[null,null,null,null,null,null,null,null,null,null,null,null,"o"]
[null,null,null,null,null,null,null,null,null,null,null,null,"o"]
[null,null,null,null,null,null,null,null,null,null,null,null,"o"]
[null,null,null,null,null,null,null,null,null,null,null,null,"o"]
[null,null,null,null,null,null,null,null,null,null,null,null,"o"]
[null,null,null,null,null,null,null,null,null,null,null,null,"o"]
[null,null,null,null,null,null,null,null,null,null,null,null,"o"]
[null,null,null,null,null,null,null,null,null,null,null,null,"o"]
[null,null,null,null,null,null,null,null,null,null,null,null,"o"]
[null,null,null,null,null,null,null,null,null,null,null,null,"o"]
[null,null,null,null,null,null,null,null,null,null,null,null,"o"]
[null,null,null,null,null,null,null,null,null,null,null,null,"o"]
[null,null,null,null,null,null,null,null,null,null,null,null,"o"]
[null,null,null,null,null,null,null,null,null,null,null,null,"o"]
[null,null,null,null,null,null,null,null,null,null,null,null,"o"]
[null,null,null,null,null,null,null,null,null,null,null,null,"o"]
[null,null,null,null,null,null,null,null,null,null,null,null,"o"]
[null,null,null,null,null,null,null,null,null,null,null,null,"o"]
[null,null,null,null,null,null,null,null,null,null,null,null,"o"]
[null,null,null,null,null,null,null,null,null,null,null,null,"o"]
[null,null,null,null,null,null,null,null,null,null,null,null,"o"]
[null,null,null,null,null,null,null,null,null,null,null,null,"o"]
[null,null,null,null,null,null,null,null,null,null,null,null,"o"]
[null,null,null,null,null,null,null,null,null,null,null,null,"o"]
[null,null,null,null,null,null,null,null,null,null,null,null,"o"]
[null,null,null,null,null,null,null,null,null,null,null,null,"o"]
[null,null,null,null,null,null,null,null,null,null,null,null,"o"]
[null,null,null,null,null,null,null,null,null,null,null,null,"o"]
[null,null,null,null,null,null,null,null,null,null,null,null,"o"]
[null,null,null,null,null,null,null,null,null,null,null,null,"o"]
[null,null,null,null,null,null,null,null,null,null,null,null,"o"]
[null,null,null,null,null,null,null,null,null,null,null,null,"o"]
[null,null,null,null,null,null,null,null,null,null,null,null,"o"]
[null,null,null,null,null,null,null,null,null,null,null,null,"o"]
[null,null,null,null,null,null,null,null,null,null,null,null,"o"]
[null,null,null,null,null,null,null,null,null,null,null,null,"o"]
[null,null,null,null,null,null,null,null,null,null,null,null,"o"]
[null,null,null,null,null,null,null,null,null,null,null,null,"o"]
[null,null,null,null,null,null,null,null,null,null,null,null,"o"]
[null,null,null,null,null,null,null,null,null,null,null,null,"o"]
[null,null,null,null,null,null,null,null,null,null,null,null,"o"]
[null,null,null,null,null,null,null,null,null,null,null,null,"o"]
[null,null,null,null,null,null,null,null,null,null,null,null,"o"]
[null,null,null,null,null,null,null,null,null,null,null,null,"o"]
[null,null,null,null,null,null,null,null,null,null,null,null,"o"]
[null,null,null,null,null,null,null,null,null,null,null,null,"o"]
[null,null,null,null,null,null,null,null,null,null,null,null,"o"]
[null,null,null,null,null,null,null,null,null,null,null,null,"o"]
[null,null,null,null,null,null,null,null,null,null,null,null,"o"]
[null,null,null,null,null,null,null,null,null,null,null,null,"o"]
[null,null,null,null,null,null,null,null,null,null,null,null,"o"]
[null,null,null,null,null,null,null,null,null,null,null,null,"o"]
[null,null,null,null,null,null,null,null,null,null,null,null,"o"]
[null,null,null,null,null,null,null,null,null,null,null,null,"o"]
[null,null,null,null,null,null,null,null,null,null,null,null,"o"]
[null,null,null,null,null,null,null,null,null,null,null,null,"o"]
[null,null,null,null,null,null,null,null,null,null,null,null,"o"]
[null,null,null,null,null,null,null,null,null,null,null,null,{"$f":"IF(Q441&R441&Q442&R442<>\"\",1,\"o\")","v":"o"}]
[null,null,null,null,null,null,null,null,null,null,null,null,"o"]
[null,null,null,null,null,null,null,null,null,null,null,null,"o"]
[null,null,null,null,null,null,null,null,null,null,null,null,"o"]
[null,null,null,null,null,null,null,null,null,null,null,null,"o"]
[null,null,null,null,null,null,null,null,null,null,null,null,"o"]
[null,null,null,null,null,null,null,null,null,null,null,null,"o"]
[null,null,null,null,null,null,null,null,null,null,null,null,"o"]
[null,null,null,null,null,null,null,null,null,null,null,null,"o"]
[null,null,null,null,null,null,null,null,null,null,null,null,"o"]
[null,null,null,null,null,null,null,null,null,null,null,null,"o"]
[null,null,null,null,null,null,null,null,null,null,null,null,"o"]
[null,null,null,null,null,null,null,null,null,null,null,null,"o"]
[null,null,null,null,null,null,null,null,null,null,null,null,"o"]
[null,null,null,null,null,null,null,null,null,null,null,null,"o"]
[null,null,null,null,null,null,null,null,null,null,null,null,"o"]
[null,null,null,null,null,null,null,null,null,null,null,null,"o"]
[null,null,null,null,null,null,null,null,null,null,null,null,"o"]
[null,null,null,null,null,null,null,null,null,null,null,null,"o"]
[null,null,null,null,null,null,null,null,null,null,null,null,"o"]
[null,null,null,null,null,null,null,null,null,null,null,null,"o"]
[null,null,null,null,null,null,null,null,null,null,null,null,"o"]
[null,null,null,null,null,null,null,null,null,null,null,null,"o"]
[null,null,null,null,null,null,null,null,null,null,null,null,"o"]
[null,null,null,null,null,null,null,null,null,null,null,null,"o"]
[null,null,null,null,null,null,null,null,null,null,null,null,"o"]
[null,null,null,null,null,null,null,null,null,null,null,null,"o"]
[null,null,null,null,null,null,null,null,null,null,null,null,"o"]
[null,null,null,null,null,null,null,null,null,null,null,null,"o"]
[null,null,null,null,null,null,null,null,null,null,null,null,"o"]
[null,null,null,null,null,null,null,null,null,null,null,null,"o"]
[null,null,null,null,null,null,null,null,null,null,null,null,"o"]
[null,null,null,null,null,null,null,null,null,null,null,null,"o"]
[null,null,null,null,null,null,null,null,null,null,null,null,"o"]
[null,null,null,null,null,null,null,null,null,null,null,null,"o"]
[null,null,null,null,null,null,null,null,null,null,null,null,"o"]
[null,null,null,null,null,null,null,null,null,null,null,null,"o"]
[null,null,null,null,null,null,null,null,null,null,null,null,"o"]
[null,null,null,null,null,null,null,null,null,null,null,null,"o"]
[null,null,null,null,null,null,null,null,null,null,null,null,"o"]
[null,null,null,null,null,null,null,null,null,null,null,null,"o"]
[null,null,null,null,null,null,null,null,null,null,null,null,"o"]
[null,null,null,null,null,null,null,null,null,null,null,null,"o"]
[null,null,null,null,null,null,null,null,null,null,null,null,"o"]
[null,null,null,null,null,null,null,null,null,null,null,null,"o"]
[null,null,null,null,null,null,null,null,null,null,null,null,"o"]
[null,null,null,null,null,null,null,null,null,null,null,null,"o"]
[null,null,null,null,null,null,null,null,null,null,null,null,"o"]
[null,null,null,null,null,null,null,null,null,null,null,null,"o"]
[null,null,null,null,null,null,null,null,null,null,null,null,"o"]
[null,null,null,null,null,null,null,null,null,null,null,null,"o"]
[null,null,null,null,null,null,null,null,null,null,null,null,"o"]
[null,null,null,null,null,null,null,null,null,null,null,null,"o"]
[null,null,null,null,null,null,null,null,null,null,null,null,"o"]
[null,null,null,null,null,null,null,null,null,null,null,null,"o"]
[null,null,null,null,null,null,null,null,null,null,null,null,"o"]
[null,null,null,null,null,null,null,null,null,null,null,null,"o"]
[null,null,null,null,null,null,null,null,null,null,null,null,"o"]
[null,null,null,null,null,null,null,null,null,null,null,null,"o"]
[null,null,null,null,null,null,null,null,null,null,null,null,"o"]
[null,null,null,null,null,null,null,null,null,null,null,null,"o"]
[null,null,null,null,null,null,null,null,null,null,null,null,"o"]
[null,null,null,null,null,null,null,null,null,null,null,null,"o"]
[null,null,null,null,null,null,null,null,null,null,null,null,"o"]
[null,null,null,null,null,null,null,null,null,null,null,null,{"$f":"IF(Q505&R505&Q506&R506<>\"\",1,\"o\")","v":"o"}]
[null,null,null,null,null,null,null,null,null,null,null,null,"o"]
[null,null,null,null,null,null,null,null,null,null,null,null,"o"]
[null,null,null,null,null,null,null,null,null,null,null,null,"o"]
[null,null,null,null,null,null,null,null,null,null,null,null,"o"]
[null,null,null,null,null,null,null,null,null,null,null,null,"o"]
[null,null,null,null,null,null,null,null,null,null,null,null,"o"]
[null,null,null,null,null,null,null,null,null,null,null,null,"o"]
[null,null,null,null,null,null,null,null,null,null,null,null,"o"]
[null,null,null,null,null,null,null,null,null,null,null,null,"o"]
[null,null,null,null,null,null,null,null,null,null,null,null,"o"]
[null,null,null,null,null,null,null,null,null,null,null,null,"o"]
[null,null,null,null,null,null,null,null,null,null,null,null,"o"]
[null,null,null,null,null,null,null,null,null,null,null,null,"o"]
[null,null,null,null,null,null,null,null,null,null,null,null,"o"]
[null,null,null,null,null,null,null,null,null,null,null,null,"o"]
[null,null,null,null,null,null,null,null,null,null,null,null,"o"]
[null,null,null,null,null,null,null,null,null,null,null,null,"o"]
[null,null,null,null,null,null,null,null,null,null,null,null,"o"]
[null,null,null,null,null,null,null,null,null,null,null,null,"o"]
[null,null,null,null,null,null,null,null,null,null,null,null,"o"]
[null,null,null,null,null,null,null,null,null,null,null,null,"o"]
[null,null,null,null,null,null,null,null,null,null,null,null,"o"]
[null,null,null,null,null,null,null,null,null,null,null,null,"o"]
[null,null,null,null,null,null,null,null,null,null,null,null,"o"]
[null,null,null,null,null,null,null,null,null,null,null,null,"o"]
[null,null,null,null,null,null,null,null,null,null,null,null,"o"]
[null,null,null,null,null,null,null,null,null,null,null,null,"o"]
[null,null,null,null,null,null,null,null,null,null,null,null,"o"]
[null,null,null,null,null,null,null,null,null,null,null,null,"o"]
[null,null,null,null,null,null,null,null,null,null,null,null,"o"]
[null,null,null,null,null,null,null,null,null,null,null,null,"o"]
[null,null,null,null,null,null,null,null,null,null,null,null,"o"]
[null,null,null,null,null,null,null,null,null,null,null,null,"o"]
[null,null,null,null,null,null,null,null,null,null,null,null,"o"]
[null,null,null,null,null,null,null,null,null,null,null,null,"o"]
[null,null,null,null,null,null,null,null,null,null,null,null,"o"]
[null,null,null,null,null,null,null,null,null,null,null,null,"o"]
[null,null,null,null,null,null,null,null,null,null,null,null,"o"]
[null,null,null,null,null,null,null,null,null,null,null,null,"o"]
[null,null,null,null,null,null,null,null,null,null,null,null,"o"]
[null,null,null,null,null,null,null,null,null,null,null,null,"o"]
[null,null,null,null,null,null,null,null,null,null,null,null,"o"]
[null,null,null,null,null,null,null,null,null,null,null,null,"o"]
[null,null,null,null,null,null,null,null,null,null,null,null,"o"]
[null,null,null,null,null,null,null,null,null,null,null,null,"o"]
[null,null,null,null,null,null,null,null,null,null,null,null,"o"]
[null,null,null,null,null,null,null,null,null,null,null,null,"o"]
[null,null,null,null,null,null,null,null,null,null,null,null,"o"]
[null,null,null,null,null,null,null,null,null,null,null,null,"o"]
[null,null,null,null,null,null,null,null,null,null,null,null,"o"]
[null,null,null,null,null,null,null,null,null,null,null,null,"o"]
[null,null,null,null,null,null,null,null,null,null,null,null,"o"]
[null,null,null,null,null,null,null,null,null,null,null,null,"o"]
[null,null,null,null,null,null,null,null,null,null,null,null,"o"]
[null,null,null,null,null,null,null,null,null,null,null,null,"o"]
[null,null,null,null,null,null,null,null,null,null,null,null,"o"]
[null,null,null,null,null,null,null,null,null,null,null,null,"o"]
[null,null,null,null,null,null,null,null,null,null,null,null,"o"]
[null,null,null,null,null,null,null,null,null,null,null,null,"o"]
[null,null,null,null,null,null,null,null,null,null,null,null,"o"]
[null,null,null,null,null,null,null,null,null,null,null,null,"o"]
[null,null,null,null,null,null,null,null,null,null,null,null,"o"]
[null,null,null,null,null,null,null,null,null,null,null,null,"o"]
[null,null,null,null,null,null,null,null,null,null,null,null,{"$f":"IF(Q569&R569&Q570&R570<>\"\",1,\"o\")","v":"o"}]
[null,null,null,null,null,null,null,null,null,null,null,null,"o"]
[null,null,null,null,null,null,null,null,null,null,null,null,"o"]
[null,null,null,null,null,null,null,null,null,null,null,null,"o"]
[null,null,null,null,null,null,null,null,null,null,null,null,"o"]
[null,null,null,null,null,null,null,null,null,null,null,null,"o"]
[null,null,null,null,null,null,null,null,null,null,null,null,"o"]
[null,null,null,null,null,null,null,null,null,null,null,null,"o"]
[null,null,null,null,null,null,null,null,null,null,null,null,"o"]
[null,null,null,null,null,null,null,null,null,null,null,null,"o"]
[null,null,null,null,null,null,null,null,null,null,null,null,"o"]
[null,null,null,null,null,null,null,null,null,null,null,null,"o"]
[null,null,null,null,null,null,null,null,null,null,null,null,"o"]
[null,null,null,null,null,null,null,null,null,null,null,null,"o"]
[null,null,null,null,null,null,null,null,null,null,null,null,"o"]
[null,null,null,null,null,null,null,null,null,null,null,null,"o"]
[null,null,null,null,null,null,null,null,null,null,null,null,"o"]
[null,null,null,null,null,null,null,null,null,null,null,null,"o"]
[null,null,null,null,null,null,null,null,null,null,null,null,"o"]
[null,null,null,null,null,null,null,null,null,null,null,null,"o"]
[null,null,null,null,null,null,null,null,null,null,null,null,"o"]
[null,null,null,null,null,null,null,null,null,null,null,null,"o"]
[null,null,null,null,null,null,null,null,null,null,null,null,"o"]
[null,null,null,null,null,null,null,null,null,null,null,null,"o"]
[null,null,null,null,null,null,null,null,null,null,null,null,"o"]
[null,null,null,null,null,null,null,null,null,null,null,null,"o"]
[null,null,null,null,null,null,null,null,null,null,null,null,"o"]
[null,null,null,null,null,null,null,null,null,null,null,null,"o"]
[null,null,null,null,null,null,null,null,null,null,null,null,"o"]
[null,null,null,null,null,null,null,null,null,null,null,null,"o"]
[null,null,null,null,null,null,null,null,null,null,null,null,"o"]
[null,null,null,null,null,null,null,null,null,null,null,null,"o"]
[null,null,null,null,null,null,null,null,null,null,null,null,"o"]
[null,null,null,null,null,null,null,null,null,null,null,null,"o"]
[null,null,null,null,null,null,null,null,null,null,null,null,"o"]
[null,null,null,null,null,null,null,null,null,null,null,null,"o"]
[null,null,null,null,null,null,null,null,null,null,null,null,"o"]
[null,null,null,null,null,null,null,null,null,null,null,null,"o"]
[null,null,null,null,null,null,null,null,null,null,null,null,"o"]
[null,null,null,null,null,null,null,null,null,null,null,null,"o"]
[null,null,null,null,null,null,null,null,null,null,null,null,"o"]
[null,null,null,null,null,null,null,null,null,null,null,null,"o"]
[null,null,null,null,null,null,null,null,null,null,null,null,"o"]
[null,null,null,null,null,null,null,null,null,null,null,null,"o"]
[null,null,null,null,null,null,null,null,null,null,null,null,"o"]
[null,null,null,null,null,null,null,null,null,null,null,null,"o"]
[null,null,null,null,null,null,null,null,null,null,null,null,"o"]
[null,null,null,null,null,null,null,null,null,null,null,null,"o"]
[null,null,null,null,null,null,null,null,null,null,null,null,"o"]
[null,null,null,null,null,null,null,null,null,null,null,null,"o"]
[null,null,null,null,null,null,null,null,null,null,null,null,"o"]
[null,null,null,null,null,null,null,null,null,null,null,null,"o"]
[null,null,null,null,null,null,null,null,null,null,null,null,"o"]
[null,null,null,null,null,null,null,null,null,null,null,null,"o"]
[null,null,null,null,null,null,null,null,null,null,null,null,"o"]
[null,null,null,null,null,null,null,null,null,null,null,null,"o"]
[null,null,null,null,null,null,null,null,null,null,null,null,"o"]
[null,null,null,null,null,null,null,null,null,null,null,null,"o"]
[null,null,null,null,null,null,null,null,null,null,null,null,"o"]
[null,null,null,null,null,null,null,null,null,null,null,null,"o"]
[null,null,null,null,null,null,null,null,null,null,null,null,"o"]
[null,null,null,null,null,null,null,null,null,null,null,null,"o"]
[null,null,null,null,null,null,null,null,null,null,null,null,"o"]
[null,null,null,null,null,null,null,null,null,null,null,null,"o"]
[null,null,null,null,null,null,null,null,null,null,null,null,{"$f":"IF(Q633&R633&Q634&R634<>\"\",1,\"o\")","v":"o"}]
[null,null,null,null,null,null,null,null,null,null,null,null,"o"]
[null,null,null,null,null,null,null,null,null,null,null,null,"o"]
[null,null,null,null,null,null,null,null,null,null,null,null,"o"]
[null,null,null,null,null,null,null,null,null,null,null,null,"o"]
[null,null,null,null,null,null,null,null,null,null,null,null,"o"]
[null,null,null,null,null,null,null,null,null,null,null,null,"o"]
[null,null,null,null,null,null,null,null,null,null,null,null,"o"]
[null,null,null,null,null,null,null,null,null,null,null,null,"o"]
[null,null,null,null,null,null,null,null,null,null,null,null,"o"]
[null,null,null,null,null,null,null,null,null,null,null,null,"o"]
[null,null,null,null,null,null,null,null,null,null,null,null,"o"]
[null,null,null,null,null,null,null,null,null,null,null,null,"o"]
[null,null,null,null,null,null,null,null,null,null,null,null,"o"]
[null,null,null,null,null,null,null,null,null,null,null,null,"o"]
[null,null,null,null,null,null,null,null,null,null,null,null,"o"]
[null,null,null,null,null,null,null,null,null,null,null,null,"o"]
[null,null,null,null,null,null,null,null,null,null,null,null,"o"]
[null,null,null,null,null,null,null,null,null,null,null,null,"o"]
[null,null,null,null,null,null,null,null,null,null,null,null,"o"]
[null,null,null,null,null,null,null,null,null,null,null,null,"o"]
[null,null,null,null,null,null,null,null,null,null,null,null,"o"]
[null,null,null,null,null,null,null,null,null,null,null,null,"o"]
[null,null,null,null,null,null,null,null,null,null,null,null,"o"]
[null,null,null,null,null,null,null,null,null,null,null,null,"o"]
[null,null,null,null,null,null,null,null,null,null,null,null,"o"]
[null,null,null,null,null,null,null,null,null,null,null,null,"o"]
[null,null,null,null,null,null,null,null,null,null,null,null,"o"]
[null,null,null,null,null,null,null,null,null,null,null,null,"o"]
[null,null,null,null,null,null,null,null,null,null,null,null,"o"]
[null,null,null,null,null,null,null,null,null,null,null,null,"o"]
[null,null,null,null,null,null,null,null,null,null,null,null,"o"]
[null,null,null,null,null,null,null,null,null,null,null,null,"o"]
[null,null,null,null,null,null,null,null,null,null,null,null,"o"]
[null,null,null,null,null,null,null,null,null,null,null,null,"o"]
[null,null,null,null,null,null,null,null,null,null,null,null,"o"]
[null,null,null,null,null,null,null,null,null,null,null,null,"o"]
[null,null,null,null,null,null,null,null,null,null,null,null,"o"]
[null,null,null,null,null,null,null,null,null,null,null,null,"o"]
[null,null,null,null,null,null,null,null,null,null,null,null,"o"]
[null,null,null,null,null,null,null,null,null,null,null,null,"o"]
[null,null,null,null,null,null,null,null,null,null,null,null,"o"]
[null,null,null,null,null,null,null,null,null,null,null,null,"o"]
[null,null,null,null,null,null,null,null,null,null,null,null,"o"]
[null,null,null,null,null,null,null,null,null,null,null,null,"o"]
[null,null,null,null,null,null,null,null,null,null,null,null,"o"]
[null,null,null,null,null,null,null,null,null,null,null,null,"o"]
[null,null,null,null,null,null,null,null,null,null,null,null,"o"]
[null,null,null,null,null,null,null,null,null,null,null,null,"o"]
[null,null,null,null,null,null,null,null,null,null,null,null,"o"]
[null,null,null,null,null,null,null,null,null,null,null,null,"o"]
[null,null,null,null,null,null,null,null,null,null,null,null,"o"]
[null,null,null,null,null,null,null,null,null,null,null,null,"o"]
[null,null,null,null,null,null,null,null,null,null,null,null,"o"]
[null,null,null,null,null,null,null,null,null,null,null,null,"o"]
[null,null,null,null,null,null,null,null,null,null,null,null,"o"]
[null,null,null,null,null,null,null,null,null,null,null,null,"o"]
[null,null,null,null,null,null,null,null,null,null,null,null,"o"]
[null,null,null,null,null,null,null,null,null,null,null,null,"o"]
[null,null,null,null,null,null,null,null,null,null,null,null,"o"]
[null,null,null,null,null,null,null,null,null,null,null,null,"o"]
[null,null,null,null,null,null,null,null,null,null,null,null,"o"]
[null,null,null,null,null,null,null,null,null,null,null,null,"o"]
[null,null,null,null,null,null,null,null,null,null,null,null,"o"]
[null,null,null,null,null,null,null,null,null,null,null,null,{"$f":"IF(Q697&R697&Q698&R698<>\"\",1,\"o\")","v":"o"}]
[null,null,null,null,null,null,null,null,null,null,null,null,"o"]
[null,null,null,null,null,null,null,null,null,null,null,null,"o"]
[null,null,null,null,null,null,null,null,null,null,null,null,"o"]
[null,null,null,null,null,null,null,null,null,null,null,null,"o"]
[null,null,null,null,null,null,null,null,null,null,null,null,"o"]
[null,null,null,null,null,null,null,null,null,null,null,null,"o"]
[null,null,null,null,null,null,null,null,null,null,null,null,"o"]
[null,null,null,null,null,null,null,null,null,null,null,null,"o"]
[null,null,null,null,null,null,null,null,null,null,null,null,"o"]
[null,null,null,null,null,null,null,null,null,null,null,null,"o"]
[null,null,null,null,null,null,null,null,null,null,null,null,"o"]
[null,null,null,null,null,null,null,null,null,null,null,null,"o"]
[null,null,null,null,null,null,null,null,null,null,null,null,"o"]
[null,null,null,null,null,null,null,null,null,null,null,null,"o"]
[null,null,null,null,null,null,null,null,null,null,null,null,"o"]
[null,null,null,null,null,null,null,null,null,null,null,null,"o"]
[null,null,null,null,null,null,null,null,null,null,null,null,"o"]
[null,null,null,null,null,null,null,null,null,null,null,null,"o"]
[null,null,null,null,null,null,null,null,null,null,null,null,"o"]
[null,null,null,null,null,null,null,null,null,null,null,null,"o"]
[null,null,null,null,null,null,null,null,null,null,null,null,"o"]
[null,null,null,null,null,null,null,null,null,null,null,null,"o"]
[null,null,null,null,null,null,null,null,null,null,null,null,"o"]
[null,null,null,null,null,null,null,null,null,null,null,null,"o"]
[null,null,null,null,null,null,null,null,null,null,null,null,"o"]
[null,null,null,null,null,null,null,null,null,null,null,null,"o"]
[null,null,null,null,null,null,null,null,null,null,null,null,"o"]
[null,null,null,null,null,null,null,null,null,null,null,null,"o"]
[null,null,null,null,null,null,null,null,null,null,null,null,"o"]
[null,null,null,null,null,null,null,null,null,null,null,null,"o"]
[null,null,null,null,null,null,null,null,null,null,null,null,"o"]
[null,null,null,null,null,null,null,null,null,null,null,null,"o"]
[null,null,null,null,null,null,null,null,null,null,null,null,"o"]
[null,null,null,null,null,null,null,null,null,null,null,null,"o"]
[null,null,null,null,null,null,null,null,null,null,null,null,"o"]
[null,null,null,null,null,null,null,null,null,null,null,null,"o"]
[null,null,null,null,null,null,null,null,null,null,null,null,"o"]
[null,null,null,null,null,null,null,null,null,null,null,null,"o"]
[null,null,null,null,null,null,null,null,null,null,null,null,"o"]
[null,null,null,null,null,null,null,null,null,null,null,null,"o"]
[null,null,null,null,null,null,null,null,null,null,null,null,"o"]
[null,null,null,null,null,null,null,null,null,null,null,null,"o"]
[null,null,null,null,null,null,null,null,null,null,null,null,"o"]
[null,null,null,null,null,null,null,null,null,null,null,null,"o"]
[null,null,null,null,null,null,null,null,null,null,null,null,"o"]
[null,null,null,null,null,null,null,null,null,null,null,null,"o"]
[null,null,null,null,null,null,null,null,null,null,null,null,"o"]
[null,null,null,null,null,null,null,null,null,null,null,null,"o"]
[null,null,null,null,null,null,null,null,null,null,null,null,"o"]
[null,null,null,null,null,null,null,null,null,null,null,null,"o"]
[null,null,null,null,null,null,null,null,null,null,null,null,"o"]
[null,null,null,null,null,null,null,null,null,null,null,null,"o"]
[null,null,null,null,null,null,null,null,null,null,null,null,"o"]
[null,null,null,null,null,null,null,null,null,null,null,null,"o"]
[null,null,null,null,null,null,null,null,null,null,null,null,"o"]
[null,null,null,null,null,null,null,null,null,null,null,null,"o"]
[null,null,null,null,null,null,null,null,null,null,null,null,"o"]
[null,null,null,null,null,null,null,null,null,null,null,null,"o"]
[null,null,null,null,null,null,null,null,null,null,null,null,"o"]
[null,null,null,null,null,null,null,null,null,null,null,null,"o"]
[null,null,null,null,null,null,null,null,null,null,null,null,"o"]
[null,null,null,null,null,null,null,null,null,null,null,null,"o"]
[null,null,null,null,null,null,null,null,null,null,null,null,"o"]
[null,null,null,null,null,null,null,null,null,null,null,null,{"$f":"IF(Q761&R761&Q762&R762<>\"\",1,\"o\")","v":"o"}]
[null,null,null,null,null,null,null,null,null,null,null,null,"o"]
[null,null,null,null,null,null,null,null,null,null,null,null,"o"]
[null,null,null,null,null,null,null,null,null,null,null,null,"o"]
[null,null,null,null,null,null,null,null,null,null,null,null,"o"]
[null,null,null,null,null,null,null,null,null,null,null,null,"o"]
[null,null,null,null,null,null,null,null,null,null,null,null,"o"]
[null,null,null,null,null,null,null,null,null,null,null,null,"o"]
[null,null,null,null,null,null,null,null,null,null,null,null,"o"]
[null,null,null,null,null,null,null,null,null,null,null,null,"o"]
[null,null,null,null,null,null,null,null,null,null,null,null,"o"]
[null,null,null,null,null,null,null,null,null,null,null,null,"o"]
[null,null,null,null,null,null,null,null,null,null,null,null,"o"]
[null,null,null,null,null,null,null,null,null,null,null,null,"o"]
[null,null,null,null,null,null,null,null,null,null,null,null,"o"]
[null,null,null,null,null,null,null,null,null,null,null,null,"o"]
[null,null,null,null,null,null,null,null,null,null,null,null,"o"]
[null,null,null,null,null,null,null,null,null,null,null,null,"o"]
[null,null,null,null,null,null,null,null,null,null,null,null,"o"]
[null,null,null,null,null,null,null,null,null,null,null,null,"o"]
[null,null,null,null,null,null,null,null,null,null,null,null,"o"]
[null,null,null,null,null,null,null,null,null,null,null,null,"o"]
[null,null,null,null,null,null,null,null,null,null,null,null,"o"]
[null,null,null,null,null,null,null,null,null,null,null,null,"o"]
[null,null,null,null,null,null,null,null,null,null,null,null,"o"]
[null,null,null,null,null,null,null,null,null,null,null,null,"o"]
[null,null,null,null,null,null,null,null,null,null,null,null,"o"]
[null,null,null,null,null,null,null,null,null,null,null,null,"o"]
[null,null,null,null,null,null,null,null,null,null,null,null,"o"]
[null,null,null,null,null,null,null,null,null,null,null,null,"o"]
[null,null,null,null,null,null,null,null,null,null,null,null,"o"]
[null,null,null,null,null,null,null,null,null,null,null,null,"o"]
[null,null,null,null,null,null,null,null,null,null,null,null,"o"]
[null,null,null,null,null,null,null,null,null,null,null,null,"o"]
[null,null,null,null,null,null,null,null,null,null,null,null,"o"]
[null,null,null,null,null,null,null,null,null,null,null,null,"o"]
[null,null,null,null,null,null,null,null,null,null,null,null,"o"]
[null,null,null,null,null,null,null,null,null,null,null,null,"o"]
[null,null,null,null,null,null,null,null,null,null,null,null,"o"]
[null,null,null,null,null,null,null,null,null,null,null,null,"o"]
[null,null,null,null,null,null,null,null,null,null,null,null,"o"]
[null,null,null,null,null,null,null,null,null,null,null,null,"o"]
[null,null,null,null,null,null,null,null,null,null,null,null,"o"]
[null,null,null,null,null,null,null,null,null,null,null,null,"o"]
[null,null,null,null,null,null,null,null,null,null,null,null,"o"]
[null,null,null,null,null,null,null,null,null,null,null,null,"o"]
[null,null,null,null,null,null,null,null,null,null,null,null,"o"]
[null,null,null,null,null,null,null,null,null,null,null,null,"o"]
[null,null,null,null,null,null,null,null,null,null,null,null,"o"]
[null,null,null,null,null,null,null,null,null,null,null,null,"o"]
[null,null,null,null,null,null,null,null,null,null,null,null,"o"]
[null,null,null,null,null,null,null,null,null,null,null,null,"o"]
[null,null,null,null,null,null,null,null,null,null,null,null,"o"]
[null,null,null,null,null,null,null,null,null,null,null,null,"o"]
[null,null,null,null,null,null,null,null,null,null,null,null,"o"]
[null,null,null,null,null,null,null,null,null,null,null,null,"o"]
[null,null,null,null,null,null,null,null,null,null,null,null,"o"]
[null,null,null,null,null,null,null,null,null,null,null,null,"o"]
[null,null,null,null,null,null,null,null,null,null,null,null,"o"]
[null,null,null,null,null,null,null,null,null,null,null,null,"o"]
[null,null,null,null,null,null,null,null,null,null,null,null,"o"]
[null,null,null,null,null,null,null,null,null,null,null,null,"o"]
[null,null,null,null,null,null,null,null,null,null,null,null,"o"]
[null,null,null,null,null,null,null,null,null,null,null,null,"o"]
[null,null,null,null,null,null,null,null,null,null,null,null,{"$f":"IF(Q825&R825&Q826&R826<>\"\",1,\"o\")","v":"o"}]
[null,null,null,null,null,null,null,null,null,null,null,null,"o"]
[null,null,null,null,null,null,null,null,null,null,null,null,"o"]
[null,null,null,null,null,null,null,null,null,null,null,null,"o"]
[null,null,null,null,null,null,null,null,null,null,null,null,"o"]
[null,null,null,null,null,null,null,null,null,null,null,null,"o"]
[null,null,null,null,null,null,null,null,null,null,null,null,"o"]
[null,null,null,null,null,null,null,null,null,null,null,null,"o"]
[null,null,null,null,null,null,null,null,null,null,null,null,"o"]
[null,null,null,null,null,null,null,null,null,null,null,null,"o"]
[null,null,null,null,null,null,null,null,null,null,null,null,"o"]
[null,null,null,null,null,null,null,null,null,null,null,null,"o"]
[null,null,null,null,null,null,null,null,null,null,null,null,"o"]
[null,null,null,null,null,null,null,null,null,null,null,null,"o"]
[null,null,null,null,null,null,null,null,null,null,null,null,"o"]
[null,null,null,null,null,null,null,null,null,null,null,null,"o"]
[null,null,null,null,null,null,null,null,null,null,null,null,"o"]
[null,null,null,null,null,null,null,null,null,null,null,null,"o"]
[null,null,null,null,null,null,null,null,null,null,null,null,"o"]
[null,null,null,null,null,null,null,null,null,null,null,null,"o"]
[null,null,null,null,null,null,null,null,null,null,null,null,"o"]
[null,null,null,null,null,null,null,null,null,null,null,null,"o"]
[null,null,null,null,null,null,null,null,null,null,null,null,"o"]
[null,null,null,null,null,null,null,null,null,null,null,null,"o"]
[null,null,null,null,null,null,null,null,null,null,null,null,"o"]
[null,null,null,null,null,null,null,null,null,null,null,null,"o"]
[null,null,null,null,null,null,null,null,null,null,null,null,"o"]
[null,null,null,null,null,null,null,null,null,null,null,null,"o"]
[null,null,null,null,null,null,null,null,null,null,null,null,"o"]
[null,null,null,null,null,null,null,null,null,null,null,null,"o"]
[null,null,null,null,null,null,null,null,null,null,null,null,"o"]
[null,null,null,null,null,null,null,null,null,null,null,null,"o"]
[null,null,null,null,null,null,null,null,null,null,null,null,"o"]
[null,null,null,null,null,null,null,null,null,null,null,null,"o"]
[null,null,null,null,null,null,null,null,null,null,null,null,"o"]
[null,null,null,null,null,null,null,null,null,null,null,null,"o"]
[null,null,null,null,null,null,null,null,null,null,null,null,"o"]
[null,null,null,null,null,null,null,null,null,null,null,null,"o"]
[null,null,null,null,null,null,null,null,null,null,null,null,"o"]
[null,null,null,null,null,null,null,null,null,null,null,null,"o"]
[null,null,null,null,null,null,null,null,null,null,null,null,"o"]
[null,null,null,null,null,null,null,null,null,null,null,null,"o"]
[null,null,null,null,null,null,null,null,null,null,null,null,"o"]
[null,null,null,null,null,null,null,null,null,null,null,null,"o"]
[null,null,null,null,null,null,null,null,null,null,null,null,"o"]
[null,null,null,null,null,null,null,null,null,null,null,null,"o"]
[null,null,null,null,null,null,null,null,null,null,null,null,"o"]
[null,null,null,null,null,null,null,null,null,null,null,null,"o"]
[null,null,null,null,null,null,null,null,null,null,null,null,"o"]
[null,null,null,null,null,null,null,null,null,null,null,null,"o"]
[null,null,null,null,null,null,null,null,null,null,null,null,"o"]
[null,null,null,null,null,null,null,null,null,null,null,null,"o"]
[null,null,null,null,null,null,null,null,null,null,null,null,"o"]
[null,null,null,null,null,null,null,null,null,null,null,null,"o"]
[null,null,null,null,null,null,null,null,null,null,null,null,"o"]
[null,null,null,null,null,null,null,null,null,null,null,null,"o"]
[null,null,null,null,null,null,null,null,null,null,null,null,"o"]
[null,null,null,null,null,null,null,null,null,null,null,null,"o"]
[null,null,null,null,null,null,null,null,null,null,null,null,"o"]
[null,null,null,null,null,null,null,null,null,null,null,null,"o"]
[null,null,null,null,null,null,null,null,null,null,null,null,"o"]
[null,null,null,null,null,null,null,null,null,null,null,null,"o"]
[null,null,null,null,null,null,null,null,null,null,null,null,"o"]
[null,null,null,null,null,null,null,null,null,null,null,null,"o"]
[null,null,null,null,null,null,null,null,null,null,null,null,{"$f":"IF(Q889&R889&Q890&R890<>\"\",1,\"o\")","v":"o"}]
[null,null,null,null,null,null,null,null,null,null,null,null,"o"]
[null,null,null,null,null,null,null,null,null,null,null,null,"o"]
[null,null,null,null,null,null,null,null,null,null,null,null,"o"]
[null,null,null,null,null,null,null,null,null,null,null,null,"o"]
[null,null,null,null,null,null,null,null,null,null,null,null,"o"]
[null,null,null,null,null,null,null,null,null,null,null,null,"o"]
[null,null,null,null,null,null,null,null,null,null,null,null,"o"]
[null,null,null,null,null,null,null,null,null,null,null,null,"o"]
[null,null,null,null,null,null,null,null,null,null,null,null,"o"]
[null,null,null,null,null,null,null,null,null,null,null,null,"o"]
[null,null,null,null,null,null,null,null,null,null,null,null,"o"]
[null,null,null,null,null,null,null,null,null,null,null,null,"o"]
[null,null,null,null,null,null,null,null,null,null,null,null,"o"]
[null,null,null,null,null,null,null,null,null,null,null,null,"o"]
[null,null,null,null,null,null,null,null,null,null,null,null,"o"]
[null,null,null,null,null,null,null,null,null,null,null,null,"o"]
[null,null,null,null,null,null,null,null,null,null,null,null,"o"]
[null,null,null,null,null,null,null,null,null,null,null,null,"o"]
[null,null,null,null,null,null,null,null,null,null,null,null,"o"]
[null,null,null,null,null,null,null,null,null,null,null,null,"o"]
[null,null,null,null,null,null,null,null,null,null,null,null,"o"]
[null,null,null,null,null,null,null,null,null,null,null,null,"o"]
[null,null,null,null,null,null,null,null,null,null,null,null,"o"]
[null,null,null,null,null,null,null,null,null,null,null,null,"o"]
[null,null,null,null,null,null,null,null,null,null,null,null,"o"]
[null,null,null,null,null,null,null,null,null,null,null,null,"o"]
[null,null,null,null,null,null,null,null,null,null,null,null,"o"]
[null,null,null,null,null,null,null,null,null,null,null,null,"o"]
[null,null,null,null,null,null,null,null,null,null,null,null,"o"]
[null,null,null,null,null,null,null,null,null,null,null,null,"o"]
[null,null,null,null,null,null,null,null,null,null,null,null,"o"]
[null,null,null,null,null,null,null,null,null,null,null,null,"o"]
[null,null,null,null,null,null,null,null,null,null,null,null,"o"]
[null,null,null,null,null,null,null,null,null,null,null,null,"o"]
[null,null,null,null,null,null,null,null,null,null,null,null,"o"]
[null,null,null,null,null,null,null,null,null,null,null,null,"o"]
[null,null,null,null,null,null,null,null,null,null,null,null,"o"]
[null,null,null,null,null,null,null,null,null,null,null,null,"o"]
[null,null,null,null,null,null,null,null,null,null,null,null,"o"]
[null,null,null,null,null,null,null,null,null,null,null,null,"o"]
[null,null,null,null,null,null,null,null,null,null,null,null,"o"]
[null,null,null,null,null,null,null,null,null,null,null,null,"o"]
[null,null,null,null,null,null,null,null,null,null,null,null,"o"]
[null,null,null,null,null,null,null,null,null,null,null,null,"o"]
[null,null,null,null,null,null,null,null,null,null,null,null,"o"]
[null,null,null,null,null,null,null,null,null,null,null,null,"o"]
[null,null,null,null,null,null,null,null,null,null,null,null,"o"]
[null,null,null,null,null,null,null,null,null,null,null,null,"o"]
[null,null,null,null,null,null,null,null,null,null,null,null,"o"]
[null,null,null,null,null,null,null,null,null,null,null,null,"o"]
[null,null,null,null,null,null,null,null,null,null,null,null,"o"]
[null,null,null,null,null,null,null,null,null,null,null,null,"o"]
[null,null,null,null,null,null,null,null,null,null,null,null,"o"]
[null,null,null,null,null,null,null,null,null,null,null,null,"o"]
[null,null,null,null,null,null,null,null,null,null,null,null,"o"]
[null,null,null,null,null,null,null,null,null,null,null,null,"o"]
[null,null,null,null,null,null,null,null,null,null,null,null,"o"]
[null,null,null,null,null,null,null,null,null,null,null,null,"o"]
[null,null,null,null,null,null,null,null,null,null,null,null,"o"]
[null,null,null,null,null,null,null,null,null,null,null,null,"o"]
[null,null,null,null,null,null,null,null,null,null,null,null,"o"]
[null,null,null,null,null,null,null,null,null,null,null,null,"o"]
[null,null,null,null,null,null,null,null,null,null,null,null,"o"]
[null,null,null,null,null,null,null,null,null,null,null,null,{"$f":"IF(Q953&R953&Q954&R954<>\"\",1,\"o\")","v":"o"}]
[null,null,null,null,null,null,null,null,null,null,null,null,"o"]
[null,null,null,null,null,null,null,null,null,null,null,null,"o"]
[null,null,null,null,null,null,null,null,null,null,null,null,"o"]
[null,null,null,null,null,null,null,null,null,null,null,null,"o"]
[null,null,null,null,null,null,null,null,null,null,null,null,"o"]
[null,null,null,null,null,null,null,null,null,null,null,null,"o"]
[null,null,null,null,null,null,null,null,null,null,null,null,"o"]
[null,null,null,null,null,null,null,null,null,null,null,null,"o"]
[null,null,null,null,null,null,null,null,null,null,null,null,"o"]
[null,null,null,null,null,null,null,null,null,null,null,null,"o"]
[null,null,null,null,null,null,null,null,null,null,null,null,"o"]
[null,null,null,null,null,null,null,null,null,null,null,null,"o"]
[null,null,null,null,null,null,null,null,null,null,null,null,"o"]
[null,null,null,null,null,null,null,null,null,null,null,null,"o"]
[null,null,null,null,null,null,null,null,null,null,null,null,"o"]
[null,null,null,null,null,null,null,null,null,null,null,null,"o"]
[null,null,null,null,null,null,null,null,null,null,null,null,"o"]
[null,null,null,null,null,null,null,null,null,null,null,null,"o"]
[null,null,null,null,null,null,null,null,null,null,null,null,"o"]
[null,null,null,null,null,null,null,null,null,null,null,null,"o"]
[null,null,null,null,null,null,null,null,null,null,null,null,"o"]
[null,null,null,null,null,null,null,null,null,null,null,null,"o"]
[null,null,null,null,null,null,null,null,null,null,null,null,"o"]
[null,null,null,null,null,null,null,null,null,null,null,null,"o"]
[null,null,null,null,null,null,null,null,null,null,null,null,"o"]
[null,null,null,null,null,null,null,null,null,null,null,null,"o"]
[null,null,null,null,null,null,null,null,null,null,null,null,"o"]
[null,null,null,null,null,null,null,null,null,null,null,null,"o"]
[null,null,null,null,null,null,null,null,null,null,null,null,"o"]
[null,null,null,null,null,null,null,null,null,null,null,null,"o"]
[null,null,null,null,null,null,null,null,null,null,null,null,"o"]
[null,null,null,null,null,null,null,null,null,null,null,null,"o"]
[null,null,null,null,null,null,null,null,null,null,null,null,"o"]
[null,null,null,null,null,null,null,null,null,null,null,null,"o"]
[null,null,null,null,null,null,null,null,null,null,null,null,"o"]
[null,null,null,null,null,null,null,null,null,null,null,null,"o"]
[null,null,null,null,null,null,null,null,null,null,null,null,"o"]
[null,null,null,null,null,null,null,null,null,null,null,null,"o"]
[null,null,null,null,null,null,null,null,null,null,null,null,"o"]
[null,null,null,null,null,null,null,null,null,null,null,null,"o"]
[null,null,null,null,null,null,null,null,null,null,null,null,"o"]
[null,null,null,null,null,null,null,null,null,null,null,null,"o"]
[null,null,null,null,null,null,null,null,null,null,null,null,"o"]
[null,null,null,null,null,null,null,null,null,null,null,null,"o"]
[null,null,null,null,null,null,null,null,null,null,null,null,"o"]
[null,null,null,null,null,null,null,null,null,null,null,null,"o"]
[null,null,null,null,null,null,null,null,null,null,null,null,"o"]
[null,null,null,null,null,null,null,null,null,null,null,null,"o"]
[null,null,null,null,null,null,null,null,null,null,null,null,"o"]
[null,null,null,null,null,null,null,null,null,null,null,null,"o"]
[null,null,null,null,null,null,null,null,null,null,null,null,"o"]
[null,null,null,null,null,null,null,null,null,null,null,null,"o"]
[null,null,null,null,null,null,null,null,null,null,null,null,"o"]
[null,null,null,null,null,null,null,null,null,null,null,null,"o"]
[null,null,null,null,null,null,null,null,null,null,null,null,"o"]
[null,null,null,null,null,null,null,null,null,null,null,null,"o"]
[null,null,null,null,null,null,null,null,null,null,null,null,"o"]
[null,null,null,null,null,null,null,null,null,null,null,null,"o"]
[null,null,null,null,null,null,null,null,null,null,null,null,"o"]
[null,null,null,null,null,null,null,null,null,null,null,null,"o"]
[null,null,null,null,null,null,null,null,null,null,null,null,"o"]
[null,null,null,null,null,null,null,null,null,null,null,null,"o"]
[null,null,null,null,null,null,null,null,null,null,null,null,"o"]
[null,null,null,null,null,null,null,null,null,null,null,null,{"$f":"IF(Q1017&R1017&Q1018&R1018<>\"\",1,\"o\")","v":"o"}]
[null,null,null,null,null,null,null,null,null,null,null,null,"o"]
[null,null,null,null,null,null,null,null,null,null,null,null,"o"]
[null,null,null,null,null,null,null,null,null,null,null,null,"o"]
[null,null,null,null,null,null,null,null,null,null,null,null,"o"]
[null,null,null,null,null,null,null,null,null,null,null,null,"o"]
[null,null,null,null,null,null,null,null,null,null,null,null,"o"]
[null,null,null,null,null,null,null,null,null,null,null,null,"o"]
[null,null,null,null,null,null,null,null,null,null,null,null,"o"]
[null,null,null,null,null,null,null,null,null,null,null,null,"o"]
[null,null,null,null,null,null,null,null,null,null,null,null,"o"]
[null,null,null,null,null,null,null,null,null,null,null,null,"o"]
[null,null,null,null,null,null,null,null,null,null,null,null,"o"]
[null,null,null,null,null,null,null,null,null,null,null,null,"o"]
[null,null,null,null,null,null,null,null,null,null,null,null,"o"]
[null,null,null,null,null,null,null,null,null,null,null,null,"o"]
[null,null,null,null,null,null,null,null,null,null,null,null,"o"]
[null,null,null,null,null,null,null,null,null,null,null,null,"o"]
[null,null,null,null,null,null,null,null,null,null,null,null,"o"]
[null,null,null,null,null,null,null,null,null,null,null,null,"o"]
[null,null,null,null,null,null,null,null,null,null,null,null,"o"]
[null,null,null,null,null,null,null,null,null,null,null,null,"o"]
[null,null,null,null,null,null,null,null,null,null,null,null,"o"]
[null,null,null,null,null,null,null,null,null,null,null,null,"o"]
[null,null,null,null,null,null,null,null,null,null,null,null,"o"]
[null,null,null,null,null,null,null,null,null,null,null,null,"o"]
[null,null,null,null,null,null,null,null,null,null,null,null,"o"]
[null,null,null,null,null,null,null,null,null,null,null,null,"o"]
[null,null,null,null,null,null,null,null,null,null,null,null,"o"]
[null,null,null,null,null,null,null,null,null,null,null,null,"o"]
[null,null,null,null,null,null,null,null,null,null,null,null,"o"]
[null,null,null,null,null,null,null,null,null,null,null,null,"o"]
[null,null,null,null,null,null,null,null,null,null,null,null,"o"]
[null,null,null,null,null,null,null,null,null,null,null,null,"o"]
[null,null,null,null,null,null,null,null,null,null,null,null,"o"]
[null,null,null,null,null,null,null,null,null,null,null,null,"o"]
[null,null,null,null,null,null,null,null,null,null,null,null,"o"]
[null,null,null,null,null,null,null,null,null,null,null,null,"o"]
[null,null,null,null,null,null,null,null,null,null,null,null,"o"]
[null,null,null,null,null,null,null,null,null,null,null,null,"o"]
[null,null,null,null,null,null,null,null,null,null,null,null,"o"]
[null,null,null,null,null,null,null,null,null,null,null,null,"o"]
[null,null,null,null,null,null,null,null,null,null,null,null,"o"]
[null,null,null,null,null,null,null,null,null,null,null,null,"o"]
[null,null,null,null,null,null,null,null,null,null,null,null,"o"]
[null,null,null,null,null,null,null,null,null,null,null,null,"o"]
[null,null,null,null,null,null,null,null,null,null,null,null,"o"]
[null,null,null,null,null,null,null,null,null,null,null,null,"o"]
[null,null,null,null,null,null,null,null,null,null,null,null,"o"]
[null,null,null,null,null,null,null,null,null,null,null,null,"o"]
[null,null,null,null,null,null,null,null,null,null,null,null,"o"]
[null,null,null,null,null,null,null,null,null,null,null,null,"o"]
[null,null,null,null,null,null,null,null,null,null,null,null,"o"]
[null,null,null,null,null,null,null,null,null,null,null,null,"o"]
[null,null,null,null,null,null,null,null,null,null,null,null,"o"]
[null,null,null,null,null,null,null,null,null,null,null,null,"o"]
[null,null,null,null,null,null,null,null,null,null,null,null,"o"]
[null,null,null,null,null,null,null,null,null,null,null,null,"o"]
[null,null,null,null,null,null,null,null,null,null,null,null,"o"]
[null,null,null,null,null,null,null,null,null,null,null,null,"o"]
[null,null,null,null,null,null,null,null,null,null,null,null,"o"]
[null,null,null,null,null,null,null,null,null,null,null,null,"o"]
[null,null,null,null,null,null,null,null,null,null,null,null,"o"]
[null,null,null,null,null,null,null,null,null,null,null,null,"o"]
[null,null,null,null,null,null,null,null,null,null,null,null,{"$f":"IF(Q1081&R1081&Q1082&R1082<>\"\",1,\"o\")","v":"o"}]
[null,null,null,null,null,null,null,null,null,null,null,null,"o"]
[null,null,null,null,null,null,null,null,null,null,null,null,"o"]
[null,null,null,null,null,null,null,null,null,null,null,null,"o"]
[null,null,null,null,null,null,null,null,null,null,null,null,"o"]
[null,null,null,null,null,null,null,null,null,null,null,null,"o"]
[null,null,null,null,null,null,null,null,null,null,null,null,"o"]
[null,null,null,null,null,null,null,null,null,null,null,null,"o"]
[null,null,null,null,null,null,null,null,null,null,null,null,"o"]
[null,null,null,null,null,null,null,null,null,null,null,null,"o"]
[null,null,null,null,null,null,null,null,null,null,null,null,"o"]
[null,null,null,null,null,null,null,null,null,null,null,null,"o"]
[null,null,null,null,null,null,null,null,null,null,null,null,"o"]
[null,null,null,null,null,null,null,null,null,null,null,null,"o"]
[null,null,null,null,null,null,null,null,null,null,null,null,"o"]
[null,null,null,null,null,null,null,null,null,null,null,null,"o"]
[null,null,null,null,null,null,null,null,null,null,null,null,"o"]
[null,null,null,null,null,null,null,null,null,null,null,null,"o"]
[null,null,null,null,null,null,null,null,null,null,null,null,"o"]
[null,null,null,null,null,null,null,null,null,null,null,null,"o"]
[null,null,null,null,null,null,null,null,null,null,null,null,"o"]
[null,null,null,null,null,null,null,null,null,null,null,null,"o"]
[null,null,null,null,null,null,null,null,null,null,null,null,"o"]
[null,null,null,null,null,null,null,null,null,null,null,null,"o"]
[null,null,null,null,null,null,null,null,null,null,null,null,"o"]
[null,null,null,null,null,null,null,null,null,null,null,null,"o"]
[null,null,null,null,null,null,null,null,null,null,null,null,"o"]
[null,null,null,null,null,null,null,null,null,null,null,null,"o"]
[null,null,null,null,null,null,null,null,null,null,null,null,"o"]
[null,null,null,null,null,null,null,null,null,null,null,null,"o"]
[null,null,null,null,null,null,null,null,null,null,null,null,"o"]
[null,null,null,null,null,null,null,null,null,null,null,null,"o"]
[null,null,null,null,null,null,null,null,null,null,null,null,"o"]
[null,null,null,null,null,null,null,null,null,null,null,null,"o"]
[null,null,null,null,null,null,null,null,null,null,null,null,"o"]
[null,null,null,null,null,null,null,null,null,null,null,null,"o"]
[null,null,null,null,null,null,null,null,null,null,null,null,"o"]
[null,null,null,null,null,null,null,null,null,null,null,null,"o"]
[null,null,null,null,null,null,null,null,null,null,null,null,"o"]
[null,null,null,null,null,null,null,null,null,null,null,null,"o"]
[null,null,null,null,null,null,null,null,null,null,null,null,"o"]
[null,null,null,null,null,null,null,null,null,null,null,null,"o"]
[null,null,null,null,null,null,null,null,null,null,null,null,"o"]
[null,null,null,null,null,null,null,null,null,null,null,null,"o"]
[null,null,null,null,null,null,null,null,null,null,null,null,"o"]
[null,null,null,null,null,null,null,null,null,null,null,null,"o"]
[null,null,null,null,null,null,null,null,null,null,null,null,"o"]
[null,null,null,null,null,null,null,null,null,null,null,null,"o"]
[null,null,null,null,null,null,null,null,null,null,null,null,"o"]
[null,null,null,null,null,null,null,null,null,null,null,null,"o"]
[null,null,null,null,null,null,null,null,null,null,null,null,"o"]
[null,null,null,null,null,null,null,null,null,null,null,null,"o"]
[null,null,null,null,null,null,null,null,null,null,null,null,"o"]
[null,null,null,null,null,null,null,null,null,null,null,null,"o"]
[null,null,null,null,null,null,null,null,null,null,null,null,"o"]
[null,null,null,null,null,null,null,null,null,null,null,null,"o"]
[null,null,null,null,null,null,null,null,null,null,null,null,"o"]
[null,null,null,null,null,null,null,null,null,null,null,null,"o"]
[null,null,null,null,null,null,null,null,null,null,null,null,"o"]
[null,null,null,null,null,null,null,null,null,null,null,null,"o"]
[null,null,null,null,null,null,null,null,null,null,null,null,"o"]
[null,null,null,null,null,null,null,null,null,null,null,null,"o"]
[null,null,null,null,null,null,null,null,null,null,null,null,"o"]
[null,null,null,null,null,null,null,null,null,null,null,null,"o"]
[null,null,null,null,null,null,null,null,null,null,null,null,{"$f":"IF(Q1145&R1145&Q1146&R1146<>\"\",1,\"o\")","v":"o"}]
[null,null,null,null,null,null,null,null,null,null,null,null,"o"]
[null,null,null,null,null,null,null,null,null,null,null,null,"o"]
[null,null,null,null,null,null,null,null,null,null,null,null,"o"]
[null,null,null,null,null,null,null,null,null,null,null,null,"o"]
[null,null,null,null,null,null,null,null,null,null,null,null,"o"]
[null,null,null,null,null,null,null,null,null,null,null,null,"o"]
[null,null,null,null,null,null,null,null,null,null,null,null,"o"]
[null,null,null,null,null,null,null,null,null,null,null,null,"o"]
[null,null,null,null,null,null,null,null,null,null,null,null,"o"]
[null,null,null,null,null,null,null,null,null,null,null,null,"o"]
[null,null,null,null,null,null,null,null,null,null,null,null,"o"]
[null,null,null,null,null,null,null,null,null,null,null,null,"o"]
[null,null,null,null,null,null,null,null,null,null,null,null,"o"]
[null,null,null,null,null,null,null,null,null,null,null,null,"o"]
[null,null,null,null,null,null,null,null,null,null,null,null,"o"]
[null,null,null,null,null,null,null,null,null,null,null,null,"o"]
[null,null,null,null,null,null,null,null,null,null,null,null,"o"]
[null,null,null,null,null,null,null,null,null,null,null,null,"o"]
[null,null,null,null,null,null,null,null,null,null,null,null,"o"]
[null,null,null,null,null,null,null,null,null,null,null,null,"o"]
[null,null,null,null,null,null,null,null,null,null,null,null,"o"]
[null,null,null,null,null,null,null,null,null,null,null,null,"o"]
[null,null,null,null,null,null,null,null,null,null,null,null,"o"]
[null,null,null,null,null,null,null,null,null,null,null,null,"o"]
[null,null,null,null,null,null,null,null,null,null,null,null,"o"]
[null,null,null,null,null,null,null,null,null,null,null,null,"o"]
[null,null,null,null,null,null,null,null,null,null,null,null,"o"]
[null,null,null,null,null,null,null,null,null,null,null,null,"o"]
[null,null,null,null,null,null,null,null,null,null,null,null,"o"]
[null,null,null,null,null,null,null,null,null,null,null,null,"o"]
[null,null,null,null,null,null,null,null,null,null,null,null,"o"]
[null,null,null,null,null,null,null,null,null,null,null,null,"o"]
[null,null,null,null,null,null,null,null,null,null,null,null,"o"]
[null,null,null,null,null,null,null,null,null,null,null,null,"o"]
[null,null,null,null,null,null,null,null,null,null,null,null,"o"]
[null,null,null,null,null,null,null,null,null,null,null,null,"o"]
[null,null,null,null,null,null,null,null,null,null,null,null,"o"]
[null,null,null,null,null,null,null,null,null,null,null,null,"o"]
[null,null,null,null,null,null,null,null,null,null,null,null,"o"]
[null,null,null,null,null,null,null,null,null,null,null,null,"o"]
[null,null,null,null,null,null,null,null,null,null,null,null,"o"]
[null,null,null,null,null,null,null,null,null,null,null,null,"o"]
[null,null,null,null,null,null,null,null,null,null,null,null,"o"]
[null,null,null,null,null,null,null,null,null,null,null,null,"o"]
[null,null,null,null,null,null,null,null,null,null,null,null,"o"]
[null,null,null,null,null,null,null,null,null,null,null,null,"o"]
[null,null,null,null,null,null,null,null,null,null,null,null,"o"]
[null,null,null,null,null,null,null,null,null,null,null,null,"o"]
[null,null,null,null,null,null,null,null,null,null,null,null,"o"]
[null,null,null,null,null,null,null,null,null,null,null,null,"o"]
[null,null,null,null,null,null,null,null,null,null,null,null,"o"]
[null,null,null,null,null,null,null,null,null,null,null,null,"o"]
[null,null,null,null,null,null,null,null,null,null,null,null,"o"]
[null,null,null,null,null,null,null,null,null,null,null,null,"o"]
[null,null,null,null,null,null,null,null,null,null,null,null,"o"]
[null,null,null,null,null,null,null,null,null,null,null,null,"o"]
[null,null,null,null,null,null,null,null,null,null,null,null,"o"]
[null,null,null,null,null,null,null,null,null,null,null,null,"o"]
[null,null,null,null,null,null,null,null,null,null,null,null,"o"]
[null,null,null,null,null,null,null,null,null,null,null,null,"o"]
[null,null,null,null,null,null,null,null,null,null,null,null,"o"]
[null,null,null,null,null,null,null,null,null,null,null,null,"o"]
[null,null,null,null,null,null,null,null,null,null,null,null,"o"]
[null,null,null,null,null,null,null,null,null,null,null,null,{"$f":"IF(Q1209&R1209&Q1210&R1210<>\"\",1,\"o\")","v":"o"}]
[null,null,null,null,null,null,null,null,null,null,null,null,"o"]
[null,null,null,null,null,null,null,null,null,null,null,null,"o"]
[null,null,null,null,null,null,null,null,null,null,null,null,"o"]
[null,null,null,null,null,null,null,null,null,null,null,null,"o"]
[null,null,null,null,null,null,null,null,null,null,null,null,"o"]
[null,null,null,null,null,null,null,null,null,null,null,null,"o"]
[null,null,null,null,null,null,null,null,null,null,null,null,"o"]
[null,null,null,null,null,null,null,null,null,null,null,null,"o"]
[null,null,null,null,null,null,null,null,null,null,null,null,"o"]
[null,null,null,null,null,null,null,null,null,null,null,null,"o"]
[null,null,null,null,null,null,null,null,null,null,null,null,"o"]
[null,null,null,null,null,null,null,null,null,null,null,null,"o"]
[null,null,null,null,null,null,null,null,null,null,null,null,"o"]
[null,null,null,null,null,null,null,null,null,null,null,null,"o"]
[null,null,null,null,null,null,null,null,null,null,null,null,"o"]
[null,null,null,null,null,null,null,null,null,null,null,null,"o"]
[null,null,null,null,null,null,null,null,null,null,null,null,"o"]
[null,null,null,null,null,null,null,null,null,null,null,null,"o"]
[null,null,null,null,null,null,null,null,null,null,null,null,"o"]
[null,null,null,null,null,null,null,null,null,null,null,null,"o"]
[null,null,null,null,null,null,null,null,null,null,null,null,"o"]
[null,null,null,null,null,null,null,null,null,null,null,null,"o"]
[null,null,null,null,null,null,null,null,null,null,null,null,"o"]
[null,null,null,null,null,null,null,null,null,null,null,null,"o"]
[null,null,null,null,null,null,null,null,null,null,null,null,"o"]
[null,null,null,null,null,null,null,null,null,null,null,null,"o"]
[null,null,null,null,null,null,null,null,null,null,null,null,"o"]
[null,null,null,null,null,null,null,null,null,null,null,null,"o"]
[null,null,null,null,null,null,null,null,null,null,null,null,"o"]
[null,null,null,null,null,null,null,null,null,null,null,null,"o"]
[null,null,null,null,null,null,null,null,null,null,null,null,"o"]
[null,null,null,null,null,null,null,null,null,null,null,null,"o"]
[null,null,null,null,null,null,null,null,null,null,null,null,"o"]
[null,null,null,null,null,null,null,null,null,null,null,null,"o"]
[null,null,null,null,null,null,null,null,null,null,null,null,"o"]
[null,null,null,null,null,null,null,null,null,null,null,null,"o"]
[null,null,null,null,null,null,null,null,null,null,null,null,"o"]
[null,null,null,null,null,null,null,null,null,null,null,null,"o"]
[null,null,null,null,null,null,null,null,null,null,null,null,"o"]
[null,null,null,null,null,null,null,null,null,null,null,null,"o"]
[null,null,null,null,null,null,null,null,null,null,null,null,"o"]
[null,null,null,null,null,null,null,null,null,null,null,null,"o"]
[null,null,null,null,null,null,null,null,null,null,null,null,"o"]
[null,null,null,null,null,null,null,null,null,null,null,null,"o"]
[null,null,null,null,null,null,null,null,null,null,null,null,"o"]
[null,null,null,null,null,null,null,null,null,null,null,null,"o"]
[null,null,null,null,null,null,null,null,null,null,null,null,"o"]
[null,null,null,null,null,null,null,null,null,null,null,null,"o"]
[null,null,null,null,null,null,null,null,null,null,null,null,"o"]
[null,null,null,null,null,null,null,null,null,null,null,null,"o"]
[null,null,null,null,null,null,null,null,null,null,null,null,"o"]
[null,null,null,null,null,null,null,null,null,null,null,null,"o"]

{"sheet":"Forms","index":2,"n_rows":633,"n_cols":47,"rows_kept":633,"cut":false,"hidden":true,"merged":[[347,2,347,24],[477,1,478,25],[448,2,449,5],[445,2,446,16],[402,1,403,24],[376,2,377,8],[375,23,375,24],[352,2,355,18],[356,2,359,18],[364,1,365,24],[409,2,410,6],[416,2,417,6],[423,2,424,7],[425,3,426,17],[349,25,349,28],[418,3,420,16],[371,2,372,6],[440,1,441,25],[454,2,455,10],[459,2,460,7],[413,21,414,31],[406,21,407,31],[411,3,412,17],[408,21,409,31],[583,1,584,8],[570,1,571,4],[547,1,548,6],[541,1,542,11],[535,1,536,14],[527,1,528,11],[513,3,513,27],[505,2,506,7],[577,1,578,12],[511,2,512,7],[496,2,497,5],[494,1,495,12],[348,2,348,24],[348,25,348,28],[326,2,327,16],[116,2,117,10],[111,1,112,14],[47,1,48,7],[104,2,105,13],[191,2,192,13],[245,1,246,13],[118,3,118,26],[189,1,190,12],[59,3,59,23],[350,25,350,28],[347,25,347,28],[321,2,322,5],[285,1,286,8],[229,2,230,9],[296,1,297,5],[298,2,299,5],[319,1,320,5],[485,2,486,4],[299,7,302,25],[8,1,9,8],[15,1,16,13],[23,1,24,7],[30,1,31,12],[40,1,41,7],[57,2,58,4],[56,11,56,12],[53,3,53,23],[51,2,52,4],[51,5,52,11],[57,5,58,9],[322,7,325,25],[303,2,304,16],[67,1,68,3],[73,1,74,4],[127,1,128,7],[151,2,152,9],[98,2,99,9],[251,2,252,7],[129,2,129,28],[227,13,228,30],[159,1,160,27],[267,3,268,11],[3,0,3,16],[288,31,288,32],[131,11,131,28],[141,11,144,28],[136,11,138,28],[172,3,172,27],[164,3,164,31],[347,29,347,32],[350,2,350,24],[349,2,349,24],[3,18,3,33],[6,0,6,33],[42,2,42,32],[43,23,45,33],[5,0,5,33],[50,12,50,13],[262,2,262,30],[193,3,193,31],[346,25,346,28],[346,29,346,32],[350,29,350,32],[87,1,88,5],[218,1,219,8],[223,2,224,5],[360,45,360,46],[349,29,349,32],[145,2,146,9],[96,1,97,10],[80,1,81,5],[348,29,348,32],[231,2,232,14],[591,5,591,29],[555,5,555,29],[488,2,488,32],[480,2,481,8],[579,2,579,28],[473,1,475,32],[461,3,461,25],[389,2,390,15],[383,2,384,13],[385,3,385,18],[162,2,163,9],[199,2,200,4],[207,2,208,5],[170,2,171,4],[178,2,179,6],[260,1,261,13],[264,18,265,33]]}
[null,"Job Basics",null,null,null,null,null,null,null,null,null,null,null,null,null,null,null,null,null,null,null,null,null,null,null,null,null,null,null,null,null,null,null,null,null,1,{"$f":"COMPARISON!$AJ$2","v":1},1,2,3,4,5,6,1,{"$f":"IF(AK1=1,1,IF(AK1=\"\",\"\",0))","v":1},1,18]
[null,null,null,null,null,null,null,null,null,null,null,null,null,null,null,null,null,null,null,null,null,null,null,null,null,null,null,null,null,null,null,null,null,null,null,4,null,null,null,null,null,null,null,1,{"$f":"IF(AK2=1,1,IF(AK2=\"\",\"\",0))","v":""},2,20]
["Observations made by:",null,null,null,null,null,null,null,null,null,null,null,null,null,null,null,null,null,"Date:",null,null,null,null,null,null,null,null,null,null,null,null,null,null,null,null,1,null,null,null,null,null,null,null,2,"",3,25]
[null,null,null,null,null,null,null,null,null,null,null,null,null,null,null,null,null,null,null,null,null,null,null,null,null,null,null,null,null,null,null,null,null,null,null,1,null,null,null,null,null,null,null,2,"",4,36]
[null,null,null,null,null,null,null,null,null,null,null,null,null,null,null,null,null,null,null,null,null,null,null,null,null,null,null,null,null,null,null,null,null,null,null,1,null,null,null,null,null,null,null,1,"",5,45]
["Describe the work (job, task, or activity) being performed that you are evaluating (referred to hereafter as the \"work\"):",null,null,null,null,null,null,null,null,null,null,null,null,null,null,null,null,null,null,null,null,null,null,null,null,null,null,null,null,null,null,null,null,null,null,1,null,null,null,null,null,null,null,4,"",6,65]
[null,null,null,null,null,null,null,null,null,null,null,null,null,null,null,null,null,null,null,null,null,null,null,null,null,null,null,null,null,null,null,null,null,null,null,1,null,null,null,null,null,null,null,5,"",7,140]
[null,null,null,null,null,null,null,null,null,null,null,null,null,null,null,null,null,null,null,null,null,null,null,null,null,null,null,null,null,null,null,null,null,null,null,1,null,null,null,null,null,null,null,9,"",8,14]
[null,"WORK DURATION",null,null,null,null,null,null,null,null,null,null,null,null,null,null,null,null,null,null,null,null,null,null,null,null,null,null,null,null,null,null,null,null,null,1,null,null,null,null,null,null,null,9,"",9,9]
[null,null,null,null,null,null,null,null,null,null,null,null,null,null,null,null,null,null,null,null,null,null,null,null,null,null,null,null,null,null,null,null,null,null,null,1,null,null,null,null,null,null,null,9,"",10,11]
[null,null,"On average, how much time is spent per day performing this work?",null,null,null,null,null,null,null,null,null,null,null,null,null,null,null,null,null,null,null,null,null,null,null,null,null,null,null,null,null,null,null,null,1,null,null,null,null,null,null,null,1,""]
[null,null,null,"£","Less than 2 hours",null,null,null,null,null,null,null,null,null,null,null,null,null,null,null,null,null,null,null,null,null,null,null,null,null,null,null,null,null,null,1,null,null,null,null,null,null,null,1,""]
[null,null,null,"£","2 to 4 hours",null,null,null,null,null,null,null,null,null,null,null,null,null,null,null,null,null,null,null,null,null,null,null,null,null,null,null,null,null,null,1,null,null,null,null,null,null,null,1,""]
[null,null,null,"£","More than 4 hours",null,null,null,null,null,null,null,null,null,null,null,null,null,null,null,null,null,null,null,null,null,null,null,null,null,null,null,null,null,null,1,null,null,null,null,null,null,null,2,""]
[null,null,null,null,null,null,null,null,null,null,null,null,null,null,null,null,null,null,null,null,null,null,null,null,null,null,null,null,null,null,null,null,null,null,null,1,null,null,null,null,null,null,null,9,""]
[null,"MAXIMUM WEIGHT HANDLED",null,null,null,null,null,null,null,null,null,null,null,null,null,null,null,null,null,null,null,null,null,null,null,null,null,null,null,null,null,null,null,null,null,1,null,null,null,null,null,null,null,9,""]
[null,null,null,null,null,null,null,null,null,null,null,null,null,null,null,null,null,null,null,null,null,null,null,null,null,null,null,null,null,null,null,null,null,null,null,1,null,null,null,null,null,null,null,9,""]
[null,null,"Is the maximum weight handled MANUALLY BY THE WORKER in this work:",null,null,null,null,null,null,null,null,null,null,null,null,null,null,null,null,null,null,null,null,null,null,null,null,null,null,null,null,null,null,null,null,1,null,null,null,null,null,null,null,1,""]
[null,null,null,"£","Light (11 lbs. or less)",null,null,null,null,null,null,null,null,null,null,null,null,null,null,null,null,null,null,null,null,null,null,null,null,null,null,null,null,null,null,1,null,null,null,null,null,null,null,1,""]
[null,null,null,"£","Moderate (12 to 22 lbs.)",null,null,null,null,null,null,null,null,null,null,null,null,null,null,null,null,null,null,null,null,null,null,null,null,null,null,null,null,null,null,1,null,null,null,null,null,null,null,1,""]
[null,null,null,"£","Heavy (23 to 44 lbs.)",null,null,null,null,null,null,null,null,null,null,null,null,null,null,null,null,null,null,null,null,null,null,null,null,null,null,null,null,null,null,1,null,null,null,null,null,null,null,1,""]
[null,null,null,"£","Very heavy (more than 44 lbs.)",null,null,null,null,null,null,null,null,null,null,null,null,null,null,null,null,null,null,null,null,null,null,null,null,null,null,null,null,null,null,1,null,null,null,null,null,null,null,2,""]
[null,null,null,null,null,null,null,null,null,null,null,null,null,null,null,null,null,null,null,null,null,null,null,null,null,null,null,null,null,null,null,null,null,null,null,1,null,null,null,null,null,null,null,9,""]
[null,"PACE OF WORK",null,null,null,null,null,null,null,null,null,null,null,null,null,null,null,null,null,null,null,null,null,null,null,null,null,null,null,null,null,null,null,null,null,1,null,null,null,null,null,null,null,9,""]
[null,null,null,null,null,null,null,null,null,null,null,null,null,null,null,null,null,null,null,null,null,null,null,null,null,null,null,null,null,null,null,null,null,null,null,1,null,null,null,null,null,null,null,9,""]
[null,null,"Does the worker find it difficult to keep up with this work?",null,null,null,null,null,null,null,null,null,null,null,null,null,null,null,null,null,null,null,null,null,null,null,null,null,null,null,null,null,null,null,null,1,null,null,null,null,null,null,null,1,""]
[null,null,null,"£","Never",null,null,null,null,null,null,null,null,null,null,null,null,null,null,null,null,null,null,null,null,null,null,null,null,null,null,null,null,null,null,1,null,null,null,null,null,null,null,1,""]
[null,null,null,"£","Sometimes",null,null,null,null,null,null,null,null,null,null,null,null,null,null,null,null,null,null,null,null,null,null,null,null,null,null,null,null,null,null,1,null,null,null,null,null,null,null,1,""]
[null,null,null,"£","Often",null,null,null,null,null,null,null,null,null,null,null,null,null,null,null,null,null,null,null,null,null,null,null,null,null,null,null,null,null,null,1,null,null,null,null,null,null,null,2,""]
[null,null,null,null,null,null,null,null,null,null,null,null,null,null,null,null,null,null,null,null,null,null,null,null,null,null,null,null,null,null,null,null,null,null,null,1,null,null,null,null,null,null,null,9,""]
[null,"WORK RELATED STRESS",null,null,null,null,null,null,null,null,null,null,null,null,null,null,null,null,null,null,null,null,null,null,null,null,null,null,null,null,null,null,null,null,null,1,null,null,null,null,null,null,null,9,""]
[null,null,null,null,null,null,null,null,null,null,null,null,null,null,null,null,null,null,null,null,null,null,null,null,null,null,null,null,null,null,null,null,null,null,null,1,null,null,null,null,null,null,null,9,""]
[null,null,"In general, does the worker find this work:",null,null,null,null,null,null,null,null,null,null,null,null,null,null,null,null,null,null,null,null,null,null,null,null,null,null,null,null,null,null,null,null,1,null,null,null,null,null,null,null,1,""]
[null,null,null,"£","Not at all stressful",null,null,null,null,null,null,null,null,null,null,null,null,null,null,null,null,null,null,null,null,null,null,null,null,null,null,null,null,null,null,1,null,null,null,null,null,null,null,1,""]
[null,null,null,"£","Mildly stressful",null,null,null,null,null,null,null,null,null,null,null,null,null,null,null,null,null,null,null,null,null,null,null,null,null,null,null,null,null,null,1,null,null,null,null,null,null,null,1,""]
[null,null,null,"£","Moderately stressful",null,null,null,null,null,null,null,null,null,null,null,null,null,null,null,null,null,null,null,null,null,null,null,null,null,null,null,null,null,null,1,null,null,null,null,null,null,null,1,""]
[null,null,null,"£","Very stressful",null,null,null,null,null,null,null,null,null,null,null,null,null,null,null,null,null,null,null,null,null,null,null,null,null,null,null,null,null,null,1,null,null,null,null,null,null,null,2,""]
["NOTES:",null,null,null,null,null,null,null,null,null,null,null,null,null,null,null,null,null,null,null,null,null,null,null,null,null,null,null,null,null,null,null,null,null,null,{"$f":"COMPARISON!$AJ$6","v":1},null,null,null,null,null,null,null,1,""]
[null,"Back",null,null,null,null,null,null,null,null,null,null,null,null,null,null,null,null,null,null,null,null,null,null,null,null,null,null,null,null,null,null,null,null,null,1,1,{"$f":"$AK$39","v":1},1,1,1,1,1,1,1]
[null,null,null,null,null,null,null,null,null,null,null,null,null,null,null,null,null,null,null,null,null,null,null,null,null,null,null,null,null,null,null,null,null,null,null,1,null,null,null,null,null,null,null,9]
[null,"BACK POSITION",null,null,null,null,null,null,null,null,null,null,null,null,null,null,null,null,null,null,null,null,null,null,null,null,null,null,null,null,null,null,null,null,null,1,null,null,null,null,null,null,null,9,""]
[null,null,null,null,null,null,null,null,null,null,null,null,null,null,null,null,null,null,null,null,null,null,null,null,null,null,null,null,null,null,null,null,null,null,null,1,null,null,null,null,null,null,null,9,""]
[null,null,"When performing this work, which of the following best describes the back posture? (Select the WORST CASE situation)",null,null,null,null,null,null,null,null,null,null,null,null,null,null,null,null,null,null,null,null,null,null,null,null,null,null,null,null,null,null,null,null,1,null,null,null,null,null,null,null,1,""]
[null,null,null,"£","Almost neutral",null,null,null,null,null,null,null,null,null,null,null,null,null,null,null,null,null,null,"COMPLETE BACK ACTIVITY BELOW",null,null,null,null,null,null,null,null,null,null,null,1,null,null,null,null,null,null,null,1,""]
[" ",null,null,"£","Moderately flexed, twisted, or bent to the side",null,null,null,null,null,null,null,null,null,null,null,null,null,null,null,null,null,null,null,null,null,null,null,null,null,null,null,null,null,null,1,null,null,null,null,null,null,null,1,""]
[" ",null,null,"£","Excessively flexed, twisted, or bent to the side",null,null,null,null,null,null,null,null,null,null,null,null,null,null,null,null,null,null,null,null,null,null,null,null,null,null,null,null,null,null,1,null,null,null,null,null,null,null,2,""]
[null,null,null,null,null,null,null,null,null,null,null,null,null,null,null,null,null,null,null,null,null,null,null,null,null,null,null,null,null,null,null,null,null,null,null,1,null,null,null,null,null,null,null,9]
[null,"BACK ACTIVITY",null,null,null,null,null,null,null,null,null,null,null,null,null,null,null,null,null,null,null,null,null,null,null,null,null,null,null,null,null,null,null,null,null,1,null,null,null,null,null,null,null,9,""]
[null,null,null,null,null,null,null,null,null,null,null,null,null,null,null,null,null,null,null,null,null,null,null,null,null,null,null,null,null,null,null,null,null,null,null,1,null,null,null,null,null,null,null,9,""]
[null,null,"Select ONLY ONE of the two following work options:",null,null,null,null,null,null,null,null,null,null,null,null,null,null,null,null,null,null,null,null,null,null,null,null,null,null,null,null,null,null,null,null,1,null,null,null,null,null,null,null,2,""]
[null,null,null,null,null,null,null,null,null,null,null,null,null,null,null,null,null,null,null,null,null,null,null,null,null,null,null,null,null,null,null,null,null,null,null,{"$f":"\"o\"","v":"o"},null,null,null,null,null,null,null,1,""]
[null,null,"EITHER:",null,null,"STATIONARY",null,null,null,null,null,null,null,null,null,null,null,null,null,null,null,null,null,null,null,null,null,null,null,null,null,null,null,null,null,1,null,null,null,null,null,null,null,9,""]
[" ",null,null,null,null,null,null,null,null,null,null,null,null,null,null,null,null,null,null,null,null,null,null,null,null,null,null,null,null,null,null,null,null,null,null,1,null,null,null,null,null,null,null,9,""]
[null,null,null,"For seated or standing stationary work, does the back remain in a static position most of the time?",null,null,null,null,null,null,null,null,null,null,null,null,null,null,null,null,null,null,null,null,null,null,null,null,null,null,null,null,null,null,null,1,null,null,null,null,null,null,null,4,""]
[null,null,null,null,"£","No",null,null,null,null,null,null,null,null,null,null,null,null,null,null,null,null,null,null,null,null,null,null,null,null,null,null,null,null,null,1,null,null,null,null,null,null,null,1,""]
[null,null,null,null,"£","Yes",null,null,null,null,null,null,null,null,null,null,null,null,null,null,null,null,null,null,null,null,null,null,null,null,null,null,null,null,null,1,null,null,null,null,null,null,null,2,""]
[null,null,null,null,null,null,null,null,null,null,null,null,null,null,null,null,null,null,null,null,null,null,null,null,null,null,null,null,null,null,null,null,null,null,null,1,null,null,null,null,null,null,null,8,""]
[null,null,"OR:",null,null,"MOVING",null,null,null,null,null,null,null,null,null,null,null,null,null,null,null,null,null,null,null,null,null,null,null,null,null,null,null,null,null,1,null,null,null,null,null,null,null,9,""]
[" ",null,null,null,null,null,null,null,null,null,null,null,null,null,null,null,null,null,null,null,null,null,null,null,null,null,null,null,null,null,null,null,null,null,null,1,null,null,null,null,null,null,null,9,""]
[null,null,null,"For lifting, pushing/pulling, and carrying work (i.e. moving a load), is the movement of the back:",null,null,null,null,null,null,null,null,null,null,null,null,null,null,null,null,null,null,null,null,null,null,null,null,null,null,null,null,null,null,null,1,null,null,null,null,null,null,null,4,""]
[null,null,null,null,"£","Infrequent (~3 times/minute or less)",null,null,null,null,null,null,null,null,null,null,null,null,null,null,null,null,null,null,null,null,null,null,null,null,null,null,null,null,null,1,null,null,null,null,null,null,null,1,""]
[" ",null,null,null,"£","Frequent (~8 times/minute or less)",null,null,null,null,null,null,null,null,null,null,null,null,null,null,null,null,null,null,null,null,null,null,null,null,null,null,null,null,null,1,null,null,null,null,null,null,null,1,""]
[null,null,null,null,"£","Very frequent (~12 times/minute or more)",null,null,null,null,null,null,null,null,null,null,null,null,null,null,null,null,null,null,null,null,null,null,null,null,null,null,null,null,null,1,null,null,null,null,null,null,null,2,""]
[null,null,null,null,null,null,null,null,null,null,null,null,null,null,null,null,null,null,null,null,null,null,null,null,null,null,null,null,null,null,null,null,null,null,null,1,null,null,null,null,null,null,null,8,""]
[null,null,null,null,null,null,null,null,null,null,null,null,null,null,null,null,null,null,null,null,null,null,null,null,null,null,null,null,null,null,null,null,null,null,null,{"$f":"IF($AJ$66=1,\"o\",1)","v":"o"},null,null,null,null,null,null,null,1,{"$f":"IF(AK65=1,1,IF(AK65=\"\",\"\",0))","v":""}]
["NOTES:",null,null,null,null,null,null,null,null,null,null,null,null,null,null,null,null,null,null,null,null,null,null,null,null,null,null,null,null,null,null,null,null,null,null,{"$f":"COMPARISON!$AJ$10","v":1},null,null,null,null,null,null,null,1,""]
[null,"Work Postures",null,null,null,null,null,null,null,null,null,null,null,null,null,null,null,null,null,null,null,null,null,null,null,null,null,null,null,null,null,null,null,null,null,{"$f":"COMPARISON!$AJ$11","v":1},{"$f":"IF(COMPARISON!$AJ$11=1,1,0)","v":1},0,0,0,0,0,0,1,{"$f":"IF(AK67=1,1,IF(AK67=\"\",\"\",0))","v":1}]
[null,"SITTING",null,null,null,null,null,null,null,null,null,null,null,null,null,null,null,null,null,null,null,null,null,null,null,null,null,null,null,null,null,null,null,null,null,{"$f":"COMPARISON!$AJ$12","v":1},null,null,null,null,null,null,null,1,""]
[null,null,null,null,null,null,null,null,null,null,null,null,null,null,null,null,null,null,null,null,null,null,null,null,null,null,null,null,null,null,null,null,null,null,null,{"$f":"COMPARISON!$AJ$12","v":1},null,null,null,null,null,null,null,1,""]
[null,null,"Total time per day spent sitting, with limited ability to stand up:",null,null,null,null,null,null,null,null,null,null,null,null,null,null,null,null,null,null,null,null,null,null,null,null,null,null,null,null,null,null,null,null,{"$f":"COMPARISON!$AJ$12","v":1},null,null,null,null,null,null,null,1,""]
[" ",null,null,"£","Less than 2 hours",null,null,null,null,null,null,null,null,null,null,null,null,null,null,null,null,null,null,null,null,null,null,null,null,null,null,null,null,null,null,{"$f":"COMPARISON!$AJ$12","v":1},null,null,null,null,null,null,null,1,""]
[null,null,null,"£","2 to 4 hours",null,null,null,null,null,null,null,null,null,null,null,null,null,null,null,null,null,null,null,null,null,null,null,null,null,null,null,null,null,null,{"$f":"COMPARISON!$AJ$12","v":1},null,null,null,null,null,null,null,1,""]
[null,null,null,"£","More than 4 hours",null,null,null,null,null,null,null,null,null,null,null,null,null,null,null,null,null,null,null,null,null,null,null,null,null,null,null,null,null,null,{"$f":"COMPARISON!$AJ$12","v":1},null,null,null,null,null,null,null,2,""]
[null,"STANDING",null,null,null,null,null,null,null,null,null,null,null,null,null,null,null,null,null,null,null,null,null,null,null,null,null,null,null,null,null,null,null,null,null,{"$f":"COMPARISON!$AJ$13","v":1},null,null,null,null,null,null,null,3,""]
[null,null,null,null,null,null,null,null,null,null,null,null,null,null,null,null,null,null,null,null,null,null,null,null,null,null,null,null,null,null,null,null,null,null,null,{"$f":"COMPARISON!$AJ$13","v":1},null,null,null,null,null,null,null,1,""]
[null,null,"Total time per day spent standing, with limited ability to sit down:",null,null,null,null,null,null,null,null,null,null,null,null,null,null,null,null,null,null,null,null,null,null,null,null,null,null,null,null,null,null,null,null,{"$f":"COMPARISON!$AJ$13","v":1},null,null,null,null,null,null,null,1,""]
[" ",null,null,"£","Less than 2 hours",null,null,null,null,null,null,null,null,null,null,null,null,null,null,null,null,null,null,null,null,null,null,null,null,null,null,null,null,null,null,{"$f":"COMPARISON!$AJ$13","v":1},null,null,null,null,null,null,null,1,""]
[null,null,null,"£","2 to 6 hours",null,null,null,null,null,null,null,null,null,null,null,null,null,null,null,null,null,null,null,null,null,null,null,null,null,null,null,null,null,null,{"$f":"COMPARISON!$AJ$13","v":1},null,null,null,null,null,null,null,1,""]
[null,null,null,"£","More than 6 hours",null,null,null,null,null,null,null,null,null,null,null,null,null,null,null,null,null,null,null,null,null,null,null,null,null,null,null,null,null,null,{"$f":"COMPARISON!$AJ$13","v":1},null,null,null,null,null,null,null,2,""]
[null,null,null,null,null,null,null,null,null,null,null,null,null,null,null,null,null,null,null,null,null,null,null,null,null,null,null,null,null,null,null,null,null,null,null,{"$f":"COMPARISON!$AJ$14","v":1},null,null,null,null,null,null,null,9]
[null,"SQUATTING",null,null,null,null,null,null,null,null,null,null,null,null,null,null,null,null,null,null,null,null,null,null,null,null,null,null,null,null,null,null,null,null,null,{"$f":"COMPARISON!$AJ$14","v":1},null,null,null,null,null,null,null,9,{"$f":"IF(AK81=1,1,IF(AK81=\"\",\"\",0))","v":""}]
[null,null,null,null,null,null,null,null,null,null,null,null,null,null,null,null,null,null,null,null,null,null,null,null,null,null,null,null,null,null,null,null,null,null,null,{"$f":"COMPARISON!$AJ$14","v":1},null,null,null,null,null,null,null,9,""]
[null,null,"Does the work require squatting for:",null,null,null,null,null,null,null,null,null,null,null,null,null,null,null,null,null,null,null,null,null,null,null,null,null,null,null,null,null,null,null,null,{"$f":"COMPARISON!$AJ$14","v":1},null,null,null,null,null,null,null,1,""]
[null,null,null,"£","None, or less than 2 hours per day",null,null,null,null,null,null,null,null,null,null,null,null,null,null,null,null,null,null,null,null,null,null,null,null,null,null,null,null,null,null,{"$f":"COMPARISON!$AJ$14","v":1},null,null,null,null,null,null,null,1,""]
[null,null,null,"£","2-4 hours total per day",null,null,null,null,null,null,null,null,null,null,null,null,null,null,null,null,null,null,null,null,null,null,null,null,null,null,null,null,null,null,{"$f":"COMPARISON!$AJ$14","v":1},null,null,null,null,null,null,null,1,""]
[null,null,null,"£","More than 4 hours total per day",null,null,null,null,null,null,null,null,null,null,null,null,null,null,null,null,null,null,null,null,null,null,null,null,null,null,null,null,null,null,{"$f":"COMPARISON!$AJ$14","v":1},null,null,null,null,null,null,null,2,""]
[null,null,null,null,null,null,null,null,null,null,null,null,null,null,null,null,null,null,null,null,null,null,null,null,null,null,null,null,null,null,null,null,null,null,null,{"$f":"COMPARISON!$AJ$14","v":1},null,null,null,null,null,null,null,9]
[null,"KNEELING",null,null,null,null,null,null,null,null,null,null,null,null,null,null,null,null,null,null,null,null,null,null,null,null,null,null,null,null,null,null,null,null,null,{"$f":"COMPARISON!$AJ$14","v":1},null,null,null,null,null,null,null,9,{"$f":"IF(AK88=1,1,IF(AK88=\"\",\"\",0))","v":""}]
[null,null,null,null,null,null,null,null,null,null,null,null,null,null,null,null,null,null,null,null,null,null,null,null,null,null,null,null,null,null,null,null,null,null,null,{"$f":"COMPARISON!$AJ$14","v":1},null,null,null,null,null,null,null,9,""]
[null,null,"Does the work require kneeling for:",null,null,null,null,null,null,null,null,null,null,null,null,null,null,null,null,null,null,null,null,null,null,null,null,null,null,null,null,null,null,null,null,{"$f":"COMPARISON!$AJ$14","v":1},null,null,null,null,null,null,null,1,""]
[null,null,null,"£","None, or less than 2 hours per day",null,null,null,null,null,null,null,null,null,null,null,null,null,null,null,null,null,null,null,null,null,null,null,null,null,null,null,null,null,null,{"$f":"COMPARISON!$AJ$14","v":1},null,null,null,null,null,null,null,1,""]
[null,null,null,"£","2-4 hours total per day",null,null,null,null,null,null,null,null,null,null,null,null,null,null,null,null,null,null,null,null,null,null,null,null,null,null,null,null,null,null,{"$f":"COMPARISON!$AJ$14","v":1},null,null,null,null,null,null,null,1,""]
[null,null,null,"£","More than 4 hours total per day",null,null,null,null,null,null,null,null,null,null,null,null,null,null,null,null,null,null,null,null,null,null,null,null,null,null,null,null,null,null,{"$f":"COMPARISON!$AJ$14","v":1},null,null,null,null,null,null,null,2,""]
["NOTES:",null,null,null,null,null,null,null,null,null,null,null,null,null,null,null,null,null,null,null,null,null,null,null,null,null,null,null,null,null,null,null,null,null,null,{"$f":"COMPARISON!$AJ$15","v":1},null,null,null,null,null,null,null,1,""]
[null,"Shoulder",null,null,null,null,null,null,null,null,null,null,null,null,null,null,null,null,null,null,null,null,null,null,null,null,null,null,null,null,null,null,null,null,null,1,1,{"$f":"$AK$95","v":1},1,1,1,1,1,1,1]
[null,null,null,null,null,null,null,null,null,null,null,null,null,null,null,null,null,null,null,null,null,null,null,null,null,null,null,null,null,null,null,null,null,null,null,1,null,null,null,null,null,null,null,9]
[null,"SHOULDER POSTURE",null,null,null,null,null,null,null,null,null,null,null,null,null,null,null,null,null,null,null,null,null,null,null,null,null,null,null,null,null,null,null,null,null,1,null,null,null,null,null,null,null,9,{"$f":"IF(AK97=1,1,IF(AK97=\"\",\"\",0))","v":""}]
[null,null,null,null,null,null,null,null,null,null,null,null,null,null,null,null,null,null,null,null,null,null,null,null,null,null,null,null,null,null,null,null,null,null,null,1,null,null,null,null,null,null,null,9,""]
[null,null,"HAND POSITION",null,null,null,null,null,null,null,null,null,null,null,null,null,null,null,null,null,null,null,null,null,null,null,null,null,null,null,null,null,null,null,null,1,null,null,null,null,null,null,null,8,""]
[null,null,null,null,null,null,null,null,null,null,null,null,null,null,null,null,null,null,null,null,null,null,null,null,null,null,null,null,null,null,null,null,null,null,null,1,null,null,null,null,null,null,null,8,""]
[null,null,"When this work is performed, are the hands (select the WORST case situation):",null,null,null,null,null,null,null,null,null,null,null,null,null,null,null,null,null,null,null,null,null,null,null,null,null,null,null,null,null,null,null,null,1,null,null,null,null,null,null,null,1,""]
[null,null,null,"£","At or below waist height",null,null,null,null,null,null,null,null,null,null,null,null,null,null,null,null,null,null,null,null,null,null,null,null,null,null,null,null,null,null,1,null,null,null,null,null,null,null,1,""]
[" ",null,null,"£","At about chest height",null,null,null,null,null,null,null,null,null,null,null,null,null,null,null,null,null,null,null,null,null,null,null,null,null,null,null,null,null,null,1,null,null,null,null,null,null,null,1,""]
[" ",null,null,"£","At or above shoulder height",null,null,null,null,null,null,null,null,null,null,null,null,null,null,null,null,null,null,null,null,null,null,null,null,null,null,null,null,null,null,1,null,null,null,null,null,null,null,2,""]
[null,null,"SHOULDER MOVEMENTS",null,null,null,null,null,null,null,null,null,null,null,null,null,null,null,null,null,null,null,null,null,null,null,null,null,null,null,null,null,null,null,null,1,null,null,null,null,null,null,null,1,""]
[null,null,null,null,null,null,null,null,null,null,null,null,null,null,null,null,null,null,null,null,null,null,null,null,null,null,null,null,null,null,null,null,null,null,null,1,null,null,null,null,null,null,null,1,""]
[null,null,"Describe the shoulder movement during this worst case situation:",null,null,null,null,null,null,null,null,null,null,null,null,null,null,null,null,null,null,null,null,null,null,null,null,null,null,null,null,null,null,null,null,1,null,null,null,null,null,null,null,1,""]
[" ",null,null,"£","Infrequent (some intermittent movement)",null,null,null,null,null,null,null,null,null,null,null,null,null,null,null,null,null,null,null,null,null,null,null,null,null,null,null,null,null,null,1,null,null,null,null,null,null,null,1,""]
[" ",null,null,"£","Frequent (regular movement)",null,null,null,null,null,null,null,null,null,null,null,null,null,null,null,null,null,null,null,null,null,null,null,null,null,null,null,null,null,null,1,null,null,null,null,null,null,null,1,""]
[null,null,null,"£","Very frequent (almost continuous movement)",null,null,null,null,null,null,null,null,null,null,null,null,null,null,null,null,null,null,null,null,null,null,null,null,null,null,null,null,null,null,1,null,null,null,null,null,null,null,2,""]
[null,null,null,null,null,null,null,null,null,null,null,null,null,null,null,null,null,null,null,null,null,null,null,null,null,null,null,null,null,null,null,null,null,null,null,1,null,null,null,null,null,null,null,1,""]
[null,"INTRAVENOUS MANANGEMENT",null,null,null,null,null,null,null,null,null,null,null,null,null,null,null,null,null,null,null,null,null,null,null,null,null,null,null,null,null,null,null,null,null,{"$f":"COMPARISON!$AJ$18","v":1},null,null,null,null,null,null,null,3,{"$f":"IF(AK112=1,1,IF(AK112=\"\",\"\",0))","v":""}]
[null,null,null,null,null,null,null,null,null,null,null,null,null,null,null,null,null,null,null,null,null,null,null,null,null,null,null,null,null,null,null,null,null,null,null,{"$f":"COMPARISON!$AJ$18","v":1},null,null,null,null,null,null,null,9,""]
[null,null,"Does this work involve dispensing and maintaining intravenous medications?",null,null,null,null,null,null,null,null,null,null,null,null,null,null,null,null,null,null,null,null,null,null,null,null,null,null,null,null,null,null,null,null,{"$f":"COMPARISON!$AJ$18","v":1},null,null,null,null,null,null,null,1,""]
[null,null,null,"£","No: PROCEED TO NEXT PAGE",null,null,null,null,null,null,null,null,null,null,null,null,null,null,null,null,null,null,null,null,null,null,null,null,null,null,null,null,null,null,{"$f":"COMPARISON!$AJ$18","v":1},null,null,null,null,null,null,null,2,""]
[null,null,null,"£","Yes: COMPLETE OVERHEAD WORK BELOW ?",null,null,null,null,null,null,null,null,null,null,null,null,null,null,null,null,null,null,null,null,null,null,null,null,null,null,null,null,null,null,{"$f":"COMPARISON!$AJ$18","v":1},null,null,null,null,null,null,null,3,""]
[null,null,"OVERHEAD WORK",null,null,null,null,null,null,null,null,null,null,null,null,null,null,null,null,null,null,null,null,null,null,null,null,null,null,null,null,null,null,null,null,{"$f":"COMPARISON!$AJ$18","v":1},null,null,null,null,null,null,null,1,""]
[null,null,null,null,null,null,null,null,null,null,null,null,null,null,null,null,null,null,null,null,null,null,null,null,null,null,null,null,null,null,null,null,null,null,null,{"$f":"COMPARISON!$AJ$18","v":1},null,null,null,null,null,null,null,1,""]
[null,null,null,"This work requires the hands to be above the head, or the elbows above the shoulder for:",null,null,null,null,null,null,null,null,null,null,null,null,null,null,null,null,null,null,null,null,null,null,null,null,null,null,null,null,null,null,null,{"$f":"COMPARISON!$AJ$18","v":1},null,null,null,null,null,null,null,4,""]
[null,null,null,"£","2 hours total per day, or less",null,null,null,null,null,null,null,null,null,null,null,null,null,null,null,null,null,null,null,null,null,null,null,null,null,null,null,null,null,null,{"$f":"COMPARISON!$AJ$18","v":1},null,null,null,null,null,null,null,1,""]
[null,null,null,"£","More than 2 hours total per day",null,null,null,null,null,null,null,null,null,null,null,null,null,null,null,null,null,null,null,null,null,null,null,null,null,null,null,null,null,null,{"$f":"COMPARISON!$AJ$18","v":1},null,null,null,null,null,null,null,1,""]
[null,null,null,"£","More than 4 hours total per day",null,null,null,null,null,null,null,null,null,null,null,null,null,null,null,null,null,null,null,null,null,null,null,null,null,null,null,null,null,null,{"$f":"COMPARISON!$AJ$18","v":1},null,null,null,null,null,null,null,2,""]
[null,null,null,null,null,null,null,null,null,null,null,null,null,null,null,null,null,null,null,null,null,null,null,null,null,null,null,null,null,null,null,null,null,null,null,{"$f":"COMPARISON!$AJ$18","v":1},null,null,null,null,null,null,null,1,""]
[null,null,null,null,null,null,null,null,null,null,null,null,null,null,null,null,null,null,null,null,null,null,null,null,null,null,null,null,null,null,null,null,null,null,null,{"$f":"\"o\"","v":"o"},null,null,null,null,null,null,null,9]
[{"$f":"IF(OR(Home!AW2=2,Home!AW2=3,Home!AW2=4,Home!AW2=5,Home!AW2=6),\"\",\"NOTES:\")","v":"NOTES:"},null,null,null,null,null,null,null,null,null,null,null,null,null,null,null,null,null,null,null,null,null,null,null,null,null,null,null,null,null,null,null,null,null,null,1,null,null,null,null,null,null,null,1,""]
[null,"Neck",null,null,null,null,null,null,null,null,null,null,null,null,null,null,null,null,null,null,null,null,null,null,null,null,null,null,null,null,null,null,null,null,null,1,1,{"$f":"$AK$95","v":1},0,0,0,0,0,1,{"$f":"IF(AK126=1,1,IF(AK126=\"\",\"\",0))","v":1}]
[null,null,null,null,null,null,null,null,null,null,null,null,null,null,null,null,null,null,null,null,null,null,null,null,null,null,null,null,null,null,null,null,null,null,null,{"$f":"MAX(COMPARISON!$AJ$22,COMPARISON!$AJ$21)","v":1},null,null,null,null,null,null,null,9]
[null,"NECK POSTURE",null,null,null,null,null,null,null,null,null,null,null,null,null,null,null,null,null,null,null,null,null,null,null,null,null,null,null,null,null,null,null,null,null,{"$f":"MAX(COMPARISON!$AJ$22,COMPARISON!$AJ$21)","v":1},null,null,null,null,null,null,null,9,""]
[null,null,null,null,null,null,null,null,null,null,null,null,null,null,null,null,null,null,null,null,null,null,null,null,null,null,null,null,null,null,null,null,null,null,null,{"$f":"MAX(COMPARISON!$AJ$22,COMPARISON!$AJ$21)","v":1},null,null,null,null,null,null,null,9,""]
[null,null,"What is the posture of the neck during this work? If more than one is present, please select the worst.",null,null,null,null,null,null,null,null,null,null,null,null,null,null,null,null,null,null,null,null,null,null,null,null,null,null,null,null,null,null,null,null,{"$f":"COMPARISON!$AJ$21","v":1},null,null,null,null,null,null,null,4,""]
[null,null,null,null,null,null,null,null,null,null,null,null,null,null,null,null,null,null,null,null,null,null,null,null,null,null,null,null,null,null,null,null,null,null,null,{"$f":"COMPARISON!$AJ$21","v":1},null,null,null,null,null,null,null,1,""]
[null,null,null,"£",null,null,null,null,null,null,null,"In neutral posture",null,null,null,null,null,null,null,null,null,null,null,null,null,null,null,null,null,null,null,null,null,null,null,{"$f":"COMPARISON!$AJ$21","v":1},null,null,null,null,null,null,null,2,""]
[null,null,null,null,null,null,null,null,null,null,null,null,null,null,null,null,null,null,null,null,null,null,null,null,null,null,null,null,null,null,null,null,null,null,null,{"$f":"COMPARISON!$AJ$21","v":1},null,null,null,null,null,null,null,1,""]
[null,null,null,null,null,null,null,null,null,null,null,null,null,null,null,null,null,null,null,null,null,null,null,null,null,null,null,null,null,null,null,null,null,null,null,{"$f":"COMPARISON!$AJ$21","v":1},null,null,null,null,null,null,null,1,""]
[null,null,null,null,null,null,null,null,null,null,null,null,null,null,null,null,null,null,null,null,null,null,null,null,null,null,null,null,null,null,null,null,null,null,null,{"$f":"COMPARISON!$AJ$21","v":1},null,null,null,null,null,null,null,1,""]
[null,null,null,null,null,null,null,null,null,null,null,null,null,null,null,null,null,null,null,null,null,null,null,null,null,null,null,null,null,null,null,null,null,null,null,{"$f":"COMPARISON!$AJ$21","v":1},null,null,null,null,null,null,null,1,""]
[null,null,null,null,null,null,null,null,null,null,null,"Flexed (bent forward) more than 30° (without support and the ability to vary posture) for more than 2 hours total per day",null,null,null,null,null,null,null,null,null,null,null,null,null,null,null,null,null,null,null,null,null,null,null,{"$f":"COMPARISON!$AJ$21","v":1},null,null,null,null,null,null,null,1,""]
[null,null,null,"£",null,null,null,null,null,null,null,null,null,null,null,null,null,null,null,null,null,null,null,null,null,null,null,null,null,null,null,null,null,null,null,{"$f":"COMPARISON!$AJ$21","v":1},null,null,null,null,null,null,null,2,""]
[null,null,null,null,null,null,null,null,null,null,null,null,null,null,null,null,null,null,null,null,null,null,null,null,null,null,null,null,null,null,null,null,null,null,null,{"$f":"COMPARISON!$AJ$21","v":1},null,null,null,null,null,null,null,1,""]
[null,null,null,null,null,null,null,null,null,null,null,null,null,null,null,null,null,null,null,null,null,null,null,null,null,null,null,null,null,null,null,null,null,null,null,{"$f":"COMPARISON!$AJ$21","v":1},null,null,null,null,null,null,null,1,""]
[null,null,null,null,null,null,null,null,null,null,null,null,null,null,null,null,null,null,null,null,null,null,null,null,null,null,null,null,null,null,null,null,null,null,null,{"$f":"COMPARISON!$AJ$21","v":1},null,null,null,null,null,null,null,1,""]
[null,null,null,null,null,null,null,null,null,null,null,"Flexed (bent forward) more than 45° (without support and the ability to vary posture) for more than 4 hours total per day",null,null,null,null,null,null,null,null,null,null,null,null,null,null,null,null,null,null,null,null,null,null,null,{"$f":"COMPARISON!$AJ$21","v":1},null,null,null,null,null,null,null,1,""]
[null,null,null,"£",null,null,null,null,null,null,null,null,null,null,null,null,null,null,null,null,null,null,null,null,null,null,null,null,null,null,null,null,null,null,null,{"$f":"COMPARISON!$AJ$21","v":1},null,null,null,null,null,null,null,2,""]
[null,null,null,null,null,null,null,null,null,null,null,null,null,null,null,null,null,null,null,null,null,null,null,null,null,null,null,null,null,null,null,null,null,null,null,{"$f":"COMPARISON!$AJ$21","v":1},null,null,null,null,null,null,null,1,""]
[null,null,null,null,null,null,null,null,null,null,null,null,null,null,null,null,null,null,null,null,null,null,null,null,null,null,null,null,null,null,null,null,null,null,null,{"$f":"COMPARISON!$AJ$21","v":1},null,null,null,null,null,null,null,1,""]
[null,null,"NECK BENDING",null,null,null,null,null,null,null,null,null,null,null,null,null,null,null,null,null,null,null,null,null,null,null,null,null,null,null,null,null,null,null,null,{"$f":"COMPARISON!$AJ$22","v":1},null,null,null,null,null,null,null,1,""]
[null,null,null,null,null,null,null,null,null,null,null,null,null,null,null,null,null,null,null,null,null,null,null,null,null,null,null,null,null,null,null,null,null,null,null,{"$f":"COMPARISON!$AJ$22","v":1},null,null,null,null,null,null,null,1,""]
[null,null,"When performing this work, is the neck bent or twisted?",null,null,null,null,null,null,null,null,null,null,null,null,null,null,null,null,null,null,null,null,null,null,null,null,null,null,null,null,null,null,null,null,{"$f":"COMPARISON!$AJ$22","v":1},null,null,null,null,null,null,null,1,""]
[null,null,null,"£","Never",null,null,null,null,null,null,null,null,null,null,null,null,null,null,null,null,null,null,null,null,null,null,null,null,null,null,null,null,null,null,{"$f":"COMPARISON!$AJ$22","v":1},null,null,null,null,null,null,null,1,""]
[null,null,null,"£","Yes, occasionally",null,null,null,null,null,null,null,null,null,null,null,null,null,null,null,null,null,null,null,null,null,null,null,null,null,null,null,null,null,null,{"$f":"COMPARISON!$AJ$22","v":1},null,null,null,null,null,null,null,1,""]
[null,null,null,"£","Yes, continuously",null,null,null,null,null,null,null,null,null,null,null,null,null,null,null,null,null,null,null,null,null,null,null,null,null,null,null,null,null,null,{"$f":"COMPARISON!$AJ$22","v":1},null,null,null,null,null,null,null,2,""]
[null,null,"VISUAL DEMANDS",null,null,null,null,null,null,null,null,null,null,null,null,null,null,null,null,null,null,null,null,null,null,null,null,null,null,null,null,null,null,null,null,{"$f":"COMPARISON!$AJ$22","v":1},null,null,null,null,null,null,null,1,""]
[null,null,null,null,null,null,null,null,null,null,null,null,null,null,null,null,null,null,null,null,null,null,null,null,null,null,null,null,null,null,null,null,null,null,null,{"$f":"COMPARISON!$AJ$22","v":1},null,null,null,null,null,null,null,1,""]
[null,null,"Are the visual demands of this work:",null,null,null,null,null,null,null,null,null,null,null,null,null,null,null,null,null,null,null,null,null,null,null,null,null,null,null,null,null,null,null,null,{"$f":"COMPARISON!$AJ$22","v":1},null,null,null,null,null,null,null,1,""]
[null,null,null,"£","Low (almost no need to view fine details)",null,null,null,null,null,null,null,null,null,null,null,null,null,null,null,null,null,null,null,null,null,null,null,null,null,null,null,null,null,null,{"$f":"COMPARISON!$AJ$22","v":1},null,null,null,null,null,null,null,1,""]
[null,null,null,"£","High (need to view fine details)",null,null,null,null,null,null,null,null,null,null,null,null,null,null,null,null,null,null,null,null,null,null,null,null,null,null,null,null,null,null,{"$f":"COMPARISON!$AJ$22","v":1},null,null,null,null,null,null,null,2,""]
[null,null,null,null,null,null,null,null,null,null,null,null,null,null,null,null,null,null,null,null,null,null,null,null,null,null,null,null,null,null,null,null,null,null,null,{"$f":"COMPARISON!$AJ$22","v":1},null,null,null,null,null,null,null,1,""]
["NOTES:",null,null,null,null,null,null,null,null,null,null,null,null,null,null,null,null,null,null,null,null,null,null,null,null,null,null,null,null,null,null,null,null,null,null,1,null,null,null,null,null,null,null,1,""]
[" ","Hand Exertions",null,null,null,null,null,null,null,null,null,null,null,null,null,null,null,null,null,null,null,null,null,null,null,null,null,null,null,null,null,null,null,null,null,{"$f":"COMPARISON!$AJ$25","v":1},{"$f":"COMPARISON!$AJ$25","v":1},{"$f":"$AK$159","v":1},{"$f":"$AK$159","v":1},{"$f":"$AK$159","v":1},{"$f":"$AK$159","v":1},{"$f":"$AK$159","v":1},0,1,{"$f":"IF(AK159=1,1,IF(AK159=\"\",\"\",0))","v":1}]
[null,"Consider the situation with the worst hand exertions (high frequency, high hand force, and/or bad wrist posture):",null,null,null,null,null,null,null,null,null,null,null,null,null,null,null,null,null,null,null,null,null,null,null,null,null,null,null,null,null,null,null,null,null,{"$f":"COMPARISON!$AJ$25","v":1},null,null,null,null,null,null,null,1,""]
[null,null,null,null,null,null,null,null,null,null,null,null,null,null,null,null,null,null,null,null,null,null,null,null,null,null,null,null,null,null,null,null,null,null,null,{"$f":"COMPARISON!$AJ$25","v":1},null,null,null,null,null,null,null,1,""]
[null,null,"Describe the activity with the worst hand exertions:\n",null,null,null,null,null,null,null,null,null,null,null,null,null,null,null,null,null,null,null,null,null,null,null,null,null,null,null,null,null,null,null,null,{"$f":"COMPARISON!$AJ$25","v":1},null,null,null,null,null,null,null,5,""]
[null,null,"DAILY DURATION",null,null,null,null,null,null,null,null,null,null,null,null,null,null,null,null,null,null,null,null,null,null,null,null,null,null,null,null,null,null,null,null,{"$f":"COMPARISON!$AJ$25","v":1},null,null,null,null,null,null,null,1,""]
[null,null,null,null,null,null,null,null,null,null,null,null,null,null,null,null,null,null,null,null,null,null,null,null,null,null,null,null,null,null,null,null,null,null,null,{"$f":"COMPARISON!$AJ$25","v":1},null,null,null,null,null,null,null,1,""]
[null,null,null,"How much time is spent performing the activity described above? (e.g. I spend more than half my day drilling holes through framing members, so: >4-8 hours per day.)",null,null,null,null,null,null,null,null,null,null,null,null,null,null,null,null,null,null,null,null,null,null,null,null,null,null,null,null,null,null,null,{"$f":"COMPARISON!$AJ$25","v":1},null,null,null,null,null,null,null,5,""]
[null,null,null,null,"£","≤1 hour per day",null,null,null,null,null,null,null,null,null,null,null,null,null,null,null,null,null,null,null,null,null,null,null,null,null,null,null,null,null,{"$f":"COMPARISON!$AJ$25","v":1},null,null,null,null,null,null,null,1,""]
[" ",null,null,null,"£",">1 to 2 hours/day",null,null,null,null,null,null,null,null,null,null,null,null,null,null,null,null,null,null,null,null,null,null,null,null,null,null,null,null,null,{"$f":"COMPARISON!$AJ$25","v":1},null,null,null,null,null,null,null,1,""]
[null,null,null,null,"£",">2 to 4 hours/day",null,null,null,null,null,null,null,null,null,null,null,null,null,null,null,null,null,null,null,null,null,null,null,null,null,null,null,null,null,{"$f":"COMPARISON!$AJ$25","v":1},null,null,null,null,null,null,null,1,""]
[null,null,null,null,"£",">4 to <8 hours/day",null,null,null,null,null,null,null,null,null,null,null,null,null,null,null,null,null,null,null,null,null,null,null,null,null,null,null,null,null,{"$f":"COMPARISON!$AJ$25","v":1},null,null,null,null,null,null,null,1,""]
[null,null,null,null,"£","≥8 hours per day",null,null,null,null,null,null,null,null,null,null,null,null,null,null,null,null,null,null,null,null,null,null,null,null,null,null,null,null,null,{"$f":"COMPARISON!$AJ$25","v":1},null,null,null,null,null,null,null,2,""]
[null,null,"SPEED",null,null,null,null,null,null,null,null,null,null,null,null,null,null,null,null,null,null,null,null,null,null,null,null,null,null,null,null,null,null,null,null,{"$f":"COMPARISON!$AJ$25","v":1},null,null,null,null,null,null,null,1,""]
[null,null,null,null,null,null,null,null,null,null,null,null,null,null,null,null,null,null,null,null,null,null,null,null,null,null,null,null,null,null,null,null,null,null,null,{"$f":"COMPARISON!$AJ$25","v":1},null,null,null,null,null,null,null,1,""]
[null,null,null,"How would you describe the pace at which the hand exertions are being performed?",null,null,null,null,null,null,null,null,null,null,null,null,null,null,null,null,null,null,null,null,null,null,null,null,null,null,null,null,null,null,null,{"$f":"COMPARISON!$AJ$25","v":1},null,null,null,null,null,null,null,4,""]
[" ",null,null,null,"£","Very slow: extremely relaxed",null,null,null,null,null,null,null,null,null,null,null,null,null,null,null,null,null,null,null,null,null,null,null,null,null,null,null,null,null,{"$f":"COMPARISON!$AJ$25","v":1},null,null,null,null,null,null,null,1,""]
[" ",null,null,null,"£","Slow: taking one's own time",null,null,null,null,null,null,null,null,null,null,null,null,null,null,null,null,null,null,null,null,null,null,null,null,null,null,null,null,null,{"$f":"COMPARISON!$AJ$25","v":1},null,null,null,null,null,null,null,1,""]
[null,null,null,null,"£","Fair: normal speed of motion",null,null,null,null,null,null,null,null,null,null,null,null,null,null,null,null,null,null,null,null,null,null,null,null,null,null,null,null,null,{"$f":"COMPARISON!$AJ$25","v":1},null,null,null,null,null,null,null,1,""]
[null,null,null,null,"£","Fast: rushed, but able to keep up",null,null,null,null,null,null,null,null,null,null,null,null,null,null,null,null,null,null,null,null,null,null,null,null,null,null,null,null,null,{"$f":"COMPARISON!$AJ$25","v":1},null,null,null,null,null,null,null,1,""]
[null,null,null,null,"£","Very fast: rushed, and barely able to keep up",null,null,null,null,null,null,null,null,null,null,null,null,null,null,null,null,null,null,null,null,null,null,null,null,null,null,null,null,null,{"$f":"COMPARISON!$AJ$25","v":1},null,null,null,null,null,null,null,2,""]
[null,null,"FREQUENCY",null,null,null,null,null,null,null,null,null,null,null,null,null,null,null,null,null,null,null,null,null,null,null,null,null,null,null,null,null,null,null,null,{"$f":"COMPARISON!$AJ$25","v":1},null,null,null,null,null,null,null,1,""]
[null,null,null,null,null,null,null,null,null,null,null,null,null,null,null,null,null,null,null,null,null,null,null,null,null,null,null,null,null,null,null,null,null,null,null,{"$f":"COMPARISON!$AJ$25","v":1},null,null,null,null,null,null,null,1,""]
[null,null,null,"How often are hand exertions performed in this activity?",null,null,null,null,null,null,null,null,null,null,null,null,null,null,null,null,null,null,null,null,null,null,null,null,null,null,null,null,null,null,null,{"$f":"COMPARISON!$AJ$25","v":1},null,null,null,null,null,null,null,1,""]
[null,null,null,null,"£","<4 per minute",null,null,null,null,null,null,null,null,null,null,null,null,null,null,null,null,null,null,null,null,null,null,null,null,null,null,null,null,null,{"$f":"COMPARISON!$AJ$25","v":1},null,null,null,null,null,null,null,1,""]
[null,null,null,null,"£","4-8 per minute",null,null,null,null,null,null,null,null,null,null,null,null,null,null,null,null,null,null,null,null,null,null,null,null,null,null,null,null,null,{"$f":"COMPARISON!$AJ$25","v":1},null,null,null,null,null,null,null,1,""]
[null,null,null,null,"£","9-14 per minute",null,null,null,null,null,null,null,null,null,null,null,null,null,null,null,null,null,null,null,null,null,null,null,null,null,null,null,null,null,{"$f":"COMPARISON!$AJ$25","v":1},null,null,null,null,null,null,null,1,""]
[null,null,null,null,"£","15-19 per minute",null,null,null,null,null,null,null,null,null,null,null,null,null,null,null,null,null,null,null,null,null,null,null,null,null,null,null,null,null,{"$f":"COMPARISON!$AJ$25","v":1},null,null,null,null,null,null,null,1,""]
[null,null,null,null,"£","≥20 per minute",null,null,null,null,null,null,null,null,null,null,null,null,null,null,null,null,null,null,null,null,null,null,null,null,null,null,null,null,null,{"$f":"COMPARISON!$AJ$25","v":1},null,null,null,null,null,null,null,2,""]
[null,null,null,null,null,null,null,null,null,null,null,null,null,null,null,null,null,null,null,null,null,null,null,null,null,null,null,null,null,null,null,null,null,null,null,{"$f":"COMPARISON!$AJ$25","v":1},null,null,null,null,null,null,null,1,""]
["NOTES:",null,null,null,null,null,null,null,null,null,null,null,null,null,null,null,null,null,null,null,null,null,null,null,null,null,null,null,null,null,null,null,null,"HAND EXERTIONS CONTINUED ON NEXT PAGE \"",null,{"$f":"COMPARISON!$AJ$25","v":1},null,null,null,null,null,null,null,1,""]
[null,"Hand Exertions",null,null,null,null,null,null,null,null,null,null,null,null,null,null,null,null,null,null,null,null,null,null,null,null,null,null,null,null,null,null,null,null,null,{"$f":"COMPARISON!$AJ$25","v":1},{"$f":"COMPARISON!$AJ$25","v":1},{"$f":"$AK$189","v":1},{"$f":"$AK$189","v":1},{"$f":"$AK$189","v":1},{"$f":"$AK$189","v":1},{"$f":"$AK$189","v":1},0,1,1]
[null,"HAND EXERTIONS (CONT.)",null,null,null,null,null,null,null,null,null,null,null,null,null,null,null,null,null,null,null,null,null,null,null,null,null,null,null,null,null,null,null,null,null,{"$f":"COMPARISON!$AJ$25","v":1},null,null,null,null,null,null,null,1,""]
[null,null,null,null,null,null,null,null,null,null,null,null,null,null,null,null,null,null,null,null,null,null,null,null,null,null,null,null,null,null,null,null,null,null,null,{"$f":"COMPARISON!$AJ$25","v":1},null,null,null,null,null,null,null,1,""]
[null,null,"DURATION OF EXERTION",null,null,null,null,null,null,null,null,null,null,null,null,null,null,null,null,null,null,null,null,null,null,null,null,null,null,null,null,null,null,null,null,{"$f":"COMPARISON!$AJ$25","v":1},null,null,null,null,null,null,null,9,""]
[null,null,null,null,null,null,null,null,null,null,null,null,null,null,null,null,null,null,null,null,null,null,null,null,null,null,null,null,null,null,null,null,null,null,null,{"$f":"COMPARISON!$AJ$25","v":1},null,null,null,null,null,null,null,9,""]
[null,null,null,"What percentage of time are the hand exertions applied during this activity or a representative observation period? (i.e. Duration of all exertions ÷ Total observation time x 100)",null,null,null,null,null,null,null,null,null,null,null,null,null,null,null,null,null,null,null,null,null,null,null,null,null,null,null,null,null,null,null,{"$f":"COMPARISON!$AJ$25","v":1},null,null,null,null,null,null,null,6,""]
[null,null,null,null,"£","Less than 10% of the time",null,null,null,null,null,null,null,null,null,null,null,null,null,null,null,null,null,null,null,null,null,null,null,null,null,null,null,null,null,{"$f":"COMPARISON!$AJ$25","v":1},null,null,null,null,null,null,null,1,""]
[null,null,null,null,"£","10-29% of the time",null,null,null,null,null,null,null,null,null,null,null,null,null,null,null,null,null,null,null,null,null,null,null,null,null,null,null,null,null,{"$f":"COMPARISON!$AJ$25","v":1},null,null,null,null,null,null,null,1,""]
[null,null,null,null,"£","30-49% of the time",null,null,null,null,null,null,null,null,null,null,null,null,null,null,null,null,null,null,null,null,null,null,null,null,null,null,null,null,null,{"$f":"COMPARISON!$AJ$25","v":1},null,null,null,null,null,null,null,1,""]
[null,null,null,null,"£","50-79% of the time",null,null,null,null,null,null,null,null,null,null,null,null,null,null,null,null,null,null,null,null,null,null,null,null,null,null,null,null,null,{"$f":"COMPARISON!$AJ$25","v":1},null,null,null,null,null,null,null,1,""]
[null,null,null,null,"£","At least 80% of the time",null,null,null,null,null,null,null,null,null,null,null,null,null,null,null,null,null,null,null,null,null,null,null,null,null,null,null,null,null,{"$f":"COMPARISON!$AJ$25","v":1},null,null,null,null,null,null,null,2,""]
[null,null,"FORCE",null,null,null,null,null,null,null,null,null,null,null,null,null,null,null,null,null,null,null,null,null,null,null,null,null,null,null,null,null,null,null,null,{"$f":"COMPARISON!$AJ$25","v":1},null,null,null,null,null,null,null,1,""]
[null,null,null,null,null,null,null,null,null,null,null,null,null,null,null,null,null,null,null,null,null,null,null,null,null,null,null,null,null,null,null,null,null,null,null,{"$f":"COMPARISON!$AJ$25","v":1},null,null,null,null,null,null,null,1,""]
[null,null,null,"How would you describe the force applied by the hand(s):",null,null,null,null,null,null,null,null,null,null,null,null,null,null,null,null,null,null,null,null,null,null,null,null,null,null,null,null,null,null,null,{"$f":"COMPARISON!$AJ$25","v":1},null,null,null,null,null,null,null,1,""]
[" ",null,null,null,"£","Light: barely noticeable or relaxed effort",null,null,null,null,null,null,null,null,null,null,null,null,null,null,null,null,null,null,null,null,null,null,null,null,null,null,null,null,null,{"$f":"COMPARISON!$AJ$25","v":1},null,null,null,null,null,null,null,1,""]
[" ",null,null,null,"£","Somewhat hard: noticeable or definite effort",null,null,null,null,null,null,null,null,null,null,null,null,null,null,null,null,null,null,null,null,null,null,null,null,null,null,null,null,null,{"$f":"COMPARISON!$AJ$25","v":1},null,null,null,null,null,null,null,1,""]
[" ",null,null,null,"£","Hard: obvious effort; unchanged facial expression",null,null,null,null,null,null,null,null,null,null,null,null,null,null,null,null,null,null,null,null,null,null,null,null,null,null,null,null,null,{"$f":"COMPARISON!$AJ$25","v":1},null,null,null,null,null,null,null,1,""]
[" ",null,null,null,"£","Very hard: substantial effort; changes facial expression",null,null,null,null,null,null,null,null,null,null,null,null,null,null,null,null,null,null,null,null,null,null,null,null,null,null,null,null,null,{"$f":"COMPARISON!$AJ$25","v":1},null,null,null,null,null,null,null,1,""]
[null,null,null,null,"£","Near maximal: uses shoulder or trunk for force",null,null,null,null,null,null,null,null,null,null,null,null,null,null,null,null,null,null,null,null,null,null,null,null,null,null,null,null,null,{"$f":"COMPARISON!$AJ$25","v":1},null,null,null,null,null,null,null,2,""]
[null,null,"POSTURE",null,null,null,null,null,null,null,null,null,null,null,null,null,null,null,null,null,null,null,null,null,null,null,null,null,null,null,null,null,null,null,null,{"$f":"COMPARISON!$AJ$25","v":1},null,null,null,null,null,null,null,1,""]
[null,null,null,null,null,null,null,null,null,null,null,null,null,null,null,null,null,null,null,null,null,null,null,null,null,null,null,null,null,null,null,null,null,null,null,{"$f":"COMPARISON!$AJ$25","v":1},null,null,null,null,null,null,null,1,""]
[null,null,null,"How would you describe the worst wrist posture during the hand exertions:",null,null,null,null,null,null,null,null,null,null,null,null,null,null,null,null,null,null,null,null,null,null,null,null,null,null,null,null,null,null,null,{"$f":"COMPARISON!$AJ$25","v":1},null,null,null,null,null,null,null,1,""]
[" ",null,null,null,"£","Very good: perfectly neutral",null,null,null,null,null,null,null,null,null,null,null,null,null,null,null,null,null,null,null,null,null,null,null,null,null,null,null,null,null,{"$f":"COMPARISON!$AJ$25","v":1},null,null,null,null,null,null,null,1,""]
[" ",null,null,null,"£","Good: near neutral",null,null,null,null,null,null,null,null,null,null,null,null,null,null,null,null,null,null,null,null,null,null,null,null,null,null,null,null,null,{"$f":"COMPARISON!$AJ$25","v":1},null,null,null,null,null,null,null,1,""]
[" ",null,null,null,"£","Fair: non-neutral",null,null,null,null,null,null,null,null,null,null,null,null,null,null,null,null,null,null,null,null,null,null,null,null,null,null,null,null,null,{"$f":"COMPARISON!$AJ$25","v":1},null,null,null,null,null,null,null,1,""]
[null,null,null,null,"£","Bad: marked wrist bending",null,null,null,null,null,null,null,null,null,null,null,null,null,null,null,null,null,null,null,null,null,null,null,null,null,null,null,null,null,{"$f":"COMPARISON!$AJ$25","v":1},null,null,null,null,null,null,null,1,""]
[null,null,null,null,"£","Very bad: near extreme",null,null,null,null,null,null,null,null,null,null,null,null,null,null,null,null,null,null,null,null,null,null,null,null,null,null,null,null,null,{"$f":"COMPARISON!$AJ$25","v":1},null,null,null,null,null,null,null,2,{"$f":"IF(AK215=1,1,IF(AK215=\"\",\"\",0))","v":""}]
[null,null,null,null,null,null,null,null,null,null,null,null,null,null,null,null,null,null,null,null,null,null,null,null,null,null,null,null,null,null,null,null,null,null,null,{"$f":"COMPARISON!$AJ$25","v":1},null,null,null,null,null,null,null,1,{"$f":"IF(AK216=1,1,IF(AK216=\"\",\"\",0))","v":""}]
["NOTES:",null,null,null,null,null,null,null,null,null,null,null,null,null,null,null,null,null,null,null,null,null,null,null,null,null,null,null,null,null,null,null,null,null,null,{"$f":"COMPARISON!$AJ$25","v":1},null,null,null,null,null,null,null,1,{"$f":"IF(AK217=1,1,IF(AK217=\"\",\"\",0))","v":""}]
[null,"Repetition - Hand",null,null,null,null,null,null,null,null,null,null,null,null,null,null,null,null,null,null,null,null,null,null,null,null,null,null,null,null,null,null,null,null,null,{"$f":"COMPARISON!$AJ$29","v":1},{"$f":"IF(COMPARISON!$AJ$29=1,1,0)","v":1},{"$f":"$AK$218","v":1},1,1,1,1,1,1,{"$f":"IF(AK218=1,1,IF(AK218=\"\",\"\",0))","v":1}]
[null,"INTENSIVE KEYING",null,null,null,null,null,null,null,null,null,null,null,null,null,null,null,null,null,null,null,null,null,null,null,null,null,null,null,null,null,null,null,null,null,{"$f":"COMPARISON!$AJ$30","v":1},null,null,null,null,null,null,null,8,{"$f":"IF(AK219=1,1,IF(AK219=\"\",\"\",0))","v":""}]
[null,null,null,null,null,null,null,null,null,null,null,null,null,null,null,null,null,null,null,null,null,null,null,null,null,null,null,null,null,null,null,null,null,null,null,{"$f":"COMPARISON!$AJ$30","v":1},null,null,null,null,null,null,null,8,""]
[null,null,"Does this work involve performing intensive typing or keying?",null,null,null,null,null,null,null,null,null,null,null,null,null,null,null,null,null,null,null,null,null,null,null,null,null,null,null,null,null,null,null,null,{"$f":"COMPARISON!$AJ$30","v":1},null,null,null,null,null,null,null,1,""]
[null,null,null,"£","No: ",null,"PROCEED TO NEXT PAGE \"",null,null,null,null,null,null,null,null,null,null,null,null,null,null,null,null,null,null,null,null,null,null," ",null,null,null,null,null,{"$f":"COMPARISON!$AJ$30","v":1},null,null,null,null,null,null,null,2,""]
[null,null,null,"£","Yes:",null,"COMPLETE DURATION BELOW ?",null,null,null,null,null,null,null,null,null,null,null,null,null,null,null,null,null,null,null,null,null,null,null,null,null,null,null,null,{"$f":"COMPARISON!$AJ$30","v":1},null,null,null,null,null,null,null,2,""]
[null,null,"DURATION",null,null,null,null,null,null,null,null,null,null,null,null,null,null,null,null,null,null,null,null,null,null,null,null,null,null,null,null,null,null,null,null,{"$f":"COMPARISON!$AJ$30","v":1},null,null,null,null,null,null,null,8,""]
[null,null,null,null,null,null,null,null,null,null,null,null,null,null,null,null,null,null,null,null,null,null,null,null,null,null,null,null,null,null,null,null,null,null,null,{"$f":"COMPARISON!$AJ$30","v":1},null,null,null,null,null,null,null,8,""]
[null,null,"Total time DURING THIS WORK spent performing intensive typing/keying?",null,null,null,null,null,null,null,null,null,null,null,null,null,null,null,null,null,null,null,null,null,null,null,null,null,null,null,null,null,null,null,null,{"$f":"COMPARISON!$AJ$30","v":1},null,null,null,null,null,null,null,1,""]
[null,null,null,"£","4 hours/day or less:",null,null,null,null,null,null,null,null,"PROCEED TO NEXT PAGE \"",null,null,null,null,null,null,null,null,null,null,null,null,null,null,null,null,null,null,null,null,null,{"$f":"COMPARISON!$AJ$30","v":1},null,null,null,null,null,null,null,2,""]
[null,null,null,"£",">4 to 7 hours/day",null,null,null,null,null,null,null,null,"COMPLETE WRIST POSTURE BELOW?",null,null,null,null,null,null,null,null,null,null,null,null,null,null,null,null,null,null,null,null,null,{"$f":"COMPARISON!$AJ$30","v":1},null,null,null,null,null,null,null,2,""]
[null,null,null,"£",">7 hours/day",null,null,null,null,null,null,null,null,null,null,null,null,null,null,null,null,null,null,null,null,null,null,null,null,null,null,null,null,null,null,{"$f":"COMPARISON!$AJ$30","v":1},null,null,null,null,null,null,null,2,""]
[null,null,"WRIST POSTURE",null,null,null,null,null,null,null,null,null,null,null,null,null,null,null,null,null,null,null,null,null,null,null,null,null,null,null,null,null,null,null,null,{"$f":"COMPARISON!$AJ$30","v":1},null,null,null,null,null,null,null,8,""]
[null,null,null,null,null,null,null,null,null,null,null,null,null,null,null,null,null,null,null,null,null,null,null,null,null,null,null,null,null,null,null,null,null,null,null,{"$f":"COMPARISON!$AJ$30","v":1},null,null,null,null,null,null,null,8,""]
[" ",null,"What position(s) are the wrists in when typing/keying?",null,null,null,null,null,null,null,null,null,null,null,null,null,null,null,null,null,null,null,null,null,null,null,null,null,null,null,null,null,null,null,null,{"$f":"COMPARISON!$AJ$30","v":1},null,null,null,null,null,null,null,1,""]
[null,null,null,null,null,null,null,null,null,null,null,null,null,null,null,null,null,null,null,null,null,null,null,null,null,null,null,null,null,null,null,null,null,null,null,{"$f":"COMPARISON!$AJ$30","v":1},null,null,null,null,null,null,null,1,""]
[null,null,null,"£","Mostly neutral, OR",null,null,null,null,null,null,null,null,null,null,null,null,null,null,null,null,null,null,null,null,null,null,null,null,null,null,null,null,null,null,{"$f":"COMPARISON!$AJ$30","v":1},null,null,null,null,null,null,null,1,""]
[null,null,null,null,null,null,null,null,null,null,null,null,null,null,null,null,null,null,null,null,null,null,null,null,null,null,null,null,null,null,null,null,null,null,null,{"$f":"COMPARISON!$AJ$30","v":1},null,null,null,null,null,null,null,1,""]
[null,null,"(Select all that apply below:)",null,null,null,null,null,null,null,null,null,null,null,null,null,null,null,null,null,null,null,null,null,null,null,null,null,null,null,null,null,null,null,null,{"$f":"COMPARISON!$AJ$30","v":1},null,null,null,null,null,null,null,1,""]
[null,null,null,"£","Wrist flexion > 30°",null,null,null,null,null,null,null,null,null,null,null,null,null,null,null,null,null,null,null,null,null,null,null,null,null,null,null,null,null,null,{"$f":"COMPARISON!$AJ$30","v":1},null,null,null,null,null,null,null,1,""]
[null,null,null,"£","Wrist extension > 45°",null,null,null,null,null,null,null,null,null,null,null,null,null,null,null,null,null,null,null,null,null,null,null,null,null,null,null,null,null,null,{"$f":"COMPARISON!$AJ$30","v":1},null,null,null,null,null,null,null,1,""]
[null,null,null,"£","Ulnar wrist deviation >30°",null,null,null,null,null,null,null,null,null,null,null,null,null,null,null,null,null,null,null,null,null,null,null,null,null,null,null,null,null,null,{"$f":"COMPARISON!$AJ$30","v":1},null,null,null,null,null,null,null,1,""]
[null,null,null,null,null,null,null,null,null,null,null,null,null,null,null,null,null,null,null,null,null,null,null,null,null,null,null,null,null,null,null,null,null,null,null,{"$f":"COMPARISON!$AJ$30","v":1},null,null,null,null,null,null,null,1,""]
[null,null,null,null,null,null,null,null,null,null,null,null,null,null,null,null,null,null,null,null,null,null,null,null,null,null,null,null,null,null,null,null,null,null,null,{"$f":"COMPARISON!$AJ$30","v":1},null,null,null,null,null,null,null,1,""]
[null,null,null,null,null,null,null,null,null,null,null,null,null,null,null,null,null,null,null,null,null,null,null,null,null,null,null,null,null,null,null,null,null,null,null,{"$f":"\"O\"","v":"O"},null,null,null,null,null,null,null,1,""]
[null,null,null,null,null,null,null,null,null,null,null,null,null,null,null,null,null,null,null,null,null,null,null,null,null,null,null,null,null,null,null,null,null,null,null,{"$f":"COMPARISON!$AJ$30","v":1},null,null,null,null,null,null,null,9,""]
[null,null,null,null,null,null,null,null,null,null,null,null,null,null,null,null,null,null,null,null,null,null,null,null,null,null,null,null,null,null,null,null,null,null,null,{"$f":"COMPARISON!$AJ$30","v":1},null,null,null,null,null,null,null,8,""]
[null,null,null,null,null,null,null,null,null,null,null,null,null,null,null,null,null,null,null,null,null,null,null,null,null,null,null,null,null,null,null,null,null,null,null,{"$f":"\"o\"","v":"o"},null,null,null,null,null,null,null,9]
[null,"FORCEFUL HAND IMPACTS",null,null,null,null,null,null,null,null,null,null,null,null,null,null,null,null,null,null,null,null,null,null,null,null,null,null,null,null,null,null,null,null,null,{"$f":"COMPARISON!$AJ$32","v":1},null,null,null,null,null,null,null,1,{"$f":"IF(AK246=1,1,IF(AK246=\"\",\"\",0))","v":""}]
[null,null,null,null,null,null,null,null,null,null,null,null,null,null,null,null,null,null,null,null,null,null,null,null,null,null,null,null,null,null,null,null,null,null,null,{"$f":"COMPARISON!$AJ$32","v":1},null,null,null,null,null,null,null,1,""]
[null,null,"Does this worker use a kerf saw in a sawmill?",null,null,null,null,null,null,null,null,null,null,null,null,null,null,null,null,null,null,null,null,null,null,null,null,null,null,null,null,null,null,null,null,{"$f":"COMPARISON!$AJ$32","v":1},null,null,null,null,null,null,null,1,""]
[" ",null,null,"£","No",null,null,null,null,null,null,null,null,null,null,null,null,null,null,null,null,null,null,null,null,null,null,null,null,null,null,null,null,null,null,{"$f":"COMPARISON!$AJ$32","v":1},null,null,null,null,null,null,null,1,""]
[" ",null,null,"£","Yes:  COMPLETE FREQUENCY BELOW ?",null,null,null,null,null,null,null,null,null,null,null,null,null,null,null,null,null,null,null,null,null,null,null,null,null,null,null,null,null,null,{"$f":"COMPARISON!$AJ$32","v":1},null,null,null,null,null,null,null,2,""]
[" ",null,null,null,null,null,null,null,null,null,null,null,null,null,null,null,null,null,null,null,null,null,null,null,null,null,null,null,null,null,null,null,null,null,null,{"$f":"COMPARISON!$AJ$32","v":1},null,null,null,null,null,null,null,9]
[" ",null,"FREQUENCY",null,null,null,null,null,null,null,null,null,null,null,null,null,null,null,null,null,null,null,null,null,null,null,null,null,null,null,null,null,null,null,null,{"$f":"COMPARISON!$AJ$32","v":1},null,null,null,null,null,null,null,9]
[null,null,null,null,null,null,null,null,null,null,null,null,null,null,null,null,null,null,null,null,null,null,null,null,null,null,null,null,null,null,null,null,null,null,null,{"$f":"COMPARISON!$AJ$32","v":1},null,null,null,null,null,null,null,9]
[null,null,null,null,"Does this work involve using the hand (heel/base of palm) as a hammer:",null,null,null,null,null,null,null,null,null,null,null,null,null,null,null,null,null,null,null,null,null,null,null,null,null,null,null,null,null,null,{"$f":"COMPARISON!$AJ$32","v":1},null,null,null,null,null,null,null,1,""]
[null,null,null,null,null,"£","2 hours or less per day",null,null,null,null,null,null,null,null,null,null,null,null,null,null,null,null,null,null,null,null,null,null,null,null,null,null,null,null,{"$f":"COMPARISON!$AJ$32","v":1},null,null,null,null,null,null,null,1,""]
[null,null,null,null,null,"£",">10 times per hour for more than 2 hours total per day",null,null,null,null,null,null,null,null,null,null,null,null,null,null,null,null,null,null,null,null,null,null,null,null,null,null,null,null,{"$f":"COMPARISON!$AJ$32","v":1},null,null,null,null,null,null,null,1,""]
[null,null,null,null,null,"£","More than once per minute for more than 2 hours total per day",null,null,null,null,null,null,null,null,null,null,null,null,null,null,null,null,null,null,null,null,null,null,null,null,null,null,null,null,{"$f":"COMPARISON!$AJ$32","v":1},null,null,null,null,null,null,null,2,""]
[null,null,null,null,null,null,null,null,null,null,null,null,null,null,null,null,null,null,null,null,null,null,null,null,null,null,null,null,null,null,null,null,null,null,null,{"$f":"COMPARISON!$AJ$32","v":1},null,null,null,null,null,null,null,8]
["NOTES:",null,null,null,null,null,null,null,null,null,null,null,null,null,null,null,null,null,null,null,null,null,null,null,null,null,null,null,null,null,null,null,null,null,null,{"$f":"COMPARISON!$AJ$29","v":1},null,null,null,null,null,null,null,1,{"$f":"IF(AK259=1,1,IF(AK259=\"\",\"\",0))","v":""}]
[null,"Repetition - Hand",null,null,null,null,null,null,null,null,null,null,null,null,null,null,null,null,null,null,null,null,null,null,null,null,null,null,null,null,null,null,null,null,null,{"$f":"COMPARISON!$AJ$31","v":1},{"$f":"IF(COMPARISON!$AJ$29=1,1,0)","v":1},0,0,0,0,0,{"$f":"$AK$218","v":1},1,{"$f":"IF(AK260=1,1,IF(AK260=\"\",\"\",0))","v":1}]
[null,"HIGHLY REPETITIVE MOTION",null,null,null,null,null,null,null,null,null,null,null,null,null,null,null,null,null,null,null,null,null,null,null,null,null,null,null,null,null,null,null,null,null,{"$f":"COMPARISON!$AJ$31","v":1},null,null,null,null,null,null,null,1,{"$f":"IF(AK261=1,1,IF(AK261=\"\",\"\",0))","v":""}]
[null,null,null,null,null,null,null,null,null,null,null,null,null,null,null,null,null,null,null,null,null,null,null,null,null,null,null,null,null,null,null,null,null,null,null,{"$f":"COMPARISON!$AJ$31","v":1},null,null,null,null,null,null,null,1,""]
[null,null,"How long does this work involve repeating the same motions with the wrists or hands (excluding keying activities) with little or no variation every few seconds?",null,null,null,null,null,null,null,null,null,null,null,null,null,null,null,null,null,null,null,null,null,null,null,null,null,null,null,null,null,null,null,null,{"$f":"COMPARISON!$AJ$31","v":1},null,null,null,null,null,null,null,5,""]
[null,null,null,"£","2 hours or less per day",null,null,null,null,null,null,null,null,null,null,null,null,null,null,null,null,null,null,null,null,null,null,null,null,null,null,null,null,null,null,{"$f":"COMPARISON!$AJ$31","v":1},null,null,null,null,null,null,null,1,""]
[null,null,null,"£","More than 2 hours total per day",null,null,null,null,null,null,null,null,null,null,null,null,null,"COMPLETE WRIST POSTURE BELOW?",null,null,null,null,null,null,null,null,null,null,null,null,null,null,null,null,{"$f":"COMPARISON!$AJ$31","v":1},null,null,null,null,null,null,null,1,""]
[null,null,null,"£","More than 6 hours total per day",null,null,null,null,null,null,null,null,null,null,null,null,null,null,null,null,null,null,null,null,null,null,null,null,null,null,null,null,null,null,{"$f":"COMPARISON!$AJ$31","v":1},null,null,null,null,null,null,null,2,""]
[null,null,null,null,null,null,null,null,null,null,null,null,null,null,null,null,null,null,null,null,null,null,null,null,null,null,null,null,null,null,null,null,null,null,null,{"$f":"COMPARISON!$AJ$31","v":1},null,null,null,null,null,null,null,1,""]
[null,null,null,"WRIST POSTURES",null,null,null,null,null,null,null,null,null,null,null,null,null,null,null,null,null,null,null,null,null,null,null,null,null,null,null,null,null,null,null,{"$f":"COMPARISON!$AJ$31","v":1},null,null,null,null,null,null,null,1,""]
[null,null,null,null,null,null,null,null,null,null,null,null,null,null,null,null,null,null,null,null,null,null,null,null,null,null,null,null,null,null,null,null,null,null,null,{"$f":"COMPARISON!$AJ$31","v":1},null,null,null,null,null,null,null,1,""]
[null,null,"If more than 2 hours total per day, does this work also involve:",null,null,null,null,null,null,null,null,null,null,null,null,null,null,null,null,null,null,null,null,null,null,null,null,null,null,null,null,null,null,null,null,{"$f":"COMPARISON!$AJ$31","v":1},null,null,null,null,null,null,null,1,""]
[null,null,null,null,null,null,null,null,null,null,null,null,null,null,null,null,null,null,null,null,null,null,null,null,null,null,null,null,null,null,null,null,null,null,null,{"$f":"COMPARISON!$AJ$31","v":1},null,null,null,null,null,null,null,1,""]
[null,null,null,null,"£","No other risk factors, OR",null,null,null,null,null,null,null,null,null,null,null,null,null,null,null,null,null,null,null,null,null,null,null,null,null,null,null,null,null,{"$f":"COMPARISON!$AJ$31","v":1},null,null,null,null,null,null,null,1,""]
[null,null,null,null,null,null,null,null,null,null,null,null,null,null,null,null,null,null,null,null,null,null,null,null,null,null,null,null,null,null,null,null,null,null,null,{"$f":"COMPARISON!$AJ$31","v":1},null,null,null,null,null,null,null,1,""]
[null,null,null,"Select all that apply below:",null,null,null,null,null,null,null,null,null,null,null,null,null,null,null,null,null,null,null,null,null,null,null,null,null,null,null,null,null,null,null,{"$f":"COMPARISON!$AJ$31","v":1},null,null,null,null,null,null,null,1,""]
[null,null,null,null,"£","Forceful hand exertions",null,null,null,null,null,null,null,null,null,null,null,null,null,null,null,null,null,null,null,null,null,null,null,null,null,null,null,null,null,{"$f":"COMPARISON!$AJ$31","v":1},null,null,null,null,null,null,null,2,""]
[null,null,null,null,"£","Wrist flexion > 30° ",null,null,null,null,null,null,null,null,null,null,null,null,null,null,null,null,null,null,null,null,null,null,null,null,null,null,null,null,null,{"$f":"COMPARISON!$AJ$31","v":1},null,null,null,null,null,null,null,2,""]
[null,null,null,null,"£","Wrist extension > 45°",null,null,null,null,null,null,null,null,null,null,null,null,null,null,null,null,null,null,null,null,null,null,null,null,null,null,null,null,null,{"$f":"COMPARISON!$AJ$31","v":1},null,null,null,null,null,null,null,2,""]
[null,null,null,null,"£","Ulnar deviation > 30°",null,null,null,null,null,null,null,null,null,null,null,null,null,null,null,null,null,null,null,null,null,null,null,null,null,null,null,null,null,{"$f":"COMPARISON!$AJ$31","v":1},null,null,null,null,null,null,null,2,""]
[null,null,null,null,null,null,null,null,null,null,null,null,null,null,null,null,null,null,null,null,null,null,null,null,null,null,null,null,null,null,null,null,null,null,null,{"$f":"COMPARISON!$AJ$31","v":1},null,null,null,null,null,null,null,1,""]
[null,null,null,null,null,null,null,null,null,null,null,null,null,null,null,null,null,null,null,null,null,null,null,null,null,null,null,null,null,null,null,null,null,null,null,1,null,null,null,null,null,null,null,1]
[null,null,null,null,null,null,null,null,null,null,null,null,null,null,null,null,null,null,null,null,null,null,null,null,null,null,null,null,null,null,null,null,null,null,null,1,null,null,null,null,null,null,null,1]
[null,null,null,null,null,null,null,null,null,null,null,null,null,null,null,null,null,null,null,null,null,null,null,null,null,null,null,null,null,null,null,null,null,null,null,1,null,null,null,null,null,null,null,1]
[null,null,null,null,null,null,null,null,null,null,null,null,null,null,null,null,null,null,null,null,null,null,null,null,null,null,null,null,null,null,null,null,null,null,null,{"$f":"COMPARISON!$AJ$31","v":1},null,null,null,null,null,null,null,1,""]
["NOTES:",null,null,null,null,null,null,null,null,null,null,null,null,null,null,null,null,null,null,null,null,null,null,null,null,null,null,null,null,null,null,null,null,null,null,{"$f":"COMPARISON!$AJ$31","v":1},null,null,null,null,null,null,null,1,{"$f":"IF(AK284=1,1,IF(AK284=\"\",\"\",0))","v":""}]
[null,"Repetition - Foot",null,null,null,null,null,null,null,null,null,null,null,null,null,null,null,null,null,null,null,null,null,null,null,null,null,null,null,null,null,null,null,null,null,{"$f":"COMPARISON!AJ34","v":1},1,0,{"$f":"$AK$285","v":1},{"$f":"$AK$285","v":1},{"$f":"$AK$285","v":1},0,{"$f":"$AK$285","v":1},1,{"$f":"IF(AK285=1,1,IF(AK285=\"\",\"\",0))","v":1}]
[null,"FOOT CONTROLS",null,null,null,null,null,null,null,null,null,null,null,null,null,null,null,null,null,null,null,null,null,null,null,null,null,null,null,null,null,null,null,null,null,{"$f":"COMPARISON!$AJ$35","v":1},null,null,null,null,null,null,null,1,{"$f":"IF(AK286=1,1,IF(AK286=\"\",\"\",0))","v":""}]
[null,null,null,null,null,null,null,null,null,null,null,null,null,null,null,null,null,null,null,null,null,null,null,null,null,null,null,null,null,null,null,null,null,null,null,{"$f":"COMPARISON!$AJ$35","v":1},null,null,null,null,null,null,null,1,""]
[null,null,"Does this work require repetitively using foot controls for:",null,null,null,null,null,null,null,null,null,null,null,null,null,null,null,null,null,null,null,null,null,null,null,null,null,null,null,null,null,null,null,null,{"$f":"COMPARISON!$AJ$35","v":1},null,null,null,null,null,null,null,1,""]
[null,null,null,"£","≤2 hours a day, or none",null,null,null,null,null,null,null,null,null,null,null,null,null,null,null,null,null,null,null,null,null,null,null,null,null,null,null,null,null,null,{"$f":"COMPARISON!$AJ$35","v":1},null,null,null,null,null,null,null,1,""]
[null,null,null,"£","More than 2 hours total per day, PLUS: ",null,null,null,null,null,null,null,null,null,null,null,null,null,null,null,null,null,null,null,null,null,null,null,null,null,null,null,null,null,null,{"$f":"COMPARISON!$AJ$35","v":1},null,null,null,null,null,null,null,1,""]
[null,null,null,null,null,"£","Awkward foot postures",null,null,null,null,null,null,null,null,null,null,null,null,null,null,null,null,null,null,null,null,null,null,null,null,null,null,null,null,{"$f":"COMPARISON!$AJ$35","v":1},null,null,null,null,null,null,null,1,""]
[null,null,null,null,null,"£","High forceful foot exertions",null,null,null,null,null,null,null,null,null,null,null,null,null,null,null,null,null,null,null,null,null,null,null,null,null,null,null,null,{"$f":"COMPARISON!$AJ$35","v":1},null,null,null,null,null,null,null,1,""]
[null,null,null,null,null,"£","No awkward postures or forceful exertions",null,null,null,null,null,null,null,null,null,null,null,null,null,null,null,null,null,null,null,null,null,null,null,null,null,null,null,null,{"$f":"COMPARISON!$AJ$35","v":1},null,null,null,null,null,null,null,1,""]
[null,null,null,"£",">6 hours total per day with little or no variation",null,null,null,null,null,null,null,null,null,null,null,null,null,null,null,null,null,null,null,null,null,null,null,null,null,null,null,null,null,null,{"$f":"COMPARISON!$AJ$35","v":1},null,null,null,null,null,null,null,2,""]
["NOTES:",null,null,null,null,null,null,null,null,null,null,null,null,null,null,null,null,null,null,null,null,null,null,null,null,null,null,null,null,null,null,null,null,null,null,{"$f":"COMPARISON!$AJ$35","v":1},null,null,null,null,null,null,null,1,{"$f":"IF(AK295=1,1,IF(AK295=\"\",\"\",0))","v":""}]
[null,"Gripping",null,null,null,null,null,null,null,null,null,null,null,null,null,null,null,null,null,null,null,null,null,null,null,null,null,null,null,null,null,null,null,null,null,{"$f":"COMPARISON!$AJ$36","v":1},{"$f":"IF(COMPARISON!$AJ$37=1,1,0)","v":1},{"$f":"$AK$296","v":1},1,1,1,1,1,1,{"$f":"IF(AK296=1,1,IF(AK296=\"\",\"\",0))","v":1}]
[null,"PINCH GRIP",null,null,null,null,null,null,null,null,null,null,null,null,null,null,null,null,null,null,null,null,null,null,null,null,null,null,null,null,null,null,null,null,null,{"$f":"COMPARISON!$AJ$36","v":1},null,null,null,null,null,null,null,1,{"$f":"IF(AK297=1,1,IF(AK297=\"\",\"\",0))","v":""}]
[null,null,null,null,null,null,null,null,null,null,null,null,null,null,null,null,null,null,null,null,null,null,null,null,null,null,null,null,null,null,null,null,null,null,null,{"$f":"COMPARISON!$AJ$36","v":1},null,null,null,null,null,null,null,10,{"$f":"IF(AK298=1,1,IF(AK298=\"\",\"\",0))","v":""}]
[null,null,"DURATION",null,null,null,null,null,null,null,null,null,null,null,null,null,null,null,null,null,null,null,null,null,null,null,null,null,null,null,null,null,null,null,null,{"$f":"COMPARISON!$AJ$36","v":1},null,null,null,null,null,null,null,9,{"$f":"IF(AK299=1,1,IF(AK299=\"\",\"\",0))","v":""}]
[null,null,null,null,null,null,null,"Total hours DURING THIS WORK pinching an unsupported object weighing 2 lbs. or more PER HAND, or using a force of 4 lbs. or more PER HAND (like pinching half a ream of paper) for:",null,null,null,null,null,null,null,null,null,null,null,null,null,null,null,null,null,null,null,null,null,null,null,null,null,null,null,{"$f":"COMPARISON!$AJ$36","v":1},null,null,null,null,null,null,null,9,{"$f":"IF(AK300=1,1,IF(AK300=\"\",\"\",0))","v":""}]
[null,null,null,null,null,null,null,null,null,null,null,null,null,null,null,null,null,null,null,null,null,null,null,null,null,null,null,null,null,null,null,null,null,null,null,{"$f":"COMPARISON!$AJ$36","v":1},null,null,null,null,null,null,null,2,""]
[null,null,null,null,null,null,null,null,null,null,null,null,null,null,null,null,null,null,null,null,null,null,null,null,null,null,null,null,null,null,null,null,"hours  ",null,null,{"$f":"COMPARISON!$AJ$36","v":1},null,null,null,null,null,null,null,2,""]
[null,null,null,null,null,null,null,null,null,null,null,null,null,null,null,null,null,null,null,null,null,null,null,null,null,null,null,null,null,null,null,null,null,null,null,{"$f":"COMPARISON!$AJ$36","v":1},null,null,null,null,null,null,null,1,""]
[null,null,"If duration is more than 3.0 hours:",null,null,null,null,null,null,null,null,null,null,null,null,null,null,null,null,null,null,null,null,null,null,null,null,null,null,null,null,null,null,null,null,{"$f":"COMPARISON!$AJ$36","v":1},null,null,null,null,null,null,null,8,""]
[null,null,null,null,null,null,null,null,null,null,null,null,null,null,null,null,null,null,null,null,null,null,null,null,null,null,null,null,null,null,null,null,null,null,null,{"$f":"COMPARISON!$AJ$36","v":1},null,null,null,null,null,null,null,8,""]
[null,null,null,"Does this work also involve:",null,null,null,null,null,null,null,null,null,null,null,null,null,null,null,null,null,null,null,null,null,null,null,null,null,null,null,null,null,null,null,{"$f":"COMPARISON!$AJ$36","v":1},null,null,null,null,null,null,null,1,""]
[null,null,null,null,"£","No other risk factors, OR",null,null,null,null,null,null,null,null,null,null,null,null,null,null,null,null,null,null,null,null,null,null,null,null,null,null,null,null,null,{"$f":"COMPARISON!$AJ$36","v":1},null,null,null,null,null,null,null,1,""]
[null,null,null,null,null,null,null,null,null,null,null,null,null,null,null,null,null,null,null,null,null,null,null,null,null,null,null,null,null,null,null,null,null,null,null,{"$f":"COMPARISON!$AJ$36","v":1},null,null,null,null,null,null,null,1,""]
[null,null,null,"(Select all that apply below:)",null,null,null,null,null,null,null,null,null,null,null,null,null,null,null,null,null,null,null,null,null,null,null,null,null,null,null,null,null,null,null,{"$f":"COMPARISON!$AJ$36","v":1},null,null,null,null,null,null,null,1,""]
[null,null,null,null,"£","Highly repetitive motions",null,null,null,null,null,null,null,null,null,null,null,null,null,null,null,null,null,null,null,null,null,null,null,null,null,null,null,null,null,{"$f":"COMPARISON!$AJ$36","v":1},null,null,null,null,null,null,null,1,""]
[null,null,null,null,"£","Ulnar deviation > 30°",null,null,null,null,null,null,null,null,null,null,null,null,null,null,null,null,null,null,null,null,null,null,null,null,null,null,null,null,null,{"$f":"COMPARISON!$AJ$36","v":1},null,null,null,null,null,null,null,1,""]
[null,null,null,null,"£","Wrist flexion > 30° ",null,null,null,null,null,null,null,null,null,null,null,null,null,null,null,null,null,null,null,null,null,null,null,null,null,null,null,null,null,{"$f":"COMPARISON!$AJ$36","v":1},null,null,null,null,null,null,null,1,""]
[null,null,null,null,"£","Wrist extension > 45°",null,null,null,null,null,null,null,null,null,null,null,null,null,null,null,null,null,null,null,null,null,null,null,null,null,null,null,null,null,{"$f":"COMPARISON!$AJ$36","v":1},null,null,null,null,null,null,null,1,""]
[null,null,null,null,null,null,null,null,null,null,null,null,null,null,null,null,null,null,null,null,null,null,null,null,null,null,null,null,null,null,null,null,null,null,null,{"$f":"COMPARISON!$AJ$36","v":1},null,null,null,null,null,null,null,1,""]
[null,null,null,null,null,null,null,null,null,null,null,null,null,null,null,null,null,null,null,null,null,null,null,null,null,null,null,null,null,null,null,null,null,null,null,{"$f":"\"o\"","v":"o"},null,null,null,null,null,null,null,8,""]
[null,null,null,null,null,null,null,null,null,null,null,null,null,null,null,null,null,null,null,null,null,null,null,null,null,null,null,null,null,null,null,null,null,null,null,{"$f":"COMPARISON!$AJ$36","v":1},null,null,null,null,null,null,null,9,""]
[null,null,null,null,null,null,null,null,null,null,null,null,null,null,null,null,null,null,null,null,null,null,null,null,null,null,null,null,null,null,null,null,null,null,null,{"$f":"COMPARISON!$AJ$36","v":1},null,null,null,null,null,null,null,8,""]
["NOTES:",null,null,null,null,null,null,null,null,null,null,null,null,null,null,null,null,null,null,null,null,null,null,null,null,null,null,null,null,null,null,null,null,null,null,{"$f":"\"o\"","v":"o"},null,null,null,null,null,null,null,1,""]
[null,"Gripping",null,null,null,null,null,null,null,null,null,null,null,null,null,null,null,null,null,null,null,null,null,null,null,null,null,null,null,null,null,null,null,null,null,{"$f":"\"o\"","v":"o"},0,{"$f":"$AK$319","v":0},0,0,0,0,0,1,0]
[null,"POWER GRIP",null,null,null,null,null,null,null,null,null,null,null,null,null,null,null,null,null,null,null,null,null,null,null,null,null,null,null,null,null,null,null,null,null,{"$f":"COMPARISON!$AJ$38","v":1},null,null,null,null,null,null,null,1,""]
[null,null,null,null,null,null,null,null,null,null,null,null,null,null,null,null,null,null,null,null,null,null,null,null,null,null,null,null,null,null,null,null,null,null,null,{"$f":"COMPARISON!$AJ$38","v":1},null,null,null,null,null,null,null,10,""]
[null,null,"DURATION",null,null,null,null,null,null,null,null,null,null,null,null,null,null,null,null,null,null,null,null,null,null,null,null,null,null,null,null,null,null,null,null,{"$f":"COMPARISON!$AJ$38","v":1},null,null,null,null,null,null,null,9,""]
[null,null,null,null,null,null,null,"Total hours DURING THIS WORK gripping an unsupported object(s) weighing 10 lbs. or more PER HAND, or using a force of 10 lbs. or more PER HAND (like opening jumper cables) for:",null,null,null,null,null,null,null,null,null,null,null,null,null,null,null,null,null,null,null,null,null,null,null,null,null,null,null,{"$f":"COMPARISON!$AJ$38","v":1},null,null,null,null,null,null,null,9,""]
[null,null,null,null,null,null,null,null,null,null,null,null,null,null,null,null,null,null,null,null,null,null,null,null,null,null,null,null,null,null,null,null,null,null,null,{"$f":"COMPARISON!$AJ$38","v":1},null,null,null,null,null,null,null,2,""]
[null,null,null,null,null,null,null,null,null,null,null,null,null,null,null,null,null,null,null,null,null,null,null,null,null,null,null,null,null,null,null,null,"hours  ",null,null,{"$f":"COMPARISON!$AJ$38","v":1},null,null,null,null,null,null,null,2,""]
[null,null,null,null,null,null,null,null,null,null,null,null,null,null,null,null,null,null,null,null,null,null,null,null,null,null,null,null,null,null,null,null,null,null,null,{"$f":"COMPARISON!$AJ$38","v":1},null,null,null,null,null,null,null,1,""]
[null,null,"If duration is more than 3.0 hours:",null,null,null,null,null,null,null,null,null,null,null,null,null,null,null,null,null,null,null,null,null,null,null,null,null,null,null,null,null,null,null,null,{"$f":"COMPARISON!$AJ$38","v":1},null,null,null,null,null,null,null,8,""]
[null,null,null,null,null,null,null,null,null,null,null,null,null,null,null,null,null,null,null,null,null,null,null,null,null,null,null,null,null,null,null,null,null,null,null,{"$f":"COMPARISON!$AJ$38","v":1},null,null,null,null,null,null,null,8,""]
[null,null,null,"Does this work also involve:",null,null,null,null,null,null,null,null,null,null,null,null,null,null,null,null,null,null,null,null,null,null,null,null,null,null,null,null,null,null,null,{"$f":"COMPARISON!$AJ$38","v":1},null,null,null,null,null,null,null,1,""]
[null,null,null,null,"£","No other risk factors, OR",null,null,null,null,null,null,null,null,null,null,null,null,null,null,null,null,null,null,null,null,null,null,null,null,null,null,null,null,null,{"$f":"COMPARISON!$AJ$38","v":1},null,null,null,null,null,null,null,1,""]
[null,null,null,null,null,null,null,null,null,null,null,null,null,null,null,null,null,null,null,null,null,null,null,null,null,null,null,null,null,null,null,null,null,null,null,{"$f":"COMPARISON!$AJ$38","v":1},null,null,null,null,null,null,null,1,""]
[null,null,null,"(Select all that apply below:)",null,null,null,null,null,null,null,null,null,null,null,null,null,null,null,null,null,null,null,null,null,null,null,null,null,null,null,null,null,null,null,{"$f":"COMPARISON!$AJ$38","v":1},null,null,null,null,null,null,null,1,""]
[null,null,null,null,"£","Highly repetitive motions",null,null,null,null,null,null,null,null,null,null,null,null,null,null,null,null,null,null,null,null,null,null,null,null,null,null,null,null,null,{"$f":"COMPARISON!$AJ$38","v":1},null,null,null,null,null,null,null,1,""]
[null,null,null,null,"£","Ulnar deviation > 30°",null,null,null,null,null,null,null,null,null,null,null,null,null,null,null,null,null,null,null,null,null,null,null,null,null,null,null,null,null,{"$f":"COMPARISON!$AJ$38","v":1},null,null,null,null,null,null,null,1,""]
[null,null,null,null,"£","Wrist flexion > 30° ",null,null,null,null,null,null,null,null,null,null,null,null,null,null,null,null,null,null,null,null,null,null,null,null,null,null,null,null,null,{"$f":"COMPARISON!$AJ$38","v":1},null,null,null,null,null,null,null,1,""]
[null,null,null,null,"£","Wrist extension > 45°",null,null,null,null,null,null,null,null,null,null,null,null,null,null,null,null,null,null,null,null,null,null,null,null,null,null,null,null,null,{"$f":"COMPARISON!$AJ$38","v":1},null,null,null,null,null,null,null,1,""]
[null,null,null,null,null,null,null,null,null,null,null,null,null,null,null,null,null,null,null,null,null,null,null,null,null,null,null,null,null,null,null,null,null,null,null,{"$f":"COMPARISON!$AJ$38","v":1},null,null,null,null,null,null,null,1,""]
[null,null,null,null,null,null,null,null,null,null,null,null,null,null,null,null,null,null,null,null,null,null,null,null,null,null,null,null,null,null,null,null,null,null,null,{"$f":"\"o\"","v":"o"},null,null,null,null,null,null,null,8,""]
[null,null,null,null,null,null,null,null,null,null,null,null,null,null,null,null,null,null,null,null,null,null,null,null,null,null,null,null,null,null,null,null,null,null,null,{"$f":"COMPARISON!$AJ$38","v":1},null,null,null,null,null,null,null,9,""]
[null,null,null,null,null,null,null,null,null,null,null,null,null,null,null,null,null,null,null,null,null,null,null,null,null,null,null,null,null,null,null,null,null,null,null,{"$f":"COMPARISON!$AJ$38","v":1},null,null,null,null,null,null,null,8,""]
["NOTES:",null,null,null,null,null,null,null,null,null,null,null,null,null,null,null,null,null,null,null,null,null,null,null,null,null,null,null,null,null,null,null,null,null,null,{"$f":"COMPARISON!AJ36","v":1},null,null,null,null,null,null,null,1,""]
[null,"Manual Material Handling: MODERATE RISK LIFTING",null,null,null,null,null,null,null,null,null,null,null,null,null,null,null,null,null,null,null,null,null,null,null,null,null,null,null,null,null,null,null,null,null,{"$f":"COMPARISON!$AJ$39","v":1},{"$f":"IF(COMPARISON!$AJ$39=1,1,0)","v":1},{"$f":"$AK$342","v":1},1,1,1,1,1,1,1]
[null,null,null,null,null,null,null,null,null,null,null,null,null,null,null,null,null,null,null,null,null,null,null,null,null,null,null,null,null,null,null,null,null,null,null,{"$f":"COMPARISON!$AJ$39","v":1},null,null,null,null,null,null,null,1,""]
[null,null,null,null,null,null,null,null,null,null,null,null,null,null,null,null,null,null,null,null,null,null,null,null,null,null,null,null,null,null,null,null,null,null,null,{"$f":"COMPARISON!$AJ$39","v":1},null,null,null,null,null,null,null,1,""]
[null,null,null,null,null,null,null,null,null,null,null,null,null,null,null,null,null,null,null,null,null,null,null,null,null,null,null,null,null,null,null,null,null,null,null,{"$f":"COMPARISON!$AJ$39","v":1},null,null,null,null,null,null,null,9,""]
[null,null,"As this work is performed across the entire day, does it involve:",null,null,null,null,null,null,null,null,null,null,null,null,null,null,null,null,null,null,null,null,null,null,null,null,null,null,null,null,null,null,null,null,{"$f":"COMPARISON!$AJ$39","v":1},null,null,null,null,null,null,null,1,""]
[null,null,null,null,null,null,null,null,null,null,null,null,null,null,null,null,null,null,null,null,null,null,null,null,null,"No",null,null,null,"Yes",null,null,null,null,null,{"$f":"COMPARISON!$AJ$39","v":1},null,null,null,null,null,null,null,1,""]
[null,null,"Lifting objects weighing more than 75 lbs.?",null,null,null,null,null,null,null,null,null,null,null,null,null,null,null,null,null,null,null,null,null,null,"£",null,null,null,"£",null,null,null,null,null,{"$f":"COMPARISON!$AJ$39","v":1},null,null,null,null,null,null,null,5,""]
[null,null,"Lifting objects more than 55 lbs. more than 10 times?",null,null,null,null,null,null,null,null,null,null,null,null,null,null,null,null,null,null,null,null,null,null,"£",null,null,null,"£",null,null,null,null,null,{"$f":"COMPARISON!$AJ$39","v":1},null,null,null,null,null,null,null,5,""]
[null,null,"Lifting objects weighing more than 10 lbs. more than twice per minute for more than 2 hours total?",null,null,null,null,null,null,null,null,null,null,null,null,null,null,null,null,null,null,null,null,null,null,"£",null,null,null,"£",null,null,null,null,null,{"$f":"COMPARISON!$AJ$39","v":1},null,null,null,null,null,null,null,5,""]
[null,null,"Lifting objects weighing more than 25 lbs. above the shoulders, below the knees, or at arms length more than 25 times?",null,null,null,null,null,null,null,null,null,null,null,null,null,null,null,null,null,null,null,null,null,null,"£",null,null,null,"£",null,null,null,null,null,{"$f":"COMPARISON!$AJ$39","v":1},null,null,null,null,null,null,null,5,""]
[null,null,null,null,null,null,null,null,null,null,null,null,null,null,null,null,null,null,null,null,null,null,null,null,null,null,null,null,null,null,null,null,null,null,null,{"$f":"COMPARISON!$AJ$39","v":1},null,null,null,null,null,null,null,1,""]
[null,null,"If No to ALL questions above, lifting poses a low risk of injury. The HIGH RISK LIFTING CALCULATOR  does not need to be completed.",null,null,null,null,null,null,null,null,null,null,null,null,null,null,null,null,null,null,null,null,null,null,null,null,null,null,null,null,null,null,null,null,{"$f":"COMPARISON!$AJ$39","v":1},null,null,null,null,null,null,null,1,""]
[null,null,null,null,null,null,null,null,null,null,null,null,null,null,null,null,null,null,null,null,null,null,null,null,null,null,null,null,null,null,null,null,null,null,null,{"$f":"COMPARISON!$AJ$39","v":1},null,null,null,null,null,null,null,1,""]
[null,null,null,null,null,null,null,null,null,null,null,null,null,null,null,null,null,null,null,null,null,null,null,null,null,null,null,null,null,null,null,null,null,null,null,{"$f":"COMPARISON!$AJ$39","v":1},null,null,null,null,null,null,null,1,""]
[null,null,null,null,null,null,null,null,null,null,null,null,null,null,null,null,null,null,null,null,null,null,null,null,null,null,null,null,null,null,null,null,null,null,null,{"$f":"COMPARISON!$AJ$39","v":1},null,null,null,null,null,null,null,1,""]
[null,null,"If Yes to ANY of the questions above, lifting poses a moderate risk of injury. Complete HIGH RISK LIFTING CALCULATOR* on next page.",null,null,null,null,null,null,null,null,null,null,null,null,null,null,null,null,null,null,null,null,null,null,null,null,null,null,null,null,null,null,null,null,{"$f":"COMPARISON!$AJ$39","v":1},null,null,null,null,null,null,null,1,""]
[null,null,null,null,null,null,null,null,null,null,null,null,null,null,null,null,null,null,null,null,null,null,null,null,null,null,null,null,null,null,null,null,null,null,null,{"$f":"COMPARISON!$AJ$39","v":1},null,null,null,null,null,null,null,1,""]
[null,null,null,null,null,null,null,null,null,null,null,null,null,null,null,null,null,null,null,null,null,null,null,null,null,null,null,null,null,null,null,null,null,null,null,{"$f":"COMPARISON!$AJ$39","v":1},null,null,null,null,null,null,null,1,""]
[null,null,null,null,null,null,null,null,null,null,null,null,null,null,null,null,null,null,null,null,null,null,null,null,null,null,null,null,null,null,null,null,null,null,null,{"$f":"COMPARISON!$AJ$39","v":1},null,null,null,null,null,null,null,1,""]
[null,null,null,null,null,null,null,null,null,null,null,null,null,null,null,null,null,null,null,null,null,null,null,null,null,null,null,null,null,null,null,null,null,null,null,{"$f":"COMPARISON!$AJ$39","v":1},null,null,null,null,null,null,null,1,""]
[null,"*If YES to ANY of these questions, the lowest possible level of risk will be moderate.",null,null,null,null,null,null,null,null,null,null,null,null,null,null,null,null,null,null,null,null,null,null,null,null,null,null,null,null,null,null,null,null,null,{"$f":"COMPARISON!$AJ$39","v":1},null,null,null,null,null,null,null,2,""]
["NOTES:",null,null,null,null,null,null,null,null,null,null,null,null,null,null,null,null,null,null,null,null,null,null,null,null,null,null,null,null,null,null,null,null,null,null,{"$f":"COMPARISON!$AJ$39","v":1},null,null,null,null,null,null,null,1,""]
[null,"Manual Material Handling: LIFTING",null,null,null,null,null,null,null,null,null,null,null,null,null,null,null,null,null,null,null,null,null,null,null,null,null,null,null,null,null,null,null,null,null,{"$f":"COMPARISON!$AJ$42","v":1},{"$f":"COMPARISON!$AJ$42","v":1},{"$f":"IF($AK364=\"o\",0,1)","v":1},1,1,1,1,1,1,{"$f":"IF(AK364=1,1,IF(AK364=\"\",\"\",0))","v":1}]
[null,"Describe the most strenuous lifting activity in this work:",null,null,null,null,null,null,null,null,null,null,null,null,null,null,null,null,null,null,null,null,null,null,null,null,null,null,null,null,null,null,null,null,null,{"$f":"COMPARISON!$AJ$42","v":1},null,null,null,null,null,null,null,1,""]
[null,null,null,null,null,null,null,null,null,null,null,null,null,null,null,null,null,null,null,null,null,null,null,null,null,null,null,null,null,null,null,null,null,null,null,{"$f":"COMPARISON!$AJ$42","v":1},null,null,null,null,null,null,null,1,""]
[null,null,null,null,null,null,null,null,null,null,null,null,null,null,null,null,null,null,null,null,null,null,null,null,null,null,null,null,null,null,null,null,null,null,null,{"$f":"COMPARISON!$AJ$42","v":1},null,null,null,null,null,null,null,1,""]
[null,null,null,null,null,null,null,null,null,null,null,null,null,null,null,null,null,null,null,null,null,null,null,null,null,null,null,null,null,null,null,null,null,null,null,{"$f":"COMPARISON!$AJ$42","v":1},null,null,null,null,null,null,null,1,""]
[null,null,null,null,null,null,null,null,null,null,null,null,null,null,null,null,null,null,null,null,null,null,null,null,null,null,null,null,null,null,null,null,null,null,null,{"$f":"COMPARISON!$AJ$42","v":1},null,null,null,null,null,null,null,1,""]
[null,null,null,null,null,null,null,null,null,null,null,null,null,null,null,null,null,null,null,null,null,null,null,null,null,null,null,null,null,null,null,null,null,null,null,{"$f":"COMPARISON!$AJ$42","v":1},null,null,null,null,null,null,null,1,""]
[null,null,null,null,null,null,null,null,null,null,null,null,null,null,null,null,null,null,null,null,null,null,null,null,null,null,null,null,null,null,null,null,null,null,null,{"$f":"COMPARISON!$AJ$42","v":1},null,null,null,null,null,null,null,1,""]
[" ",null,"DURATION",null,null,null,null,null,null,null,null,null,null,null,null,null,null,null,null,null,null,null,null,null,null,null,null,null,null,null,null,null,null,null,null,{"$f":"COMPARISON!$AJ$42","v":1},null,null,null,null,null,null,null,1,""]
[null,null,null,null,null,null,null,null,null,null,null,null,null,null,null,null,null,null,null,null,null,null,null,null,null,null,null,null,null,null,null,null,null,null,null,{"$f":"COMPARISON!$AJ$42","v":1},null,null,null,null,null,null,null,1,""]
[null,null,null,"On average, how much time is spent per day on this lifting activity?",null,null,null,null,null,null,null,null,null,null,null,null,null,null,null,null,null,null,null,null,null,null,null,null,null,null,null,null,null,null,null,{"$f":"COMPARISON!$AJ$42","v":1},null,null,null,null,null,null,null,1,""]
[" ",null,null,null,"£","2 hours or less",null,null,null,null,null,null,null,null,null,null,null,null,null,null,null,null,null,null,null,null,null,null,null,null,null,null,null,null,null,{"$f":"COMPARISON!$AJ$42","v":1},null,null,null,null,null,null,null,1,""]
[null,null,null,null,"£","More than 2 hours",null,null,null,null,null,null,null,null,null,null,null,null,null,null,null,null,null,null,null,null,null,null,null,null,null,null,null,null,null,{"$f":"COMPARISON!$AJ$42","v":1},null,null,null,null,null,null,null,2,""]
[null,null,"FREQUENCY",null,null,null,null,null,null,null,null,null,null,null,null,null,null,null,null,null,null,null,null,null,null,null,null,null,null,null,null,null,null,null,null,{"$f":"COMPARISON!$AJ$42","v":1},null,null,null,null,null,null,null,1,""]
[null,null,null,null,null,null,null,null,null,null,null,null,null,null,null,null,null,null,null,null,null,null,null,null,null,null,null,null,null,null,null,null,null,null,null,{"$f":"COMPARISON!$AJ$42","v":1},null,null,null,null,null,null,null,1,""]
[null,null,null,"On average, lifts are performed once every:",null,null,null,null,null,null,null,null,null,null,null,null,null,null,null,null,null,null,null,null,null,null,null,null,null,null,null,null,null,null,null,{"$f":"COMPARISON!$AJ$42","v":1},null,null,null,null,null,null,null,1,""]
[" ",null,null,null,"£","10 seconds",null,null,null,null,null,null,null,null,null,null,null,null,null,null,null,null,null,null,null,null,null,null,null,null,null,null,null,null,null,{"$f":"COMPARISON!$AJ$42","v":1},null,null,null,null,null,null,null,1,""]
[" ",null,null,null,"£","1 minute",null,null,null,null,null,null,null,null,null,null,null,null,null,null,null,null,null,null,null,null,null,null,null,null,null,null,null,null,null,{"$f":"COMPARISON!$AJ$42","v":1},null,null,null,null,null,null,null,1,""]
[null,null,null,null,"£","2 minutes",null,null,null,null,null,null,null,null,null,null,null,null,null,null,null,null,null,null,null,null,null,null,null,null,null,null,null,null,null,{"$f":"COMPARISON!$AJ$42","v":1},null,null,null,null,null,null,null,1,""]
[null,null,null,null,"£","5 minutes, or more",null,null,null,null,null,null,null,null,null,null,null,null,null,null,null,null,null,null,null,null,null,null,null,null,null,null,null,null,null,{"$f":"COMPARISON!$AJ$42","v":1},null,null,null,null,null,null,null,2,""]
[null,null,"PROXIMITY (see diagram)",null,null,null,null,null,null,null,null,null,null,null,null,null,null,null,null,null,null,null,null,null,null,null,null,null,null,null,null,null,null,null,null,{"$f":"COMPARISON!$AJ$42","v":1},null,null,null,null,null,null,null,1,""]
[null,null,null,null,null,null,null,null,null,null,null,null,null,null,null,null,null,null,null,null,null,null,null,null,null,null,null,null,null,null,null,null,null,null,null,{"$f":"COMPARISON!$AJ$42","v":1},null,null,null,null,null,null,null,1,""]
[null,null,null,"Distance of the hands from the body during lift:",null,null,null,null,null,null,null,null,null,null,null,null,null,null,null,null,null,null,null,null,null,null,null,null,null,null,null,null,null,null,null,{"$f":"COMPARISON!$AJ$42","v":1},null,null,null,null,null,null,null,4,""]
[" ",null,null,null,"£","Close: <12 inches",null,null,null,null,null,null,null,null,null,null,null,null,null,null,null,null,null,null,null,null,null,null,null,null,null,null,null,null,null,{"$f":"COMPARISON!$AJ$42","v":1},null,null,null,null,null,null,null,1,""]
[null,null,null,null,"£","Intermediate: 12-24 inches",null,null,null,null,null,null,null,null,null,null,null,null,null,null,null,null,null,null,null,null,null,null,null,null,null,null,null,null,null,{"$f":"COMPARISON!$AJ$42","v":1},null,null,null,null,null,null,null,1,""]
[null,null,null,null,"£","Extended: >24 inches",null,null,null,null,null,null,null,null,null,null,null,null,null,null,null,null,null,null,null,null,null,null,null,null,null,null,null,null,null,{"$f":"COMPARISON!$AJ$42","v":1},null,null,null,null,null,null,null,2,""]
[null,null,"HAND HEIGHT (see diagram)",null,null,null,null,null,null,null,null,null,null,null,null,null,null,null,null,null,null,null,null,null,null,null,null,null,null,null,null,null,null,null,null,{"$f":"COMPARISON!$AJ$42","v":1},null,null,null,null,null,null,null,1,""]
[null,null,null,null,null,null,null,null,null,null,null,null,null,null,null,null,null,null,null,null,null,null,null,null,null,null,null,null,null,null,null,null,null,null,null,{"$f":"COMPARISON!$AJ$42","v":1},null,null,null,null,null,null,null,1,""]
[null,null,null,"Location of hands at start of lift:",null,null,null,null,null,null,null,null,null,null,null,null,null,null,null,null,null,null,null,null,null,null,null,null,null,null,null,null,null,null,null,{"$f":"COMPARISON!$AJ$42","v":1},null,null,null,null,null,null,null,1,""]
[" ",null,null,null,"£","3 in. below shoulder and above",null,null,null,null,null,null,null,null,null,null,null,null,null,null,null,null,null,null,null,null,null,null,null,null,null,null,null,null,null,{"$f":"COMPARISON!$AJ$42","v":1},null,null,null,null,null,null,null,1,""]
[null,null,null,null,"£","Knuckle to 3 in. below shoulder",null,null,null,null,null,null,null,null,null,null,null,null,null,null,null,null,null,null,null,null,null,null,null,null,null,null,null,null,null,{"$f":"COMPARISON!$AJ$42","v":1},null,null,null,null,null,null,null,1,""]
[null,null,null,null,"£","Mid-shin to knuckle",null,null,null,null,null,null,null,null,null,null,null,null,null,null,null,null,null,null,null,null,null,null,null,null,null,null,null,null,null,{"$f":"COMPARISON!$AJ$42","v":1},null,null,null,null,null,null,null,1,""]
[null,null,null,null,"£","Below mid-shin",null,null,null,null,null,null,null,null,null,null,null,null,null,null,null,null,null,null,null,null,null,null,null,null,null,null,null,null,null,{"$f":"COMPARISON!$AJ$42","v":1},null,null,null,null,null,null,null,2,""]
[null,null,null,null,null,null,null,null,null,null,null,null,null,null,null,null,null,null,null,null,null,null,null,null,null,null,null,null,null,null,null,null,null,null,null,{"$f":"COMPARISON!$AJ$42","v":1},null,null,null,null,null,null,null,1,""]
[null,null,null,null,null,null,null,null,null,null,null,null,null,null,null,null,null,null,null,null,null,null,null,null,null,null,null,null,null,null,null,null,null,null,null,{"$f":"\"o\"","v":"o"},null,null,null,null,null,null,null,9,""]
[null,null,null,null,null,null,null,null,null,null,null,null,null,null,null,null,null,null,null,null,null,null,null,null,null,null,null,null,null,null,null,null,null,null,null,{"$f":"\"o\"","v":"o"},null,null,null,null,null,null,null,9,""]
[null,null,null,null,null,null,null,null,null,null,null,null,null,null,null,null,null,null,null,null,null,null,null,null,null,null,null,null,null,null,null,null,null,null,null,{"$f":"COMPARISON!$AJ$42","v":1},null,null,null,null,null,null,null,9,""]
["NOTES:",null,null,null,null,null,null,null,null,null,null,null,null,null,null,null,null,null,null,null,null,null,null,null,null,null,null,null,null,null,null,null,null,null,null,{"$f":"COMPARISON!$AJ$42","v":1},null,null,null,null,null,null,null,1,""]
[null,"Manual Material Handling: HIGH RISK LIFTING",null,null,null,null,null,null,null,null,null,null,null,null,null,null,null,null,null,null,null,null,null,null,null,null,null,null,null,null,null,null,null,null,null,{"$f":"COMPARISON!$AJ$43","v":1},{"$f":"IF(COMPARISON!$AJ$43=1,1,0)","v":1},{"$f":"$AK$402","v":1},1,1,1,1,1,1,1]
[null,"Describe the most strenuous lifting activity in this work:",null,null,null,null,null,null,null,null,null,null,null,null,null,null,null,null,null,null,null,null,null,null,null,null,null,null,null,null,null,null,null,null,null,{"$f":"COMPARISON!$AJ$43","v":1},null,null,null,null,null,null,null,1,""]
[null,null,null,null,null,null,null,null,null,null,null,null,null,null,null,null,null,null,null,null,null,null,null,null,null,null,null,null,null,null,null,null,null,null,null,{"$f":"COMPARISON!$AJ$43","v":1},null,null,null,null,null,null,null,1,""]
[null,null,null,null,null,null,null,null,null,null,null,null,null,null,null,null,null,null,null,null,null,null,null,null,null,null,null,null,null,null,null,null,null,null,null,{"$f":"COMPARISON!$AJ$43","v":1},null,null,null,null,null,null,null,1,""]
[null,null,null,null,null,null,null,null,null,null,null,null,null,null,null,null,null,null,null,null,null,null,null,null,null,null,null,null,null,null,null,null,null,null,null,{"$f":"COMPARISON!$AJ$43","v":1},null,null,null,null,null,null,null,1,""]
[null,"MAXIMUM WEIGHT LIFTED (lbs):",null,null,null,null,null,null,null,null,null,null,null,null,null,null,null,null,null,null,null,"PROXIMITY (see diagram)",null,null,null,null,null,null,null,null,null,null,null,null,null,{"$f":"COMPARISON!$AJ$43","v":1},null,null,null,null,null,null,null,1,""]
[null,null,null,null,null,null,null,null,null,null,null,null,null,null,null,null,null,null,null,null,null,null,null,null,null,null,null,null,null,null,null,null,null,null,null,{"$f":"COMPARISON!$AJ$43","v":1},null,null,null,null,null,null,null,1,""]
[null,null,null,null,null,null,null,null,null,null,null,null,null,null,null,null,null,null,null,null,null,"Distance of the hands from the body during lift:",null,null,null,null,null,null,null,null,null,null,null,null,null,{"$f":"COMPARISON!$AJ$43","v":1},null,null,null,null,null,null,null,1,""]
[" ",null,"DURATION",null,null,null,null,null,null,null,null,null,null,null,null,null,null,null,null,null,null,null,null,null,null,null,null,null,null,null,null,null,null,null,null,{"$f":"COMPARISON!$AJ$43","v":1},null,null,null,null,null,null,null,1,""]
[null,null,null,null,null,null,null,null,null,null,null,null,null,null,null,null,null,null,null,null,null,null,"£","Near: <7 inches",null,null,null,null,null,null,null,null,null,null,null,{"$f":"COMPARISON!$AJ$43","v":1},null,null,null,null,null,null,null,1,""]
[null,null,null,"On average, how much time is spent per day on this lifting activity?",null,null,null,null,null,null,null,null,null,null,null,null,null,null,null,null,null,null,"£","Mid: 7-12 inches",null,null,null,null,null,null,null,null,null,null,null,{"$f":"COMPARISON!$AJ$43","v":1},null,null,null,null,null,null,null,1,""]
[null,null,null,null,null,null,null,null,null,null,null,null,null,null,null,null,null,null,null,null,null,null,"£","Extended: >12 inches",null,null,null,null,null,null,null,null,null,null,null,{"$f":"COMPARISON!$AJ$43","v":1},null,null,null,null,null,null,null,1,{"$f":"IF(AK413=1,1,IF(AK413=\"\",\"\",0))","v":""}]
[" ",null,null,null,"£","1 hour or less",null,null,null,null,null,null,null,null,null,null,null,null,null,null,null,"HAND HEIGHT (see diagram)",null,null,null,null,null,null,null,null,null,null,null,null,null,{"$f":"COMPARISON!$AJ$43","v":1},null,null,null,null,null,null,null,2,""]
[null,null,null,null,"£","1 to 2 hours",null,null,null,null,null,null,null,null,null,null,null,null,null,null,null,null,null,null,null,null,null,null,null,null,null,null,null,null,null,{"$f":"COMPARISON!$AJ$43","v":1},null,null,null,null,null,null,null,1,""]
[null,null,null,null,"£","2 hours or more",null,null,null,null,null,null,null,null,null,null,null,null,null,null,null,"Hand location, at start of lift:",null,null,null,null,null,null,null,null,null,null,null,null,null,{"$f":"COMPARISON!$AJ$43","v":1},null,null,null,null,null,null,null,2,""]
[null,null,"TWISTING",null,null,null,null,null,null,null,null,null,null,null,null,null,null,null,null,null,null,null,"£","Above shoulder",null,null,null,null,null,null,null,null,null,null,null,{"$f":"COMPARISON!$AJ$43","v":1},null,null,null,null,null,null,null,1,""]
[null,null,null,null,null,null,null,null,null,null,null,null,null,null,null,null,null,null,null,null,null,null,"£","Waist to shoulder",null,null,null,null,null,null,null,null,null,null,null,{"$f":"COMPARISON!$AJ$43","v":1},null,null,null,null,null,null,null,1,""]
[null,null,null,"Does this lifting activity involve twisting 45 degrees or more at the waist?",null,null,null,null,null,null,null,null,null,null,null,null,null,null,null,null,null,null,"£","Knee to waist",null,null,null,null,null,null,null,null,null,null,null,{"$f":"COMPARISON!$AJ$43","v":1},null,null,null,null,null,null,null,1,""]
[" ",null,null,null,null,null,null,null,null,null,null,null,null,null,null,null,null,null,null,null,null,null,"£","Below knee",null,null,null,null,null,null,null,null,null,null,null,{"$f":"COMPARISON!$AJ$43","v":1},null,null,null,null,null,null,null,1,""]
[" ",null,null,null,null,null,null,null,null,null,null,null,null,null,null,null,null,null,null,null,null,null,null,null,null,null,null,null,null,null,null,null,null,null,null,{"$f":"COMPARISON!$AJ$43","v":1},null,null,null,null,null,null,null,1,""]
[null,null,null,null,"£","No",null,null,null,null,null,null,null,null,null,null,null,null,null,null,null,null,null,null,null,null,null,null,null,null,null,null,null,null,null,{"$f":"COMPARISON!$AJ$43","v":1},null,null,null,null,null,null,null,1,""]
[null,null,null,null,"£","Yes",null,null,null,null,null,null,null,null,null,null,null,null,null,null,null,null,null,null,null,null,null,null,null,null,null,null,null,null,null,{"$f":"COMPARISON!$AJ$43","v":1},null,null,null,null,null,null,null,2,""]
[null,null,"FREQUENCY",null,null,null,null,null,null,null,null,null,null,null,null,null,null,null,null,null,null,null,null,null,null,null,null,null,null,null,null,null,null,null,null,{"$f":"COMPARISON!$AJ$43","v":1},null,null,null,null,null,null,null,1,""]
[null,null,null,null,null,null,null,null,null,null,null,null,null,null,null,null,null,null,null,null,null,null,null,null,null,null,null,null,null,null,null,null,null,null,null,{"$f":"COMPARISON!$AJ$43","v":1},null,null,null,null,null,null,null,1,""]
[null,null,null,"On average, how many lifts are performed per minute?",null,null,null,null,null,null,null,null,null,null,null,null,null,null,null,null,null,null,null,null,null,null,null,null,null,null,null,null,null,null,null,{"$f":"COMPARISON!$AJ$43","v":1},null,null,null,null,null,null,null,1,""]
[" ",null,null,null,null,null,null,null,null,null,null,null,null,null,null,null,null,null,null,null,null,null,null,null,null,null,null,null,null,null,null,null,null,null,null,{"$f":"COMPARISON!$AJ$43","v":1},null,null,null,null,null,null,null,1,""]
[null,null,null,null,"£","Less than one lift every 5 min.",null,null,null,null,null,null,null,null,null,null,null,null,null,null,null,null,null,null,null,null,null,null,null,null,null,null,null,null,null,{"$f":"COMPARISON!$AJ$43","v":1},null,null,null,null,null,null,null,1,""]
[null,null,null,null,"£","1 lift every 2-5 minutes",null,null,null,null,null,null,null,null,null,null,null,null,null,null,null,null,null,null,null,null,null,null,null,null,null,null,null,null,null,{"$f":"COMPARISON!$AJ$43","v":1},null,null,null,null,null,null,null,2,{"$f":"IF(AK429=1,1,IF(AK429=\"\",\"\",0))","v":""}]
[null,null,null,null,"£","1 lift every minute",null,null,null,null,null,null,null,null,null,null,null,null,null,null,null,null,null,null,null,null,null,null,null,null,null,null,null,null,null,{"$f":"COMPARISON!$AJ$43","v":1},null,null,null,null,null,null,null,1,""]
[null,null,null,null,"£","2-3 lifts every minute",null,null,null,null,null,null,null,null,null,null,null,null,null,null,null,null,null,null,null,null,null,null,null,null,null,null,null,null,null,{"$f":"COMPARISON!$AJ$43","v":1},null,null,null,null,null,null,null,1,""]
[null,null,null,null,"£","4-5 lifts every minute",null,null,null,null,null,null,null,null,null,null,null,null,null,null,null,null,null,null,null,null,null,null,null,null,null,null,null,null,null,{"$f":"COMPARISON!$AJ$43","v":1},null,null,null,null,null,null,null,1,""]
[" ",null,null,null,"£","6-7 lifts every minute",null,null,null,null,null,null,null,null,null,null,null,null,null,null,null,null,null,null,null,null,null,null,null,null,null,null,null,null,null,{"$f":"COMPARISON!$AJ$43","v":1},null,null,null,null,null,null,null,1,""]
[null,null,null,null,"£","8-9 lifts every minute",null,null,null,null,null,null,null,null,null,null,null,null,null,null,null,null,null,null,null,null,null,null,null,null,null,null,null,null,null,{"$f":"COMPARISON!$AJ$43","v":1},null,null,null,null,null,null,null,1,""]
[null,null,null,null,"£","10 or more lifts every minute",null,null,null,null,null,null,null,null,null,null,null,null,null,null,null,null,null,null,null,null,null,null,null,null,null,null,null,null,null,{"$f":"COMPARISON!$AJ$43","v":1},null,null,null,null,null,null,null,1,""]
[null,null,null,null,null,null,null,null,null,null,null,null,null,null,null,null,null,null,null,null,null,null,null,null,null,null,null,null,null,null,null,null,null,null,null,{"$f":"COMPARISON!$AJ$43","v":1},null,null,null,null,null,null,null,9,""]
[null,null,null,null,null,null,null,null,null,null,null,null,null,null,null,null,null,null,null,null,null,null,null,null,null,null,null,null,null,null,null,null,null,null,null,{"$f":"\"o\"","v":"o"},null,null,null,null,null,null,null,1,""]
[null,null,null,null,null,null,null,null,null,null,null,null,null,null,null,null,null,null,null,null,null,null,null,null,null,null,null,null,null,null,null,null,null,null,null,{"$f":"COMPARISON!$AJ$43","v":1},null,null,null,null,null,null,null,1,""]
["NOTES:",null,null,null,null,null,null,null,null,null,null,null,null,null,null,null,null,null,null,null,null,null,null,null,null,null,null,null,null,null,null,null,null,null,null,{"$f":"COMPARISON!$AJ$43","v":1},null,null,null,null,null,null,null,1,""]
[null,"Manual Material Handling: CARRYING",null,null,null,null,null,null,null,null,null,null,null,null,null,null,null,null,null,null,null,null,null,null,null,null,null,null,null,null,null,null,null,null,null,{"$f":"COMPARISON!$AJ$45","v":1},1,{"$f":"$AK$440","v":1},1,1,1,1,1,1,1]
[null,"Describe the most strenuous carrying activity in this work:",null,null,null,null,null,null,null,null,null,null,null,null,null,null,null,null,null,null,null,null,null,null,null,null,null,null,null,null,null,null,null,null,null,{"$f":"COMPARISON!$AJ$45","v":1},null,null,null,null,null,null,null,1,""]
[null,null,null,null,null,null,null,null,null,null,null,null,null,null,null,null,null,null,null,null,null,null,null,null,null,null,null,null,null,null,null,null,null,null,null,{"$f":"COMPARISON!$AJ$45","v":1},null,null,null,null,null,null,null,1,""]
[null,null,null,null,null,null,null,null,null,null,null,null,null,null,null,null,null,null,null,null,null,null,null,null,null,null,null,null,null,null,null,null,null,null,null,{"$f":"COMPARISON!$AJ$45","v":1},null,null,null,null,null,null,null,1,""]
[null,null,null,null,null,null,null,null,null,null,null,null,null,null,null,null,null,null,null,null,null,null,null,null,null,null,null,null,null,null,null,null,null,null,null,{"$f":"COMPARISON!$AJ$45","v":1},null,null,null,null,null,null,null,1,""]
[null,null,null,null,null,null,null,null,null,null,null,null,null,null,null,null,null,null,null,null,null,null,null,null,null,null,null,null,null,null,null,null,null,null,null,{"$f":"COMPARISON!$AJ$45","v":1},null,null,null,null,null,null,null,1,""]
[null,null,"MAXIMUM WEIGHT CARRIED (lbs.)",null,null,null,null,null,null,null,null,null,null,null,null,null,null,null,null,null,null,null,null,null,null,null,null,null,null,null,null,null,null,null,null,{"$f":"COMPARISON!$AJ$45","v":1},null,null,null,null,null,null,null,1,""]
[null,null,null,null,null,null,null,null,null,null,null,null,null,null,null,null,null,null,null,null,null,null,null,null,null,null,null,null,null,null,null,null,null,null,null,{"$f":"COMPARISON!$AJ$45","v":1},null,null,null,null,null,null,null,1,""]
[null,null,null,null,null,null,null,null,null,null,null,null,null,null,null,null,null,null,null,null,null,null,null,null,null,null,null,null,null,null,null,null,null,null,null,{"$f":"COMPARISON!$AJ$45","v":1},null,null,null,null,null,null,null,1,""]
[null,null,"DISTANCE",null,null,null,null,null,null,null,null,null,null,null,null,null,null,null,null,null,null,null,null,null,null,null,null,null,null,null,null,null,null,null,null,{"$f":"COMPARISON!$AJ$45","v":1},null,null,null,null,null,null,null,1,""]
[null,null,null,null,null,null,null,null,null,null,null,null,null,null,null,null,null,null,null,null,null,null,null,null,null,null,null,null,null,null,null,null,null,null,null,{"$f":"COMPARISON!$AJ$45","v":1},null,null,null,null,null,null,null,1,""]
[null,null,null,"How far is the object carried?",null,null,null,null,null,null,null,null,null,null,null,null,null,null,null,null,null,null,null,null,null,null,null,null,null,null,null,null,null,null,null,{"$f":"COMPARISON!$AJ$45","v":1},null,null,null,null,null,null,null,1,""]
[null,null,null,null,"£","0-7 feet",null,null,null,null,null,null,null,null,null,null,null,null,null,null,null,null,null,null,null,null,null,null,null,null,null,null,null,null,null,{"$f":"COMPARISON!$AJ$45","v":1},null,null,null,null,null,null,null,1,""]
[null,null,null,null,"£",">7-14 feet",null,null,null,null,null,null,null,null,null,null,null,null,null,null,null,null,null,null,null,null,null,null,null,null,null,null,null,null,null,{"$f":"COMPARISON!$AJ$45","v":1},null,null,null,null,null,null,null,1,""]
[null,null,null,null,"£",">14 feet",null,null,null,null,null,null,null,null,null,null,null,null,null,null,null,null,null,null,null,null,null,null,null,null,null,null,null,null,null,{"$f":"COMPARISON!$AJ$45","v":1},null,null,null,null,null,null,null,2,""]
[null,null,"ELBOW POSTURE",null,null,null,null,null,null,null,null,null,null,null,null,null,null,null,null,null,null,null,null,null,null,null,null,null,null,null,null,null,null,null,null,{"$f":"COMPARISON!$AJ$45","v":1},null,null,null,null,null,null,null,1,""]
[null,null,null,null,null,null,null,null,null,null,null,null,null,null,null,null,null,null,null,null,null,null,null,null,null,null,null,null,null,null,null,null,null,null,null,{"$f":"COMPARISON!$AJ$45","v":1},null,null,null,null,null,null,null,1,""]
[null,null,null,"Elbow posture during carry:",null,null,null,null,null,null,null,null,null,null,null,null,null,null,null,null,null,null,null,null,null,null,null,null,null,null,null,null,null,null,null,{"$f":"COMPARISON!$AJ$45","v":1},null,null,null,null,null,null,null,1,""]
[null,null,null,null,"£","Elbows bent (carrying at about waist height)",null,null,null,null,null,null,null,null,null,null,null,null,null,null,null,null,null,null,null,null,null,null,null,null,null,null,null,null,null,{"$f":"COMPARISON!$AJ$45","v":1},null,null,null,null,null,null,null,1,""]
[null,null,null,null,"£","Elbows straight (carrying with arms extended below waist)",null,null,null,null,null,null,null,null,null,null,null,null,null,null,null,null,null,null,null,null,null,null,null,null,null,null,null,null,null,{"$f":"COMPARISON!$AJ$45","v":1},null,null,null,null,null,null,null,2,""]
[null,null,"FREQUENCY",null,null,null,null,null,null,null,null,null,null,null,null,null,null,null,null,null,null,null,null,null,null,null,null,null,null,null,null,null,null,null,null,{"$f":"COMPARISON!$AJ$45","v":1},null,null,null,null,null,null,null,1,""]
[null,null,null,null,null,null,null,null,null,null,null,null,null,null,null,null,null,null,null,null,null,null,null,null,null,null,null,null,null,null,null,null,null,null,null,{"$f":"COMPARISON!$AJ$45","v":1},null,null,null,null,null,null,null,1,""]
[null,null,null,"On average, each carry is performed once every: _______ (Choose the option closest to your observed frequency).",null,null,null,null,null,null,null,null,null,null,null,null,null,null,null,null,null,null,null,null,null,null,null,null,null,null,null,null,null,null,null,{"$f":"COMPARISON!$AJ$45","v":1},null,null,null,null,null,null,null,4,""]
[" ",null,null,null,"£","10 seconds",null,null,null,null,null,null,null,null,null,null,null,null,null,null,null,null,null,null,null,null,null,null,null,null,null,null,null,null,null,{"$f":"COMPARISON!$AJ$45","v":1},null,null,null,null,null,null,null,1,""]
[null,null,null,null,"£","20 seconds",null,null,null,null,null,null,null,null,null,null,null,null,null,null,null,null,null,null,null,null,null,null,null,null,null,null,null,null,null,{"$f":"COMPARISON!$AJ$45","v":1},null,null,null,null,null,null,null,1,""]
[null,null,null,null,"£","1 minute",null,null,null,null,null,null,null,null,null,null,null,null,null,null,null,null,null,null,null,null,null,null,null,null,null,null,null,null,null,{"$f":"COMPARISON!$AJ$45","v":1},null,null,null,null,null,null,null,1,""]
[null,null,null,null,"£","2 minutes",null,null,null,null,null,null,null,null,null,null,null,null,null,null,null,null,null,null,null,null,null,null,null,null,null,null,null,null,null,{"$f":"COMPARISON!$AJ$45","v":1},null,null,null,null,null,null,null,1,""]
[null,null,null,null,"£","5 minutes",null,null,null,null,null,null,null,null,null,null,null,null,null,null,null,null,null,null,null,null,null,null,null,null,null,null,null,null,null,{"$f":"COMPARISON!$AJ$45","v":1},null,null,null,null,null,null,null,1,""]
[null,null,null,null,"£","30 minutes",null,null,null,null,null,null,null,null,null,null,null,null,null,null,null,null,null,null,null,null,null,null,null,null,null,null,null,null,null,{"$f":"COMPARISON!$AJ$45","v":1},null,null,null,null,null,null,null,1,""]
[null,null,null,null,"£","8 hours",null,null,null,null,null,null,null,null,null,null,null,null,null,null,null,null,null,null,null,null,null,null,null,null,null,null,null,null,null,{"$f":"COMPARISON!$AJ$45","v":1},null,null,null,null,null,null,null,2,""]
[null,null,null,null,null,null,null,null,null,null,null,null,null,null,null,null,null,null,null,null,null,null,null,null,null,null,null,null,null,null,null,null,null,null,null,{"$f":"COMPARISON!$AJ$45","v":1},null,null,null,null,null,null,null,1,""]
["NOTES:",null,null,null,null,null,null,null,null,null,null,null,null,null,null,null,null,null,null,null,null,null,null,null,null,null,null,null,null,null,null,null,null,null,null,{"$f":"COMPARISON!$AJ$45","v":1},null,null,null,null,null,null,null,1,""]
[null,"Manual Material Handling: PUSHING/PULLING",null,null,null,null,null,null,null,null,null,null,null,null,null,null,null,null,null,null,null,null,null,null,null,null,null,null,null,null,null,null,null,null,null,{"$f":"COMPARISON!$AJ$50","v":1},1,{"$f":"$AK$472","v":1},1,1,1,1,1,1,1]
[null,null,null,null,null,null,null,null,null,null,null,null,null,null,null,null,null,null,null,null,null,null,null,null,null,null,null,null,null,null,null,null,null,null,null,{"$f":"COMPARISON!$AJ$50","v":1},null,null,null,null,null,null,null,1,""]
[null,"For pushing and pulling tasks you will need to use a force gauge or force measurement device to obtain the force, in pounds, needed to start the object moving.",null,null,null,null,null,null,null,null,null,null,null,null,null,null,null,null,null,null,null,null,null,null,null,null,null,null,null,null,null,null,null,null,null,{"$f":"COMPARISON!$AJ$50","v":1},null,null,null,null,null,null,null,2,""]
[null,null,null,null,null,null,null,null,null,null,null,null,null,null,null,null,null,null,null,null,null,null,null,null,null,null,null,null,null,null,null,null,null,null,null,{"$f":"COMPARISON!$AJ$50","v":1},null,null,null,null,null,null,null,2,""]
[null,null,null,null,null,null,null,null,null,null,null,null,null,null,null,null,null,null,null,null,null,null,null,null,null,null,null,null,null,null,null,null,null,null,null,{"$f":"COMPARISON!$AJ$50","v":1},null,null,null,null,null,null,null,3,""]
[null,null,null,null,null,null,null,null,null,null,null,null,null,null,null,null,null,null,null,null,null,null,null,null,null,null,null,null,null,null,null,null,null,null,null,{"$f":"COMPARISON!$AJ$50","v":1},null,null,null,null,null,null,null,7,""]
[null,"Describe the most strenuous push/pull activity in this work:",null,null,null,null,null,null,null,null,null,null,null,null,null,null,null,null,null,null,null,null,null,null,null,null,null,null,null,null,null,null,null,null,null,{"$f":"COMPARISON!$AJ$50","v":1},null,null,null,null,null,null,null,1,""]
[null,null,null,null,null,null,null,null,null,null,null,null,null,null,null,null,null,null,null,null,null,null,null,null,null,null,null,null,null,null,null,null,null,null,null,{"$f":"COMPARISON!$AJ$50","v":1},null,null,null,null,null,null,null,1,""]
[null,null,null,null,null,null,null,null,null,null,null,null,null,null,null,null,null,null,null,null,null,null,null,null,null,null,null,null,null,null,null,null,null,null,null,{"$f":"COMPARISON!$AJ$50","v":1},null,null,null,null,null,null,null,1,""]
[null,null,"EFFORT TYPE",null,null,null,null,null,null,null,null,null,null,null,null,null,null,null,null,null,null,null,null,null,null,null,null,null,null,null,null,null,null,null,null,{"$f":"COMPARISON!$AJ$50","v":1},null,null,null,null,null,null,null,1,""]
[null,null,null,null,null,null,null,null,null,null,null,null,null,null,null,null,null,null,null,null,null,null,null,null,null,null,null,null,null,null,null,null,null,null,null,{"$f":"COMPARISON!$AJ$50","v":1},null,null,null,null,null,null,null,1,""]
[null,null,null,"£","Push",null,null,null,null,null,null,null,null,null,null,null,null,null,null,null,null,null,null,null,null,null,null,null,null,null,null,null,null,null,null,{"$f":"COMPARISON!$AJ$50","v":1},null,null,null,null,null,null,null,1,""]
[null,null,null,"£","Pull",null,null,null,null,null,null,null,null,null,null,null,null,null,null,null,null,null,null,null,null,null,null,null,null,null,null,null,null,null,null,{"$f":"COMPARISON!$AJ$50","v":1},null,null,null,null,null,null,null,1,""]
[null,null,null,"£","Both push and pull",null,null,null,null,null,null,null,null,null,null,null,null,null,null,null,null,null,null,null,null,null,null,null,null,null,null,null,null,null,null,{"$f":"COMPARISON!$AJ$50","v":1},null,null,null,null,null,null,null,2,""]
[null,null,"FORCE",null,null,null,null,null,null,null,null,null,null,null,null,null,null,null,null,null,null,null,null,null,null,null,null,null,null,null,null,null,null,null,null,{"$f":"COMPARISON!$AJ$50","v":1},null,null,null,null,null,null,null,1,""]
[null,null,null,null,null,null,null,null,null,null,null,null,null,null,null,null,null,null,null,null,null,null,null,null,null,null,null,null,null,null,null,null,null,null,null,{"$f":"COMPARISON!$AJ$50","v":1},null,null,null,null,null,null,null,1,""]
[null,null,"Maximum force(s) pushed/pulled (measured with force gauge):",null,null,null,null,null,null,null,null,null,null,null,null,null,null,null,null,null,null,null,null,null,null,null,null,null,null,null,null,null,null,null,null,{"$f":"COMPARISON!$AJ$50","v":1},null,null,null,null,null,null,null,1,""]
[null,null,"Recommendation: Take more than one measurement and use the highest value.",null,null,null,null,null,null,null,null,null,null,null,null,null,null,null,null,null,null,null,null,null,null,null,null,null,null,null,null,null,null,null,null,{"$f":"COMPARISON!$AJ$50","v":1},null,null,null,null,null,null,null,1,""]
[null,null,null,null,null,null,null,null,null,null,"lbs.",null,null,null,null,null,null,null,null,"lbs.",null,null,null,null,null,null,null,null,"lbs.",null,null,null,null,null,null,{"$f":"COMPARISON!$AJ$50","v":1},null,null,null,null,null,null,null,3,""]
[null,null,null,null,null,null,null,null,null,null,null,null,null,null,null,null,null,null,null,null,null,null,null,null,null,null,null,null,null,null,null,null,null,null,null,{"$f":"COMPARISON!$AJ$50","v":1},null,null,null,null,null,null,null,1,""]
[null,null,null,null,null,null,null,null,null,null,null,null,null,null,null,null,null,null,null,null,null,null,null,null,null,null,null,null,null,null,null,null,null,null,null,{"$f":"COMPARISON!$AJ$50","v":1},null,null,null,null,null,null,null,1,{"$f":"IF(AK492=1,1,IF(AK492=\"\",\"\",0))","v":""}]
["NOTES:",null,null,null,null,null,null,null,null,null,null,null,null,null,null,null,null,null,null,null,null,null,null,null,null,null,null,null,null,null,null,null,null,"PUSHING/PULLING CONTINUED ON NEXT PAGE \"",null,{"$f":"COMPARISON!$AJ$50","v":1},null,null,null,null,null,null,null,1,""]
[null,"Manual Material Handling: PUSHING/PULLING",null,null,null,null,null,null,null,null,null,null,null,null,null,null,null,null,null,null,null,null,null,null,null,null,null,null,null,null,null,null,null,null,null,{"$f":"COMPARISON!$AJ$50","v":1},1,{"$f":"$AK$494","v":1},1,1,1,1,1,1,1]
[null,"PUSHING/PULLING (CONT.)",null,null,null,null,null,null,null,null,null,null,null,null,null,null,null,null,null,null,null,null,null,null,null,null,null,null,null,null,null,null,null,null,null,{"$f":"COMPARISON!$AJ$50","v":1},null,null,null,null,null,null,null,1,""]
[null,null,null,null,null,null,null,null,null,null,null,null,null,null,null,null,null,null,null,null,null,null,null,null,null,null,null,null,null,null,null,null,null,null,null,{"$f":"COMPARISON!$AJ$50","v":1},null,null,null,null,null,null,null,1,""]
[null,null,"DISTANCE",null,null,null,null,null,null,null,null,null,null,null,null,null,null,null,null,null,null,null,null,null,null,null,null,null,null,null,null,null,null,null,null,{"$f":"COMPARISON!$AJ$50","v":1},null,null,null,null,null,null,null,8,""]
[null,null,null,null,null,null,null,null,null,null,null,null,null,null,null,null,null,null,null,null,null,null,null,null,null,null,null,null,null,null,null,null,null,null,null,{"$f":"COMPARISON!$AJ$50","v":1},null,null,null,null,null,null,null,8,""]
[null,null,null,"Approximate distance of push/pull:",null,null,null,null,null,null,null,null,null,null,null,null,null,null,null,null,null,null,null,null,null,null,null,null,null,null,null,null,null,null,null,{"$f":"COMPARISON!$AJ$50","v":1},null,null,null,null,null,null,null,1,""]
[" ",null,null,null,"£","0-7 feet",null,null,null,null,null,null,null,null,null,null,null,null,null,null,null,null,null,null,null,null,null,null,null,null,null,null,null,null,null,{"$f":"COMPARISON!$AJ$50","v":1},null,null,null,null,null,null,null,1,""]
[null,null,null,null,"£",">7-25 feet ",null,null,null,null,null,null,null,null,null,null,null,null,null,null,null,null,null,null,null,null,null,null,null,null,null,null,null,null,null,{"$f":"COMPARISON!$AJ$50","v":1},null,null,null,null,null,null,null,1,""]
[null,null,null,null,"£",">25-50 feet",null,null,null,null,null,null,null,null,null,null,null,null,null,null,null,null,null,null,null,null,null,null,null,null,null,null,null,null,null,{"$f":"COMPARISON!$AJ$50","v":1},null,null,null,null,null,null,null,1,""]
[null,null,null,null,"£",">50-100 feet",null,null,null,null,null,null,null,null,null,null,null,null,null,null,null,null,null,null,null,null,null,null,null,null,null,null,null,null,null,{"$f":"COMPARISON!$AJ$50","v":1},null,null,null,null,null,null,null,1,""]
[null,null,null,null,"£",">100-150 feet",null,null,null,null,null,null,null,null,null,null,null,null,null,null,null,null,null,null,null,null,null,null,null,null,null,null,null,null,null,{"$f":"COMPARISON!$AJ$50","v":1},null,null,null,null,null,null,null,1,""]
[null,null,null,null,"£",">150 feet",null,null,null,null,null,null,null,null,null,null,null,null,null,null,null,null,null,null,null,null,null,null,null,null,null,null,null,null,null,{"$f":"COMPARISON!$AJ$50","v":1},null,null,null,null,null,null,null,2,""]
[null,null,"HAND HEIGHT",null,null,null,null,null,null,null,null,null,null,null,null,null,null,null,null,null,null,null,null,null,null,null,null,null,null,null,null,null,null,null,null,{"$f":"COMPARISON!$AJ$50","v":1},null,null,null,null,null,null,null,1,""]
[null,null,null,null,null,null,null,null,null,null,null,null,null,null,null,null,null,null,null,null,null,null,null,null,null,null,null,null,null,null,null,null,null,null,null,{"$f":"COMPARISON!$AJ$50","v":1},null,null,null,null,null,null,null,1,""]
[null,null,null,"Hand height during push/pull:",null,null,null,null,null,null,null,null,null,null,null,null,null,null,null,null,null,null,null,null,null,null,null,null,null,null,null,null,null,null,null,{"$f":"COMPARISON!$AJ$50","v":1},null,null,null,null,null,null,null,1,""]
[null,null,null,null,"£","Shoulder",null,null,null,null,null,null,null,null,null,null,null,null,null,null,null,null,null,null,null,null,null,null,null,null,null,null,null,null,null,{"$f":"COMPARISON!$AJ$50","v":1},null,null,null,null,null,null,null,1,""]
[null,null,null,null,"£","Hip",null,null,null,null,null,null,null,null,null,null,null,null,null,null,null,null,null,null,null,null,null,null,null,null,null,null,null,null,null,{"$f":"COMPARISON!$AJ$50","v":1},null,null,null,null,null,null,null,1,""]
[null,null,null,null,"£","Mid-thigh",null,null,null,null,null,null,null,null,null,null,null,null,null,null,null,null,null,null,null,null,null,null,null,null,null,null,null,null,null,{"$f":"COMPARISON!$AJ$50","v":1},null,null,null,null,null,null,null,2,""]
[null,null,"FREQUENCY",null,null,null,null,null,null,null,null,null,null,null,null,null,null,null,null,null,null,null,null,null,null,null,null,null,null,null,null,null,null,null,null,{"$f":"COMPARISON!$AJ$50","v":1},null,null,null,null,null,null,null,1,""]
[null,null,null,null,null,null,null,null,null,null,null,null,null,null,null,null,null,null,null,null,null,null,null,null,null,null,null,null,null,null,null,null,null,null,null,{"$f":"COMPARISON!$AJ$50","v":1},null,null,null,null,null,null,null,1,""]
[" ",null,null,"On average, each push/pull is performed once every: ________ (Choose the option closest to your observed frequency).",null,null,null,null,null,null,null,null,null,null,null,null,null,null,null,null,null,null,null,null,null,null,null,null,null,null,null,null,null,null,null,{"$f":"COMPARISON!$AJ$50","v":1},null,null,null,null,null,null,null,4,""]
[" ",null,null,null,"£","6 seconds",null,null,null,null,null,null,null,null,null,null,null,null,null,null,null,null,null,null,null,null,null,null,null,null,null,null,null,null,null,{"$f":"COMPARISON!$AJ$50","v":1},null,null,null,null,null,null,null,1,""]
[null,null,null,null,"£","12 seconds",null,null,null,null,null,null,null,null,null,null,null,null,null,null,null,null,null,null,null,null,null,null,null,null,null,null,null,null,null,{"$f":"COMPARISON!$AJ$50","v":1},null,null,null,null,null,null,null,1,""]
[null,null,null,null,"£","15 seconds",null,null,null,null,null,null,null,null,null,null,null,null,null,null,null,null,null,null,null,null,null,null,null,null,null,null,null,null,null,{"$f":"COMPARISON!$AJ$50","v":1},null,null,null,null,null,null,null,1,""]
[null,null,null,null,"£","30 seconds",null,null,null,null,null,null,null,null,null,null,null,null,null,null,null,null,null,null,null,null,null,null,null,null,null,null,null,null,null,{"$f":"COMPARISON!$AJ$50","v":1},null,null,null,null,null,null,null,1,""]
[null,null,null,null,"£","1 minute",null,null,null,null,null,null,null,null,null,null,null,null,null,null,null,null,null,null,null,null,null,null,null,null,null,null,null,null,null,{"$f":"COMPARISON!$AJ$50","v":1},null,null,null,null,null,null,null,1,""]
[null,null,null,null,"£","2 minutes",null,null,null,null,null,null,null,null,null,null,null,null,null,null,null,null,null,null,null,null,null,null,null,null,null,null,null,null,null,{"$f":"COMPARISON!$AJ$50","v":1},null,null,null,null,null,null,null,1,""]
[null,null,null,null,"£","5 minutes",null,null,null,null,null,null,null,null,null,null,null,null,null,null,null,null,null,null,null,null,null,null,null,null,null,null,null,null,null,{"$f":"COMPARISON!$AJ$50","v":1},null,null,null,null,null,null,null,1,""]
[null,null,null,null,"£","30 minutes",null,null,null,null,null,null,null,null,null,null,null,null,null,null,null,null,null,null,null,null,null,null,null,null,null,null,null,null,null,{"$f":"COMPARISON!$AJ$50","v":1},null,null,null,null,null,null,null,1,""]
[null,null,null,null,"£","8 hours",null,null,null,null,null,null,null,null,null,null,null,null,null,null,null,null,null,null,null,null,null,null,null,null,null,null,null,null,null,{"$f":"COMPARISON!$AJ$50","v":1},null,null,null,null,null,null,null,2,""]
[null,null,null,null,null,null,null,null,null,null,null,null,null,null,null,null,null,null,null,null,null,null,null,null,null,null,null,null,null,null,null,null,null,null,null,{"$f":"COMPARISON!$AJ$50","v":1},null,null,null,null,null,null,null,1,""]
["NOTES:",null,null,null,null,null,null,null,null,null,null,null,null,null,null,null,null,null,null,null,null,null,null,null,null,null,null,null,null,null,null,null,null,null,null,{"$f":"COMPARISON!$AJ$50","v":1},null,null,null,null,null,null,null,1,""]
[null,"Hand/Arm Vibration",null,null,null,null,null,null,null,null,null,null,null,null,null,null,null,null,null,null,null,null,null,null,null,null,null,null,null,null,null,null,null,null,null,{"$f":"COMPARISON!$AJ$54","v":1},{"$f":"IF(COMPARISON!$AJ$54=1,1,0)","v":1},{"$f":"$AK$526","v":1},1,1,1,1,1,1,1]
[null,null,null,null,null,null,null,null,null,null,null,null,null,null,null,null,null,null,null,null,null,null,null,null,null,null,null,null,null,null,null,null,null,null,null,{"$f":"COMPARISON!$AJ$54","v":1},null,null,null,null,null,null,null,9]
[null,"VIBRATING HAND TOOLS",null,null,null,null,null,null,null,null,null,null,null,null,null,null,null,null,null,null,null,null,null,null,null,null,null,null,null,null,null,null,null,null,null,{"$f":"COMPARISON!$AJ$55","v":1},null,null,null,null,null,null,null,9,""]
[null,null,null,null,null,null,null,null,null,null,null,null,null,null,null,null,null,null,null,null,null,null,null,null,null,null,null,null,null,null,null,null,null,null,null,{"$f":"COMPARISON!$AJ$55","v":1},null,null,null,null,null,null,null,9,""]
[null,null,"During this work, does this worker use vibrating tools for:",null,null,null,null,null,null,null,null,null,null,null,null,null,null,null,null,null,null,null,null,null,null,null,null,null,null,null,null,null,null,null,null,{"$f":"COMPARISON!$AJ$55","v":1},null,null,null,null,null,null,null,1,""]
[" ",null,null,"£","Less than 1 hour per day, or Never",null,null,null,null,null,null,null,null,null,null,null,null,null,null,null,null,null,null,null,null,null,null,null,null,null,null,null,null,null,null,{"$f":"COMPARISON!$AJ$55","v":1},null,null,null,null,null,null,null,1,""]
[null,null,null,"£","Between 1 and 4 hours per day",null,null,null,null,null,null,null,null,null,null,null,null,null,null,null,null,null,null,null,null,null,null,null,null,null,null,null,null,null,null,{"$f":"COMPARISON!$AJ$55","v":1},null,null,null,null,null,null,null,1,""]
[null,null,null,"£","More than 4 hours per day",null,null,null,null,null,null,null,null,null,null,null,null,null,null,null,null,null,null,null,null,null,null,null,null,null,null,null,null,null,null,{"$f":"COMPARISON!$AJ$55","v":1},null,null,null,null,null,null,null,2,""]
[null,null,null,null,null,null,null,null,null,null,null,null,null,null,null,null,null,null,null,null,null,null,null,null,null,null,null,null,null,null,null,null,null,null,null,{"$f":"COMPARISON!$AJ$55","v":1},null,null,null,null,null,null,null,2,""]
[null,null,null,null,null,null,null,null,null,null,null,null,null,null,null,null,null,null,null,null,null,null,null,null,null,null,null,null,null,null,null,null,null,null,null,{"$f":"\"o\"","v":"o"},null,null,null,null,null,null,null,9]
[null,"MODERATE VIBRATION TOOLS",null,null,null,null,null,null,null,null,null,null,null,null,null,null,null,null,null,null,null,null,null,null,null,null,null,null,null,null,null,null,null,null,null,{"$f":"COMPARISON!$AJ$56","v":1},null,null,null,null,null,null,null,9,""]
[null,null,null,null,null,null,null,null,null,null,null,null,null,null,null,null,null,null,null,null,null,null,null,null,null,null,null,null,null,null,null,null,null,null,null,{"$f":"COMPARISON!$AJ$56","v":1},null,null,null,null,null,null,null,9,""]
[null,null,"Are moderate vibration tools (grinders, sanders, jigsaws, etc.) used for:",null,null,null,null,null,null,null,null,null,null,null,null,null,null,null,null,null,null,null,null,null,null,null,null,null,null,null,null,null,null,null,null,{"$f":"COMPARISON!$AJ$56","v":1},null,null,null,null,null,null,null,1,""]
[null,null,null,"£","2 hours total per day or less",null,null,null,null,null,null,null,null,null,null,null,null,null,null,null,null,null,null,null,null,null,null,null,null,null,null,null,null,null,null,{"$f":"COMPARISON!$AJ$56","v":1},null,null,null,null,null,null,null,2,""]
[null,null,null,"£","More than 2 hours total per day: COMPLETE TOOL DETAILS BELOW ?",null,null,null,null,null,null,null,null,null,null,null,null,null,null,null,null,null,null,null,null,null,null,null,null,null,null,null,null,null,null,{"$f":"COMPARISON!$AJ$56","v":1},null,null,null,null,null,null,null,2,""]
[null,null,null,null,null,null,null,null,null,null,null,null,null,null,null,null,null,null,null,null,null,null,null,null,null,null,null,null,null,null,null,null,null,null,null,{"$f":"COMPARISON!$AJ$57","v":1},null,null,null,null,null,null,null,9]
[null,"HIGH VIBRATION TOOLS",null,null,null,null,null,null,null,null,null,null,null,null,null,null,null,null,null,null,null,null,null,null,null,null,null,null,null,null,null,null,null,null,null,{"$f":"COMPARISON!$AJ$57","v":1},null,null,null,null,null,null,null,9,""]
[null,null,null,null,null,null,null,null,null,null,null,null,null,null,null,null,null,null,null,null,null,null,null,null,null,null,null,null,null,null,null,null,null,null,null,{"$f":"COMPARISON!$AJ$57","v":1},null,null,null,null,null,null,null,9,""]
[null,null,"Are high-impact/vibration tools (impact wrenches, chain saws, etc.) used for:",null,null,null,null,null,null,null,null,null,null,null,null,null,null,null,null,null,null,null,null,null,null,null,null,null,null,null,null,null,null,null,null,{"$f":"COMPARISON!$AJ$57","v":1},null,null,null,null,null,null,null,1,""]
[null,null,null,"£","30 minutes total per day or less",null,null,null,null,null,null,null,null,null,null,null,null,null,null,null,null,null,null,null,null,null,null,null,null,null,null,null,null,null,null,{"$f":"COMPARISON!$AJ$57","v":1},null,null,null,null,null,null,null,2,""]
[null,null,null,"£","More than 30 min. total per day: COMPLETE TOOL DETAILS BELOW ?",null,null,null,null,null,null,null,null,null,null,null,null,null,null,null,null,null,null,null,null,null,null,null,null,null,null,null,null,null,null,{"$f":"COMPARISON!$AJ$57","v":1},null,null,null,null,null,null,null,2,""]
[null,null,null,null,null,null,null,null,null,null,null,null,null,null,null,null,null,null,null,null,null,null,null,null,null,null,null,null,null,null,null,null,null,null,null,{"$f":"COMPARISON!$AJ$57","v":1},null,null,null,null,null,null,null,9]
[null,"TOOL DETAILS",null,null,null,null,null,null,null,null,null,null,null,null,null,null,null,null,null,null,null,null,null,null,null,null,null,null,null,null,null,null,null,null,null,{"$f":"COMPARISON!$AJ$58","v":1},null,null,null,null,null,null,null,9,""]
[null,null,null,null,null,null,null,null,null,null,null,null,null,null,null,null,null,null,null,null,null,null,null,null,null,null,null,null,null,null,null,null,null,null,null,{"$f":"COMPARISON!$AJ$58","v":1},null,null,null,null,null,null,null,9,""]
[null,null,"For the tool(s) you use most often during this work:",null,null,null,null,null,null,null,null,null,null,null,null,null,null,null,null,null,null,null,null,null,null,null,null,null,null,null,null,null,null,null,null,{"$f":"COMPARISON!$AJ$58","v":1},null,null,null,null,null,null,null,2,""]
[null,null,null,1,"Record the tool type and make/model of tool(s)",null,null,null,null,null,null,null,null,null,null,null,null,null,null,null,null,null,null,null,null,null,null,null,null,null,null,null,null,null,null,{"$f":"COMPARISON!$AJ$58","v":1},null,null,null,null,null,null,null,8,""]
[null,null,null,2,"Record the total hours per day using tool(s)",null,null,null,null,null,null,null,null,null,null,null,null,null,null,null,null,null,null,null,null,null,null,null,null,null,null,null,null,null,null,{"$f":"COMPARISON!$AJ$58","v":1},null,null,null,null,null,null,null,8,""]
[null,null,null,3,"Obtain vibration levels of tool(s) by either:",null,null,null,null,null,null,null,null,null,null,null,null,null,null,null,null,null,null,null,null,null,null,null,null,null,null,null,null,null,null,{"$f":"COMPARISON!$AJ$58","v":1},null,null,null,null,null,null,null,8,""]
[null,null,null,null,"a)","Providing your own measurements,",null,null,null,null,null,null,null,null,null,null,null,null,null,null,null,null,null,null,null,null,null,null,null,null,null,null,null,null,null,{"$f":"COMPARISON!$AJ$58","v":1},null,null,null,null,null,null,null,8,""]
[null,null,null,null,null,"Looking up the manufacturer's values, OR",null,null,null,null,null,null,null,null,null,null,null,null,null,null,null,null,null,null,null,null,null,null,null,null,null,null,null,null,null,{"$f":"COMPARISON!$AJ$58","v":1},null,null,null,null,null,null,null,8,""]
[null,null,null,null,"c)","Following the instructions provided when entering data into the electronic checklist (internet acess required*).",null,null,null,null,null,null,null,null,null,null,null,null,null,null,null,null,null,null,null,null,null,null,null,null,null,null,null,null,null,{"$f":"COMPARISON!$AJ$58","v":1},null,null,null,null,null,null,null,3,""]
[null,null,null,null,null,null,null,null,null,null,null,null,null,null,null,null,null,null,null,null,null,null,null,null,null,null,null,null,null,null,null,null,null,null,null,{"$f":"COMPARISON!$AJ$58","v":1},null,null,null,null,null,null,null,8,""]
[null,"Tool Type:",null,null,null,null,1,null,null,null,null,null,null,null,null,null,2,null,null,null,null,null,null,null,3,null,null,null,null,null,null,null,null,null,null,{"$f":"COMPARISON!$AJ$58","v":1},null,null,null,null,null,null,null,2,""]
[null,"Make/Model:",null,null,null,null,null,null,null,null,null,null,null,null,null,null,null,null,null,null,null,null,null,null,null,null,null,null,null,null,null,null,null,null,null,{"$f":"COMPARISON!$AJ$58","v":1},null,null,null,null,null,null,null,2,""]
[null,"Hours per day:",null,null,null,null,null,null,null,null,null,null,null,null,null,null,null,null,null,null,null,null,null,null,null,null,null,null,null,null,null,null,null,null,null,{"$f":"COMPARISON!$AJ$58","v":1},null,null,null,null,null,null,null,2,{"$f":"IF(AK560=1,1,IF(AK560=\"\",\"\",0))","v":""}]
[null,"Vibration (m/s2):",null,null,null,null,null,null,null,null,null,null,null,null,null,null,null,null,null,null,null,null,null,null,null,null,null,null,null,null,null,null,null,null,null,{"$f":"COMPARISON!$AJ$58","v":1},null,null,null,null,null,null,null,2,""]
[null,"Tool Type:",null,null,null,null,4,null,null,null,null,null,null,null,null,null,5,null,null,null,null,null,null,null,6,null,null,null,null,null,null,null,null,null,null,{"$f":"COMPARISON!$AJ$58","v":1},null,null,null,null,null,null,null,2,""]
[null,"Make/Model:",null,null,null,null,null,null,null,null,null,null,null,null,null,null,null,null,null,null,null,null,null,null,null,null,null,null,null,null,null,null,null,null,null,{"$f":"COMPARISON!$AJ$58","v":1},null,null,null,null,null,null,null,2,""]
[null,"Hours per day:",null,null,null,null,null,null,null,null,null,null,null,null,null,null,null,null,null,null,null,null,null,null,null,null,null,null,null,null,null,null,null,null,null,{"$f":"COMPARISON!$AJ$58","v":1},null,null,null,null,null,null,null,2,""]
[null,"Vibration (m/s2):",null,null,null,null,null,null,null,null,null,null,null,null,null,null,null,null,null,null,null,null,null,null,null,null,null,null,null,null,null,null,null,null,null,{"$f":"COMPARISON!$AJ$58","v":1},null,null,null,null,null,null,null,2,""]
[null,null,null,null,null,null,null,null,null,null,null,null,null,null,null,null,null,null,null,null,null,null,null,null,null,null,null,null,null,null,null,null,"* http://www.vibration.db.umu.se/HavSok.aspx?lang=en",null,null,{"$f":"COMPARISON!$AJ$58","v":1},null,null,null,null,null,null,null,1,""]
[null,null,null,null,null,null,null,null,null,null,null,null,null,null,null,null,null,null,null,null,null,null,null,null,null,null,null,null,null,null,null,null,null,null,null,{"$f":"\"o\"","v":"o"},null,null,null,null,null,null,null,9]
["NOTES:",null,null,null,null,null,null,null,null,null,null,null,null,null,null,null,null,null,null,null,null,null,null,null,null,null,null,null,null,null,null,null,null,null,null,{"$f":"COMPARISON!$AJ$59","v":1},null,null,null,null,null,null,null,1,""]
[null,"Whole Body Vibration",null,null,null,null,null,null,null,null,null,null,null,null,null,null,null,null,null,null,null,null,null,null,null,null,null,null,null,null,null,null,null,null,null,{"$f":"COMPARISON!$AJ$60","v":1},{"$f":"IF(COMPARISON!$AJ$60=1,1,0)","v":1},0,0,{"$f":"$AK$569","v":1},{"$f":"$AK$569","v":1},0,0,1,1]
[null,null,null,null,null,null,null,null,null,null,null,null,null,null,null,null,null,null,null,null,null,null,null,null,null,null,null,null,null,null,null,null,null,null,null,{"$f":"COMPARISON!$AJ$60","v":1},null,null,null,null,null,null,null,9]
[null,"DRIVING",null,null,null,null,null,null,null,null,null,null,null,null,null,null,null,null,null,null,null,null,null,null,null,null,null,null,null,null,null,null,null,null,null,{"$f":"COMPARISON!$AJ$61","v":1},null,null,null,null,null,null,null,9,""]
[null,null,null,null,null,null,null,null,null,null,null,null,null,null,null,null,null,null,null,null,null,null,null,null,null,null,null,null,null,null,null,null,null,null,null,{"$f":"COMPARISON!$AJ$61","v":1},null,null,null,null,null,null,null,9,""]
[null,null,"Does this job/taks require driving a vehicle for:",null,null,null,null,null,null,null,null,null,null,null,null,null,null,null,null,null,null,null,null,null,null,null,null,null,null,null,null,null,null,null,null,{"$f":"COMPARISON!$AJ$61","v":1},null,null,null,null,null,null,null,1,""]
[null,null,null,"£","Less than one hour per day, or never",null,null,null,null,null,null,null,null,null,null,null,null,null,null,null,null,null,null,null,null,null,null,null,null,null,null,null,null,null,null,{"$f":"COMPARISON!$AJ$61","v":1},null,null,null,null,null,null,null,1,""]
[null,null,null,"£","Between 1 and 4 hours per day ",null,null,null,null,null,null,null,null,null,null,null,null,null,null,null,null,null,null,null,null,null,null,null,null,null,null,null,null,null,null,{"$f":"COMPARISON!$AJ$61","v":1},null,null,null,null,null,null,null,1,""]
[null,null,null,"£","More than 4 hours per day ",null,null,null,null,null,null,null,null,null,null,null,null,null,null,null,null,null,null,null,null,null,null,null,null,null,null,null,null,null,null,{"$f":"COMPARISON!$AJ$61","v":1},null,null,null,null,null,null,null,1,""]
[null,null,null,null,null,null,null,null,null,null,null,null,null,null,null,null,null,null,null,null,null,null,null,null,null,null,null,null,null,null,null,null,null,null,null,{"$f":"COMPARISON!$AJ$61","v":1},null,null,null,null,null,null,null,9]
[null,"WHOLE BODY VIBRATION",null,null,null,null,null,null,null,null,null,null,null,null,null,null,null,null,null,null,null,null,null,null,null,null,null,null,null,null,null,null,null,null,null,{"$f":"COMPARISON!$AJ$62","v":1},null,null,null,null,null,null,null,9,""]
[null,null,null,null,null,null,null,null,null,null,null,null,null,null,null,null,null,null,null,null,null,null,null,null,null,null,null,null,null,null,null,null,null,null,null,{"$f":"COMPARISON!$AJ$62","v":1},null,null,null,null,null,null,null,9,""]
[null,"Forceful Hand Impacts","During this work, does this worker operate a vehicle(s) or stand/sit on a vibrating platform for:",null,null,null,null,null,null,null,null,null,null,null,null,null,null,null,null,null,null,null,null,null,null,null,null,null,null,null,null,null,null,null,null,{"$f":"COMPARISON!$AJ$62","v":1},null,null,null,null,null,null,null,4,""]
[null,null,null,"£","Less than 2 hours per day:",null,null,null,null,null,null,null,null,null,null,"END OF CHECKLIST.",null,null,null,null,null,null,null,null,null,null,null,null,null,null,null,null,null,null,null,{"$f":"COMPARISON!$AJ$62","v":1},null,null,null,null,null,null,null,1,""]
[null,null,null,"£","2 hours or more per day:",null,null,null,null,null,null,null,null,null,null,"COMPLETE VEHICLE DETAILS BELOW ?",null,null,null,null,null,null,null,null,null,null,null,null,null,null,null,null,null,null,null,{"$f":"COMPARISON!$AJ$62","v":1},null,null,null,null,null,null,null,3,""]
[null,null,null,null,null,null,null,null,null,null,null,null,null,null,null,null,null,null,null,null,null,null,null,null,null,null,null,null,null,null,null,null,null,null,null,{"$f":"COMPARISON!$AJ$62","v":1},null,null,null,null,null,null,null,9]
[null,"VEHICLE DETAILS",null,null,null,null,null,null,null,null,null,null,null,null,null,null,null,null,null,null,null,null,null,null,null,null,null,null,null,null,null,null,null,null,null,{"$f":"COMPARISON!$AJ$63","v":1},null,null,null,null,null,null,null,9,""]
[null,null,null,null,null,null,null,null,null,null,null,null,null,null,null,null,null,null,null,null,null,null,null,null,null,null,null,null,null,null,null,null,null,null,null,{"$f":"COMPARISON!$AJ$63","v":1},null,null,null,null,null,null,null,9,""]
[null,null,"For the vehicle(s) you spend the most time operating during this work:",null,null,null,null,null,null,null,null,null,null,null,null,null,null,null,null,null,null,null,null,null,null,null,null,null,null,null,null,null,null,null,null,{"$f":"COMPARISON!$AJ$63","v":1},null,null,null,null,null,null,null,2]
[null,null,null,1,"Record the make/model of vehicle.",null,null,null,null,null,null,null,null,null,null,null,null,null,null,null,null,null,null,null,null,null,null,null,null,null,null,null,null,null,null,{"$f":"COMPARISON!$AJ$63","v":1},null,null,null,null,null,null,null,8,""]
[null,null,null,2,"Record the total hours per day on vehicle.",null,null,null,null,null,null,null,null,null,null,null,null,null,null,null,null,null,"NEXT PAGE",null,null,null,null,null,null,null,null,null,null,null,null,{"$f":"COMPARISON!$AJ$63","v":1},null,null,null,null,null,null,null,8,""]
[null,null,null,3,"Obtain vibration levels, in m/s2, of vehicle by either:",null,null,null,null,null,null,null,null,null,null,null,null,null,null,null,null,null,null,null,null,null,null,null,null,null,null,null,null,null,null,{"$f":"COMPARISON!$AJ$63","v":1},null,null,null,null,null,null,null,8,""]
[null,null,null,null,"a)","Providing your own measurements,",null,null,null,null,null,null,null,null,null,null,null,null,null,null,null,null,null,null,null,null,null,null,null,null,null,null,null,null,null,{"$f":"COMPARISON!$AJ$63","v":1},null,null,null,null,null,null,null,8,""]
[null,null,null,null,"b)","Looking up the manufacturer's values, OR",null,null,null,null,null,null,null,null,null,null,null,null,null,null,null,null,null,null,null,null,null,null,null,null,null,null,null,null,null,{"$f":"COMPARISON!$AJ$63","v":1},null,null,null,null,null,null,null,8,""]
[null,null,null,null,"c)","Following the instructions provided when entering data into the electronic checklist (internet access required*).",null,null,null,null,null,null,null,null,null,null,null,null,null,null,null,null,null,null,null,null,null,null,null,null,null,null,null,null,null,{"$f":"COMPARISON!$AJ$63","v":1},null,null,null,null,null,null,null,3,""]
[null,null,null,null,null,null,null,null,null,null,null,null,null,null,null,null,null,null,null,null,null,null,null,null,null,null,null,null,null,null,null,null,null,null,null,{"$f":"COMPARISON!$AJ$63","v":1},null,null,null,null,null,null,null,8,""]
[null,"Vehicle Type:",null,null,null,null,1,null,null,null,null,null,null,null,null,null,null,null,null,null,2,null,null,null,null,null,null,null,null,null,null,null,null,null,null,{"$f":"COMPARISON!$AJ$63","v":1},null,null,null,null,null,null,null,2,""]
[null,"Make/Model:",null,null,null,null,null,null,null,null,null,null,null,null,null,null,null,null,null,null,null,null,null,null,null,null,null,null,null,null,null,null,null,null,null,{"$f":"COMPARISON!$AJ$63","v":1},null,null,null,null,null,null,null,2,""]
[null,"Hours per day:",null,null,null,null,null,null,null,null,null,null,null,null,null,null,null,null,null,null,null,null,null,null,null,null,null,null,null,null,null,null,null,null,null,{"$f":"COMPARISON!$AJ$63","v":1},null,null,null,null,null,null,null,2,""]
[null,"Vibration (m/s2):",null,null,null,null,null,null,null,null,null,null,null,null,null,null,null,null,null,null,null,null,null,null,null,null,null,null,null,null,null,null,null,null,null,{"$f":"COMPARISON!$AJ$63","v":1},null,null,null,null,null,null,null,2,""]
[null,"Vehicle Type:",null,null,null,null,3,null,null,null,null,null,null,null,null,null,null,null,null,null,4,null,null,null,null,null,null,null,null,null,null,null,null,null,null,{"$f":"COMPARISON!$AJ$63","v":1},null,null,null,null,null,null,null,2,""]
[null,"Make/Model:",null,null,null,null,null,null,null,null,null,null,null,null,null,null,null,null,null,null,null,null,null,null,null,null,null,null,null,null,null,null,null,null,null,{"$f":"COMPARISON!$AJ$63","v":1},null,null,null,null,null,null,null,2,""]
[null,"Hours per day:",null,null,null,null,null,null,null,null,null,null,null,null,null,null,null,null,null,null,null,null,null,null,null,null,null,null,null,null,null,null,null,null,null,{"$f":"COMPARISON!$AJ$63","v":1},null,null,null,null,null,null,null,2,""]
[null,"Vibration (m/s2):",null,null,null,null,null,null,null,null,null,null,null,null,null,null,null,null,null,null,null,null,null,null,null,null,null,null,null,null,null,null,null,null,null,{"$f":"COMPARISON!$AJ$63","v":1},null,null,null,null,null,null,null,2,""]
[null,null,null,null,null,null,null,null,null,null,null,null,null,null,null,null,null,null,null,null,null,null,null,null,null,null,null,null,null,null,null,null,"* http://www.vibration.db.umu.se/HkvSok.aspx?lang=en",null,null,{"$f":"COMPARISON!$AJ$63","v":1},null,null,null,null,null,null,null,1,""]
["NOTES:",null,null,null,null,null,null,null,null,null,null,null,null,null,null,null,null,null,null,null,null,null,null,null,null,null,null,null,null,null,null,null,null,null,null,{"$f":"COMPARISON!$AJ$63","v":1},null,null,null,null,null,null,null,1,""]
[null,null,null,null,null,null,null,null,null,null,null,null,null,null,null,null,null,null,null,null,null,null,null,null,null,null,null,null,null,null,null,null,null,null,null,{"$f":"COMPARISON!$AJ$61","v":1}]
[null,null,null,null,null,null,null,null,null,null,null,null,null,null,null,null,null,null,null,null,null,null,null,null,null,null,null,null,null,null,null,null,null,null,null,{"$f":"COMPARISON!$AJ$61","v":1}]
[null,null,null,null,null,null,null,null,null,null,null,null,null,null,null,null,null,null,null,null,null,null,null,null,null,null,null,null,null,null,null,null,null,null,null,{"$f":"COMPARISON!$AJ$61","v":1}]
[null,null,null,null,null,null,null,null,null,null,null,null,null,null,null,null,null,null,null,null,null,null,null,null,null,null,null,null,null,null,null,null,null,null,null,1]
[null,null,null,null,null,null,null,null,null,null,null,null,null,null,null,null,null,null,null,null,null,null,null,null,null,null,null,null,null,null,null,null,null,null,null,{"$f":"COMPARISON!$AJ$62","v":1}]
[null,null,null,null,null,null,null,null,null,null,null,null,null,null,null,null,null,null,null,null,null,null,null,null,null,null,null,null,null,null,null,null,null,null,null,{"$f":"COMPARISON!$AJ$62","v":1}]
[null,null,null,null,null,null,null,null,null,null,null,null,null,null,null,null,null,null,null,null,null,null,null,null,null,null,null,null,null,null,null,null,null,null,null,{"$f":"COMPARISON!$AJ$62","v":1}]
[null,null,null,null,null,null,null,null,null,null,null,null,null,null,null,null,null,null,null,null,null,null,null,null,null,null,null,null,null,null,null,null,null,null,null,{"$f":"COMPARISON!$AJ$62","v":1}]
[null,null,null,null,null,null,null,null,null,null,null,null,null,null,null,null,null,null,null,null,null,null,null,null,null,null,null,null,null,null,null,null,null,null,null,{"$f":"COMPARISON!$AJ$62","v":1}]
[null,null,null,null,null,null,null,null,null,null,null,null,null,null,null,null,null,null,null,null,null,null,null,null,null,null,null,null,null,null,null,null,null,null,null,{"$f":"COMPARISON!$AJ$62","v":1}]
[null,null,null,null,null,null,null,null,null,null,null,null,null,null,null,null,null,null,null,null,null,null,null,null,null,null,null,null,null,null,null,null,null,null,null,{"$f":"COMPARISON!$AJ$63","v":1}]
[null,null,null,null,null,null,null,null,null,null,null,null,null,null,null,null,null,null,null,null,null,null,null,null,null,null,null,null,null,null,null,null,null,null,null,{"$f":"COMPARISON!$AJ$63","v":1}]
[null,null,null,null,null,null,null,null,null,null,null,null,null,null,null,null,null,null,null,null,null,null,null,null,null,null,null,null,null,null,null,null,null,null,null,{"$f":"COMPARISON!$AJ$63","v":1}]
[null,null,null,null,null,null,null,null,null,null,null,null,null,null,null,null,null,null,null,null,null,null,null,null,null,null,null,null,null,null,null,null,null,null,null,{"$f":"COMPARISON!$AJ$63","v":1}]
[null,null,null,null,null,null,null,null,null,null,null,null,null,null,null,null,null,null,null,null,null,null,null,null,null,null,null,null,null,null,null,null,null,null,null,{"$f":"COMPARISON!$AJ$63","v":1}]
[null,null,null,null,null,null,null,null,null,null,null,null,null,null,null,null,null,null,null,null,null,null,null,null,null,null,null,null,null,null,null,null,null,null,null,{"$f":"COMPARISON!$AJ$63","v":1}]
[null,null,null,null,null,null,null,null,null,null,null,null,null,null,null,null,null,null,null,null,null,null,null,null,null,null,null,null,null,null,null,null,null,null,null,{"$f":"COMPARISON!$AJ$63","v":1}]
[null,null,null,null,null,null,null,null,null,null,null,null,null,null,null,null,null,null,null,null,null,null,null,null,null,null,null,null,null,null,null,null,null,null,null,{"$f":"COMPARISON!$AJ$63","v":1}]
[null,null,null,null,null,null,null,null,null,null,null,null,null,null,null,null,null,null,null,null,null,null,null,null,null,null,null,null,null,null,null,null,null,null,null,{"$f":"COMPARISON!$AJ$63","v":1}]
[null,null,null,null,null,null,null,null,null,null,null,null,null,null,null,null,null,null,null,null,null,null,null,null,null,null,null,null,null,null,null,null,null,null,null,{"$f":"COMPARISON!$AJ$63","v":1}]
[null,null,null,null,null,null,null,null,null,null,null,null,null,null,null,null,null,null,null,null,null,null,null,null,null,null,null,null,null,null,null,null,null,null,null,{"$f":"COMPARISON!$AJ$63","v":1}]
[null,null,null,null,null,null,null,null,null,null,null,null,null,null,null,null,null,null,null,null,null,null,null,null,null,null,null,null,null,null,null,null,null,null,null,{"$f":"COMPARISON!$AJ$63","v":1}]
[null,null,null,null,null,null,null,null,null,null,null,null,null,null,null,null,null,null,null,null,null,null,null,null,null,null,null,null,null,null,null,null,null,null,null,{"$f":"COMPARISON!$AJ$63","v":1}]
[null,null,null,null,null,null,null,null,null,null,null,null,null,null,null,null,null,null,null,null,null,null,null,null,null,null,null,null,null,null,null,null,null,null,null,{"$f":"COMPARISON!$AJ$63","v":1}]
[null,null,null,null,null,null,null,null,null,null,null,null,null,null,null,null,null,null,null,null,null,null,null,null,null,null,null,null,null,null,null,null,null,null,null,{"$f":"COMPARISON!$AJ$63","v":1}]
[null,null,null,null,null,null,null,null,null,null,null,null,null,null,null,null,null,null,null,null,null,null,null,null,null,null,null,null,null,null,null,null,null,null,null,{"$f":"COMPARISON!$AJ$63","v":1}]
[null,null,null,null,null,null,null,null,null,null,null,null,null,null,null,null,null,null,null,null,null,null,null,null,null,null,null,null,null,null,null,null,null,null,null,{"$f":"COMPARISON!$AJ$63","v":1}]
[null,null,null,null,null,null,null,null,null,null,null,null,null,null,null,null,null,null,null,null,null,null,null,null,null,null,null,null,null,null,null,null,null,null,null,{"$f":"COMPARISON!$AJ$63","v":1}]
[null,null,null,null,null,null,null,null,null,null,null,null,null,null,null,null,null,null,null,null,null,null,null,null,null,null,null,null,null,null,null,null,null,null,null,{"$f":"COMPARISON!$AJ$63","v":1}]
[null,null,null,null,null,null,null,null,null,null,null,null,null,null,null,null,null,null,null,null,null,null,null,null,null,null,null,null,null,null,null,null,null,null,null,{"$f":"COMPARISON!$AJ$63","v":1}]

{"sheet":"COMPARISON","index":3,"n_rows":65,"n_cols":42,"rows_kept":65,"cut":false,"hidden":true,"merged":[[20,12,21,12],[20,11,21,11],[54,11,56,11],[54,12,56,12]]}
["Index","Row",{"$f":"Home!AW2","v":0},"Frame","WkSht","FORMS Rows","F rows","F","P","R.2","R","Datasheet Row","D#",{"$f":"COUNTA(#REF!,$N$60,$N$54,$N$50,$N$45,$N$41,$N$36,$N$25,$N$29,$N$11,$N$16,$N$7,$N$2,$N$39)","v":14},{"$f":"COUNTA(#REF!,$O$60,$O$54,$O$50,$O$45,$O$41,$O$36,$O$25,$O$29,$O$11,$O$16,$O$7,$O$2,$O$39)","v":14},{"$f":"COUNTA(#REF!,$P$60,$P$54,$P$50,$P$45,$P$41,$P$36,$P$25,$P$29,$P$11,$P$16,$P$7,$P$2,$P$39)","v":14},{"$f":"COUNTA(#REF!,$Q$60,$Q$54,$Q$50,$Q$45,$Q$41,$Q$36,$Q$25,$Q$29,$Q$11,$Q$16,$Q$7,$Q$2,$Q$39)","v":14},{"$f":"COUNTA(#REF!,$R$60,$R$54,$R$50,$R$45,$R$41,$R$36,$R$25,$R$29,$R$11,$R$16,$R$7,$R$2,$R$39)","v":14},{"$f":"COUNTA(#REF!,$S$60,$S$54,$S$50,$S$45,$S$41,$S$36,$S$25,$S$29,$S$11,$S$16,$S$7,$S$2,$S$39)","v":14},"BAR",null,null,null,"#PGS","NOW",3,null,{"$f":"COUNTA(#REF!,$N$60,$N$54,$N$50,$N$45,$N$41,$N$36,$N$25,$N$29,$N$11,$N$16,$N$7,$N$2,$N$39)","v":14},{"$f":"COUNTA(#REF!,$O$60,$O$54,$O$50,$O$45,$O$41,$O$36,$O$25,$O$29,$O$11,$O$16,$O$7,$O$2,$O$39)","v":14},{"$f":"COUNTA(#REF!,$P$60,$P$54,$P$50,$P$45,$P$41,$P$36,$P$25,$P$29,$P$11,$P$16,$P$7,$P$2,$P$39)","v":14},{"$f":"COUNTA(#REF!,$Q$60,$Q$54,$Q$50,$Q$45,$Q$41,$Q$36,$Q$25,$Q$29,$Q$11,$Q$16,$Q$7,$Q$2,$Q$39)","v":14},{"$f":"COUNTA(#REF!,$R$60,$R$54,$R$50,$R$45,$R$41,$R$36,$R$25,$R$29,$R$11,$R$16,$R$7,$R$2,$R$39)","v":14},{"$f":"COUNTA(#REF!,$S$60,$S$54,$S$50,$S$45,$S$41,$S$36,$S$25,$S$29,$S$11,$S$16,$S$7,$S$2,$S$39)","v":14},null,"row","ON/OFF","Frame","Condition","Value","PageIndex","Object"]
[1,{"$f":"ROW(C2)","v":2},{"$f":"Forms!B1","v":"Job Basics"},1,"F01",1,null,1,null,null,1,null,null,1,1,1,1,1,1,{"$f":"A2/$N$65","v":7.1428571428571425E-2},{"$f":"A2/$O$65","v":7.1428571428571425E-2},{"$f":"A2/$P$65","v":7.1428571428571425E-2},{"$f":"A2/$Q$65","v":7.1428571428571425E-2},1,{"$f":"INDEX($N$1:$S$64,B2,$Z$1)","v":1},{"$f":"ABS(Y2)","v":1},{"$f":"IF(X2=1,X2*Y2,IF(X2=2,Y2))","v":1},null,1,null,null,null,null,null,{"$f":"ROW(C1)","v":1},{"$f":"IF($C$1=0,1,IF(N2>=1,1,\"o\"))","v":1}]
[null,null,"QEC_H max weight",null,null,"14-20",null,null,null,null,null,null,null,1,1,1,1,1,1,null,null,null,null,null,null,null,null,null,null,null,null,null,null,null,{"$f":"ROW(C2)","v":2},{"$f":"IF($C$1=0,1,(INDEX($N$2:$S$64,AI3,$C$1)))","v":1}]
["Page1",null,"QEC_pace_L",null,null,"19-31",null,null,null,null,3,null,null,1,1,1,1,1,1,null,null,null,null,null,null,null,{"$f":"CHAR(AA23)","v":{"$error":"#VALUE!"}},null,null,null,null,null,null,null,3,{"$f":"IF($C$1=0,1,(INDEX($N$2:$S$64,AI4,$C$1)))","v":1}]
[null,null,"QEC_stress_L",null,null,"19-31",null,null,null,null,3,null,null,1,1,1,1,1,1,null,null,null,null,null,null,null,null,null,null,null,null,null,null,null,4,{"$f":"IF($C$1=0,1,(INDEX($N$2:$S$64,AI5,$C$1)))","v":1}]
[null,null,"Notes",null,null,"32-33","32-33",null,null,null,4,null,null,1,1,1,1,1,1,null,null,null,null,null,null,null,null,null,null,null,null,null,null,null,5,{"$f":"IF($C$1=0,1,(INDEX($N$2:$S$64,AI6,$C$1)))","v":1}]
[2,{"$f":"ROW(C7)","v":7},{"$f":"Forms!B39","v":"Back"},8,"F02",34,null,2,null,null,5,null,null,1,1,1,1,1,1,1,1,1,1,1,1,1,1,1,1,1,1,1,1,1,6,{"$f":"IF($C$1=0,1,IF(N7>=1,1,\"o\"))","v":1}]
["Page8",null,"QEC_backS_L",null,null,"35-58",null,null,null,null,5,null,null,1,1,1,1,1,1,2,2,2,2,null,null,null,{"$f":"IF(X7=2,AA7+1,\"\")","v":""},null,null,null,null,null,null,null,7,{"$f":"IF($C$1=0,1,(INDEX($N$2:$S$64,AI8,$C$1)))","v":1}]
[null,null,"QEC_backD_L",null,null,"35-58",null,null,null,null,5,null,null,1,1,1,1,1,1,null,null,null,null,null,null,null,null,null,null,null,null,null,null,null,8,{"$f":"IF($C$1=0,1,(INDEX($N$2:$S$64,AI9,$C$1)))","v":1}]
[null,null,"notes",null,null,null,null,null,null,null,null,null,null,1,"o","o","o","o","o",null,null,null,null,null,null,null,null,null,null,null,null,null,null,null,9,{"$f":"IF($C$1=0,1,(INDEX($N$2:$S$64,AI10,$C$1)))","v":1}]
[3,{"$f":"ROW(C11)","v":11},"Work Postures",11,"F04",98,null,4,null,{"$f":"E11","v":"F04"},9,null,null,"o",1,1,1,1,1,null,{"$f":"A11/$O$65","v":0.21428571428571427},{"$f":"A11/$P$65","v":0.21428571428571427},{"$f":"A11/$Q$65","v":0.21428571428571427},1,{"$f":"INDEX($N$1:$S$64,B11,$Z$1)","v":1},{"$f":"ABS(Y11)","v":1},{"$f":"IF(AA17>AA16,AA17+1,AA16+1)","v":{"$error":"#VALUE!"}},null,4,null,null,null,null,11,10,{"$f":"IF($C$1=0,1,IF($C$1=1,\"o\",1))","v":1}]
["Page11",null,"Sitting_L",null,"--","99-110",null,null,null,null,43,null,null,"o","o","o","o","o","o",null,4,4,4,null,null,null,{"$f":"IF(X11=2,AA11+1,\"\")","v":""},null,null,null,null,null,null,null,11,{"$f":"IF($C$1=0,1,(INDEX($N$2:$S$64,AI12,$C$1)))","v":1}]
[null,null,"Standing_L",null,"--","99-110",null,null,null,null,43,null,null,"o","o","o","o","o","o",null,null,null,null,null,null,null,null,null,null,null,null,null,null,null,12,{"$f":"IF($C$1=0,1,(INDEX($N$2:$S$64,AI13,$C$1)))","v":1}]
[null,null,"WA_knee_L","6, 10","14-25","111-122","14-25",null,7,"a",10,"59, 60","2","o",1,1,1,1,1,null,null,null,null,null,null,null,null,null,null,null,null,null,null,null,13,{"$f":"IF($C$1=0,1,(INDEX($N$2:$S$64,AI14,$C$1)))","v":1}]
[null,null,"Notes",null,null,"123-124",null,null,null,null,11,null,null,"o",1,1,1,1,1,null,null,null,null,null,null,null,null,null,null,null,null,null,null,null,14,{"$f":"IF($C$1=0,1,(INDEX($N$2:$S$64,AI15,$C$1)))","v":1}]
[4,{"$f":"ROW(C16)","v":16},{"$f":"Forms!B95","v":"Shoulder"},14,"F03",59,null,3,null,{"$f":"E16","v":"F03"},5,null,null,1,1,1,1,1,1,{"$f":"A16/$N$65","v":0.2857142857142857},{"$f":"A16/$O$65","v":0.2857142857142857},{"$f":"A16/$P$65","v":0.2857142857142857},{"$f":"A16/$Q$65","v":0.2857142857142857},1,{"$f":"INDEX($N$1:$S$64,B16,$Z$1)","v":1},{"$f":"ABS(Y16)","v":1},{"$f":"IF(AA8>AA7,AA8+1,AA7+1)","v":{"$error":"#VALUE!"}},null,3,null,null,null,null,null,15,{"$f":"IF($C$1=0,1,IF(N16>=1,1,\"o\"))","v":1}]
["Page14",null,"QEC_ShldArm_L",75,null,"60-71",{"$f":"\"2-7\"","v":"2-7"},null,null,null,5,null,null,1,1,1,1,1,1,3,3,3,null,null,null,null,{"$f":"IF(X16=2,AA16+1,\"\")","v":""},null,null,null,null,null,null,null,16,{"$f":"IF($C$1=0,1,(INDEX($N$2:$S$64,AI17,$C$1)))","v":1},75,"left",{"$f":"IF($C$1=1,72,204)","v":204},3,"Frame"]
[null,"SDHR","WA_hands_above_L",79,{"$f":"\"8-19\"","v":"8-19"},"443-454",{"$f":"\"2-12\"","v":"2-12"},null,21,"b",33,107,16,1,"o","o","o","o","o",11,13,null,null,null,null,null,null,null,null,null,null,null,null,null,17,{"$f":"IF($C$1=0,1,(INDEX($N$2:$S$64,AI18,$C$1)))","v":1},79,"visible",{"$f":"IF(AJ18=1,\"True\",\"False\")","v":"True"},3,"Frame"]
[null,null,"Notes",null,"45-46","96-97","42-42",null,null,"d",8,null,null,1,"o","o","o",1,1,null,null,null,null,null,null,null,null,null,null,null,null,null,null,null,18,{"$f":"IF($C$1=0,1,(INDEX($N$2:$S$64,AI19,$C$1)))","v":1}]
[5,{"$f":"ROW(C20)","v":20},"Neck",14,"F03",59,null,3,null,{"$f":"E20","v":"F03"},5,null,null,1,1,1,1,1,1,{"$f":"A20/$N$65","v":0.35714285714285715},{"$f":"A20/$O$65","v":0.35714285714285715},{"$f":"A20/$P$65","v":0.35714285714285715},{"$f":"A20/$Q$65","v":0.35714285714285715},1,{"$f":"INDEX($N$1:$S$64,B20,$Z$1)","v":1},{"$f":"ABS(Y20)","v":1},{"$f":"IF(AA22>AA21,AA22+1,AA21+1)","v":1},null,3,null,null,null,null,null,19,{"$f":"IF($C$1=0,1,IF(N20>=1,1,\"o\"))","v":1}]
["Page17",null,"WA_neck_L",2,"16-33","72-89","14-34",null,4,"a",6,56,24,"o",1,1,"o","o","o",null,null,null,null,null,null,null,null,null,null,null,null,null,null,null,20,{"$f":"IF($C$1=0,1,(INDEX($N$2:$S$64,AI21,$C$1)))","v":1},2,"visible",{"$f":"IF(AJ21=1,\"True\",\"False\")","v":"True"},4,"Frame"]
[null,null,"QEC_Neck_L",76,"34-39","90-95","35-40",null,5,"b",7,null,null,1,"o","o",1,1,1,null,null,null,null,null,null,null,null,null,null,null,null,null,null,null,21,{"$f":"IF($C$1=0,1,(INDEX($N$2:$S$64,AI22,$C$1)))","v":1},92,"visible",{"$f":"IF(AJ22=1,\"True\",\"False\")","v":"True"},4,"Frame"]
[null,null,"Visual Demand",78,"40-44","14-18","14-18",null,2,"c",2,50,1,1,"o","o",1,1,1,1,1,1,1,null,null,null,{"$f":"IF(X2=2,AA2+1,\"\")","v":""},null,null,null,null,null,null,null,22,{"$f":"IF($C$1=0,1,(INDEX($N$2:$S$64,AI23,$C$1)))","v":1}]
[null,null,"Notes",null,"45-46","96-97","42-42",null,null,"d",8,null,null,1,1,1,1,1,1,null,null,null,null,null,null,null,null,null,null,null,null,null,null,null,23,{"$f":"IF($C$1=0,1,(INDEX($N$2:$S$64,AI24,$C$1)))","v":1}]
[6,{"$f":"ROW(C25)","v":25},"Hand Exertions",7,"F05","125, 154",null,6,null,"F05",12,"61-66",null,1,1,1,1,1,"o",{"$f":"(A25-1)/$N$65","v":0.35714285714285715},{"$f":"A25/$O$65","v":0.42857142857142855},{"$f":"A25/$P$65","v":0.42857142857142855},{"$f":"A25/$Q$65","v":0.42857142857142855},2,{"$f":"INDEX($N$1:$S$64,B25,$Z$1)","v":1},{"$f":"ABS(Y25)","v":1},{"$f":"IF(AA12>AA11,AA12+1,AA11+1)","v":{"$error":"#VALUE!"}},null,5,null,null,null,null,7,24,{"$f":"IF($C$1=0,1,IF($C$1=6,\"o\",1))","v":1}]
["Page7",null,"Strain Index1",null,null,"125-153",null,null,null,null,12,null,null,1,1,1,1,1,"o",4,5,5,null,null,null,null,{"$f":"IF(X25=2,AA25+1,\"\")","v":{"$error":"#VALUE!"}},null,6,null,null,null,null,null,25,{"$f":"IF($C$1=0,1,(INDEX($N$2:$S$64,AI26,$C$1)))","v":1}]
[null,null,"Strain Index2",null,null,"154-180",null,null,null,null,12,null,null,1,1,1,1,1,"o",null,null,null,null,null,null,null,null,null,null,null,null,null,null,null,26,{"$f":"IF($C$1=0,1,(INDEX($N$2:$S$64,AI27,$C$1)))","v":1},101,"height",{"$f":"IF(Home!AQ62=0,126,354)","v":354},7,"Frame","Highly repetitive motions"]
[null,null,"NOtes2",null,null,"181-182",null,null,null,null,null,null,null,1,1,1,1,1,"o",null,null,null,null,null,null,null,null,null,null,null,null,null,null,null,27,{"$f":"IF($C$1=0,1,(INDEX($N$2:$S$64,AI28,$C$1)))","v":1},101,"visible",{"$f":"IF(AJ31=1,\"True\",\"False\")","v":"True"},7,"Frame","Highly repetitive motions"]
[7,{"$f":"ROW(C29)","v":29},"Repetition - Hand",16,"F06",183,null,5,9,{"$f":"E29","v":"F06"},13,null,null,1,1,1,1,1,1,{"$f":"(A29-1)/$N$65","v":0.42857142857142855},{"$f":"A29/$O$65","v":0.5},{"$f":"A29/$P$65","v":0.5},{"$f":"A29/$Q$65","v":0.5},1,{"$f":"INDEX($N$1:$S$64,B29,$Z$1)","v":1},{"$f":"ABS(Y29)","v":1},{"$f":"IF(AA26>AA25,AA26+1,AA25+1)","v":{"$error":"#VALUE!"}},null,7,null,null,null,null,null,28,{"$f":"IF($C$1=0,1,IF(N29>=1,1,\"o\"))","v":1},43,"left",{"$f":"IF(OR($C$1=2,$C$1=6),342,188)","v":188},7,"Frame","INTENSIVE TYPING"]
[{"$f":"SUM(AJ30:AJ33)","v":4},null,"WA_computer_L",null,{"$f":"\"11-38\"","v":"11-38"},"193-217",null,null,null,"c",15,"70-72",null,1,1,1,1,1,1,null,null,null,null,null,null,null,null,null,null,null,null,null,null,null,{"$f":"ROW(C35)","v":35},{"$f":"IF($C$1=0,1,(INDEX($N$2:$S$64,AI30,$C$1)))","v":1},43,"visible",{"$f":"IF(AJ30=1,\"True\",\"False\")","v":"True"},7,"Frame","INTENSIVE TYPING"]
["Page16",null,"WA_Rep_L",94,"36-50",null,null,null,null,"d",null,"??",null,"o","o","o","o","o",1,null,null,null,null,null,null,null,null,null,null,null,null,null,null,null,30,1,43,"height",108,7,"Frame","INTENSIVE TYPING"]
[null,null,"WA_impact (sawmill)",13,"20-28","455-463","13-22",null,22,"c",34,108,17,"o",1,"o","o","o","o",null,null,null,null,null,null,null,null,null,null,null,null,null,null,null,31,1,13,"visible",{"$f":"IF(AJ32=1,\"True\",\"False\")","v":"True"},7,"Frame","Forceful hand impacts (MFG)"]
[null,null,"Notes",null,"51-52","218-219",null,null,null,"b",16,null,null,1,1,1,1,1,1,null,null,null,null,null,null,null,null,null,null,null,null,null,null,null,32,1,13,"height",108,7,"Frame","Forceful hand impacts (MFG)"]
[8,null,"Reptition - Foot",null,null,null,null,null,null,null,null,null,null,"o",1,1,1,"o",1,null,null,null,null,null,null,null,null,null,null,null,null,null,null,null,33,{"$f":"IF($C$1=0,1,(INDEX($N$2:$S$64,AI34,$C$1)))","v":1}]
[null,null,"Foot_control",74,{"$f":"\"2-10\"","v":"2-10"},"184-192",null,null,null,"a",14,69,3,"o",1,1,1,"o",1,5,6,6,6,null,null,null,{"$f":"IF(X29=2,AA29+1,\"\")","v":""},null,null,null,null,null,null,null,34,1,22,"visible",{"$f":"IF(AJ35=1,\"True\",\"False\")","v":"True"},8,"Frame","Foot controls"]
[9,{"$f":"ROW(C36)","v":36},"Gripping",15,"F07",220,null,7,null,{"$f":"E36","v":"F07"},17,null,null,1,1,1,1,1,1,{"$f":"(A36-1)/$N$65","v":0.5714285714285714},{"$f":"A36/$O$65","v":0.6428571428571429},{"$f":"A36/$P$65","v":0.6428571428571429},{"$f":"A36/$Q$65","v":0.6428571428571429},1,{"$f":"INDEX($N$1:$S$64,B36,$Z$1)","v":1},{"$f":"ABS(Y36)","v":1},null,null,8,null,null,null,null,null,35,{"$f":"IF($C$1=0,1,IF(N36>=1,1,\"o\"))","v":1}]
["Page15",null,"WA_pinch_L",54,null,"221-236",null,null,null,null,18,null,null,1,1,1,1,1,1,6,7,7,7,null,null,null,null,null,null,null,null,null,null,null,36,{"$f":"IF($C$1=0,1,(INDEX($N$2:$S$64,AI37,$C$1)))","v":1},54,"left",{"$f":"IF(C1=1,204,0)","v":0},9,"Frame","PINCH GRIP"]
[null,null,"WA_grip_L (power)",55,"19-37","237-253","19-34",null,11,"a",19,"75, 76","4","o",1,1,1,1,1,null,null,null,null,null,null,null,null,null,null,null,null,null,null,null,37,{"$f":"IF($C$1=0,1,(INDEX($N$2:$S$64,AI38,$C$1)))","v":1},55,"visible",{"$f":"IF(AJ38=1,\"True\",\"False\")","v":"True"},9,"Frame","POWER GRIP"]
[10,{"$f":"ROW(C39)","v":39},"Lifting",null,"F08",null,null,null,null,{"$f":"E39","v":"F08"},null,null,null,"o","o","o",1,1,1,null,null,null,null,1,{"$f":"INDEX($N$1:$S$64,B39,$Z$1)","v":"o"},{"$f":"ABS(Y39)","v":{"$error":"#VALUE!"}},null,null,null,null,null,null,null,18,38,{"$f":"IF($C$1=0,1,IF($C$1>3,1,\"o\"))","v":1},7,"visible",{"$f":"IF(C1<4,\"True\",\"False\")","v":"True"},11,"Image","HAND LOCATION"]
["Page18",null,"WA Screeners",null,{"$f":"\"1-22\"","v":"1-22"},null,null,null,null,"a",null,null,null,"o","o","o",1,1,1,null,null,null,null,null,null,null,null,null,null,null,null,null,null,null,39,{"$f":"IF($C$1=0,1,(INDEX($N$2:$S$64,AI40,$C$1)))","v":1},66,"visible",{"$f":"IF(C1<4,\"False\",\"True\")","v":"False"},11,"Image","HAND LOCATION"]
[11,{"$f":"ROW(C41)","v":41},"Lifting",6,null,256,null,8,null,null,21,null,null,1,1,1,1,1,1,{"$f":"IF(OR($Z$1=1,$Z$1=2,$Z$1=3),T36+1,IF(Home!$AQ$21>0,COUNTA(T39,T36,T29,T25,T11,T16,T7,T2)+1,IF(Home!$AQ$21=0,\"\")))","v":1.5714285714285714},{"$f":"IF(OR($Z$1=1,$Z$1=2,$Z$1=3),U36+1,IF(Home!$AQ$21>0,COUNTA(U39,U36,U29,U25,U11,U16,U7,U2)+1,IF(Home!$AQ$21=0,\"\")))","v":1.6428571428571428},{"$f":"IF(OR($Z$1=1,$Z$1=2,$Z$1=3),V36+1,IF(Home!$AQ$21>0,COUNTA(V39,V36,V29,V25,V11,V16,V7,V2)+1,IF(Home!$AQ$21=0,\"\")))","v":1.6428571428571428},{"$f":"IF(OR($Z$1=1,$Z$1=2,$Z$1=3),W36+1,IF(Home!$AQ$21>0,COUNTA(W39,W36,W29,W25,W11,W16,W7,W2)+1,IF(Home!$AQ$21=0,\"\")))","v":1.6428571428571428},{"$f":"IF(OR($Z$1=1,$Z$1=2,$Z$1=3),X36+1,IF(Home!$AQ$21>0,COUNTA(X39,X36,X29,X25,X11,X16,X7,X2)+1,IF(Home!$AQ$21=0,\"\")))","v":2},{"$f":"IF(OR($Z$1=1,$Z$1=2,$Z$1=3),Y36+1,IF(Home!$AQ$21>0,COUNTA(Y39,Y36,Y29,Y25,Y11,Y16,Y7,Y2)+1,IF(Home!$AQ$21=0,\"\")))","v":2},{"$f":"IF(OR($Z$1=1,$Z$1=2,$Z$1=3),Z36+1,IF(Home!$AQ$21>0,COUNTA(Z39,Z36,Z29,Z25,Z11,Z16,Z7,Z2)+1,IF(Home!$AQ$21=0,\"\")))","v":2},{"$f":"IF(OR($Z$1=1,$Z$1=2,$Z$1=3),AA36+1,IF(Home!$AQ$21>0,COUNTA(AA39,AA36,AA29,AA25,AA11,AA16,AA7,AA2)+1,IF(Home!$AQ$21=0,\"\")))","v":1},{"$f":"IF(OR($Z$1=1,$Z$1=2,$Z$1=3),AB36+1,IF(Home!$AQ$21>0,COUNTA(AB39,AB36,AB29,AB25,AB11,AB16,AB7,AB2)+1,IF(Home!$AQ$21=0,\"\")))","v":1},{"$f":"IF(OR($Z$1=1,$Z$1=2,$Z$1=3),AC36+1,IF(Home!$AQ$21>0,COUNTA(AC39,AC36,AC29,AC25,AC11,AC16,AC7,AC2)+1,IF(Home!$AQ$21=0,\"\")))","v":9},{"$f":"IF(OR($Z$1=1,$Z$1=2,$Z$1=3),AD36+1,IF(Home!$AQ$21>0,COUNTA(AD39,AD36,AD29,AD25,AD11,AD16,AD7,AD2)+1,IF(Home!$AQ$21=0,\"\")))","v":1},{"$f":"IF(OR($Z$1=1,$Z$1=2,$Z$1=3),AE36+1,IF(Home!$AQ$21>0,COUNTA(AE39,AE36,AE29,AE25,AE11,AE16,AE7,AE2)+1,IF(Home!$AQ$21=0,\"\")))","v":1},{"$f":"IF(OR($Z$1=1,$Z$1=2,$Z$1=3),AF36+1,IF(Home!$AQ$21>0,COUNTA(AF39,AF36,AF29,AF25,AF11,AF16,AF7,AF2)+1,IF(Home!$AQ$21=0,\"\")))","v":1},{"$f":"IF(OR($Z$1=1,$Z$1=2,$Z$1=3),AG36+1,IF(Home!$AQ$21>0,COUNTA(AG39,AG36,AG29,AG25,AG11,AG16,AG7,AG2)+1,IF(Home!$AQ$21=0,\"\")))","v":1},6,40,{"$f":"IF($C$1=0,1,IF(N41>=1,1,\"o\"))","v":1},57,"caption",{"$f":"IF(C1<4,\"On average, lifts are performed once every:\",\"On average, how many lifts are performed per minute?\")","v":"On average, lifts are performed once every:"},11,"Label","LIFTING FREQUENCY"]
["Page6",null,"TLV_Lifting_L",null,null,"257-291",null,null,null,null,21,null,null,1,1,1,"o","o","o",7,8,8,8,null,null,null,null,null,null,null,null,null,null,null,41,{"$f":"IF($C$1=0,1,(INDEX($N$2:$S$64,AI42,$C$1)))","v":1},28,"top",{"$f":"IF(C1<4,174,270)","v":174},11,"Frame","LIFTING FREQUENCY"]
[null,null,"WA_lifting_L",null,null,"257-291",null,null,null,null,null,null,null,"o","o","o",1,1,1,null,null,null,null,null,null,null,null,null,null,null,null,null,null,null,42,{"$f":"IF($C$1=0,1,(INDEX($N$2:$S$64,AI43,$C$1)))","v":1},60,"caption",{"$f":"IF(C1<4,\"2 hours or less\",\"1 hour or less\")","v":"2 hours or less"},11,"CheckBox","LIFTING DURATION, 1"]
[null,null,"NOTES",null,null,null,null,null,null,null,null,null,null,"o","o","o",1,1,1,null,null,null,null,null,null,null,null,null,null,null,null,null,null,null,43,{"$f":"IF($C$1=0,1,(INDEX($N$2:$S$64,AI44,$C$1)))","v":1}]
[12,{"$f":"ROW(C45)","v":45},"Carrying",12,"F09",292,null,null,null,null,22,null,null,1,1,1,1,1,1,{"$f":"IF(T41<>\"\",T36+COUNTA(T39,T41)+1,T39+COUNTA(T39))","v":2.5714285714285712},2.6428571428571428,2.6428571428571428,2.6428571428571428,4,4,4,2,2,10,2,2,2,2,null,44,{"$f":"IF($C$1=0,1,IF(N45>=1,1,\"o\"))","v":1},61,"caption",{"$f":"IF(C1<4,\"More than 2 hours\",\"1 to 2 hours\")","v":"More than 2 hours"},11,"CheckBox"]
["Page12",null,"Carry_L1",null,null,"293-322",null,null,null,null,null,null,null,1,"o","o","o","o","o",8,9,9,9,null,null,null,null,null,null,null,null,null,null,null,45,{"$f":"IF($C$1=0,1,(INDEX($N$2:$S$64,AI46,$C$1)))","v":1},62,"caption",{"$f":"IF(C1<4,\"Close: <12 inches\",\"Close: <7 inches\")","v":"Close: <12 inches"},11,"CheckBox"]
[null,null,"Carry_L2",null,null,"293-322",null,null,null,null,null,null,null,"o",1,1,1,1,1,null,null,null,null,null,null,null,null,null,null,null,null,null,null,null,46,{"$f":"IF($C$1=0,1,(INDEX($N$2:$S$64,AI47,$C$1)))","v":1},63,"caption",{"$f":"IF(C1<4,\"Intermediate: 12-24 inches\",\"Intermediate: 7-12 inches\")","v":"Intermediate: 12-24 inches"},11,"CheckBox"]
[null,null,"Carry_L3",null,null,"293-322",null,null,null,null,null,null,null,"o","o","o","o","o","o",null,null,null,null,null,null,null,null,null,null,null,null,null,null,null,47,{"$f":"IF($C$1=0,1,(INDEX($N$2:$S$64,AI48,$C$1)))","v":1},64,"caption",{"$f":"IF(C1<4,\"Extended: 25-32 inches\",\"Extended: >12 inches\")","v":"Extended: 25-32 inches"},11,"CheckBox"]
[null,null,"Notes",null,null,"323-324",null,null,null,null,null,null,null,1,1,1,1,1,1,null,null,null,null,null,null,null,null,null,null,null,null,null,null,null,48,{"$f":"IF($C$1=0,1,(INDEX($N$2:$S$64,AI49,$C$1)))","v":1},69,"caption",{"$f":"IF(C1<4,\"3 in. below shoulder and above\",\"Above shoulder\")","v":"3 in. below shoulder and above"},11,"CheckBox"]
[13,{"$f":"ROW(C50)","v":50},"Pushing/Pulling",3,"F10","325, 347",null,null,null,null,23,null,null,1,1,1,1,1,1,{"$f":"(A50-1)/$N$65","v":0.8571428571428571},{"$f":"A50/$O$65","v":0.9285714285714286},{"$f":"A50/$P$65","v":0.9285714285714286},{"$f":"A50/$Q$65","v":0.9285714285714286},2,{"$f":"INDEX($N$1:$S$64,B50,$Z$1)","v":1},{"$f":"ABS(Y50)","v":1},null,null,11,null,null,null,null,null,49,{"$f":"IF($C$1=0,1,IF(N50>=1,1,\"o\"))","v":1},70,"caption",{"$f":"IF(C1<4,\"Knuckle to 3 in. below shoulder\",\"Waist to shoulder\")","v":"Knuckle to 3 in. below shoulder"},11,"CheckBox"]
[null,null,"Push/Pull_overall1",null,null,"326-346, 347-376",null,null,null,null,null,null,null,"o","o","o","o","o","o",9,10,10,10,null,null,null,null,null,12,null,null,null,null,null,50,{"$f":"IF($C$1=0,1,(INDEX($N$2:$S$64,AI51,$C$1)))","v":1},71,"caption",{"$f":"IF(C1<4,\"Mid-shin to knuckle\",\"Knee to waist\")","v":"Mid-shin to knuckle"},11,"CheckBox"]
["Page3",null,"Push/Pull_overall2",null,null,"326-346, 348-376",null,null,null,null,23,null,null,1,1,1,1,1,1,null,null,null,null,null,null,null,null,null,null,null,null,null,null,null,51,{"$f":"IF($C$1=0,1,(INDEX($N$2:$S$64,AI52,$C$1)))","v":1},72,"caption",{"$f":"IF(C1<4,\"Below mid-shin\",\"Below knee\")","v":"Below mid-shin"},11,"CheckBox"]
[null,null,"Push/Pull_overall3",null,null,"326-346, 348-376",null,null,null,null,23,null,null,"o","o","o","o","o","o",null,null,null,null,null,null,null,null,null,null,null,null,null,null,null,52,{"$f":"IF($C$1=0,1,(INDEX($N$2:$S$64,AI53,$C$1)))","v":1},112,"visible",{"$f":"IF(C1<4,\"False\",\"True\")","v":"False"},11,"CheckBox"]
[14,{"$f":"ROW(C54)","v":54},"Hand/Arm Vibration",9,"F11",377,null,9,null,{"$f":"E54","v":"F11"},24,null,null,1,1,1,1,1,1,null,{"$f":"A54/$O$65","v":1},{"$f":"A54/$P$65","v":1},{"$f":"A54/$Q$65","v":1},1,{"$f":"INDEX($N$1:$S$64,B54,$Z$1)","v":1},{"$f":"ABS(Y54)","v":1},null,null,13,null,null,null,null,9,53,1,87,"visible",{"$f":"IF($C$1<4,\"False\",\"True\")","v":"False"},11,"Frame"]
["Page9",null,"QEC-vibration_L",29,{"$f":"\"2-7\"","v":"2-7"},"378-383",{"$f":"\"2-7\"","v":"2-7"},null,13,"a",25,94,5,1,1,"o","o",1,1,null,11,11,11,null,null,null,null,null,null,null,null,null,null,null,54,{"$f":"IF($C$1=0,1,(INDEX($N$2:$S$64,AI55,$C$1)))","v":1},29,"visible",{"$f":"IF(AJ55=1,\"True\",\"False\")","v":"True"},14,"Frame"]
[null,null,"WA_vib_mod",80,{"$f":"\"8-12\"","v":"8-12"},"384-388",{"$f":"\"8-12\"","v":"8-12"},null,14,"b",26,null,null,"o","o",1,1,"o","o",null,null,null,null,null,null,null,null,null,null,null,null,null,null,null,55,{"$f":"IF($C$1=0,1,(INDEX($N$2:$S$64,AI56,$C$1)))","v":1},80,"visible",{"$f":"IF(AJ56=1,\"True\",\"False\")","v":"True"},14,"Frame"]
[null,null,"WA_vib_high",83,"13-17","389-393","13-17",null,15,"c",26,null,null,"o","o",1,1,"o","o",null,null,null,null,null,null,null,null,null,null,null,null,null,null,null,56,{"$f":"IF($C$1=0,1,(INDEX($N$2:$S$64,AI57,$C$1)))","v":1},83,"visible",{"$f":"IF(AJ57=1,\"True\",\"False\")","v":"True"},14,"Frame"]
[null,null,"WA_EU_HA_vib_L",44,"18-36","394-412","18-33",null,16,"d",27,"95-100","6-11","o","o",1,1,"o","o",null,null,null,null,null,null,null,null,null,null,null,null,null,null,null,57,{"$f":"IF($C$1=0,1,(INDEX($N$2:$S$64,AI58,$C$1)))","v":1},44,"visible",false,14,"Frame"]
[null,null,"Notes",null,"37-38","413-414","34-35",null,null,"e",28,null,null,"o","o",1,1,"o","o",null,null,null,null,null,null,null,null,null,null,null,null,null,null,null,58,{"$f":"IF($C$1=0,1,(INDEX($N$2:$S$64,AI59,$C$1)))","v":1},44,"height",126,14,"Frame"]
[15,{"$f":"ROW(C60)","v":60},"Whole Body Vibration",13,null,415,null,10,null,null,29,null,null,1,1,1,1,1,1,{"$f":"COUNTA(T54,T50,T45,T41,T39,T36,T29,T25,T11,T16,T7,T2)+1","v":10},12,12,12,13,13,13,9,4,12,4,4,4,4,null,59,{"$f":"IF($C$1=0,1,IF(N60>=1,1,\"o\"))","v":1}]
["Page13",null,"QEC_driving_L",null,"40-45","416-421",null,null,null,"h",29,101,"12a","o","o","o","o","o","o",10,12,12,12,null,null,null,null,null,null,null,null,null,null,null,60,{"$f":"IF($C$1=0,1,(INDEX($N$2:$S$64,AI61,$C$1)))","v":1},31,"visible",{"$f":"IF(AJ61=1,\"True\",\"False\")","v":"True"},15,"Frame"]
[null,null,"WA_WBV_screener",null,"46-51","446-451",null,null,null,"i",null,102,"12b",1,1,1,1,1,1,null,null,null,null,null,null,null,null,null,null,null,null,null,null,null,61,{"$f":"IF($C$1=0,1,(INDEX($N$2:$S$64,AI62,$C$1)))","v":1},86,"visible",{"$f":"IF(AJ62=1,\"True\",\"False\")","v":"True"},15,"Frame"]
[null,null,"EU_WBV_vib_L",33,"52-68","422-439",{"$f":"\"8-20\"","v":"8-20"},null,18,"j",30,"103-106","12-15",1,1,1,1,1,1,{"$f":"IF(Home!$AN$100=2,1,0)","v":0},{"$f":"IF(Home!$AN$100=2,1,0)","v":0},{"$f":"IF(Home!$AN$100=2,1,0)","v":0},{"$f":"IF(Home!$AN$100=2,1,0)","v":0},{"$f":"IF(Home!$AN$100=2,1,0)","v":0},{"$f":"IF(Home!$AN$100=2,1,0)","v":0},{"$f":"IF(Home!$AN$100=2,1,0)","v":0},{"$f":"IF(Home!$AN$100=2,1,0)","v":0},{"$f":"IF(Home!$AN$100=2,1,0)","v":0},{"$f":"IF(Home!$AN$100=2,1,0)","v":0},{"$f":"IF(Home!$AN$100=2,1,0)","v":0},{"$f":"IF(Home!$AN$100=2,1,0)","v":0},{"$f":"IF(Home!$AN$100=2,1,0)","v":0},{"$f":"IF(Home!$AN$100=2,1,0)","v":0},{"$f":"IF(Home!$AN$100=2,1,0)","v":0},62,{"$f":"IF($C$1=0,1,(INDEX($N$2:$S$64,AI63,$C$1)))","v":1},33,"height",132,15,"Frame"]
[null,null,"notes",null,"69-70","440-441",null,null,null,"k",31,null,null,1,1,1,1,1,1,null,null,null,null,null,null,null,null,null,null,null,null,null,null,null,63,{"$f":"IF($C$1=0,1,(INDEX($N$2:$S$64,AI64,$C$1)))","v":1}]
[null,null,"VizPgCt",null,null,null,null,null,null,null,null,null,null,{"$f":"COUNTA(N34,N60,N54,N50,N45,N41,N36,N25,N29,N11,N16,N7,N2,N39)","v":14},14,14,14,14,14,null,null,null,null,{"$f":"SUM(X2:X64)","v":32}]

{"sheet":"LM","index":4,"n_rows":79,"n_cols":75,"rows_kept":79,"cut":false,"hidden":true,"merged":[[1,36,1,37],[1,38,1,41],[1,64,1,67],[1,68,1,71],[41,64,41,67],[41,68,41,71]]}
["Manual materials handling calculators based on Liberty Mutual data",null,null,null,null,null,null,null,null,"Source Document:",null,null,null,"2002 Thomas E. Bernard",null,null,null,"University of South Florida",null,null,null,null,null,null,null,null,null,null,null,null,null,null,null,null,"in kg",null,null,null,null,null,null,null,null,null,null,null,null,null,null,null,null,null,null,null,null,null,null,null,null,null,null,null,null,null,"PUSH",null,"1 Move Every"]
[null,null,null,null,null,null,null,null,null,null,null,null,null,null,null,null,null,null,null,null,null,null,null,null,null,null,null,null,null,null,null,null,null,null,"mean",null,"Second",null,"Minute",null,null,null,"Hour",null,null,null,null,null,null,null,null,null,null,null,null,null,null,null,null,null,null,null,null,null,"Second",null,null,null,"Minute",null,null,null,"Hour"]
[null,null,null,null,null,null,null,null,null,null,null,null,null,null,null,null,null,null,null,null,null,null,null,null,null,null,null,null,null,null,null,null,null,null,"sd","Distance",10,20,1,2,5,30,8,null,null,null,null,null,null,null,null,null,null,null,null,null,null,null,null,null,null,null,"Height","Dist [m]",6,12,15,30,1,2,5,30,8]
[null,null,null,null,null,null,null,"7 FEET CARRY",null,null,null,null,null,null,null,null,"14 FEET CARRY",null,null,null,null,null,null,null,null,"27 FEET CARRY",null,null,null,null,null,null,null,null,"Bent",1,15.8,16.829999999999998,17.6666666666667,17.6666666666667,18.1666666666667,18.1666666666667,24.6666666666667,1,null,null,null,null,null,null,null,null,null,null,null,null,null,null,null,null,null,1,"High",2.1,20.1666666666667,21.6666666666667,22.5,24.17,25,26,28.8333333333333,30,31.8333333333333,{"$f":"BL4*3.2808399","v":6.8897637900000008},{"$f":"\"0 to 7 feet\"","v":"0 to 7 feet"}]
[null,null,null,null,null,null,null,"S",null,"Min",null,null,null,"Hrs",null,null,"S",null,"Min",null,null,null,"Hrs",null,null,"S",null,"Min",null,null,null,"Hrs",null,null,null,null,5.14,6,3.6069220546599601,3.6069220546599601,3.8019298549719802,3.8019298549719802,5.12769399664875,2,null,null,null,null,null,null,null,null,null,null,null,null,null,null,null,null,null,2,null,2.1,4.9326861963367401,5.12769399664875,5.36,5.84,6.0830877679551598,6.0830877679551598,6.8434737389495597,7.2138441093199299,7.4088519096319398,{"$f":"BL5*3.2808399","v":6.8897637900000008},"0 to 7 feet"]
[null,"Actual Weight",{"$f":"Home!$AN$107","v":0},null,null,null,null,10,20,1,2,5,30,8,null,null,10,20,1,2,5,30,8,null,null,10,20,1,2,5,30,8,null,null,null,2,12.3333333333333,16.5,17.6666666666667,17.6666666666667,18.1666666666667,18.1666666666667,24.3333333333333,3,null,null,null,null,null,null,null,null,null,null,null,null,null,null,null,null,null,3,"Middle",2.1,20.1666666666667,21.6666666666667,22.5,24.17,25,26,28.8333333333333,30,31.8333333333333,6.8897637900000008,"0 to 7 feet"]
["Carry",0.75,{"$f":"IF(OR($E$7<=0,$E$8<=0),0,INDEX(H7:AF8,E7,E8))","v":0},"Row",{"$f":"Home!$AN$106","v":0},75,"elbows bent",28.6,30.8,33,33,35.200000000000003,35.200000000000003,46.2,null,null,24.2,26.4,33,33,35.200000000000003,35.200000000000003,46.2,null,null,1E-3,26,30.8,30.8,30.8,30.8,41.8,null,null,null,null,2.4761657132952002,5.88,3.6069220546599601,3.6069220546599601,3.8019298549719802,3.8019298549719802,5.12769399664875,4,null,null,null,null,null,null,null,null,null,null,null,null,null,null,null,null,null,4,null,2.1,4.9326861963367401,5.12769399664875,5.36,5.84,6.0830877679551598,6.0830877679551598,6.8434737389495597,7.2138441093199299,7.4088519096319398,6.8897637900000008,"0 to 7 feet"]
[null,null,null,"Column",{"$f":"IF(OR(Home!AN108=0,Home!AN109=0),0,Home!$AN$108+9*(Home!$AN$109-1))","v":0},null,"elbows straight",35,37.4,39.6,39.6,41.8,41.8,55,null,null,24.2,28.6,35.200000000000003,35.200000000000003,37.4,37.4,50.6,null,null,1E-3,31,35.200000000000003,35.200000000000003,37.4,37.4,50.6,null,null,null,3,1E-3,14.47,16,16,16.3333333333333,16.3333333333333,22,5,null,null,null,null,null,null,null,null,null,null,null,null,null,null,null,null,null,5,"Low",2.1,16.1666666666667,17.3333333333333,18,19.329999999999998,20,20.6666666666667,23,24,25.3333333333333,6.8897637900000008,"0 to 7 feet"]
[null,null,null,null,null,null,null,null,null,null,null,null,null,null,null,null,null,null,null,null,null,null,null,null,null,null,null,null,null,null,null,null,null,null,null,null,1E-3,5.15,3.0415438839775799,3.0415438839775799,3.6069220546599601,3.6069220546599601,4.5623158259663699,6,null,null,null,null,null,null,null,null,null,null,null,null,null,null,null,null,null,6,null,2.1,3.8019298549719802,3.9969376552839901,4.1399999999999997,4.42,4.5623158259663699,5.12769399664875,5.69307216733114,5.69307216733114,6.2584503380135201,6.8897637900000008,"0 to 7 feet"]
[null,"mean",{"$f":"IF(OR($E$10<=0,$E$11<=0),0,INDEX(AK4:AQ15,$E10,$E11))","v":0},"Row",{"$f":"1+2*(Home!$AN$109-1)+6*(Home!$AN$106-1)","v":-7},null,null,null,null,null,null,null,null,null,null,null,null,null,null,null,null,null,null,null,null,null,null,null,null,null,null,null,null,null,"Straight",1,18.8,20.170000000000002,21.1666666666667,21.1666666666667,22,22,29.1666666666667,7,null,null,null,null,null,null,null,null,null,null,null,null,null,null,null,null,null,7,"High",7.6,1E-3,1E-3,21.3333333333333,22.9,23,23.8333333333333,26.1666666666667,27.3333333333333,29,24.934383239999999,{"$f":"\">7 to 25 feet\"","v":">7 to 25 feet"}]
[null,"sd",{"$f":"IF(OR($E$10<=0,$E$11<=0),0,INDEX(AK4:AQ15,$E10+1,$E11))","v":0},"Column",{"$f":"Home!$AN$108","v":0},null,null,null,null,null,null,null,null,null,null,null,null,null,null,null,null,null,null,null,null,null,null,null,null,null,null,null,null,null,null,null,6.14,7.18,4.3673080256543599,4.3673080256543599,4.5623158259663699,4.5623158259663699,5.8880799676431499,8,null,null,null,null,null,null,null,null,null,null,null,null,null,null,null,null,null,8,null,7.6,1E-3,1E-3,5.12769399664875,5.48,5.69307216733114,5.8880799676431499,6.4534581383255301,6.64846593863754,7.2138441093199299,24.934383239999999,">7 to 25 feet"]
[null,"Percentile",{"$f":"IF(OR($C$10<=0,$C$11<=0),0,100*(NORMSDIST((2.2*C10-C6)/(2.2*C11))))","v":0},null,null,null,null,null,null,null,null,null,null,null,null,null,null,null,null,null,null,null,null,null,null,null,null,null,null,null,null,null,null,null,null,2,13.1666666666667,17.920000000000002,19,19,19.6666666666667,19.6666666666667,26.3333333333333,9,null,null,null,null,null,null,null,null,null,null,null,null,null,null,null,null,null,9,"Middle",7.6,1E-3,1E-3,20,22.17,23.3333333333333,24.1666666666667,26.8333333333333,28,29.8333333333333,24.934383239999999,">7 to 25 feet"]
[null,null,null,null,null,null,null,null,null,null,null,null,null,null,null,null,null,null,null,null,null,null,null,null,null,null,null,null,null,null,null,null,null,null,null,null,2.84653608366557,6.38,4.17230022534235,4.17230022534235,3.9969376552839901,3.9969376552839901,5.12769399664875,10,null,null,null,null,null,null,null,null,null,null,null,null,null,null,null,null,null,10,null,7.6,1E-3,1E-3,4.5623158259663699,5.29,5.5177095972727797,5.8880799676431499,6.4534581383255301,7.2138441093199299,6.8434737389495597,24.934383239999999,">7 to 25 feet"]
[null,null,null,null,null,null,null,null,null,null,null,null,null,null,null,null,null,null,null,null,null,null,null,null,null,null,null,null,null,null,null,null,null,null,null,3,1E-3,16.5,18.8333333333333,19,19.6666666666667,19.6666666666667,26.1666666666667,11,null,null,null,null,null,null,null,null,null,null,null,null,null,null,null,null,null,11,"Low",7.6,1E-3,1E-3,16.3333333333333,18.739999999999998,20,20.6666666666667,23,23.8333333333333,25,24.934383239999999,">7 to 25 feet"]
[null,null,null,null,null,null,null,null,null,null,null,null,null,null,null,null,null,null,null,null,null,null,null,null,null,null,null,null,null,null,null,null,null,null,null,null,1E-3,5.88,3.8019298549719802,4.17230022534235,3.9969376552839901,3.9969376552839901,5.3227017969607697,12,null,null,null,null,null,null,null,null,null,null,null,null,null,null,null,null,null,12,null,7.6,1E-3,1E-3,3.9969376552839901,4.46,4.5623158259663699,5.12769399664875,5.69307216733114,5.8880799676431499,6.0830877679551598,24.934383239999999,">7 to 25 feet"]
[null,null,null,null,null,null,null,{"$f":"\"0 to 7 feet\"","v":"0 to 7 feet"},null,null,null,null,null,null,null,null,{"$f":"\">7 to 24 feet\"","v":">7 to 24 feet"},null,null,null,null,null,null,null,null,{"$f":"\">24 to 48 feet\"","v":">24 to 48 feet"},null,null,null,null,null,null,null,null,{"$f":"\">48 to 97 feet\"","v":">48 to 97 feet"},null,null,null,null,null,null,null,null,{"$f":"\">97 to 145 feet\"","v":">97 to 145 feet"},null,null,null,null,null,null,null,null,{"$f":"\">145 feet\"","v":">145 feet"},null,null,null,null,null,null,null,null,13,"High",15.2,1E-3,1E-3,1E-3,19.7,20,20.1666666666667,22.1666666666667,23.3333333333333,24.8333333333333,49.868766479999998,{"$f":"\">25 to 50 feet\"","v":">25 to 50 feet"}]
[null,null,null,null,null,null,null,"7 FEET PUSH",null,null,null,null,null,null,null,null,"24 FEET PUSH",null,null,null,null,null,null,null,null,"48 FEET PUSH",null,null,null,null,null,null,null,null,"97 FEET PUSH",null,null,null,null,null,null,null,null,"145 FEET PUSH",null,null,null,null,null,null,null,null,"194 FEET PUSH",null,null,null,null,null,null,null,null,14,null,15.2,1E-3,1E-3,1E-3,4.49,4.5623158259663699,4.9326861963367401,5.3227017969607697,5.5177095972727797,5.8880799676431499,49.868766479999998,">25 to 50 feet"]
[null,null,null,null,null,null,"Height (in)","S",null,null,null,"Min",null,null,null,"Hrs","S",null,null,null,"Min",null,null,null,"Hrs","S",null,null,null,"Min",null,null,null,"Hrs","S",null,null,null,"Min",null,null,null,"Hrs","S",null,null,null,"Min",null,null,null,"Hrs","S",null,null,null,"Min",null,null,null,"Hrs",15,"Middle",15.2,1E-3,1E-3,1E-3,18.510000000000002,20,20.6666666666667,23,23.8333333333333,25,49.868766479999998,">25 to 50 feet"]
[null,"Actual Force",{"$f":"Home!$AN$117","v":0},null,null,null,null,6,12,15,30,1,2,5,30,8,6,12,15,30,1,2,5,30,8,6,12,15,30,1,2,5,30,8,6,12,15,30,1,2,5,30,8,6,12,15,30,1,2,5,30,8,6,12,15,30,1,2,5,30,8,16,null,15.2,1E-3,1E-3,1E-3,4.32,4.5623158259663699,5.12769399664875,5.69307216733114,5.8880799676431499,6.0830877679551598,49.868766479999998,">25 to 50 feet"]
["Push",0.75,{"$f":"IF(OR($E$20<=0,$E$21<=0),0,INDEX(H20:BI22,E20,E21))","v":0},"Row",{"$f":"Home!$AN$120","v":0},75,55,37.4,39.6,42,44,46.2,48.4,52.8,55,59.4,1E-3,1E-3,37.4,42,44,44,48.4,50.6,52.8,1E-3,1E-3,1E-3,37.4,37.4,37.4,41.8,44,46.2,1E-3,1E-3,1E-3,1E-3,33,35.200000000000003,37.4,41.8,46.2,1E-3,1E-3,1E-3,1E-3,33,35.200000000000003,37.4,41.8,46.2,1E-3,1E-3,1E-3,1E-3,1E-3,30.8,33,37.4,41.8,17,"Low",15.2,1E-3,1E-3,1E-3,15.12,17,17.6666666666667,19.1666666666667,20.1666666666667,21.3333333333333,49.868766479999998,">25 to 50 feet"]
[null,null,null,"Column",{"$f":"Home!$AN$118+9*(Home!$AN$123-1)","v":-9},null,36,37.4,39.6,42,44,46.2,48.4,52.8,55,59.4,1E-3,1E-3,37.4,42,44,44,48.4,50.6,55,1E-3,1E-3,1E-3,35.200000000000003,37.4,37.4,41.8,44,46.2,1E-3,1E-3,1E-3,1E-3,33,35.200000000000003,39.6,41.8,46.2,1E-3,1E-3,1E-3,1E-3,33,35.200000000000003,39.6,41.8,46.2,1E-3,1E-3,1E-3,1E-3,1E-3,33,35.200000000000003,37.4,41.8,18,null,15.2,1E-3,1E-3,1E-3,3.61,4.17230022534235,3.9969376552839901,4.9326861963367401,4.9326861963367401,5.12769399664875,49.868766479999998,">25 to 50 feet"]
[null,null,null,null,null,null,24,30.8,33,33,35,37.4,37.4,41.8,44,46.2,1E-3,1E-3,30.8,35,37.4,37.4,41.8,44,46.2,1E-3,1E-3,1E-3,28.6,30.8,33,35.200000000000003,37.4,39.6,1E-3,1E-3,1E-3,1E-3,28.6,30.8,33,35.200000000000003,39.6,1E-3,1E-3,1E-3,1E-3,28.6,30.8,33,35.200000000000003,39.6,1E-3,1E-3,1E-3,1E-3,1E-3,26.4,28.6,30.8,35.200000000000003,19,"High",30.5,1E-3,1E-3,1E-3,1E-3,17.6666666666667,19,20.6666666666667,22.1666666666667,25,100.06561695000001,{"$f":"\">50 feet to 100 feet\"","v":">50 feet to 100 feet"}]
[null,"mean",{"$f":"IF(OR($E$23<=0,$E$24<=0),0,INDEX(BM4:BU39,$E23,$E24))","v":0},"Row",{"$f":"1+2*(Home!$AN$120-1)+6*(Home!$AN$123-1)","v":-7},null,null,1,2,3,4,5,6,7,8,9,10,11,12,13,14,15,16,17,18,19,20,21,22,23,24,25,26,27,28,29,30,31,32,33,34,35,36,37,38,39,40,41,42,43,44,45,46,47,48,49,50,51,52,53,54,20,null,30.5,1E-3,1E-3,1E-3,1E-3,3.9969376552839901,4.5623158259663699,5.12769399664875,5.3227017969607697,6.0830877679551598,100.06561695000001,">50 feet to 100 feet"]
[null,"sd",{"$f":"IF(OR($E$23<=0,$E$24<=0),0,INDEX(BM4:BU39,$E23+1,$E24))","v":0},"Column",{"$f":"Home!$AN$118","v":0},{"$f":"Home!AN120","v":0},"AN120",null,null,null,null,null,null,null,null,null,null,null,null,null,null,null,null,null,null,null,null,null,null,null,null,null,null,null,null,null,null,null,null,null,null,null,null,null,null,null,null,null,null,null,null,null,null,null,null,null,null,null,null,null,null,21,"Middle",30.5,1E-3,1E-3,1E-3,1E-3,18,19.8333333333333,21.1666666666667,22.8333333333333,25.6666666666667,100.06561695000001,">50 feet to 100 feet"]
[null,"Percentile",{"$f":"IF(OR($C$23<=0,$C$24<=0),0,100*(NORMSDIST((2.2*C23-C19)/(2.2*C24))))","v":0},null,null,{"$f":"Home!AN123","v":0},"AN123",null,null,null,null,null,null,null,null,null,null,null,null,null,null,null,null,null,null,null,null,null,null,null,null,null,null,null,null,null,null,null,null,null,null,null,null,null,null,null,null,null,null,null,null,null,null,null,null,null,null,null,null,null,null,22,null,30.5,1E-3,1E-3,1E-3,1E-3,4.5623158259663699,4.9326861963367401,4.7573236262783798,5.3227017969607697,6.2584503380135201,100.06561695000001,">50 feet to 100 feet"]
[null,null,null,null,null,{"$f":"Home!AN118","v":0},"AN118",null,null,null,null,null,null,null,null,null,null,null,null,null,null,null,null,null,null,null,null,null,null,null,null,null,null,null,null,null,null,null,null,null,null,null,null,null,null,null,null,null,null,null,null,null,null,null,null,null,null,null,null,null,null,23,"Low",30.5,1E-3,1E-3,1E-3,1E-3,15.3333333333333,16.8333333333333,17.8333333333333,19,21.6666666666667,100.06561695000001,">50 feet to 100 feet"]
[null,null,null,null,null,null,null,null,null,null,null,null,null,null,null,null,null,null,null,null,null,null,null,null,null,null,null,null,null,null,null,null,null,null,null,null,null,null,null,null,null,null,null,null,null,null,null,null,null,null,null,null,null,null,null,null,null,null,null,null,null,24,null,30.5,1E-3,1E-3,1E-3,1E-3,3.6069220546599601,3.8019298549719802,4.3673080256543599,4.5623158259663699,5.12769399664875,100.06561695000001,">50 feet to 100 feet"]
[null,null,null,null,null,null,null,null,null,null,null,null,null,null,null,null,null,null,null,null,null,null,null,null,null,null,null,null,null,null,null,null,null,null,null,null,null,null,null,null,null,null,null,null,null,null,null,null,null,null,null,null,null,null,null,null,null,null,null,null,null,25,"High",45.7,1E-3,1E-3,1E-3,1E-3,17.6666666666667,19,20.6666666666667,22.1666666666667,25,149.93438343000003,{"$f":"\">100 to 150 feet\"","v":">100 to 150 feet"}]
[null,null,null,null,null,null,null,null,null,null,null,null,null,null,null,null,null,null,null,null,null,null,null,null,null,null,null,null,null,null,null,null,null,null,null,null,null,null,null,null,null,null,null,null,null,null,null,null,null,null,null,null,null,null,null,null,null,null,null,null,null,26,null,45.7,1E-3,1E-3,1E-3,1E-3,3.9969376552839901,4.5623158259663699,5.12769399664875,5.3227017969607697,6.0830877679551598,149.93438343000003,">100 to 150 feet"]
[null,null,null,null,null,null,null,null,null,null,null,null,null,null,null,null,null,null,null,null,null,null,null,null,null,null,null,null,null,null,null,null,null,null,null,null,null,null,null,null,null,null,null,null,null,null,null,null,null,null,null,null,null,null,null,null,null,null,null,null,null,27,"Middle",45.7,1E-3,1E-3,1E-3,1E-3,18,19.8333333333333,21.1666666666667,22.8333333333333,25.6666666666667,149.93438343000003,">100 to 150 feet"]
[null,null,null,null,null,null,null,null,null,null,null,null,null,null,null,null,null,null,null,null,null,null,null,null,null,null,null,null,null,null,null,null,null,null,null,null,null,null,null,null,null,null,null,null,null,null,null,null,null,null,null,null,null,null,null,null,null,null,null,null,null,28,null,45.7,1E-3,1E-3,1E-3,1E-3,4.5623158259663699,4.9326861963367401,4.7573236262783798,5.3227017969607697,6.2584503380135201,149.93438343000003,">100 to 150 feet"]
[null,null,null,null,null,null,null,null,null,null,null,null,null,null,null,null,null,null,null,null,null,null,null,null,null,null,null,null,null,null,null,null,null,null,null,null,null,null,null,null,null,null,null,null,null,null,null,null,null,null,null,null,null,null,null,null,null,null,null,null,null,29,"Low",45.7,1E-3,1E-3,1E-3,1E-3,15.3333333333333,16.8333333333333,17.8333333333333,19,21.6666666666667,149.93438343000003,">100 to 150 feet"]
[null,null,null,null,null,null,null,"7 FEET PULL",null,null,null,null,null,null,null,null,"24 FEET PULL",null,null,null,null,null,null,null,null,"48 FEET PULL",null,null,null,null,null,null,null,null,"97 FEET PULL",null,null,null,null,null,null,null,null,"145 FEET PULL",null,null,null,null,null,null,null,null,"194 FEET PULL",null,null,null,null,null,null,null,null,30,null,45.7,1E-3,1E-3,1E-3,1E-3,3.6069220546599601,3.8019298549719802,4.3673080256543599,4.5623158259663699,5.12769399664875,149.93438343000003,">100 to 150 feet"]
[null,null,null,null,null,null,"Height (in)","S",null,null,null,"Min",null,null,null,"Hrs","S",null,null,null,"Min",null,null,null,"Hrs","S",null,null,null,"Min",null,null,null,"Hrs",null,null,null,null,"Min",null,null,null,"Hrs",null,null,null,null,"Min",null,null,null,"Hrs",null,null,null,null,null,"Min",null,null,"Hrs",31,"High",61,1E-3,1E-3,1E-3,1E-3,1E-3,17,18.1666666666667,20,22.1666666666667,200.13123390000001,{"$f":"\">150 feet\"","v":">150 feet"}]
[null,null,"overall3:",null,null,null,null,6,12,15,30,1,2,5,30,8,6,12,15,30,1,2,5,30,8,6,12,15,30,1,2,5,30,8,6,12,15,30,1,2,5,30,8,6,12,15,30,1,2,5,30,8,6,12,15,30,1,2,5,30,8,32,null,61,1E-3,1E-3,1E-3,1E-3,1E-3,4.17230022534235,4.3673080256543599,4.5623158259663699,5.3227017969607697,200.13123390000001,">150 feet"]
["Pull",0.75,{"$f":"IF(OR($E$36<=0,$E$37<=0),0,INDEX(H36:BI38,E36,E37))","v":0},"Row",{"$f":"Home!$AN$120","v":0},75,55,35.200000000000003,41.8,41.8,44,44,46.2,52.8,55,57.2,1E-3,1E-3,35.200000000000003,40,41.8,41.8,46.2,48.4,52.8,1E-3,1E-3,1E-3,30.8,35.200000000000003,35.200000000000003,39.6,41.8,44,1E-3,1E-3,1E-3,1E-3,30.8,35.200000000000003,37.4,39.6,44,1E-3,1E-3,1E-3,1E-3,30.8,35.200000000000003,37.4,39.6,44,1E-3,1E-3,1E-3,1E-3,1E-3,30.8,33,35.200000000000003,39.6,33,"Middle",61,1E-3,1E-3,1E-3,1E-3,1E-3,17.6666666666667,19,20.1666666666667,23,200.13123390000001,">150 feet"]
[null,null,null,"Column",{"$f":"Home!$AN$118+9*(Home!$AN$123-1)","v":-9},null,36,35.200000000000003,41.8,44,46.2,46.2,48.4,55,57.2,59.4,1E-3,1E-3,37.4,39.6,41.8,44,48.4,50.6,55,1E-3,1E-3,1E-3,30.8,37.4,37.4,41.8,44,46.2,1E-3,1E-3,1E-3,1E-3,33,35.200000000000003,39.6,41.8,46.2,1E-3,1E-3,1E-3,1E-3,33,35.200000000000003,39.6,41.8,46.2,1E-3,1E-3,1E-3,1E-3,1E-3,33,35.200000000000003,37.4,41.8,34,null,61,1E-3,1E-3,1E-3,1E-3,1E-3,3.9969376552839901,4.5623158259663699,4.9326861963367401,5.69307216733114,200.13123390000001,">150 feet"]
[null,null,null,null,null,null,24,37.4,44,46.2,48.4,48.4,50.6,57.2,59.4,61.6,1E-3,1E-3,37.4,41.8,44,46.2,50.6,52.8,57.2,1E-3,1E-3,1E-3,33,37.4,39.6,44,46.2,48.4,1E-3,1E-3,1E-3,1E-3,35.200000000000003,37.4,39.6,44,48.4,1E-3,1E-3,1E-3,1E-3,35.200000000000003,37.4,39.6,44,48.4,1E-3,1E-3,1E-3,1E-3,1E-3,33,35.200000000000003,39.6,44,35,"Low",61,1E-3,1E-3,1E-3,1E-3,1E-3,14.6666666666667,16,17.1666666666667,19.1666666666667,200.13123390000001,">150 feet"]
[null,"mean",{"$f":"IF(OR($E$39<=0,$E$40<=0),0,INDEX(BM44:BU79,$E39,$E40))","v":0},"Row",{"$f":"1+2*(Home!$AN$120-1)+6*(Home!$AN$123-1)","v":-7},null,null,null,null,null,null,null,null,null,null,null,null,null,null,null,null,null,null,null,null,null,null,null,null,null,null,null,null,null,null,null,null,null,null,null,null,null,null,null,null,null,null,null,null,null,null,null,null,null,null,null,null,null,null,null,null,36,null,61,1E-3,1E-3,1E-3,1E-3,1E-3,3.6069220546599601,4.17230022534235,4.3673080256543599,4.9326861963367401,200.13123390000001,">150 feet"]
[null,"sd",{"$f":"IF(OR($E$39<=0,$E$40<=0),0,INDEX(BM44:BU79,$E39+1,$E40))","v":0},"Column",{"$f":"Home!$AN$118","v":0}]
[null,"Percentile",{"$f":"IF(OR($C$39<=0,$C$40<=0),0,100*(NORMSDIST((2.2*C39-C19)/(2.2*C40))))","v":0},null,null,null,null,null,null,null,null,null,null,null,null,null,null,null,null,null,null,null,null,null,null,null,null,null,null,null,null,null,null,null,null,null,null,null,null,null,null,null,null,null,null,null,null,null,null,null,null,null,null,null,null,null,null,null,null,null,null,null,null,null,"PULL",null,"1 Move Every"]
[null,null,null,null,null,null,null,null,null,null,null,null,null,null,null,null,null,null,null,null,null,null,null,null,null,null,null,null,null,null,null,null,null,null,null,null,null,null,null,null,null,null,null,null,null,null,null,null,null,null,null,null,null,null,null,null,null,null,null,null,null,null,null,null,"Second",null,null,null,"Minute",null,null,null,"Hour"]
[null,null,null,null,null,null,null,null,null,null,null,null,null,null,null,null,null,null,null,null,null,null,null,null,null,null,null,null,null,null,null,null,null,null,null,null,null,null,null,null,null,null,null,null,null,null,null,null,null,null,null,null,null,null,null,null,null,null,null,null,null,null,"                                                              ","Dist [m]",6,12,15,30,1,2,5,30,8]
[null,null,null,null,null,null,null,null,null,null,null,null,null,null,null,null,null,null,null,null,null,null,null,null,null,null,null,null,null,null,null,null,null,null,null,null,null,null,null,null,null,null,null,null,null,null,null,null,null,null,null,null,null,null,null,null,null,null,null,null,null,null,"High",2.1,18.6666666666667,22,22.5,23.5,24,25,28,29,30.6666666666667]
[null,null,null,null,null,null,null,null,null,null,null,null,null,null,null,null,null,null,null,null,null,null,null,null,null,null,null,null,null,null,null,null,null,null,null,null,null,null,null,null,null,null,null,null,null,null,null,null,null,null,null,null,null,null,null,null,null,null,null,null,null,null,null,2.1,3.9969376552839901,4.5623158259663699,4.83,5.4,5.69307216733114,5.69307216733114,6.0830877679551598,6.0830877679551598,6.64846593863754]
[null,null,null,null,null,null,null,null,null,null,null,null,null,null,null,null,null,null,null,null,null,null,null,null,null,null,null,null,null,null,null,null,null,null,null,null,null,null,null,null,null,null,null,null,null,null,null,null,null,null,null,null,null,null,null,null,null,null,null,null,null,null,"Middle",2.1,19.1666666666667,22.6666666666667,23.25,24.42,25,26,29,30.3333333333333,32]
[null,null,null,null,null,null,null,null,null,null,null,null,null,null,null,null,null,null,null,null,null,null,null,null,null,null,null,null,null,null,null,null,null,null,null,null,null,null,null,null,null,null,null,null,null,null,null,null,null,null,null,null,null,null,null,null,null,null,null,null,null,null,null,2.1,4.3673080256543599,5.12769399664875,5.27,5.55,5.69307216733114,5.69307216733114,6.0830877679551598,6.64846593863754,7.2138441093199299]
[null,null,null,null,null,null,null,null,null,null,null,null,null,null,null,null,null,null,null,null,null,null,null,null,null,null,null,null,null,null,null,null,null,null,null,null,null,null,null,null,null,null,null,null,null,null,null,null,null,null,null,null,null,null,null,null,null,null,null,null,null,null,"Low",2.1,20.1666666666667,23.8333333333333,24.42,25.58,26.1666666666667,27.1666666666667,30.3333333333333,31.6666666666667,33.1666666666667]
[null,null,null,null,null,null,null,null,null,null,null,null,null,null,null,null,null,null,null,null,null,null,null,null,null,null,null,null,null,null,null,null,null,null,null,null,null,null,null,null,null,null,null,null,null,null,null,null,null,null,null,null,null,null,null,null,null,null,null,null,null,null,null,2.1,4.3673080256543599,5.3227017969607697,5.46,5.75,5.8880799676431499,5.8880799676431499,6.64846593863754,6.64846593863754,7.4088519096319398]
[null,null,null,null,null,null,null,null,null,null,null,null,null,null,null,null,null,null,null,null,null,null,null,null,null,null,null,null,null,null,null,null,null,null,null,null,null,null,null,null,null,null,null,null,null,null,null,null,null,null,null,null,null,null,null,null,null,null,null,null,null,null,"High",7.6,1E-3,1E-3,18.6666666666667,20.84,22,22.6666666666667,25,26.1666666666667,28]
[null,null,null,null,null,null,null,null,null,null,null,null,null,null,null,null,null,null,null,null,null,null,null,null,null,null,null,null,null,null,null,null,null,null,null,null,null,null,null,null,null,null,null,null,null,null,null,null,null,null,null,null,null,null,null,null,null,null,null,null,null,null,null,7.6,1E-3,1E-3,3.9969376552839901,4.57,4.5623158259663699,5.12769399664875,5.69307216733114,5.8880799676431499,6.0830877679551598]
[null,null,null,null,null,null,null,null,null,null,null,null,null,null,null,null,null,null,null,null,null,null,null,null,null,null,null,null,null,null,null,null,null,null,null,null,null,null,null,null,null,null,null,null,null,null,null,null,null,null,null,null,null,null,null,null,null,null,null,null,null,null,"Middle",7.6,1E-3,1E-3,19.3333333333333,21.7,22.6666666666667,23.6666666666667,26,27.1666666666667,29]
[null,null,null,null,null,null,null,null,null,null,null,null,null,null,null,null,null,null,null,null,null,null,null,null,null,null,null,null,null,null,null,null,null,null,null,null,null,null,null,null,null,null,null,null,null,null,null,null,null,null,null,null,null,null,null,null,null,null,null,null,null,null,null,7.6,1E-3,1E-3,3.9969376552839901,4.8,5.12769399664875,5.12769399664875,5.69307216733114,5.8880799676431499,6.0830877679551598]
[null,null,null,null,null,null,null,null,null,null,null,null,null,null,null,null,null,null,null,null,null,null,null,null,null,null,null,null,null,null,null,null,null,null,null,null,null,null,null,null,null,null,null,null,null,null,null,null,null,null,null,null,null,null,null,null,null,null,null,null,null,null,"Low",7.6,1E-3,1E-3,20.1666666666667,22.77,23.8333333333333,25,27.6666666666667,28.8333333333333,30.3333333333333]
[null,null,null,null,null,null,null,null,null,null,null,null,null,null,null,null,null,null,null,null,null,null,null,null,null,null,null,null,null,null,null,null,null,null,null,null,null,null,null,null,null,null,null,null,null,null,null,null,null,null,null,null,null,null,null,null,null,null,null,null,null,null,null,7.6,1E-3,1E-3,4.3673080256543599,4.87,5.3227017969607697,5.69307216733114,6.2584503380135201,6.4534581383255301,6.64846593863754]
[null,null,null,null,null,null,null,null,null,null,null,null,null,null,null,null,null,null,null,null,null,null,null,null,null,null,null,null,null,null,null,null,null,null,null,null,null,null,null,null,null,null,null,null,null,null,null,null,null,null,null,null,null,null,null,null,null,null,null,null,null,null,"High",15.2,1E-3,1E-3,1E-3,16.03,18.6666666666667,19.1666666666667,21.1666666666667,22.3333333333333,23.6666666666667]
[null,null,null,null,null,null,null,null,null,null,null,null,null,null,null,null,null,null,null,null,null,null,null,null,null,null,null,null,null,null,null,null,null,null,null,null,null,null,null,null,null,null,null,null,null,null,null,null,null,null,null,null,null,null,null,null,null,null,null,null,null,null,null,15.2,1E-3,1E-3,1E-3,3.53,3.9969376552839901,4.3673080256543599,4.9326861963367401,5.12769399664875,5.12769399664875]
[null,null,null,null,null,null,null,null,null,null,null,null,null,null,null,null,null,null,null,null,null,null,null,null,null,null,null,null,null,null,null,null,null,null,null,null,null,null,null,null,null,null,null,null,null,null,null,null,null,null,null,null,null,null,null,null,null,null,null,null,null,null,"Middle",15.2,1E-3,1E-3,1E-3,16.760000000000002,19.3333333333333,20,22.3333333333333,23.3333333333333,24.8333333333333]
[null,null,null,null,null,null,null,null,null,null,null,null,null,null,null,null,null,null,null,null,null,null,null,null,null,null,null,null,null,null,null,null,null,null,null,null,null,null,null,null,null,null,null,null,null,null,null,null,null,null,null,null,null,null,null,null,null,null,null,null,null,null,null,15.2,1E-3,1E-3,1E-3,3.7,3.9969376552839901,4.5623158259663699,5.12769399664875,5.12769399664875,5.3227017969607697]
[null,null,null,null,null,null,null,null,null,null,null,null,null,null,null,null,null,null,null,null,null,null,null,null,null,null,null,null,null,null,null,null,null,null,null,null,null,null,null,null,null,null,null,null,null,null,null,null,null,null,null,null,null,null,null,null,null,null,null,null,null,null,"Low",15.2,1E-3,1E-3,1E-3,17.61,20.1666666666667,21,23.3333333333333,24.3333333333333,26]
[null,null,null,null,null,null,null,null,null,null,null,null,null,null,null,null,null,null,null,null,null,null,null,null,null,null,null,null,null,null,null,null,null,null,null,null,null,null,null,null,null,null,null,null,null,null,null,null,null,null,null,null,null,null,null,null,null,null,null,null,null,null,null,15.2,1E-3,1E-3,1E-3,4.0199999999999996,4.3673080256543599,4.5623158259663699,5.12769399664875,5.12769399664875,5.69307216733114]
[null,null,null,null,null,null,null,null,null,null,null,null,null,null,null,null,null,null,null,null,null,null,null,null,null,null,null,null,null,null,null,null,null,null,null,null,null,null,null,null,null,null,null,null,null,null,null,null,null,null,null,null,null,null,null,null,null,null,null,null,null,null,"High",30.5,1E-3,1E-3,1E-3,1E-3,16.8333333333333,18.3333333333333,19.8333333333333,21,23.8333333333333]
[null,null,null,null,null,null,null,null,null,null,null,null,null,null,null,null,null,null,null,null,null,null,null,null,null,null,null,null,null,null,null,null,null,null,null,null,null,null,null,null,null,null,null,null,null,null,null,null,null,null,null,null,null,null,null,null,null,null,null,null,null,null,null,30.5,1E-3,1E-3,1E-3,1E-3,3.8019298549719802,3.9969376552839901,4.3673080256543599,4.5623158259663699,5.3227017969607697]
[null,null,null,null,null,null,null,null,null,null,null,null,null,null,null,null,null,null,null,null,null,null,null,null,null,null,null,null,null,null,null,null,null,null,null,null,null,null,null,null,null,null,null,null,null,null,null,null,null,null,null,null,null,null,null,null,null,null,null,null,null,null,"Middle",30.5,1E-3,1E-3,1E-3,1E-3,17.8333333333333,19.1666666666667,20.8333333333333,22,25]
[null,null,null,null,null,null,null,null,null,null,null,null,null,null,null,null,null,null,null,null,null,null,null,null,null,null,null,null,null,null,null,null,null,null,null,null,null,null,null,null,null,null,null,null,null,null,null,null,null,null,null,null,null,null,null,null,null,null,null,null,null,null,null,30.5,1E-3,1E-3,1E-3,1E-3,3.8019298549719802,4.3673080256543599,4.3673080256543599,4.5623158259663699,5.69307216733114]
[null,null,null,null,null,null,null,null,null,null,null,null,null,null,null,null,null,null,null,null,null,null,null,null,null,null,null,null,null,null,null,null,null,null,null,null,null,null,null,null,null,null,null,null,null,null,null,null,null,null,null,null,null,null,null,null,null,null,null,null,null,null,"Low",30.5,1E-3,1E-3,1E-3,1E-3,18.3333333333333,20,21.6666666666667,23.3333333333333,26.1666666666667]
[null,null,null,null,null,null,null,null,null,null,null,null,null,null,null,null,null,null,null,null,null,null,null,null,null,null,null,null,null,null,null,null,null,null,null,null,null,null,null,null,null,null,null,null,null,null,null,null,null,null,null,null,null,null,null,null,null,null,null,null,null,null,null,30.5,1E-3,1E-3,1E-3,1E-3,3.9969376552839901,4.5623158259663699,5.12769399664875,5.12769399664875,5.8880799676431499]
[null,null,null,null,null,null,null,null,null,null,null,null,null,null,null,null,null,null,null,null,null,null,null,null,null,null,null,null,null,null,null,null,null,null,null,null,null,null,null,null,null,null,null,null,null,null,null,null,null,null,null,null,null,null,null,null,null,null,null,null,null,null,"High",45.7,1E-3,1E-3,1E-3,1E-3,16.8333333333333,18.3333333333333,19.8333333333333,21,23.8333333333333]
[null,null,null,null,null,null,null,null,null,null,null,null,null,null,null,null,null,null,null,null,null,null,null,null,null,null,null,null,null,null,null,null,null,null,null,null,null,null,null,null,null,null,null,null,null,null,null,null,null,null,null,null,null,null,null,null,null,null,null,null,null,null,null,45.7,1E-3,1E-3,1E-3,1E-3,3.8019298549719802,3.9969376552839901,4.3673080256543599,4.5623158259663699,5.3227017969607697]
[null,null,null,null,null,null,null,null,null,null,null,null,null,null,null,null,null,null,null,null,null,null,null,null,null,null,null,null,null,null,null,null,null,null,null,null,null,null,null,null,null,null,null,null,null,null,null,null,null,null,null,null,null,null,null,null,null,null,null,null,null,null,"Middle",45.7,1E-3,1E-3,1E-3,1E-3,17.8333333333333,19.1666666666667,20.8333333333333,22,25]
[null,null,null,null,null,null,null,null,null,null,null,null,null,null,null,null,null,null,null,null,null,null,null,null,null,null,null,null,null,null,null,null,null,null,null,null,null,null,null,null,null,null,null,null,null,null,null,null,null,null,null,null,null,null,null,null,null,null,null,null,null,null,null,45.7,1E-3,1E-3,1E-3,1E-3,3.8019298549719802,4.3673080256543599,4.3673080256543599,4.5623158259663699,5.69307216733114]
[null,null,null,null,null,null,null,null,null,null,null,null,null,null,null,null,null,null,null,null,null,null,null,null,null,null,null,null,null,null,null,null,null,null,null,null,null,null,null,null,null,null,null,null,null,null,null,null,null,null,null,null,null,null,null,null,null,null,null,null,null,null,"Low",45.7,1E-3,1E-3,1E-3,1E-3,18.3333333333333,20,21.6666666666667,23.3333333333333,26.1666666666667]
[null,null,null,null,null,null,null,null,null,null,null,null,null,null,null,null,null,null,null,null,null,null,null,null,null,null,null,null,null,null,null,null,null,null,null,null,null,null,null,null,null,null,null,null,null,null,null,null,null,null,null,null,null,null,null,null,null,null,null,null,null,null,null,45.7,1E-3,1E-3,1E-3,1E-3,3.9969376552839901,4.5623158259663699,5.12769399664875,5.12769399664875,5.8880799676431499]
[null,null,null,null,null,null,null,null,null,null,null,null,null,null,null,null,null,null,null,null,null,null,null,null,null,null,null,null,null,null,null,null,null,null,null,null,null,null,null,null,null,null,null,null,null,null,null,null,null,null,null,null,null,null,null,null,null,null,null,null,null,null,"High",61,1E-3,1E-3,1E-3,1E-3,1E-3,16.3333333333333,17.8333333333333,19,21.1666666666667]
[null,null,null,null,null,null,null,null,null,null,null,null,null,null,null,null,null,null,null,null,null,null,null,null,null,null,null,null,null,null,null,null,null,null,null,null,null,null,null,null,null,null,null,null,null,null,null,null,null,null,null,null,null,null,null,null,null,null,null,null,null,null,null,61,1E-3,1E-3,1E-3,1E-3,1E-3,3.6069220546599601,3.8019298549719802,4.17230022534235,4.9326861963367401]
[null,null,null,null,null,null,null,null,null,null,null,null,null,null,null,null,null,null,null,null,null,null,null,null,null,null,null,null,null,null,null,null,null,null,null,null,null,null,null,null,null,null,null,null,null,null,null,null,null,null,null,null,null,null,null,null,null,null,null,null,null,null,"Middle",61,1E-3,1E-3,1E-3,1E-3,1E-3,17.1666666666667,18.3333333333333,19.8333333333333,22.3333333333333]
[null,null,null,null,null,null,null,null,null,null,null,null,null,null,null,null,null,null,null,null,null,null,null,null,null,null,null,null,null,null,null,null,null,null,null,null,null,null,null,null,null,null,null,null,null,null,null,null,null,null,null,null,null,null,null,null,null,null,null,null,null,null,null,61,1E-3,1E-3,1E-3,1E-3,1E-3,3.8019298549719802,3.9969376552839901,4.3673080256543599,5.12769399664875]
[null,null,null,null,null,null,null,null,null,null,null,null,null,null,null,null,null,null,null,null,null,null,null,null,null,null,null,null,null,null,null,null,null,null,null,null,null,null,null,null,null,null,null,null,null,null,null,null,null,null,null,null,null,null,null,null,null,null,null,null,null,null,"Low",61,1E-3,1E-3,1E-3,1E-3,1E-3,18,19.1666666666667,21,23.3333333333333]
[null,null,null,null,null,null,null,null,null,null,null,null,null,null,null,null,null,null,null,null,null,null,null,null,null,null,null,null,null,null,null,null,null,null,null,null,null,null,null,null,null,null,null,null,null,null,null,null,null,null,null,null,null,null,null,null,null,null,null,null,null,null,null,61,1E-3,1E-3,1E-3,1E-3,1E-3,4.17230022534235,4.3673080256543599,4.5623158259663699,5.12769399664875]

{"sheet":"Strain Index","index":5,"n_rows":39,"n_cols":9,"rows_kept":39,"cut":false,"hidden":true,"merged":[]}
["Task Description"]
[]
[]
["Variable","Level","Observation",null,"Variable Multiplier","Enter Multiplier"]
["Intensity of Exertion","Light","Light:  Barely noticeable or relaxed effort (BS: 0-2)",null,1]
[null,"Somewhat Hard","Somewhat Hard:  Noticeable or definite effort (BS: 3)",null,3]
[null,"Hard","Hard:  Obvious effort; Unchanged facial expression (BS: 4-5)",null,6]
[null,"Very Hard","Very Hard:  Substantial effort; Changes expression (BS: 6-7)",null,9]
[null,"Near Maximal","Near Maximal:  Uses shoulder or trunk for force (BS: 8-10)",null,13,{"$f":"IF(Home!AN73=5,E9,IF(Home!AN73=4,E8,IF(Home!AN73=3,E7,IF(Home!AN73=2,E6,IF(Home!AN73=1,E5,0)))))","v":0}]
["Duration of Exertion (% of Cycle)","< 10%",null,null,"0.5"]
[null,"10-29%",null,null,1]
[null,"30-49%",null,null,1.5]
[null,"50-79%",null,null,2]
[null,"> 80% ",null,null,3,{"$f":"IF(Home!AN74=5,E14,IF(Home!AN74=4,E13,IF(Home!AN74=3,E12,IF(Home!AN74=2,E11,IF(Home!AN74=1,E10,0)))))","v":0}]
["Efforts Per Minute","< 4",null,null,0.5]
[null,"4 - 8",null,null,1]
[null,"9 - 14",null,null,1.5]
[null,"15 - 19",null,null,2]
[null,"> 20",null,null,3,{"$f":"IF(Home!AN79=5,E19,IF(Home!AN79=4,E18,IF(Home!AN79=3,E17,IF(Home!AN79=2,E16,IF(Home!AN79=1,E15,0)))))","v":0}]
["Hand/Wrist Posture","Very Good","Perfectly Neutral",null,1]
[null,"Good","Near Neutral",null,1]
[null,"Fair","Non-Neutral",null,1.5]
[null,"Bad","Marked Deviation",null,2]
[null,"Very Bad","Near Extreme",null,3,{"$f":"IF(Home!AN82=0,0,IF(Home!AN82=5,E24,IF(Home!AN82=4,E23,IF(Home!AN82=3,E22,E21))))","v":0}]
["Speed of Work","Very Slow","Extremely relaxed pace",null,1]
[null,"Slow","Taking one's own time",null,1]
[null,"Fair","Normal speed of motion",null,1]
[null,"Fast","Rushed, but able to keep up",null,1.5]
[null,"Very Fast","Rushed and barely/unable to keep up",null,2,{"$f":"IF(Home!AN85=0,0,IF(Home!AN85=5,E29,IF(Home!AN85=4,E28,E27)))","v":0}]
["Duration of Task Per Day (hours)","<1",null,null,0.25]
[null,"1 - 2",null,null,0.5]
[null,"2 - 4",null,null,0.75]
[null,"4 - 8",null,null,1]
[null,"> 8",null,null,1.5,{"$f":"IF(Home!AN88=5,E34,IF(Home!AN88=4,E33,IF(Home!AN88=3,E32,IF(Home!AN88=2,E31,E30))))","v":0.25}]
[null,null,null,null,null,null,null,"SI Score","Interpretation"]
[null,null,null,null,"SI = ",{"$f":"F9*F14*F19*F24*F29*F34","v":0},null,"< 3","Safe"]
[null,null,null,null,null,null,null,"3-5","Uncertain"]
[null,null,null,null,null,null,null,"5-7","Some Risk"]
[null,null,null,null,null,null,null,"> 7","Hazardous"]

{"sheet":"TLV","index":6,"n_rows":57,"n_cols":11,"rows_kept":57,"cut":false,"hidden":true,"merged":[]}
["TLVs for Lifting Tasks"]
[null,null,null,null,"Infrequent",null,"The lifting is",{"$f":"IF(AND(Home!AN22=2,Home!AN24<3),\"Frequent, long duration\",IF(OR(AND(Home!AN22=2,Home!AN24=3),AND(Home!AN22=1,Home!AN24<3)),\"Moderately frequent\",\"Infrequent\"))","v":"Infrequent"},null,"Row",{"$f":"IF(AND(H2=E2,H10=1),9,IF(AND(H2=E2,H10=2),10,IF(AND(H2=E2,H10=3),11,IF(AND(H2=E2,H10=4),12,IF(AND(H2=E3,H10=1),23,IF(AND(H2=E3,H10=2),24,IF(AND(H2=E3,H10=3),25,IF(AND(H2=E3,H10=4),26,IF(AND(H2=E4,H10=1),35,IF(AND(H2=E4,H10=2),36,IF(AND(H2=E4,H10=3),37,IF(AND(H2=E4,H10=4),38,0))))))))))))","v":0}]
["Infrequent",null,null,null,"Moderately frequent",null,"The hand vertical location is ",null,null,"Column",{"$f":"IF(H11=1,2,IF(H11=2,3,4))","v":4}]
["<= 2 Hours per day with <= 60 lifts per hour",null,null,null,"Frequent, long duration",null,"The hand distance is "]
["Or"]
["> 2 Hours per day with <= 12 lifts per hour"]
["Hand location",null,null,null,null,null,"The safe lifting limit is ",{"$f":"INDEX(A1:D38,K2,K3)","v":0}]
["Vertical Zone","Close: 0-12\" (0-30 cm)","Intermediate: 12\"-24\" (30-60 cm)","Extended: 25\"-32\" (60-80 cm)"]
["Shoulder area (from 3\" below) up to the reach limit",35.200000000000003,15.4,1E-4]
["Torso area: knuchle height to shoulder",70.400000000000006,35.200000000000003,19.8,null,null,"Handle height from back form",{"$f":"Home!AN32","v":0}]
["Knee area: knuckle to middle of shin height",39.700000000000003,30.8,15.4,null,null,"Distance from back form",{"$f":"Home!AN35","v":0}]
["Ankle area: middle of shin height to floor",30.8,1E-4,1E-4]
[]
[]
[]
[]
["Moderately frequent"]
[">2 Hours per day with > 12 and <= 30 lifts per hour"]
["Or"]
["<= 2 Hours per day with > 60 and <= 360 lifts per hour"]
["Hand location"]
["Vertical Zone","Close: 0-12\" (0-30 cm)","Intermediate: 12\"-24\" (30-60 cm)","Extended: 25\"-32\" (60-80 cm)"]
["Shoulder area (from 3\" below) up to the reach limit",30.7,11,1E-4]
["Torso area: knuchle height to shoulder",59.5,30.7,15.4]
["Knee area: knuckle to middle of shin height",35.200000000000003,24.2,11]
["Ankle area: middle of shin height to floor",19.8,1E-4,1E-4]
[]
[]
[]
[]
["Frequent, long duration"]
[">2 Hours per day with > 30 and <= 360 lifts per hour"]
["Hand location"]
["Vertical Zone","Close: 0-12\" (0-30 cm)","Intermediate: 12\"-24\" (30-60 cm)","Extended: 25\"-32\" (60-80 cm)"]
["Shoulder area (from 3\" below) up to the reach limit",24.2,1E-4,1E-4]
["Torso area: knuchle height to shoulder",30.7,19.8,11]
["Knee area: knuckle to middle of shin height",19.8,15.4,4.4000000000000004]
["Ankle area: middle of shin height to floor",1E-4,1E-4,1E-4]
[]
[]
[]
["WA Lifting"]
["Weight by location","Near","Mid","Extended",null,null,"WA Height",{"$f":"IF(Home!AN32=0,1,Home!AN32)","v":1}]
["Above shoulder",65,40,30,null,null,"WA Distance",{"$f":"IF(Home!AN35=0,1,Home!AN35)","v":1}]
["Waist to shoulder",70,50,40,null,null,"WA Step 2",{"$f":"INDEX(B44:D47,H43,H44)","v":65}]
["Knee to waist",90,55,40]
["Below knee",70,50,35]
[]
["WA Frequency","1 hr or less","1-2 hrs","2hrs+",null,null,"WA Frequency",{"$f":"IF(Home!AN24=0,1,Home!AN24)","v":1}]
["Less than once per 5 minutes",1,1,1,null,null,"WA Duration",{"$f":"IF(Home!AN22=0,1,IF(OR(Home!AN22=1,Home!AN22=3),1,IF(OR(Home!AN22=2,Home!AN22=4),2,IF(Home!AN22=5,3))))","v":1}]
["1 per 2-5 min",1,0.95,0.85,null,null,"WA Step 3",{"$f":"INDEX(B50:D57,H49,H50)","v":1}]
["1 per min",0.95,0.9,0.75]
["2-3 per min",0.9,0.85,0.65]
["4-5 per min",0.85,0.7,0.45]
["6-7 per min",0.75,0.5,0.25]
["8-9 per min",0.6,0.35,0.15]
["10+ per min",0.3,0.2,0]

{"sheet":"QEC","index":7,"n_rows":30,"n_cols":16,"rows_kept":30,"cut":false,"hidden":true,"merged":[]}
["QEC",null,"Assessment from forms",null,null,null,null,null,{"$f":"IF(OR(F2=\"\",F4=\"\",F5=\"\",F6=\"\"),0,IF(OR(C2=0,C3=0),0,IF(C3<3,SUM(F2:F5),SUM(F2:F4)+F6+F7)))","v":0},null,null,null,null,null,"Answer items"]
["A","back posture",{"$f":"Home!AN5","v":0},null,"Back Score 1",{"$f":"IF(OR(C9=\"\",C10=0),\"\",C2*2+2*(C9-1))","v":""},null,"Back Score",{"$f":"IF(OR(F2=\"\",F4=\"\",F5=\"\",F6=\"\"),0,IF(OR(C2=0,C3=0),0,IF(C3<3,SUM(F2:F5),SUM(F2:F4)+F6+F7)))","v":0},{"$f":"IF(C3>2,\"Dynamic\",IF(C3<3,\"Static\",\"\"))","v":"Static"},{"$f":"IF(I2<J3,$A$19,IF(I2<J4,$A$20,IF(I2<J5,$A$21,$A$22)))","v":1},{"$f":"IF(K2=4,$B$22,IF(K2=3,$B$21,IF(K2=2,$B$20,IF(K2=1,$B$19,\"\"))))","v":"Low risk"},null,null,"Almost neutral","Light (5 kg/10 lb or less)"]
["B","back movements",{"$f":"Home!AN9","v":0},null,"Back Score 2",{"$f":"IF(C10=0,0,C2*2+2*(C10-1))","v":0},null,{"$f":"IF(C3=0,0,IF(C3<=2,(COUNTA(F2:F5))/4,IF(C3>3,(COUNTA(F2:F4,F6:F7)/5))))","v":0},null,{"$f":"IF($C$3<3,15,IF($C$3>2,21,0))","v":15},null,null,null,null,"Moderately flexed or twisted or side bent","Moderate (6 to 10 kg or 10 to 22 lb)"]
["C","shdr, hand height",{"$f":"Home!AN38","v":0},null,"Back Score 3",{"$f":"IF(OR(C9=\"\",C10=0),\"\",C9*2+2*(C10-1))","v":""},null,null,null,{"$f":"IF($C$3<3,23,IF($C$3>2,31,0))","v":23},null,null,null,null,"Exessively flexed or twisted or side bent","Heavy (11 to 20 kg or 22 to 44 lb)"]
["D","shdr, frequency",{"$f":"Home!AN41","v":0},null,"Back Score 4",{"$f":"IF(C10=0,0,IF(C3<3,C10*2+2*(C3-1),0))","v":0},null,null,null,{"$f":"IF($C$3<3,29,IF($C$3>2,41,0))","v":29},null,null,null,null,null,"Very Heavy (more than 20 kg/44 lb)"]
["E","wrist posture",1,null,"Back Score 5",{"$f":"IF(C9=\"\",\"\",IF(C3>2,C9*2+2*(C3-3),0))","v":""},null,null,null,null,null,null,null,null,"No"]
["F","wrist motions",1,null,"Back Score 6",{"$f":"IF(C3>2,C10*2+2*(C3-3),0)","v":0},null,null,null,null,null,null,null,null,"Yes","Less than 2 hours"]
["G","neck posture",{"$f":"Home!AN44","v":0},null,"Shoulder Score 1",{"$f":"IF(OR(C9=\"\",C10=0),0,(C4*2+2*(C9-1)))","v":0},null,"Shoulder Score",{"$f":"IF(AND(F8>0,F9>0,F10>0,F11>0,F12>0),SUM(F8:F12),0)","v":0},21,{"$f":"IF(I8<J8,$A$19,IF(I8<J9,$A$20,IF(I8<J10,$A$21,$A$22)))","v":1},{"$f":"IF(K8=4,$B$22,IF(K8=3,$B$21,IF(K8=2,$B$20,IF(K8=1,$B$19,\"\"))))","v":"Low risk"},null,null,null,"2-4 hours"]
["H","MMH max weight",{"$f":"IF(Home!AN20=0,\"\",Home!AN20)","v":""},null,"Shoulder Score 2",{"$f":"IF(C10=0,0,C4*2+2*(C10-1))","v":0},null,{"$f":"(COUNTA(F8:F12)/5)","v":1},null,31,null,null,null,null,"Infrequent (around 3 times per minute or less)","More than 4 hours"]
["J","work duration",{"$f":"IF(Home!AN21=0,0,Home!AN21)","v":0},null,"Shoulder Score 3",{"$f":"IF(OR(C9=\"\",C10=0),0,C9*2+2*(C10-1))","v":0},null,null,null,41,null,null,null,null,"Frequent (around 8 times per minute)"]
["K","One hand force max",1,null,"Shoulder Score 4",{"$f":"IF(OR(C9=\"\",C10=0),0,C5*2+2*(C9-1))","v":0},null,null,null,null,null,null,null,null,"Very frequent (around 12 times per minute or more)","Low (e.g. less than 1 kg/2 lb)"]
["L","visual demand",{"$f":"Home!AN47","v":0},null,"Shoulder Score 5",{"$f":"IF(C10=0,0,C5*2+2*(C10-1))","v":0},null,null,null,null,null,null,null,null,null,"Medium (e.g., 1 to 4 kg or 2 to 9 lb)"]
["M","driving",{"$f":"Home!AN102","v":0},null,"Wrist Score 1",{"$f":"IF(C10=0,0,C7*2+2*(C11-1))","v":0},null,"Wrist Score",{"$f":"SUM(F13:F17)","v":0},21,{"$f":"IF(I13<J13,$A$19,IF(I13<J14,$A$20,IF(I13<J15,$A$21,$A$22)))","v":1},{"$f":"IF(K13=4,$B$22,IF(K13=3,$B$21,IF(K13=2,$B$20,IF(K13=1,$B$19,\"\"))))","v":"Low risk"},null,null,"At or below waist height","High (e.g., more than 4 kg/9 lb)"]
["N","vibrating tools",{"$f":"Home!AN92","v":0},null,"Wrist Score 2",{"$f":"IF(C10=0,0,C7*2+2*(C10-1))","v":0},null,{"$f":"COUNTA(F13:F17)/5","v":1},null,31,null,null,null,null,"At about chest height"]
["P","work pace",{"$f":"Home!AR95","v":0},null,"Wrist Score 3",{"$f":"IF(C10=0,0,C10*2+2*(C11-1))","v":0},null,null,null,41,null,null,null,null,"At or above shoulder height","Low (almost no need to view fine details)"]
["Q","stress",{"$f":"Home!AR98","v":0},null,"Wrist Score 4",{"$f":"IF(C10=0,0,C6*2+2*(C11-1))","v":0},null,null,null,null,null,null,null,null,null,"High (need to view some fine details)"]
[null,null,null,null,"Wrist Score 5",{"$f":"IF(C10=0,0,C6*2+2*(C10-1))","v":0},null,null,null,null,null,null,null,null,"Infrequent (some intermittent movement)"]
[null,null,null,null,"Neck Score 1",{"$f":"IF(OR(C10=0,C8=0),0,C8*2+2*(C10-1))","v":0},null,"Neck Score",{"$f":"IF(OR(F18=0,F19=0),0,F18+F19)","v":0},10,{"$f":"IF(I18<J19,$A$19,IF(I18<J18,$A$20,$A$21))","v":1},{"$f":"IF(K18=4,$B$22,IF(K18=3,$B$21,IF(K18=2,$B$20,IF(K18=1,$B$19,\"\"))))","v":"Low risk"},null,null,"Frequent (regular movement with some pauses)","Less than one hour per day or never"]
[1,"Low risk",null,null,"Neck Score 2",{"$f":"IF(OR(C10=0,C12=0),0,C12*2+2*(C10-1))","v":0},null,{"$f":"IF(SUM(F18:F19)=0,\"\",(COUNTA(F18:F19)/2))","v":""},null,8,null,null,null,null,"Very frequent (almost continuous movement)","Between 1 and 4 hours per day"]
[2,"Moderate risk",null,null,null,null,null,"Driving",{"$f":"IF(C13=1,1,IF(C13=2,4,IF(C13=3,9,0)))","v":0},null,null,{"$f":"IF(I20=1,$B$19,IF(I20=4,$B$20,IF(I20=9,$B$21,\"\")))","v":""},null,null,null,"More than 4 hours per day"]
[3,"High risk",null,null,null,null,null,"Vibration",{"$f":"IF(C14=1,1,IF(C14=2,4,IF(C14=3,9,0)))","v":0},null,null,{"$f":"IF(I21=1,$B$19,IF(I21=4,$B$20,IF(I21=9,$B$21,\"\")))","v":""},null,null,"An almost straight wrist"]
[4,"Very high risk",null,null,null,null,null,"Work pace",{"$f":"IF(C15=1,1,IF(C15=2,4,IF(C15=3,9,0)))","v":0},null,null,{"$f":"IF(I22=1,$B$19,IF(I22=4,$B$20,IF(I22=9,$B$21,\"\")))","v":""},null,null,"A deviated or bent wrist","Never"]
[null,null,null,null,null,null,null,"Stress",{"$f":"IF(C16=1,1,IF(C16=2,4,IF(C16=3,9,IF(C16=4,16,0))))","v":0},null,null,{"$f":"IF(I23=1,$B$19,IF(I23=4,$B$20,IF(I23=9,$B$21,\"\")))","v":""},null,null,null,"Sometimes"]
[null,null,null,null,null,null,null,null,null,null,null,null,null,null,"10 times per minute or less","Often"]
[null,null,null,null,null,null,null,null,null,null,null,null,null,null,"11 to 20 times per minute"]
[null,null,null,null,null,null,null,null,null,null,null,null,null,null,"More than 20 times per minute","Not at all stressful"]
[null,null,null,null,null,null,null,null,null,null,null,null,null,null,null,"Mildly stressful"]
[null,null,null,null,null,null,null,null,null,null,null,null,null,null,"No","Moderately stressful"]
[null,null,null,null,null,null,null,null,null,null,null,null,null,null,"Yes, occasionally","Very stressful"]
[null,null,null,null,null,null,null,null,null,null,null,null,null,null,"Yes, continuously"]

{"sheet":"Vibration","index":8,"n_rows":21,"n_cols":9,"rows_kept":21,"cut":false,"hidden":true,"merged":[]}
[{"$f":"COMPARISON!AJ55","v":1},"<- QEC on/off: if \"o\" then no QEC, but HAV"]
[null,null,null,null,null,null,"Tct"]
["EU HAV","Type","Make","Hours","Vibration","8HrEq",{"$f":"SUM(G4:G9)","v":0}]
["Tool1",null,null,null,null,null,{"$f":"IF(I4=3,1,0)","v":0},{"$f":"COUNTBLANK(D4:F4)","v":3},{"$f":"3+H4","v":6}]
["Tool2",null,null,null,null,null,0,3,6]
["Tool3",null,null,null,null,null,0,3,6]
["Tool4",null,null,null,null,null,0,3,6]
["Tool5",null,null,null,null,null,0,3,6]
["Tool6",null,null,null,null,null,0,3,6]
[null,null,null,{"$f":"SUM(D4:D9)","v":0},{"$f":"SQRT(SUMSQ(E4:E9))","v":0},{"$f":"IF(OR(SQRT(SUMSQ(F4:F9))<0,D10>24),\" \",SQRT(SUMSQ(F4:F9)))","v":0}]
[null,null,null,null,"HAVrisk",{"$f":"IF(A1=1,Home!$AN$92,IF(AND(F10=0,Home!AN49=0,Home!AN50=0),0,IF(F10>5,3,IF(F10>2.5,2,IF(OR(F10>0,Home!AN49=1,Home!AN50=100),1,F12)))))","v":0}]
[null,null,null,null,null,0]
[null,null,null,null,null,null,"Vct"]
["EU WBV","Type","Make","Hours","Vibration","8HrEq",{"$f":"SUM(G15:G18)","v":0}]
["Vehicle1",null,null,null,null,null,{"$f":"IF(I15=3,1,0)","v":0},{"$f":"COUNTBLANK(D15:F15)","v":3},{"$f":"5+H15-2","v":6}]
["Vehicle2",null,null,null,null,null,{"$f":"IF(I16=3,1,0)","v":0},{"$f":"COUNTBLANK(D16:F16)","v":3},{"$f":"5+H16-2","v":6}]
["Vehicle3",null,null,null,null,null,{"$f":"IF(I17=3,1,0)","v":0},{"$f":"COUNTBLANK(D17:F17)","v":3},{"$f":"5+H17-2","v":6}]
["Vehicle4",null,null,null,null,null,{"$f":"IF(I18=3,1,0)","v":0},{"$f":"COUNTBLANK(D18:F18)","v":3},{"$f":"5+H18-2","v":6}]
[null,null,null,{"$f":"SUM(D15:D18)","v":0},{"$f":"SQRT(SUMSQ(E15:E18))","v":0},{"$f":"SQRT(SUMSQ(F15:F18))","v":0},{"$f":"IF($BA$99=0,\"\",IF($BA$99<=0.5,1,IF($BA$99>1.15,3,2)))","v":""}]
[null,null,null,null,"WBVrisk",{"$f":"IF(Home!AN100=1,1,IF(F19>1.15,3,IF(AND(F19<=1.15,F19>0.5),2,IF(AND(F19>0,F19<=0.5),1,F21))))","v":0}]
[null,null,null,null,null,0]

{"sheet":"Data","index":9,"n_rows":115,"n_cols":10,"rows_kept":115,"cut":false,"hidden":true,"merged":[]}
["item","PageIndex","PageName","FrameName","Value","Caption","Frame#","ControlType","Control#","Control"]
[1,1,"Job Basics","Oberversations by",null,null,72,"TextBox",55,{"$f":"IF(I2<>\"\",H2&\".\"&I2,\"\")","v":"TextBox.55"}]
[2,1,"Job Basics","Work description",null,null,3,"TextBox",2,"TextBox.2"]
[3,1,"Job Basics","Work Duration",2,"2 to 4 hours",14,null,null,""]
[4,1,"Job Basics","Pace of Work",2,"Sometimes",26,null,null,""]
[5,1,"Job Basics","Max Wt Handled",2,"Moderate (12 to 22 lbs.)",93,null,null,""]
[6,1,"Job Basics","Work-Stress",3,"Moderately stressful",27,null,null,""]
[7,2,"Back","Back Position",3,"Excessively flexed, twisted, or bent to the side",1,null,null,""]
[8,2,"Back","Back Activity",1,"No",4,null,null,""]
[9,3,"Work Posture","Squatting",1,"None, or less than 2 hours per day",6,null,null,""]
[10,3,"Work Posture","Kneeling",2,"2-4 hours total per day",10,null,null,""]
[11,4,"Shoulder","Hand Position",null,null,9,null,null,""]
[12,4,"Shoulder","Shoulder Movements",null,null,11,null,null,""]
[13,4,"Shoulder","IV management",null,null,79,null,null,""]
[14,4,"Shoulder","Overhead work (IV mgt)",null,null,77,null,null,""]
[15,5,"Neck","Neck bending (WA)",null,null,76,null,null,""]
[16,5,"Neck","Visual demand",null,null,78,null,null,""]
[17,5,"Neck","Neck bending (QEC)",null,null,2,null,null,""]
[18,6,"Hand exertions","Hand Exertion description",null,null,48,"TextBox",6,"TextBox.6"]
[19,6,"Hand exertions","SI Daily Duration",null,null,40,"ComboBox",2,"ComboBox.2"]
[20,6,"Hand exertions","SI Speed",null,null,39,"ComboBox",3,"ComboBox.3"]
[21,6,"Hand exertions","SI Frequency",null,null,37,"ComboBox",4,"ComboBox.4"]
[22,6,"Hand exertions","SI Duration of exertion",null,null,85,"ComboBox",15,"ComboBox.15"]
[23,6,"Hand exertions","SI Force",null,null,35,"ComboBox",6,"ComboBox.6"]
[24,6,"Hand exertions","SI Posture",null,null,38,"ComboBox",5,"ComboBox.5"]
[25,7,"Repetition","HRM Duration",null,null,95,null,null,""]
[26,7,"Repetition","HRM other risk factors",null,null,96,null,null,""]
[27,7,"Repetition","Intensive keying (IK)",null,null,43,null,null,""]
[28,7,"Repetition","IK Duration",null,null,16,null,null,""]
[29,7,"Repetition","IK neutral posture",null,null,67,"CheckBox",14,"CheckBox.14"]
[30,7,"Repetition","IK deviation",null,null,67,"CheckBox",6,{"$f":"IF(I31<>\"\",H31&\".\"&I31,\"\")","v":"CheckBox.6"}]
[31,7,"Repetition","IK Flexion",null,null,67,"CheckBox",5,"CheckBox.5"]
[32,7,"Repetition","IK extension",null,null,67,"CheckBox",4,"CheckBox.4"]
[33,7,"Repetition","Hand impacts (HI)",null,null,13,null,null,""]
[34,7,"Repetition","HI frequency",null,null,12,null,null,""]
[35,7,"Repetition","Foot controls (FC)",null,null,22,null,null,""]
[36,7,"Repetition","FC other factors",null,null,23,null,null,""]
[37,8,"Gripping","Pinch duration",null,null,68,null,null,""]
[38,8,"Gripping","Pinch no other factors",null,null,69,"CheckBox",16,{"$f":"IF(I39<>\"\",H39&\".\"&I39,\"\")","v":"CheckBox.16"}]
[39,8,"Gripping","Pinch repetitive motions",null,null,69,"CheckBox",1,{"$f":"IF(I40<>\"\",H40&\".\"&I40,\"\")","v":"CheckBox.1"}]
[40,8,"Gripping","Pinch deviation",null,null,69,"CheckBox",123,"CheckBox.123"]
[41,8,"Gripping","Pinch flexion",null,null,69,"CheckBox",2,"CheckBox.2"]
[42,8,"Gripping","Pinch extension",null,null,69,"CheckBox",3,"CheckBox.3"]
[43,8,"Gripping","Power duration",null,null,71,null,null,""]
[44,8,"Gripping","Power no other factors",null,null,70,"CheckBox",15,"CheckBox.15"]
[45,8,"Gripping","Power repetitive motions",null,null,70,"CheckBox",11,"CheckBox.11"]
[46,8,"Gripping","Power deviation",null,null,70,"CheckBox",124,"CheckBox.124"]
[47,8,"Gripping","Power flexion",null,null,70,"CheckBox",12,"CheckBox.12"]
[48,8,"Gripping","Power extension",null,null,70,"CheckBox",13,"CheckBox.13"]
[49,9,"Mod Lifting","Heavy lifting",null,null,89,null,null,""]
[50,9,"Mod Lifting","Heavy/frequent lifting",null,null,100,null,null,""]
[51,9,"Mod Lifting","Frequent lifting",null,null,90,null,null,""]
[52,9,"Mod Lifting","Awkward lifting",null,null,91,null,null,""]
[53,10,"High Risk lifting","Lift description",null,null,15,"TextBox",27,"TextBox.27"]
[54,10,"High Risk lifting","Max wt lifted",null,null,15,"TextBox",26,"TextBox.26"]
[55,10,"High Risk lifting","Lift duration",null,null,19,null,null,""]
[56,10,"High Risk lifting","Twisting",null,null,87,null,null,""]
[57,10,"High Risk lifting","Lift frequency",null,null,28,"ComboBox",16,"ComboBox.16"]
[58,10,"High Risk lifting","Lift proximity",null,null,18,null,null,""]
[59,10,"High Risk lifting","Lifting hand height",null,null,17,null,null,""]
[60,11,"Carrying","Carry description",null,null,46,"TextBox",25,"TextBox.25"]
[61,11,"Carrying","Carry weight",null,null,66,"TextBox",24,"TextBox.24"]
[62,11,"Carrying","Carry distance",null,null,21,null,null,""]
[63,11,"Carrying","Carry height (elbow post)",null,null,20,null,null,""]
[64,11,"Carrying","Carry frequency",null,null,32,null,null,""]
[65,12,"Pushing/Pulling","Push/Pull description",null,null,58,"TextBox",29,"TextBox.29"]
[66,12,"Pushing/Pulling","Effort type",null,null,65,null,null,""]
[67,12,"Pushing/Pulling","Force",null,null,57,"TextBox",28,"TextBox.28"]
[68,12,"Pushing/Pulling","Distance",null,null,25,"ComboBox",12,"ComboBox.12"]
[69,12,"Pushing/Pulling","Hand Height",null,null,24,null,null,""]
[70,12,"Pushing/Pulling","Frequency",null,null,42,"ComboBox",13,"ComboBox.13"]
[71,13,"Hand/Arm Vibration","QEC vibration",null,null,29,null,null,""]
[72,13,"Hand/Arm Vibration","Moderate vib tools",null,null,80,null,null,""]
[73,13,"Hand/Arm Vibration","High vib tools",null,null,83,null,null,""]
[74,13,"Hand/Arm Vibration","HAV tool type",null,null,82,"TextBox",57,"TextBox.57"]
[75,13,"Hand/Arm Vibration","HAV tool make/model",null,null,82,"TextBox",56,"TextBox.56"]
[76,13,"Hand/Arm Vibration","HAV tool hours/day",null,null,82,"TextBox",33,"TextBox.33"]
[77,13,"Hand/Arm Vibration","HAV tool vibration",null,null,82,"TextBox",32,"TextBox.32"]
[78,14,"Whole Body Vibration","Whole Body Vibration",null,null,86,null,null,""]
[79,14,"Whole Body Vibration","WBV vehicle type",null,null,82,"TextBox",57,"TextBox.57"]
[80,14,"Whole Body Vibration","WBV vehicle make/model",null,null,83,"TextBox",56,"TextBox.56"]
[81,14,"Whole Body Vibration","WBV vehicle hours/day",null,null,84,"TextBox",33,"TextBox.33"]
[82,14,"Whole Body Vibration","WBV vehicle vibration",null,null,85,"TextBox",32,"TextBox.32"]
[null,null,null,null,null,null,null,null,null,""]
[null,null,null,null,null,null,null,null,null,""]
[null,null,null,null,null,null,null,null,null,""]
[null,null,null,null,null,null,null,null,null,""]
[null,null,null,null,null,null,null,null,null,""]
[null,null,null,null,null,null,null,null,null,""]
[null,null,null,null,null,null,null,null,null,""]
[null,null,null,null,null,null,null,null,null,""]
[null,null,null,null,null,null,null,null,null,""]
[null,null,null,null,null,null,null,null,null,""]
[null,null,null,null,null,null,null,null,null,""]
[null,null,null,null,null,null,null,null,null,""]
[null,null,null,null,null,null,null,null,null,""]
[null,null,null,null,null,null,null,null,null,""]
[null,null,null,null,null,null,null,null,null,""]
[null,null,null,null,null,null,null,null,null,""]
[null,null,null,null,null,null,null,null,null,""]
[null,null,null,null,null,null,null,null,null,""]
[null,null,null,null,null,null,null,null,null,""]
[null,null,null,null,null,null,null,null,null,""]
[null,null,null,null,null,null,null,null,null,{"$f":"IF(I104<>\"\",H104&\".\"&I104,\"\")","v":""}]
[null,null,null,null,null,null,null,null,null,""]
[null,null,null,null,null,null,null,null,null,""]
[null,null,null,null,null,null,null,null,null,""]
[null,null,null,null,null,null,null,null,null,""]
[null,null,null,null,null,null,null,null,null,""]
[null,null,null,null,null,null,null,null,null,""]
[null,null,null,null,null,null,null,null,null,""]
[null,null,null,null,null,null,null,null,null,""]
[null,null,null,null,null,null,null,null,null,""]
[null,null,null,null,null,null,null,null,null,""]
[null,null,null,null,null,null,null,null,null,""]